Workbook

Sheet P
E2: écart au | H2: 1 | I2: 2 | J2: 3 | K2: 4 | L2: 5 | M2: 6 | N2: 7 | O2: 8 | P2: 9 | Q2: 10 | R2: 11 | S2: 12 | T2: 13 | U2: 14 | V2: 15 | W2: 16 | X2: 17 | Y2: 18 | Z2: 19 | AA2: 20 | AE2: 1 | AF2: 2 | AG2: 3 | AH2: 4 | AI2: 5 | AJ2: 6 | AK2: 7 | AL2: 8 | AM2: 9 | AN2: 10 | AO2: 11 | AP2: 12 | AQ2: 13 | AR2: 14 | AS2: 15 | AT2: 16 | AU2: 17 | AV2: 18 | AW2: 19 | AX2: 20
E3: ecart gagnant | H3: 59 | I3: 0 | J3: 10 | K3: 4 | L3: 12 | M3: 6 | N3: 2 | O3: 1 | P3: 61 | Q3: 5 | R3: 19 | S3: 7 | T3: 12 | U3: 8 | V3: 3 | W3: 16 | X3: 5 | Y3: 10 | Z3: 13 | AA3: 5 | AE3: =SUM(H5:H8) -> 180 | AF3: 193 | AG3: 177 | AH3: 190 | AI3: 176 | AJ3: 184 | AK3: 158 | AL3: 171 | AM3: 155 | AN3: 164 | AO3: 148 | AP3: 148 | AQ3: 162 | AR3: 173 | AS3: 140 | AT3: 140 | AU3: 43 | AV3: 22 | AW3: 4 | AX3: 0 | AY3: quarte
E4: ecart place | H4: 6 | I4: 0 | J4: 1 | K4: 2 | L4: 0 | M4: 6 | N4: 0 | O4: 1 | P4: 4 | Q4: 3 | R4: 13 | S4: 7 | T4: 3 | U4: 8 | V4: 3 | W4: 1 | X4: 5 | Y4: 10 | Z4: 0 | AA4: 5 | AE4: =SUM(H5:H9) -> 235 | AF4: 236 | AG4: 225 | AH4: 229 | AI4: 221 | AJ4: 218 | AK4: 202 | AL4: 213 | AM4: 195 | AN4: 208 | AO4: 190 | AP4: 195 | AQ4: 200 | AR4: 215 | AS4: 172 | AT4: 170 | AU4: 53 | AV4: 29 | AW4: 4 | AX4: 0 | AY4: quinte
G5: 1er | H5: =COUNTIF(H16:H760,1) -> 39 | I5: =COUNTIF(I16:I760,1) -> 51 | J5: =COUNTIF(J16:J760,1) -> 40 | K5: =COUNTIF(K16:K760,1) -> 47 | L5: =COUNTIF(L16:L760,1) -> 44 | M5: =COUNTIF(M16:M760,1) -> 44 | N5: =COUNTIF(N16:N760,1) -> 47 | O5: =COUNTIF(O16:O760,1) -> 49 | P5: =COUNTIF(P16:P760,1) -> 37 | Q5: =COUNTIF(Q16:Q760,1) -> 45 | R5: =COUNTIF(R16:R760,1) -> 36 | S5: =COUNTIF(S16:S760,1) -> 44 | T5: =COUNTIF(T16:T760,1) -> 29 | U5: =COUNTIF(U16:U760,1) -> 38 | V5: =COUNTIF(V16:V760,1) -> 27 | W5: =COUNTIF(W16:W760,1) -> 43 | X5: =COUNTIF(X16:X760,1) -> 12 | Y5: =COUNTIF(Y16:Y760,1) -> 9 | Z5: =COUNTIF(Z16:Z760,1) -> 1 | AA5: =COUNTIF(AA16:AA760,1) -> 0 | AB5: =SUM(G5:AA5) -> 682 | AE5: =SUM(H5:H6) -> 89 | AF5: 103 | AG5: 92 | AH5: 97 | AI5: 85 | AJ5: 95 | AK5: 86 | AL5: 94 | AM5: 83 | AN5: 82 | AO5: 68 | AP5: 64 | AQ5: 70 | AR5: 79 | AS5: 62 | AT5: 76 | AU5: 25 | AV5: 12 | AW5: 2 | AX5: 0 | AY5: couple
G6: 2eme | H6: =COUNTIF(H16:H761,2) -> 50 | I6: =COUNTIF(I16:I761,2) -> 52 | J6: =COUNTIF(J16:J761,2) -> 52 | K6: =COUNTIF(K16:K761,2) -> 50 | L6: =COUNTIF(L16:L761,2) -> 41 | M6: =COUNTIF(M16:M761,2) -> 51 | N6: =COUNTIF(N16:N761,2) -> 39 | O6: =COUNTIF(O16:O761,2) -> 45 | P6: =COUNTIF(P16:P761,2) -> 46 | Q6: =COUNTIF(Q16:Q761,2) -> 37 | R6: =COUNTIF(R16:R761,2) -> 32 | S6: =COUNTIF(S16:S761,2) -> 20 | T6: =COUNTIF(T16:T761,2) -> 41 | U6: =COUNTIF(U16:U761,2) -> 41 | V6: =COUNTIF(V16:V761,2) -> 35 | W6: =COUNTIF(W16:W761,2) -> 33 | X6: =COUNTIF(X16:X761,2) -> 13 | Y6: =COUNTIF(Y16:Y761,2) -> 3 | Z6: =COUNTIF(Z16:Z761,2) -> 1 | AA6: =COUNTIF(AA16:AA761,2) -> 0 | AB6: =SUM(G6:AA6) -> 682 | AE6: =SUM(H6) -> 50 | AF6: =SUM(I6) -> 52 | AG6: 52 | AH6: 50 | AI6: 41 | AJ6: 51 | AK6: 39 | AL6: 45 | AM6: 46 | AN6: 37 | AO6: 32 | AP6: 20 | AQ6: 41 | AR6: 41 | AS6: 35 | AT6: 33 | AU6: 13 | AV6: 3 | AW6: 1 | AX6: 0 | AY6: =SUM(AE6:AX6) -> 682
G7: 3eme | H7: =COUNTIF(H16:H762,3) -> 50 | I7: =COUNTIF(I16:I762,3) -> 45 | J7: =COUNTIF(J16:J762,3) -> 44 | K7: =COUNTIF(K16:K762,3) -> 46 | L7: =COUNTIF(L16:L762,3) -> 52 | M7: =COUNTIF(M16:M762,3) -> 41 | N7: =COUNTIF(N16:N762,3) -> 33 | O7: =COUNTIF(O16:O762,3) -> 36 | P7: =COUNTIF(P16:P762,3) -> 28 | Q7: =COUNTIF(Q16:Q762,3) -> 39 | R7: =COUNTIF(R16:R762,3) -> 43 | S7: =COUNTIF(S16:S762,3) -> 40 | T7: =COUNTIF(T16:T762,3) -> 46 | U7: =COUNTIF(U16:U762,3) -> 44 | V7: =COUNTIF(V16:V762,3) -> 40 | W7: =COUNTIF(W16:W762,3) -> 39 | X7: =COUNTIF(X16:X762,3) -> 10 | Y7: =COUNTIF(Y16:Y762,3) -> 6 | Z7: =COUNTIF(Z16:Z762,3) -> 0 | AA7: =COUNTIF(AA16:AA762,3) -> 0 | AB7: =SUM(G7:AA7) -> 682
G8: 4eme | H8: =COUNTIF(H16:H763,4) -> 41 | I8: =COUNTIF(I16:I763,4) -> 45 | J8: =COUNTIF(J16:J763,4) -> 41 | K8: =COUNTIF(K16:K763,4) -> 47 | L8: =COUNTIF(L16:L763,4) -> 39 | M8: =COUNTIF(M16:M763,4) -> 48 | N8: =COUNTIF(N16:N763,4) -> 39 | O8: =COUNTIF(O16:O763,4) -> 41 | P8: =COUNTIF(P16:P763,4) -> 44 | Q8: =COUNTIF(Q16:Q763,4) -> 43 | R8: =COUNTIF(R16:R763,4) -> 37 | S8: =COUNTIF(S16:S763,4) -> 44 | T8: =COUNTIF(T16:T763,4) -> 46 | U8: =COUNTIF(U16:U763,4) -> 50 | V8: =COUNTIF(V16:V763,4) -> 38 | W8: =COUNTIF(W16:W763,4) -> 25 | X8: =COUNTIF(X16:X763,4) -> 8 | Y8: =COUNTIF(Y16:Y763,4) -> 4 | Z8: =COUNTIF(Z16:Z763,4) -> 2 | AA8: =COUNTIF(AA16:AA763,4) -> 0 | AB8: =SUM(G8:AA8) -> 682
G9: 5eme | H9: =COUNTIF(H16:H764,5) -> 55 | I9: =COUNTIF(I16:I764,5) -> 43 | J9: =COUNTIF(J16:J764,5) -> 48 | K9: =COUNTIF(K16:K764,5) -> 39 | L9: =COUNTIF(L16:L764,5) -> 45 | M9: =COUNTIF(M16:M764,5) -> 34 | N9: =COUNTIF(N16:N764,5) -> 44 | O9: =COUNTIF(O16:O764,5) -> 42 | P9: =COUNTIF(P16:P764,5) -> 40 | Q9: =COUNTIF(Q16:Q764,5) -> 44 | R9: =COUNTIF(R16:R764,5) -> 42 | S9: =COUNTIF(S16:S764,5) -> 47 | T9: =COUNTIF(T16:T764,5) -> 38 | U9: =COUNTIF(U16:U764,5) -> 42 | V9: =COUNTIF(V16:V764,5) -> 32 | W9: =COUNTIF(W16:W764,5) -> 30 | X9: =COUNTIF(X16:X764,5) -> 10 | Y9: =COUNTIF(Y16:Y764,5) -> 7 | Z9: =COUNTIF(Z16:Z764,5) -> 0 | AA9: =COUNTIF(AA16:AA764,5) -> 0 | AB9: =SUM(G9:AA9) -> 682
F10: TOTAL | H10: =SUM(H5:H7) -> 139 | I10: 148 | J10: 136 | K10: 143 | L10: 137 | M10: 136 | N10: 119 | O10: 130 | P10: 111 | Q10: 121 | R10: 111 | S10: 104 | T10: 116 | U10: 123 | V10: 102 | W10: 115 | X10: 35 | Y10: 18 | Z10: 2 | AA10: 0
H11: =COUNTIF(H:H INDIRECT("16:65536")," ") -> 15 | I11: =COUNTIF(I:I INDIRECT("16:65536")," ") -> 7 | J11: =COUNTIF(J:J INDIRECT("16:65536")," ") -> 14 | K11: =COUNTIF(K:K INDIRECT("16:65536")," ") -> 18 | L11: =COUNTIF(L:L INDIRECT("16:65536")," ") -> 15 | M11: =COUNTIF(M:M INDIRECT("16:65536")," ") -> 7 | N11: =COUNTIF(N:N INDIRECT("16:65536")," ") -> 14 | O11: =COUNTIF(O:O INDIRECT("16:65536")," ") -> 17 | P11: =COUNTIF(P:P INDIRECT("16:65536")," ") -> 13 | Q11: =COUNTIF(Q:Q INDIRECT("16:65536")," ") -> 11 | R11: =COUNTIF(R:R INDIRECT("16:65536")," ") -> 8 | S11: =COUNTIF(S:S INDIRECT("16:65536")," ") -> 11 | T11: =COUNTIF(T:T INDIRECT("16:65536")," ") -> 16 | U11: =COUNTIF(U:U INDIRECT("16:65536")," ") -> 20 | V11: =COUNTIF(V:V INDIRECT("16:65536")," ") -> 45 | W11: =COUNTIF(W:W INDIRECT("16:65536")," ") -> 72 | X11: =COUNTIF(X:X INDIRECT("16:65536")," ") -> 493 | Y11: =COUNTIF(Y:Y INDIRECT("16:65536")," ") -> 556 | Z11: =COUNTIF(Z:Z INDIRECT("16:65536")," ") -> 665 | AA11: =COUNTIF(AA:AA INDIRECT("16:65536")," ") -> 676
F12: % gagnant | H12: =SUM(H5/AB5) -> 0.05718475073 | I12: =SUM(I5/AB5) -> 0.07478005865 | J12: =SUM(J5/AB5) -> 0.05865102639 | K12: =SUM(K5/AB5) -> 0.06891495601 | L12: =SUM(L5/AB5) -> 0.06451612903 | M12: =SUM(M5/AB5) -> 0.06451612903 | N12: =SUM(N5/AB5) -> 0.06891495601 | O12: =SUM(O5/AB5) -> 0.07184750733 | P12: =SUM(P5/AB5) -> 0.05425219941 | Q12: =SUM(Q5/AB5) -> 0.06598240469 | R12: =SUM(R5/AB5) -> 0.05278592375 | S12: =SUM(S5/AB5) -> 0.06451612903 | T12: =SUM(T5/AB5) -> 0.04252199413 | U12: =SUM(U5/AB5) -> 0.05571847507 | V12: =SUM(V5/AB5) -> 0.03958944282 | W12: =SUM(W5/AB5) -> 0.06304985337 | X12: =SUM(X5/AB5) -> 0.01759530792 | Y12: =SUM(Y5/AB5) -> 0.01319648094 | Z12: =SUM(Z5/AB5) -> 0.00146627566 | AA12: =SUM(AA5/AB5) -> 0
F13: % placé | H13: =SUM(H10/AB8) -> 0.2038123167 | I13: =SUM(I10/AB8) -> 0.2170087977 | J13: =SUM(J10/AB8) -> 0.1994134897 | K13: =SUM(K10/AB8) -> 0.2096774194 | L13: =SUM(L10/AB8) -> 0.2008797654 | M13: =SUM(M10/AB8) -> 0.1994134897 | N13: =SUM(N10/AB8) -> 0.1744868035 | O13: =SUM(O10/AB8) -> 0.1906158358 | P13: =SUM(P10/AB8) -> 0.1627565982 | Q13: =SUM(Q10/AB8) -> 0.1774193548 | R13: =SUM(R10/AB8) -> 0.1627565982 | S13: =SUM(S10/AB8) -> 0.1524926686 | T13: =SUM(T10/AB8) -> 0.1700879765 | U13: =SUM(U10/AB8) -> 0.1803519062 | V13: =SUM(V10/AB8) -> 0.1495601173 | W13: =SUM(W10/AB8) -> 0.1686217009 | X13: =SUM(X10/AB8) -> 0.05131964809 | Y13: =SUM(Y10/AB8) -> 0.02639296188 | Z13: =SUM(Z10/AB8) -> 0.00293255132 | AA13: =SUM(AA10/AB8) -> 0
A15: dates | B15: ARRIVEES | H15: 1 | I15: 2 | J15: 3 | K15: 4 | L15: 5 | M15: 6 | N15: 7 | O15: 8 | P15: 9 | Q15: 10 | R15: 11 | S15: 12 | T15: 13 | U15: 14 | V15: 15 | W15: 16 | X15: 17 | Y15: 18 | Z15: 19 | AA15: 20 | AB15: nombre
A16: 2013-01-04 | B16: 3 | C16: 9 | D16: 5 | E16: 2 | F16: 6 | G16: P | I16: 4 | J16: 1 | L16: 3 | M16: 5 | P16: 2 | AB16: 1 | AC16: 18 | AD16: 2013-01-04
A17: 2013-01-16 | B17: 2 | C17: 16 | D17: 6 | E17: 11 | F17: 12 | G17: P | I17: 1 | M17: 3 | R17: 4 | S17: 5 | W17: 2 | AB17: =SUM(AB16+1) -> 2 | AC17: 18 | AD17: 2013-01-16
A18: 2013-01-18 | B18: 6 | C18: 9 | D18: 13 | E18: 10 | F18: 7 | G18: P | M18: 1 | N18: 5 | P18: 2 | Q18: 4 | T18: 3 | AB18: =SUM(AB17+1) -> 3 | AC18: 18 | AD18: 1900-01-18
A19: 2013-01-21 | B19: 12 | C19: 2 | D19: 15 | E19: 1 | F19: 4 | G19: P | H19: 4 | I19: 2 | K19: 5 | S19: 1 | V19: 3 | AB19: 4 | AC19: 16 | AD19: 2013-01-21
A20: 2013-01-22 | B20: 8 | C20: 11 | D20: 10 | E20: 2 | F20: 12 | G20: P | I20: 4 | O20: 1 | Q20: 3 | R20: 2 | S20: 5 | AB20: 5 | AC20: 16 | AD20: 2013-01-22
A21: 2013-01-30 | B21: 14 | C21: 15 | D21: 3 | E21: 16 | F21: 9 | G21: P | J21: 3 | P21: 5 | U21: 1 | V21: 2 | W21: 4 | AB21: 6 | AC21: 18 | AD21: 1900-01-30
A22: 2013-02-13 | B22: 5 | C22: 2 | D22: 9 | E22: 16 | F22: 1 | G22: P | H22: 5 | I22: 2 | L22: 1 | P22: 3 | W22: 4 | AB22: 7 | AC22: 16 | AD22: 2013-02-13
A23: 2013-02-16 | B23: 1 | C23: 9 | D23: 6 | E23: 3 | F23: 10 | G23: P | H23: 1 | J23: 4 | M23: 3 | P23: 2 | Q23: 5 | AB23: 8 | AC23: 15 | AD23: 2013-02-16
A24: 2013-02-20 | B24: 6 | C24: 17 | D24: 1 | E24: 7 | F24: 11 | G24: P | H24: 3 | M24: 1 | N24: 4 | R24: 5 | X24: 2 | AB24: 9 | AC24: 18 | AD24: 2013-02-20
A25: 2013-02-23 | B25: 15 | C25: 14 | D25: 5 | E25: 9 | F25: 3 | G25: P | J25: 5 | L25: 3 | P25: 4 | U25: 2 | V25: 1 | AB25: 10 | AC25: 18 | AD25: 2013-02-23
A26: 2013-02-25 | B26: 16 | C26: 11 | D26: 3 | E26: 2 | F26: 12 | G26: P | I26: 4 | J26: 3 | R26: 2 | S26: 5 | W26: 1 | AB26: 11 | AC26: 16 | AD26: 2013-02-25
A27: 2013-03-05 | B27: 5 | C27: 6 | D27: 1 | E27: 16 | F27: 2 | G27: P | H27: 3 | I27: 5 | L27: 1 | M27: 2 | W27: 4 | AB27: 12 | AC27: 15 | AD27: 2013-03-05
A28: 2013-03-07 | B28: 5 | C28: 1 | D28: 6 | E28: 13 | F28: 10 | G28: P | H28: 2 | L28: 1 | M28: 3 | Q28: 5 | T28: 4 | AB28: 13 | AC28: 15 | AD28: 2013-03-07
A29: 2013-03-08 | B29: 2 | C29: 12 | D29: 16 | E29: 14 | F29: 11 | G29: P | I29: 1 | R29: 5 | S29: 2 | U29: 4 | W29: 3 | AB29: 14 | AC29: 16 | AD29: 2013-03-08
A30: 2013-03-09 | B30: 9 | C30: 15 | D30: 4 | E30: 14 | F30: 10 | G30: P | K30: 3 | P30: 1 | Q30: 5 | U30: 4 | V30: 2 | AB30: 15 | AC30: 16 | AD30: 2013-03-09
A31: 2013-03-11 | B31: 14 | C31: 3 | D31: 1 | E31: 7 | F31: 12 | G31: P | H31: 3 | J31: 2 | N31: 4 | S31: 5 | U31: 1 | AB31: 16 | AC31: 15 | AD31: 2013-03-11
A32: 2013-03-16 | B32: 1 | C32: 16 | D32: 5 | E32: 11 | F32: 14 | G32: P | H32: 1 | L32: 3 | R32: 4 | U32: 5 | W32: 2 | AB32: 17 | AC32: 16 | AD32: 2013-03-16
A33: 2013-03-18 | B33: 3 | C33: 2 | D33: 4 | E33: 9 | F33: 8 | G33: P | I33: 2 | J33: 1 | K33: 3 | O33: 5 | P33: 4 | AB33: 18 | AC33: 13 | AD33: 2013-03-18
A34: 2013-03-19 | B34: 13 | C34: 9 | D34: 12 | E34: 1 | F34: 15 | G34: P | H34: 4 | P34: 2 | S34: 3 | T34: 1 | V34: 5 | AB34: 19 | AC34: 16 | AD34: 2013-03-20
A35: 2013-03-21 | B35: 1 | C35: 7 | D35: 14 | E35: 16 | F35: 12 | G35: P | H35: 1 | N35: 2 | S35: 5 | U35: 3 | W35: 4 | AB35: 20 | AC35: 16 | AD35: 2013-03-21
A36: 2013-03-25 | B36: 4 | C36: 9 | D36: 3 | E36: 2 | F36: 5 | G36: P | I36: 4 | J36: 3 | K36: 1 | L36: 5 | P36: 2 | AB36: 21 | AC36: 16 | AD36: 2013-03-25
A37: 2013-03-26 | B37: 2 | C37: 5 | D37: 8 | E37: 11 | F37: 10 | G37: P | I37: 1 | L37: 2 | O37: 3 | Q37: 5 | R37: 4 | AB37: 22 | AC37: 16 | AD37: 2013-03-26
A38: 2013-03-28 | B38: 6 | C38: 3 | D38: 12 | E38: 4 | F38: 10 | G38: P | J38: 2 | K38: 4 | M38: 1 | Q38: 5 | S38: 3 | AB38: 23 | AC38: 16 | AD38: 2013-03-28
A39: 2013-03-31 | B39: 6 | C39: 8 | D39: 2 | E39: 1 | F39: 11 | G39: P | H39: 4 | I39: 3 | M39: 1 | O39: 2 | R39: 5 | AB39: 24 | AC39: 16 | AD39: 2013-03-31
A40: 2013-04-01 | B40: 4 | C40: 6 | D40: 7 | E40: 2 | F40: 8 | G40: P | I40: 4 | K40: 1 | M40: 2 | N40: 3 | O40: 5 | AB40: 25 | AC40: 14 | AD40: 2013-04-01
A41: 2013-04-04 | B41: 6 | C41: 5 | D41: 16 | E41: 4 | F41: 7 | G41: P | K41: 4 | L41: 2 | M41: 1 | N41: 5 | W41: 3 | AB41: 26 | AC41: 17 | AD41: 2013-04-04
A42: 2013-04-07 | B42: 13 | C42: 14 | D42: 10 | E42: 5 | F42: 3 | G42: P | J42: 5 | L42: 4 | Q42: 3 | T42: 1 | U42: 2 | AB42: 27 | AC42: 16 | AD42: 2013-04-07
A43: 2013-04-09 | B43: 7 | C43: 6 | D43: 16 | E43: 12 | F43: 15 | G43: P | M43: 2 | N43: 1 | S43: 4 | V43: 5 | W43: 3 | AB43: 28 | AC43: 16 | AD43: 2013-04-09
A44: 2013-04-11 | B44: 15 | C44: 5 | D44: 6 | E44: 8 | F44: 12 | G44: P | L44: 2 | M44: 3 | O44: 4 | S44: 5 | V44: 1 | AB44: 29 | AC44: 15 | AD44: 2013-04-11
A45: 2013-04-14 | B45: 13 | C45: 12 | D45: 11 | E45: 14 | F45: 3 | G45: P | J45: 5 | R45: 3 | S45: 2 | T45: 1 | U45: 4 | AB45: 30 | AC45: 16 | AD45: 2013-04-14
A46: 2013-04-15 | B46: 9 | C46: 11 | D46: 10 | E46: 12 | F46: 13 | G46: P | P46: 1 | Q46: 3 | R46: 2 | S46: 4 | T46: 5 | AB46: 31 | AC46: 16 | AD46: 2013-04-15
A47: 2013-04-16 | B47: 10 | C47: 15 | D47: 6 | E47: 14 | F47: 1 | G47: P | H47: 5 | M47: 3 | Q47: 1 | U47: 4 | V47: 2 | AB47: 32 | AC47: 16 | AD47: 2013-04-16
A48: 2013-04-18 | B48: 2 | C48: 1 | D48: 7 | E48: 3 | F48: 5 | G48: P | H48: 2 | I48: 1 | J48: 4 | L48: 5 | N48: 3 | AB48: 33 | AC48: 18 | AD48: 2013-04-19
A49: 2013-04-22 | B49: 7 | C49: 6 | D49: 12 | E49: 8 | F49: 1 | G49: P | H49: 5 | M49: 2 | N49: 1 | O49: 4 | S49: 3 | AB49: 34 | AC49: 18 | AD49: 2013-04-22
A50: 2013-04-23 | B50: 4 | C50: 12 | D50: 1 | E50: 10 | F50: 7 | G50: P | H50: 3 | K50: 1 | N50: 5 | Q50: 4 | S50: 2 | AB50: 35 | AC50: 16 | AD50: 2013-04-23
A51: 2013-04-25 | B51: 14 | C51: 13 | D51: 12 | E51: 6 | F51: 4 | G51: P | K51: 5 | M51: 4 | S51: 3 | T51: 2 | U51: 1 | AB51: 36 | AC51: 17 | AD51: 2013-04-25
A52: 2013-04-28 | B52: 8 | C52: 5 | D52: 1 | E52: 16 | F52: 13 | G52: P | H52: 3 | L52: 2 | O52: 1 | T52: 5 | W52: 4 | AB52: 37 | AC52: 15 | AD52: 2013-04-28
A53: 2013-04-29 | B53: 12 | C53: 9 | D53: 13 | E53: 6 | F53: 3 | G53: P | J53: 5 | M53: 4 | P53: 2 | S53: 1 | T53: 3 | AB53: 38 | AC53: 18 | AD53: 2013-04-29
A54: 2013-05-01 | B54: 7 | C54: 8 | D54: 11 | E54: 4 | F54: 3 | G54: P | J54: 5 | K54: 4 | N54: 1 | O54: 2 | R54: 3 | AB54: 39 | AC54: 16 | AD54: 2013-05-01
A55: 2013-05-02 | B55: 5 | C55: 6 | D55: 3 | E55: 1 | F55: 10 | G55: P | H55: 4 | J55: 3 | L55: 1 | M55: 2 | Q55: 5 | AB55: 40 | AC55: 15 | AD55: 2013-05-02
A56: 2013-05-06 | B56: 9 | C56: 4 | D56: 10 | E56: 8 | F56: 15 | G56: P | K56: 2 | O56: 4 | P56: 1 | Q56: 3 | V56: 5 | AB56: 41 | AC56: 17 | AD56: 2013-05-06
A57: 2013-05-07 | B57: 12 | C57: 2 | D57: 3 | E57: 16 | F57: 10 | G57: P | I57: 2 | J57: 3 | Q57: 5 | S57: 1 | W57: 4 | AB57: 42 | AC57: 17 | AD57: 2013-05-07
A58: 2013-05-08 | B58: 9 | C58: 10 | D58: 2 | E58: 4 | F58: 12 | G58: P | I58: 3 | K58: 4 | P58: 1 | Q58: 2 | S58: 5 | AB58: 43 | AC58: 16 | AD58: 2013-05-08
A59: 2013-05-09 | B59: 1 | C59: 14 | D59: 2 | E59: 9 | F59: 11 | G59: P | H59: 1 | I59: 3 | P59: 4 | R59: 5 | U59: 2 | AB59: 44 | AC59: 15 | AD59: 2013-05-09
A60: 2013-05-12 | B60: 5 | C60: 6 | D60: 18 | E60: 7 | F60: 11 | G60: P | L60: 1 | M60: 2 | N60: 4 | R60: 5 | Y60: 3 | AB60: 45 | AC60: 18 | AD60: 2013-05-12
A61: 2013-05-13 | B61: 2 | C61: 5 | D61: 9 | E61: 14 | F61: 4 | G61: P | I61: 1 | K61: 5 | L61: 2 | P61: 3 | U61: 4 | AB61: 46 | AC61: 16 | AD61: 2013-05-13
A62: 2013-05-14 | B62: 6 | C62: 15 | D62: 2 | E62: 16 | F62: 8 | G62: P | I62: 3 | M62: 1 | O62: 5 | V62: 2 | W62: 4 | AB62: 47 | AC62: 16 | AD62: 2013-05-14
A63: 2013-05-18 | B63: 8 | C63: 2 | D63: 4 | E63: 14 | F63: 15 | G63: P | I63: 2 | K63: 3 | O63: 1 | U63: 4 | V63: 5 | AB63: 48 | AC63: 16 | AD63: 2013-05-18
A64: 2013-05-20 | B64: 1 | C64: 15 | D64: 5 | E64: 4 | F64: 11 | G64: P | H64: 1 | K64: 4 | L64: 3 | R64: 5 | V64: 2 | AB64: 49 | AC64: 16 | AD64: 2013-05-20
A65: 2013-05-21 | B65: 9 | C65: 1 | D65: 11 | E65: 2 | F65: 3 | G65: P | H65: 2 | I65: 4 | J65: 5 | P65: 1 | R65: 3 | AB65: 50 | AC65: 15 | AD65: 2013-05-21
A66: 2013-05-26 | B66: 5 | C66: 12 | D66: 2 | E66: 18 | F66: 13 | G66: P | I66: 3 | L66: 1 | S66: 2 | T66: 5 | Y66: 4 | AB66: 51 | AC66: 18 | AD66: 2013-05-26
A67: 2013-05-27 | B67: 6 | C67: 13 | D67: 7 | E67: 5 | F67: 12 | G67: P | L67: 4 | M67: 1 | N67: 3 | S67: 5 | T67: 2 | AB67: 52 | AC67: 16 | AD67: 2013-05-27
A68: 2013-05-28 | B68: 8 | C68: 2 | D68: 15 | E68: 7 | F68: 5 | G68: P | I68: 2 | L68: 5 | N68: 4 | O68: 1 | V68: 3 | AB68: 53 | AC68: 16 | AD68: 2013-05-28
A69: 2013-05-29 | B69: 5 | C69: 10 | D69: 15 | E69: 13 | F69: 11 | G69: P | L69: 1 | Q69: 2 | R69: 5 | T69: 4 | V69: 3 | AB69: 54 | AC69: 16 | AD69: 2013-05-29
A70: 2013-05-30 | B70: 12 | C70: 6 | D70: 16 | E70: 8 | F70: 10 | G70: P | M70: 2 | O70: 4 | Q70: 5 | S70: 1 | W70: 3 | AB70: 55 | AC70: 18 | AD70: 2013-05-30
A71: 2013-06-01 | B71: 9 | C71: 14 | D71: 4 | E71: 7 | F71: 2 | G71: P | I71: 5 | K71: 3 | N71: 4 | P71: 1 | U71: 2 | AB71: 56 | AC71: 18 | AD71: 2013-06-01
A72: 2013-06-02 | B72: 19 | C72: 18 | D72: 8 | E72: 3 | F72: 2 | G72: P | I72: 5 | J72: 4 | O72: 3 | Y72: 2 | Z72: 1 | AB72: 57 | AC72: 19 | AD72: 2013-06-02
A73: 2013-06-04 | B73: 16 | C73: 9 | D73: 14 | E73: 4 | F73: 2 | G73: P | I73: 5 | K73: 4 | P73: 2 | U73: 3 | W73: 1 | AB73: 58 | AC73: 16 | AD73: 2013-06-05
A74: 2013-06-10 | B74: 16 | C74: 11 | D74: 6 | E74: 2 | F74: 12 | G74: P | I74: 4 | M74: 3 | R74: 2 | S74: 5 | W74: 1 | AB74: 59 | AC74: 15 | AD74: 2013-06-10
A75: 2013-06-12 | B75: 2 | C75: 3 | D75: 10 | E75: 13 | F75: 12 | G75: P | I75: 1 | J75: 2 | Q75: 3 | S75: 5 | T75: 4 | AB75: 60 | AC75: 16 | AD75: 2013-06-12
A76: 2013-06-16 | B76: 7 | C76: 9 | D76: 12 | E76: 14 | F76: 15 | G76: P | N76: 1 | P76: 2 | S76: 3 | U76: 4 | V76: 5 | AB76: 61 | AC76: 16 | AD76: 2013-06-16
A77: 2013-06-23 | B77: 8 | C77: 7 | D77: 1 | E77: 15 | F77: 11 | G77: P | H77: 3 | N77: 2 | O77: 1 | R77: 5 | V77: 4 | AB77: 62 | AC77: 16 | AD77: 2013-06-23
A78: 2013-06-24 | B78: 6 | C78: 9 | D78: 8 | E78: 11 | F78: 1 | G78: P | H78: 5 | M78: 1 | O78: 3 | P78: 2 | R78: 4 | AB78: 63 | AC78: 15 | AD78: 2013-06-24
A79: 2013-06-25 | B79: 14 | C79: 13 | D79: 6 | E79: 7 | F79: 18 | G79: P | M79: 3 | N79: 4 | T79: 2 | U79: 1 | Y79: 5 | AB79: 64 | AC79: 18 | AD79: 2013-06-25
A80: 2013-06-26 | B80: 7 | C80: 5 | D80: 9 | E80: 11 | F80: 4 | G80: P | K80: 5 | L80: 2 | N80: 1 | P80: 3 | R80: 4 | AB80: 65 | AC80: 17 | AD80: 2013-06-26
A81: 2013-06-30 | B81: 1 | C81: 8 | D81: 10 | E81: 4 | F81: 16 | G81: P | H81: 1 | K81: 4 | O81: 2 | Q81: 3 | W81: 5 | AB81: 66 | AC81: 15 | AD81: 2013-06-30
A82: 2013-07-01 | B82: 8 | C82: 13 | D82: 15 | E82: 2 | F82: 16 | G82: P | I82: 4 | O82: 1 | T82: 2 | V82: 3 | W82: 5 | AB82: =SUM(AB81+1) -> 67 | AC82: 15 | AD82: 2013-07-01
A83: 2013-07-07 | B83: 5 | C83: 1 | D83: 13 | E83: 12 | F83: 14 | G83: P | H83: 2 | L83: 1 | S83: 4 | T83: 3 | U83: 5 | AB83: 68 | AC83: 16 | AD83: 2013-07-07
A84: 2013-07-08 | B84: 6 | C84: 5 | D84: 16 | E84: 10 | F84: 8 | G84: P | L84: 2 | M84: 1 | O84: 5 | Q84: 4 | W84: 3 | AB84: 69 | AC84: 15 | AD84: 2013-07-11
A85: 2013-07-11 | B85: 6 | C85: 1 | D85: 11 | E85: 2 | F85: 14 | G85: P | H85: 2 | I85: 4 | M85: 1 | R85: 3 | U85: 5 | AB85: 70 | AC85: 16 | AD85: 2013-07-13
A86: 2013-07-13 | B86: 10 | C86: 2 | D86: 13 | E86: 12 | F86: 8 | G86: P | I86: 2 | O86: 5 | Q86: 1 | S86: 4 | T86: 3 | AB86: 71 | AC86: 16 | AD86: 2013-07-14
A87: 2013-07-14 | B87: 7 | C87: 14 | D87: 4 | E87: 13 | F87: 1 | G87: P | H87: 5 | K87: 3 | N87: 1 | T87: 4 | U87: 2 | AB87: 72 | AC87: 19 | AD87: 2013-07-15
A88: 2013-07-15 | B88: 4 | C88: 13 | D88: 16 | E88: 2 | F88: 9 | G88: P | I88: 4 | K88: 1 | P88: 5 | T88: 2 | W88: 3 | AB88: 73 | AC88: 18 | AD88: 2013-07-16
A89: 2013-07-16 | B89: 16 | C89: 8 | D89: 18 | E89: 2 | F89: 11 | G89: P | I89: 4 | O89: 2 | R89: 5 | W89: 1 | Y89: 3 | AB89: 74 | AC89: 14 | AD89: 2013-07-17
A90: 2013-07-18 | B90: 8 | C90: 6 | D90: 2 | E90: 7 | F90: 5 | G90: P | I90: 3 | L90: 5 | M90: 2 | N90: 4 | O90: 1 | AB90: 75 | AC90: 14 | AD90: 2013-07-21
A91: 2013-07-21 | B91: 7 | C91: 13 | D91: 5 | E91: 6 | F91: 2 | G91: P | I91: 5 | L91: 3 | M91: 4 | N91: 1 | T91: 2 | AB91: 76 | AC91: 16 | AD91: 2013-07-22
A92: 2013-07-22 | B92: 12 | C92: 6 | D92: 5 | E92: 2 | F92: 3 | G92: P | I92: 4 | J92: 5 | L92: 3 | M92: 2 | S92: 1 | AB92: 77 | AC92: 18 | AD92: 2013-07-23
A93: 2013-07-23 | B93: 18 | C93: 2 | D93: 12 | E93: 10 | F93: 9 | G93: P | I93: 2 | P93: 5 | Q93: 4 | S93: 3 | Y93: 1 | AB93: 78 | AC93: 16 | AD93: 2013-07-25
A94: 2013-07-25 | B94: 10 | C94: 6 | D94: 9 | E94: 15 | F94: 13 | G94: P | M94: 2 | P94: 3 | Q94: 1 | T94: 5 | V94: 4 | AB94: 79 | AC94: 16 | AD94: 2013-07-28
A95: 2013-07-28 | B95: 14 | C95: 5 | D95: 3 | E95: 1 | F95: 13 | G95: P | H95: 4 | J95: 3 | L95: 2 | T95: 5 | U95: 1 | AB95: 80 | AC95: 13 | AD95: 2013-07-29
A96: 2013-07-29 | B96: 1 | C96: 5 | D96: 8 | E96: 4 | F96: 6 | G96: P | H96: 1 | K96: 4 | L96: 2 | M96: 5 | O96: 3 | AB96: 81 | AC96: 16 | AD96: 2013-07-30
A97: 2013-07-30 | B97: 11 | C97: 9 | D97: 13 | E97: 15 | F97: 10 | G97: P | P97: 2 | Q97: 5 | R97: 1 | T97: 3 | V97: 4 | AB97: 82 | AC97: 16 | AD97: 2013-08-01
A98: 2013-08-01 | B98: 8 | C98: 15 | D98: 3 | E98: 1 | F98: 11 | G98: P | H98: 4 | J98: 3 | O98: 1 | R98: 5 | V98: 2 | AB98: 83 | AC98: 14 | AD98: 2013-08-04
A99: 2013-08-04 | B99: 11 | C99: 3 | D99: 2 | E99: 10 | F99: 5 | G99: P | I99: 3 | J99: 2 | L99: 5 | Q99: 4 | R99: 1 | AB99: 84 | AC99: 16 | AD99: 2013-08-05
A100: 2013-08-05 | B100: 2 | C100: 15 | D100: 6 | E100: 8 | F100: 7 | G100: P | I100: 1 | M100: 3 | N100: 5 | O100: 4 | V100: 2 | AB100: 85 | AC100: 16 | AD100: 2013-08-06
A101: 2013-08-06 | B101: 7 | C101: 3 | D101: 1 | E101: 11 | F101: 10 | G101: P | H101: 3 | J101: 2 | N101: 1 | Q101: 5 | R101: 4 | AB101: 86 | AC101: 18 | AD101: 2013-08-10
A102: 2013-08-10 | B102: 13 | C102: 6 | D102: 12 | E102: 4 | F102: 14 | G102: P | K102: 4 | M102: 2 | S102: 3 | T102: 1 | U102: 5 | AB102: 87 | AC102: 17 | AD102: 2013-08-11
A103: 2013-08-11 | B103: 7 | C103: 16 | D103: 17 | E103: 3 | F103: 2 | G103: P | I103: 5 | J103: 4 | N103: 1 | W103: 2 | X103: 3 | AB103: 88 | AC103: 17 | AD103: 2013-08-12
A104: 2013-08-12 | B104: 14 | C104: 16 | D104: 5 | E104: 6 | F104: 1 | G104: P | H104: 5 | L104: 3 | M104: 4 | U104: 1 | W104: 2 | AB104: 89 | AC104: 16 | AD104: 2013-08-13
A105: 2013-08-13 | B105: 2 | C105: 3 | D105: 4 | E105: 11 | F105: 6 | G105: P | I105: 1 | J105: 2 | K105: 3 | M105: 5 | R105: 4 | AB105: 90 | AC105: 16 | AD105: 2013-08-15
A106: 2013-08-15 | B106: 2 | C106: 1 | D106: 11 | E106: 8 | F106: 5 | G106: P | H106: 2 | I106: 1 | L106: 5 | O106: 4 | R106: 3 | AB106: 91 | AC106: 16 | AD106: 2013-08-17
A107: 2013-08-17 | B107: 15 | C107: 5 | D107: 4 | E107: 11 | F107: 3 | G107: P | J107: 5 | K107: 3 | L107: 2 | R107: 4 | V107: 1 | AB107: 92 | AC107: 16 | AD107: 2013-08-18
A108: 2013-08-18 | B108: 8 | C108: 6 | D108: 16 | E108: 9 | F108: 5 | G108: P | L108: 5 | M108: 2 | O108: 1 | P108: 4 | W108: 3 | AB108: 93 | AC108: 16 | AD108: 2013-08-20
A109: 2013-08-20 | B109: 5 | C109: 8 | D109: 6 | E109: 15 | F109: 2 | G109: P | I109: 5 | L109: 1 | M109: 3 | O109: 2 | V109: 4 | AB109: 94 | AC109: 16 | AD109: 2013-08-24
A110: 2013-08-24 | B110: 8 | C110: 4 | D110: 3 | E110: 2 | F110: 16 | G110: P | I110: 4 | J110: 3 | K110: 2 | O110: 1 | W110: 5 | AB110: 95 | AC110: 16 | AD110: 2013-08-25
A111: 2013-08-25 | B111: 3 | C111: 9 | D111: 13 | E111: 15 | F111: 1 | G111: P | H111: 5 | J111: 1 | P111: 2 | T111: 3 | V111: 4 | AB111: 96 | AC111: 16 | AD111: 2013-08-27
A112: 2013-08-27 | B112: 1 | C112: 8 | D112: 12 | E112: 11 | F112: 10 | G112: P | H112: 1 | O112: 2 | Q112: 5 | R112: 4 | S112: 3 | AB112: 97 | AC112: 16 | AD112: 2013-08-28
A113: 2013-08-28 | B113: 8 | C113: 3 | D113: 12 | E113: 9 | F113: 10 | G113: P | J113: 2 | O113: 1 | P113: 4 | Q113: 5 | S113: 3 | AB113: 98 | AC113: 16 | AD113: 2013-09-01
A114: 2013-09-01 | B114: 13 | C114: 1 | D114: 8 | E114: 10 | F114: 3 | G114: P | H114: 2 | J114: 5 | O114: 3 | Q114: 4 | T114: 1 | AB114: 99 | AC114: 17 | AD114: 2013-09-02
A115: 2013-09-02 | B115: 17 | C115: 6 | D115: 8 | E115: 4 | F115: 1 | G115: P | H115: 5 | K115: 4 | M115: 2 | O115: 3 | X115: 1 | AB115: 100 | AC115: 14 | AD115: 2013-09-03
A116: 2013-09-03 | B116: 1 | C116: 13 | D116: 10 | E116: 3 | F116: 2 | G116: P | H116: 1 | I116: 5 | J116: 4 | Q116: 3 | T116: 2 | AB116: 101 | AC116: 16 | AD116: 2013-09-05
A117: 2013-09-05 | B117: 16 | C117: 9 | D117: 15 | E117: 10 | F117: 14 | G117: P | P117: 2 | Q117: 4 | U117: 5 | V117: 3 | W117: 1 | AB117: 102 | AC117: 16 | AD117: 2013-09-08
A118: 2013-09-08 | B118: 1 | C118: 5 | D118: 6 | E118: 9 | F118: 12 | G118: P | H118: 1 | L118: 2 | M118: 3 | P118: 4 | S118: 5 | AB118: 103 | AC118: 16 | AD118: 2013-09-09
A119: 2013-09-09 | B119: 10 | C119: 2 | D119: 9 | E119: 11 | F119: 14 | G119: P | I119: 2 | P119: 3 | Q119: 1 | R119: 4 | U119: 5 | AB119: 104 | AC119: 19 | AD119: 2013-09-10
A120: 2013-09-10 | B120: 7 | C120: 12 | D120: 14 | E120: 3 | F120: 15 | G120: P | J120: 4 | N120: 1 | S120: 2 | U120: 3 | V120: 5 | AB120: 105 | AC120: 16 | AD120: 2013-09-15
A121: 2013-09-15 | B121: 2 | C121: 1 | D121: 11 | E121: 9 | F121: 13 | G121: P | H121: 2 | I121: 1 | P121: 4 | R121: 3 | T121: 5 | AB121: 106 | AC121: 18 | AD121: 2013-09-17
A122: 2013-09-17 | B122: 10 | C122: 9 | D122: 7 | E122: 12 | F122: 11 | G122: P | N122: 3 | P122: 2 | Q122: 1 | R122: 5 | S122: 4 | AB122: 107 | AC122: 13 | AD122: 2013-09-21
A123: 2013-09-21 | B123: 7 | C123: 10 | D123: 11 | E123: 13 | F123: 12 | G123: P | N123: 1 | Q123: 2 | R123: 3 | S123: 5 | T123: 4 | AB123: 108 | AC123: 14 | AD123: 2013-09-23
A124: 2013-09-23 | B124: 2 | C124: 11 | D124: 14 | E124: 8 | F124: 1 | G124: P | H124: 5 | I124: 1 | O124: 4 | R124: 2 | U124: 3 | AB124: 109 | AC124: 17 | AD124: 2013-09-26
A125: 2013-09-26 | B125: 3 | C125: 5 | D125: 11 | E125: 17 | F125: 12 | G125: P | J125: 1 | L125: 2 | R125: 3 | S125: 5 | X125: 4 | AB125: 110 | AC125: 18 | AD125: 2013-10-05
A126: 2013-10-05 | B126: 14 | C126: 10 | D126: 17 | E126: 15 | F126: 18 | G126: P | Q126: 2 | U126: 1 | V126: 4 | X126: 3 | Y126: 5 | AB126: 111 | AC126: 18 | AD126: 2013-10-06
A127: 2013-10-06 | B127: 18 | C127: 6 | D127: 17 | E127: 14 | F127: 13 | G127: P | M127: 2 | T127: 5 | U127: 4 | X127: 3 | Y127: 1 | AB127: 112 | AC127: 16 | AD127: 2013-10-08
A128: 2013-10-08 | B128: 11 | C128: 13 | D128: 6 | E128: 7 | F128: 10 | G128: P | M128: 3 | N128: 4 | Q128: 5 | R128: 1 | T128: 2 | AB128: 113 | AC128: 18 | AD128: 2013-10-10
A129: 2013-10-10 | B129: 8 | C129: 3 | D129: 5 | E129: 14 | F129: 9 | G129: P | J129: 2 | L129: 3 | O129: 1 | P129: 5 | U129: 4 | AB129: 114 | AC129: 16 | AD129: 2013-10-12
A130: 2013-10-12 | B130: 10 | C130: 9 | D130: 2 | E130: 11 | F130: 6 | G130: P | I130: 3 | M130: 5 | P130: 2 | Q130: 1 | R130: 4 | AB130: 115 | AC130: 17 | AD130: 2013-10-15
A131: 2013-10-15 | B131: 16 | C131: 5 | D131: 4 | E131: 13 | F131: 7 | G131: P | K131: 3 | L131: 2 | N131: 5 | T131: 4 | W131: 1 | AB131: 116 | AC131: 16 | AD131: 2013-10-17
A132: 2013-10-17 | B132: 5 | C132: 13 | D132: 12 | E132: 6 | F132: 14 | G132: P | L132: 1 | M132: 4 | S132: 3 | T132: 2 | U132: 5 | AB132: 117 | AC132: 14 | AD132: 2013-10-20
A133: 2013-10-20 | B133: 6 | C133: 12 | D133: 8 | E133: 10 | F133: 14 | G133: P | M133: 1 | O133: 3 | Q133: 4 | S133: 2 | U133: 5 | AB133: 118 | AC133: 16 | AD133: 2013-10-22
A134: 2013-10-22 | B134: 10 | C134: 12 | D134: 5 | E134: 11 | F134: 1 | G134: P | H134: 5 | L134: 3 | Q134: 1 | R134: 4 | S134: 2 | AB134: 119 | AC134: 15 | AD134: 2013-10-23
A135: 2013-10-23 | B135: 6 | C135: 1 | D135: 12 | E135: 7 | F135: 14 | G135: P | H135: 2 | M135: 1 | N135: 4 | S135: 3 | U135: 5 | AB135: 120 | AC135: 14 | AD135: 2013-10-27
A136: 2013-10-27 | B136: 8 | C136: 9 | D136: 11 | E136: 4 | F136: 5 | G136: P | K136: 4 | L136: 5 | O136: 1 | P136: 2 | R136: 3 | AB136: 121 | AC136: 16 | AD136: 2013-10-28
A137: 2013-10-28 | B137: 14 | C137: 8 | D137: 3 | E137: 6 | F137: 11 | G137: P | J137: 3 | M137: 4 | O137: 2 | R137: 5 | U137: 1 | AB137: 122 | AC137: 18 | AD137: 2013-10-29
A138: 2013-10-29 | B138: 9 | C138: 17 | D138: 2 | E138: 1 | F138: 10 | G138: P | H138: 4 | I138: 3 | P138: 1 | Q138: 5 | X138: 2 | AB138: 123 | AC138: 16 | AD138: 2013-10-31
A139: 2013-10-31 | B139: 3 | C139: 1 | D139: 16 | E139: 6 | F139: 11 | G139: P | H139: 2 | J139: 1 | M139: 4 | R139: 5 | W139: 3 | AB139: 124 | AC139: 16 | AD139: 2013-11-01
A140: 2013-11-01 | B140: 9 | C140: 10 | D140: 14 | E140: 11 | F140: 6 | G140: P | M140: 5 | P140: 1 | Q140: 2 | R140: 4 | U140: 3 | AB140: 125 | AC140: 16 | AD140: 2013-11-09
A141: 2013-11-09 | B141: 2 | C141: 8 | D141: 16 | E141: 18 | F141: 12 | G141: P | I141: 1 | O141: 2 | S141: 5 | W141: 3 | Y141: 4 | AB141: 126 | AC141: 18 | AD141: 2013-11-11
A142: 2013-11-11 | B142: 7 | C142: 10 | D142: 2 | E142: 12 | F142: 11 | G142: P | I142: 3 | N142: 1 | Q142: 2 | R142: 5 | S142: 4 | AB142: 127 | AC142: 18 | AD142: 2013-11-12
A143: 2013-11-12 | B143: 3 | C143: 6 | D143: 7 | E143: 8 | F143: 9 | G143: P | J143: 1 | M143: 2 | N143: 3 | O143: 4 | P143: 5 | AB143: 128 | AC143: 16 | AD143: 2013-11-19
A144: 2013-11-19 | B144: 3 | C144: 14 | D144: 15 | E144: 10 | F144: 8 | G144: P | J144: 1 | O144: 5 | Q144: 4 | U144: 2 | V144: 3 | AB144: 129 | AC144: 18 | AD144: 2013-11-21
A145: 2013-11-21 | B145: 2 | C145: 16 | D145: 7 | E145: 14 | F145: 3 | G145: P | I145: 1 | J145: 5 | N145: 3 | U145: 4 | W145: 2 | AB145: 130 | AC145: 17 | AD145: 2013-11-26
A146: 2013-11-26 | B146: 15 | C146: 12 | D146: 10 | E146: 16 | F146: 9 | G146: P | P146: 5 | Q146: 3 | S146: 2 | V146: 1 | W146: 4 | AB146: =SUM(AB145+1) -> 131 | AC146: 15 | AD146: 2013-12-23
A147: 2013-12-23 | B147: 16 | C147: 5 | D147: 12 | E147: 11 | F147: 10 | G147: P | L147: 2 | Q147: 5 | R147: 4 | S147: 3 | W147: 1 | AB147: 132 | AC147: 16 | AD147: 2014-01-03
A148: 2014-01-03 | B148: 16 | C148: 15 | D148: 3 | E148: 11 | F148: 1 | G148: P | H148: 5 | J148: 3 | R148: 4 | V148: 2 | W148: 1 | AB148: 133 | AC148: 18 | AD148: 2014-01-15
A149: 2014-01-15 | B149: 16 | C149: 11 | D149: 1 | E149: 17 | F149: 14 | G149: P | H149: 3 | R149: 2 | U149: 5 | W149: 1 | X149: 4 | AB149: 134 | AC149: 14 | AD149: 2014-01-17
A150: 2014-01-17 | B150: 9 | C150: 15 | D150: 3 | E150: 4 | F150: 10 | G150: P | J150: 3 | K150: 4 | P150: 1 | Q150: 5 | V150: 2 | AB150: 135 | AC150: 16 | AD150: 2014-01-20
A151: 2014-01-20 | B151: 16 | C151: 14 | D151: 11 | E151: 5 | F151: 7 | G151: P | L151: 4 | N151: 5 | R151: 3 | U151: 2 | W151: 1 | AB151: 136 | AC151: 16 | AD151: 2014-01-21
A152: 2014-01-21 | B152: 9 | C152: 2 | D152: 10 | E152: 11 | F152: 13 | G152: P | I152: 2 | P152: 1 | Q152: 3 | R152: 4 | T152: 5 | AB152: 137 | AC152: 18 | AD152: 2014-01-29
A153: 2014-01-29 | B153: 8 | C153: 5 | D153: 16 | E153: 15 | F153: 7 | G153: P | L153: 2 | N153: 5 | O153: 1 | V153: 4 | W153: 3 | AB153: 138 | AC153: 16 | AD153: 2014-02-12
A154: 2014-02-12 | B154: 10 | C154: 3 | D154: 8 | E154: 6 | F154: 11 | G154: P | J154: 2 | M154: 4 | O154: 3 | Q154: 1 | R154: 5 | AB154: 139 | AC154: 13 | AD154: 2014-02-15
A155: 2014-02-15 | B155: 7 | C155: 11 | D155: 4 | E155: 12 | F155: 1 | G155: P | H155: 5 | K155: 3 | N155: 1 | R155: 2 | S155: 4 | AB155: 140 | AC155: 18 | AD155: 2014-02-19
A156: 2014-02-19 | B156: 17 | C156: 7 | D156: 2 | E156: 1 | F156: 6 | G156: P | H156: 4 | I156: 3 | M156: 5 | N156: 2 | X156: 1 | AB156: 141 | AC156: 18 | AD156: 2014-02-22
A157: 2014-02-22 | B157: 7 | C157: 3 | D157: 6 | E157: 1 | F157: 9 | G157: P | H157: 4 | J157: 2 | M157: 3 | N157: 1 | P157: 5 | AB157: 142 | AC157: 17 | AD157: 2014-02-24
A158: 2014-02-24 | B158: 4 | C158: 2 | D158: 7 | E158: 16 | F158: 1 | G158: P | H158: 5 | I158: 2 | K158: 1 | N158: 3 | W158: 4 | AB158: 143 | AC158: 15 | AD158: 2014-03-04
A159: 2014-03-04 | B159: 17 | C159: 5 | D159: 12 | E159: 3 | F159: 2 | G159: P | I159: 5 | J159: 4 | L159: 2 | S159: 3 | X159: 1 | AB159: 144 | AC159: 16 | AD159: 2014-03-06
A160: 2014-03-06 | B160: 16 | C160: 11 | D160: 6 | E160: 4 | F160: 5 | G160: P | K160: 4 | L160: 5 | M160: 3 | R160: 2 | W160: 1 | AB160: 145 | AC160: 16 | AD160: 2014-03-07
A161: 2014-03-07 | B161: 1 | C161: 9 | D161: 2 | E161: 7 | F161: 14 | G161: P | H161: 1 | I161: 3 | N161: 4 | P161: 2 | U161: 5 | AB161: 146 | AC161: 16 | AD161: 2014-03-08
A162: 2014-03-08 | B162: 12 | C162: 7 | D162: 14 | E162: 4 | F162: 16 | G162: P | K162: 4 | N162: 2 | S162: 1 | U162: 3 | W162: 5 | AB162: 147 | AC162: 16 | AD162: 2014-03-10
A163: 2014-03-10 | B163: 4 | C163: 16 | D163: 14 | E163: 5 | F163: 1 | G163: P | H163: 5 | K163: 1 | L163: 4 | U163: 3 | W163: 2 | AB163: 148 | AC163: 14 | AD163: 2014-03-11
A164: 2014-03-11 | B164: 8 | C164: 3 | D164: 11 | E164: 4 | F164: 5 | G164: P | J164: 2 | K164: 4 | L164: 5 | O164: 1 | R164: 3 | AB164: 149 | AC164: 16 | AD164: 2014-03-13
A165: 2014-03-13 | B165: 14 | C165: 10 | D165: 1 | E165: 12 | F165: 3 | G165: P | H165: 3 | J165: 5 | Q165: 2 | S165: 4 | U165: 1 | AB165: 150 | AC165: 16 | AD165: 2014-03-15
A166: 2014-03-15 | B166: 4 | C166: 7 | D166: 14 | E166: 2 | F166: 5 | G166: P | I166: 4 | K166: 1 | L166: 5 | N166: 2 | U166: 3 | AB166: 151 | AC166: 15 | AD166: 2014-03-17
A167: 2014-03-17 | B167: 2 | C167: 8 | D167: 3 | E167: 15 | F167: 16 | G167: P | I167: 1 | J167: 3 | O167: 2 | V167: 4 | W167: 5 | AB167: 152 | AC167: 16 | AD167: 2014-03-18
A168: 2014-03-18 | B168: 3 | C168: 6 | D168: 4 | E168: 13 | F168: 7 | G168: P | J168: 1 | K168: 3 | M168: 2 | N168: 5 | T168: 4 | AB168: 153 | AC168: 15 | AD168: 2014-03-20
A169: 2014-03-20 | B169: 10 | C169: 4 | D169: 5 | E169: 14 | F169: 9 | G169: P | K169: 2 | L169: 3 | P169: 5 | Q169: 1 | U169: 4 | AB169: 154 | AC169: 18 | AD169: 2014-03-24
A170: 2014-03-24 | B170: 3 | C170: 10 | D170: 2 | E170: 1 | F170: 9 | G170: P | H170: 4 | I170: 3 | J170: 1 | P170: 5 | Q170: 2 | AB170: 155 | AC170: 16 | AD170: 2014-03-25
A171: 2014-03-25 | B171: 4 | C171: 14 | D171: 7 | E171: 3 | F171: 12 | G171: P | J171: 4 | K171: 1 | N171: 3 | S171: 5 | U171: 2 | AB171: 156 | AC171: 16 | AD171: 2014-03-27
A172: 2014-03-27 | B172: 7 | C172: 6 | D172: 3 | E172: 14 | F172: 5 | G172: P | J172: 3 | L172: 5 | M172: 2 | N172: 1 | U172: 4 | AB172: 157 | AC172: 16 | AD172: 2014-03-30
A173: 2014-03-30 | B173: 8 | C173: 3 | D173: 2 | E173: 4 | F173: 15 | G173: P | I173: 3 | J173: 2 | K173: 4 | O173: 1 | V173: 5 | AB173: 158 | AC173: 14 | AD173: 2014-03-31
A174: 2014-03-31 | B174: 6 | C174: 5 | D174: 11 | E174: 14 | F174: 3 | G174: P | J174: 5 | L174: 2 | M174: 1 | R174: 3 | U174: 4 | AB174: 159 | AC174: 15 | AD174: 2014-04-03
A175: 2014-04-03 | B175: 3 | C175: 10 | D175: 4 | E175: 11 | F175: 16 | G175: P | J175: 1 | K175: 3 | Q175: 2 | R175: 4 | W175: 5 | AB175: 160 | AC175: 16 | AD175: 2014-04-06
A176: 2014-04-06 | B176: 10 | C176: 2 | D176: 5 | E176: 16 | F176: 14 | G176: P | I176: 2 | L176: 3 | Q176: 1 | U176: 5 | W176: 4 | AB176: 161 | AC176: 16 | AD176: 2014-04-08
A177: 2014-04-08 | B177: 7 | C177: 13 | D177: 15 | E177: 12 | F177: 17 | G177: P | N177: 1 | S177: 4 | T177: 2 | V177: 3 | X177: 5 | AB177: 162 | AC177: 18 | AD177: 2014-04-10
A178: 2014-04-10 | B178: 1 | C178: 8 | D178: 11 | E178: 9 | F178: 16 | G178: P | H178: 1 | O178: 2 | P178: 4 | R178: 3 | W178: 5 | AB178: 163 | AC178: 16 | AD178: 2014-04-13
A179: 2014-04-13 | B179: 5 | C179: 10 | D179: 14 | E179: 7 | F179: 9 | G179: P | L179: 1 | N179: 4 | P179: 5 | Q179: 2 | U179: 3 | AB179: 164 | AC179: 16 | AD179: 2014-04-14
A180: 2014-04-14 | B180: 14 | C180: 15 | D180: 7 | E180: 2 | F180: 9 | G180: P | I180: 4 | N180: 3 | P180: 5 | U180: 1 | V180: 2 | AB180: 165 | AC180: 16 | AD180: 2014-04-15
A181: 2014-04-15 | B181: 8 | C181: 7 | D181: 15 | E181: 16 | F181: 14 | G181: P | N181: 2 | O181: 1 | U181: 5 | V181: 3 | W181: 4 | AB181: 166 | AC181: 18 | AD181: 2014-04-17
A182: 2014-04-17 | B182: 13 | C182: 9 | D182: 7 | E182: 10 | F182: 17 | G182: P | N182: 3 | P182: 2 | Q182: 4 | T182: 1 | X182: 5 | AB182: 167 | AC182: 15 | AD182: 2014-04-21
A183: 2014-04-21 | B183: 2 | C183: 10 | D183: 9 | E183: 11 | F183: 1 | G183: P | H183: 5 | I183: 1 | P183: 3 | Q183: 2 | R183: 4 | AB183: 168 | AC183: 15 | AD183: 2014-04-22
A184: 2014-04-22 | B184: 6 | C184: 2 | D184: 15 | E184: 3 | F184: 13 | G184: P | I184: 2 | J184: 4 | M184: 1 | T184: 5 | V184: 3 | AB184: 169 | AC184: 16 | AD184: 2014-04-24
A185: 2014-04-24 | B185: 4 | C185: 11 | D185: 8 | E185: 5 | F185: 16 | G185: P | K185: 1 | L185: 4 | O185: 3 | R185: 2 | W185: 5 | AB185: 170 | AC185: 16 | AD185: 2014-04-27
A186: 2014-04-27 | B186: 7 | C186: 12 | D186: 2 | E186: 5 | F186: 11 | G186: P | I186: 3 | L186: 4 | N186: 1 | R186: 5 | S186: 2 | AB186: 171 | AC186: 16 | AD186: 2014-04-28
A187: 2014-04-28 | B187: 9 | C187: 3 | D187: 7 | E187: 6 | F187: 1 | G187: P | H187: 5 | J187: 2 | M187: 4 | N187: 3 | P187: 1 | AB187: 172 | AC187: 17 | AD187: 2014-04-30
A188: 2014-04-30 | B188: 13 | C188: 16 | D188: 1 | E188: 15 | F188: 2 | G188: P | H188: 3 | I188: 5 | T188: 1 | V188: 4 | W188: 2 | AB188: 173 | AC188: 16 | AD188: 2014-05-01
A189: 2014-05-01 | B189: 9 | C189: 4 | D189: 3 | E189: 5 | F189: 15 | G189: P | J189: 3 | K189: 2 | L189: 4 | P189: 1 | V189: 5 | AB189: 174 | AC189: 18 | AD189: 2014-05-05
A190: 2014-05-05 | B190: 13 | C190: 7 | D190: 11 | E190: 9 | F190: 18 | G190: P | N190: 2 | P190: 4 | R190: 3 | T190: 1 | Y190: 5 | AB190: 175 | AC190: 16 | AD190: 2014-05-06
A191: 2014-05-06 | B191: 12 | C191: 13 | D191: 15 | E191: 10 | F191: 5 | G191: P | L191: 5 | Q191: 4 | S191: 1 | T191: 2 | V191: 3 | AB191: 176 | AC191: 16 | AD191: 2014-05-07
A192: 2014-05-07 | B192: 5 | C192: 3 | D192: 15 | E192: 9 | F192: 14 | G192: P | J192: 2 | L192: 1 | P192: 4 | U192: 5 | V192: 3 | AB192: 177 | AC192: 16 | AD192: 2014-05-08
A193: 2014-05-08 | B193: 10 | C193: 2 | D193: 13 | E193: 4 | F193: 6 | G193: P | I193: 2 | K193: 4 | M193: 5 | Q193: 1 | T193: 3 | AB193: 178 | AC193: 16 | AD193: 2014-05-11
A194: 2014-05-11 | B194: 1 | C194: 4 | D194: 8 | E194: 14 | F194: 12 | G194: P | H194: 1 | K194: 2 | O194: 3 | S194: 5 | U194: 4 | AB194: 179 | AC194: 16 | AD194: 2014-05-12
A195: 2014-05-12 | B195: 9 | C195: 1 | D195: 15 | E195: 6 | F195: 13 | G195: P | H195: 2 | M195: 4 | P195: 1 | T195: 5 | V195: 3 | AB195: 180 | AC195: 16 | AD195: 2014-05-13
A196: 2014-05-13 | B196: 6 | C196: 4 | D196: 8 | E196: 14 | F196: 13 | G196: P | K196: 2 | M196: 1 | O196: 3 | T196: 5 | U196: 4 | AB196: 181 | AC196: 17 | AD196: 2014-05-17
A197: 2014-05-17 | B197: 3 | C197: 11 | D197: 1 | E197: 13 | F197: 14 | G197: P | H197: 3 | J197: 1 | R197: 2 | T197: 4 | U197: 5 | AB197: 182 | AC197: 16 | AD197: 2014-05-19
A198: 2014-05-19 | B198: 6 | C198: 7 | D198: 10 | E198: 2 | F198: 3 | G198: P | I198: 4 | J198: 5 | M198: 1 | N198: 2 | Q198: 3 | AB198: 183 | AC198: 16 | AD198: 2014-05-20
A199: 2014-05-20 | B199: 11 | C199: 3 | D199: 1 | E199: 16 | F199: 10 | G199: P | H199: 3 | J199: 2 | Q199: 5 | R199: 1 | W199: 4 | AB199: 184 | AC199: 16 | AD199: 2014-05-25
A200: 2014-05-25 | B200: 5 | C200: 14 | D200: 8 | E200: 3 | F200: 4 | G200: P | J200: 4 | K200: 5 | L200: 1 | O200: 3 | U200: 2 | AB200: 185 | AC200: 15 | AD200: 2014-05-26
A201: 2014-05-26 | B201: 3 | C201: 6 | D201: 10 | E201: 7 | F201: 5 | G201: P | J201: 1 | L201: 5 | M201: 2 | N201: 4 | Q201: 3 | AB201: 186 | AC201: 15 | AD201: 2014-05-27
A202: 2014-05-27 | B202: 1 | C202: 2 | D202: 8 | E202: 6 | F202: 14 | G202: P | H202: 1 | I202: 2 | M202: 4 | O202: 3 | U202: 5 | AB202: 187 | AC202: 16 | AD202: 2014-05-28
... 175 more rows

Sheet NGP
H1: 1 | I1: 2 | J1: 3 | K1: 4 | L1: 5 | M1: 6 | N1: 7 | O1: 8 | P1: 9 | Q1: 10 | R1: 11 | S1: 12 | T1: 13 | U1: 14 | V1: 15 | W1: 16 | X1: 17 | Y1: 18 | Z1: 19 | AA1: 20 | AC1: 1 | AD1: 2 | AE1: 3 | AF1: 4 | AG1: 5 | AH1: 6 | AI1: 7 | AJ1: 8 | AK1: 9 | AL1: 10 | AM1: 11 | AN1: 12 | AO1: 13 | AP1: 14 | AQ1: 15 | AR1: 16 | AS1: 17 | AT1: 18 | AU1: 19 | AV1: 20
B2: Ecart Moyen | H2: =AVEDEV(H5:H338) -> 9.597565348 | I2: =AVEDEV(I5:I338) -> 7.982609631 | J2: =AVEDEV(J5:J338) -> 11.9933307 | K2: =AVEDEV(K5:K338) -> 11.55304959 | L2: =AVEDEV(L5:L338) -> 8.410878841 | M2: =AVEDEV(M5:M338) -> 9.912366883 | N2: =AVEDEV(N5:N338) -> 5.430922586 | O2: =AVEDEV(O5:O338) -> 13.44773925 | P2: =AVEDEV(P5:P338) -> 13.94015562 | Q2: =AVEDEV(Q5:Q338) -> 8.191007207 | R2: =AVEDEV(R5:R338) -> 17.05389222 | S2: =AVEDEV(S5:S338) -> 11.1577683 | T2: =AVEDEV(T5:T338) -> 14.50772706 | U2: =AVEDEV(U5:U338) -> 7.03947793 | V2: =AVEDEV(V5:V338) -> 13.14428628 | W2: =AVEDEV(W5:W338) -> 11.40693463 | X2: =AVEDEV(X5:X338) -> 6.243106601 | Y2: =AVEDEV(Y5:Y338) -> 5.347412959 | Z2: =AVEDEV(Z5:Z338) -> 3.454157553 | AA2: =AVEDEV(AA5:AA338) -> 1.380777367
B3: Ecart Maximum | H3: =MAX(H5:H4425) -> 59 | I3: =MAX(I5:I4425) -> 53 | J3: =MAX(J5:J4425) -> 73 | K3: =MAX(K5:K4425) -> 67 | L3: =MAX(L5:L4425) -> 61 | M3: =MAX(M5:M4425) -> 47 | N3: =MAX(N5:N4425) -> 43 | O3: =MAX(O5:O4425) -> 77 | P3: =MAX(P5:P4425) -> 69 | Q3: =MAX(Q5:Q4425) -> 38 | R3: =MAX(R5:R4425) -> 79 | S3: =MAX(S5:S4425) -> 68 | T3: =MAX(T5:T4425) -> 67 | U3: =MAX(U5:U4425) -> 51 | V3: =MAX(V5:V4425) -> 74 | W3: =MAX(W5:W4425) -> 56 | X3: =MAX(X5:X4425) -> 30 | Y3: =MAX(Y5:Y4425) -> 25 | Z3: =MAX(Z5:Z4425) -> 14 | AA3: =MAX(AA5:AA4425) -> 4
B4: report | H4: 0 | I4: 0 | J4: 0 | K4: 0 | L4: 0 | M4: 0 | N4: 0 | O4: 0 | P4: 0 | Q4: 0 | R4: 0 | S4: 0 | T4: 0 | U4: 0 | V4: 0 | W4: 0 | X4: 0 | Y4: 0 | Z4: 0 | AA4: 0 | AC4: 1 | AD4: 2 | AE4: 3 | AF4: 4 | AG4: 5 | AH4: 6 | AI4: 7 | AJ4: 8 | AK4: 9 | AL4: 10 | AM4: 11 | AN4: 12 | AO4: 13 | AP4: 14 | AQ4: 15 | AR4: 16 | AS4: 17 | AT4: 18 | AU4: 19 | AV4: 20
A5: =IF(P!$A16>0,P!$A16,"") -> 2013-01-04 | B5: =IF(ISERROR(INDEX(P!$A$16:$G$992,MATCH(NGP!$A5,P!$A$16:$A$992,0),COLUMN())),"X",INDEX(P!$A$16:$G$992,MATCH(NGP!$A5,P!$A$16:$A$992,0),COLUMN())) -> 3 | C5: =IF(ISERROR(INDEX(P!$A$16:$G$992,MATCH(NGP!$A5,P!$A$16:$A$992,0),COLUMN())),"X",INDEX(P!$A$16:$G$992,MATCH(NGP!$A5,P!$A$16:$A$992,0),COLUMN())) -> 9 | D5: =IF(ISERROR(INDEX(P!$A$16:$G$992,MATCH(NGP!$A5,P!$A$16:$A$992,0),COLUMN())),"X",INDEX(P!$A$16:$G$992,MATCH(NGP!$A5,P!$A$16:$A$992,0),COLUMN())) -> 5 | E5: =IF(ISERROR(INDEX(P!$A$16:$G$992,MATCH(NGP!$A5,P!$A$16:$A$992,0),COLUMN())),"X",INDEX(P!$A$16:$G$992,MATCH(NGP!$A5,P!$A$16:$A$992,0),COLUMN())) -> 2 | F5: =IF(ISERROR(INDEX(P!$A$16:$G$992,MATCH(NGP!$A5,P!$A$16:$A$992,0),COLUMN())),"X",INDEX(P!$A$16:$G$992,MATCH(NGP!$A5,P!$A$16:$A$992,0),COLUMN())) -> 6 | G5: =IF(ISERROR(INDEX(P!$A$16:$G$992,MATCH(NGP!$A5,P!$A$16:$A$992,0),COLUMN())),"X",INDEX(P!$A$16:$G$992,MATCH(NGP!$A5,P!$A$16:$A$992,0),COLUMN())) -> P | H5: =IF(COUNTIF($B5:$D5,"=X")<3,IF(LEN(SUBSTITUTE(SUBSTITUTE($B5,H$1,,1),,1))=0,0,H4+1-AC5),"") -> 1 | I5: 1 | J5: 0 | K5: 1 | L5: 1 | M5: 1 | N5: 1 | O5: 1 | P5: 1 | Q5: 1 | R5: 1 | S5: 1 | T5: 1 | U5: 1 | V5: 1 | W5: 1 | X5: 1 | Y5: 1 | Z5: 1 | AA5: 0 | AB5: 1 | AV5: 1 | AW5: =IF(A5<>"",20-SUM(AC5:AV5),"") -> 19 | AX5: 1
A6: =IF(P!$A17>0,P!$A17,"") -> 2013-01-16 | B6: =IF(ISERROR(INDEX(P!$A$16:$G$992,MATCH(NGP!$A6,P!$A$16:$A$992,0),COLUMN())),"X",INDEX(P!$A$16:$G$992,MATCH(NGP!$A6,P!$A$16:$A$992,0),COLUMN())) -> 2 | C6: =IF(ISERROR(INDEX(P!$A$16:$G$992,MATCH(NGP!$A6,P!$A$16:$A$992,0),COLUMN())),"X",INDEX(P!$A$16:$G$992,MATCH(NGP!$A6,P!$A$16:$A$992,0),COLUMN())) -> 16 | D6: =IF(ISERROR(INDEX(P!$A$16:$G$992,MATCH(NGP!$A6,P!$A$16:$A$992,0),COLUMN())),"X",INDEX(P!$A$16:$G$992,MATCH(NGP!$A6,P!$A$16:$A$992,0),COLUMN())) -> 6 | E6: =IF(ISERROR(INDEX(P!$A$16:$G$992,MATCH(NGP!$A6,P!$A$16:$A$992,0),COLUMN())),"X",INDEX(P!$A$16:$G$992,MATCH(NGP!$A6,P!$A$16:$A$992,0),COLUMN())) -> 11 | F6: =IF(ISERROR(INDEX(P!$A$16:$G$992,MATCH(NGP!$A6,P!$A$16:$A$992,0),COLUMN())),"X",INDEX(P!$A$16:$G$992,MATCH(NGP!$A6,P!$A$16:$A$992,0),COLUMN())) -> 12 | G6: =IF(ISERROR(INDEX(P!$A$16:$G$992,MATCH(NGP!$A6,P!$A$16:$A$992,0),COLUMN())),"X",INDEX(P!$A$16:$G$992,MATCH(NGP!$A6,P!$A$16:$A$992,0),COLUMN())) -> P | H6: 2 | I6: 0 | J6: 1 | K6: 2 | L6: 2 | M6: 2 | N6: 2 | O6: 2 | P6: 2 | Q6: 2 | R6: 2 | S6: 2 | T6: 2 | U6: 2 | V6: 2 | W6: 2 | X6: 2 | Y6: 2 | Z6: 1 | AA6: 0 | AB6: =SUM(AB5+1) -> 2 | AU6: 1 | AV6: 1 | AW6: =IF(A6<>"",20-SUM(AC6:AV6),"") -> 18 | AX6: =SUM(AX5+1) -> 2
A7: =IF(P!$A18>0,P!$A18,"") -> 2013-01-18 | B7: =IF(ISERROR(INDEX(P!$A$16:$G$992,MATCH(NGP!$A7,P!$A$16:$A$992,0),COLUMN())),"X",INDEX(P!$A$16:$G$992,MATCH(NGP!$A7,P!$A$16:$A$992,0),COLUMN())) -> 6 | C7: =IF(ISERROR(INDEX(P!$A$16:$G$992,MATCH(NGP!$A7,P!$A$16:$A$992,0),COLUMN())),"X",INDEX(P!$A$16:$G$992,MATCH(NGP!$A7,P!$A$16:$A$992,0),COLUMN())) -> 9 | D7: =IF(ISERROR(INDEX(P!$A$16:$G$992,MATCH(NGP!$A7,P!$A$16:$A$992,0),COLUMN())),"X",INDEX(P!$A$16:$G$992,MATCH(NGP!$A7,P!$A$16:$A$992,0),COLUMN())) -> 13 | E7: =IF(ISERROR(INDEX(P!$A$16:$G$992,MATCH(NGP!$A7,P!$A$16:$A$992,0),COLUMN())),"X",INDEX(P!$A$16:$G$992,MATCH(NGP!$A7,P!$A$16:$A$992,0),COLUMN())) -> 10 | F7: =IF(ISERROR(INDEX(P!$A$16:$G$992,MATCH(NGP!$A7,P!$A$16:$A$992,0),COLUMN())),"X",INDEX(P!$A$16:$G$992,MATCH(NGP!$A7,P!$A$16:$A$992,0),COLUMN())) -> 7 | G7: =IF(ISERROR(INDEX(P!$A$16:$G$992,MATCH(NGP!$A7,P!$A$16:$A$992,0),COLUMN())),"X",INDEX(P!$A$16:$G$992,MATCH(NGP!$A7,P!$A$16:$A$992,0),COLUMN())) -> P | H7: 3 | I7: 1 | J7: 2 | K7: 3 | L7: 3 | M7: 0 | N7: 3 | O7: 3 | P7: 3 | Q7: 3 | R7: 3 | S7: 3 | T7: 3 | U7: 3 | V7: 3 | W7: 3 | X7: 3 | Y7: 3 | Z7: 1 | AA7: 0 | AB7: =SUM(AB6+1) -> 3 | AU7: 1 | AV7: 1 | AW7: 18 | AX7: =SUM(AX6+1) -> 3
A8: =IF(P!$A19>0,P!$A19,"") -> 2013-01-21 | B8: =IF(ISERROR(INDEX(P!$A$16:$G$992,MATCH(NGP!$A8,P!$A$16:$A$992,0),COLUMN())),"X",INDEX(P!$A$16:$G$992,MATCH(NGP!$A8,P!$A$16:$A$992,0),COLUMN())) -> 12 | C8: =IF(ISERROR(INDEX(P!$A$16:$G$992,MATCH(NGP!$A8,P!$A$16:$A$992,0),COLUMN())),"X",INDEX(P!$A$16:$G$992,MATCH(NGP!$A8,P!$A$16:$A$992,0),COLUMN())) -> 2 | D8: =IF(ISERROR(INDEX(P!$A$16:$G$992,MATCH(NGP!$A8,P!$A$16:$A$992,0),COLUMN())),"X",INDEX(P!$A$16:$G$992,MATCH(NGP!$A8,P!$A$16:$A$992,0),COLUMN())) -> 15 | E8: =IF(ISERROR(INDEX(P!$A$16:$G$992,MATCH(NGP!$A8,P!$A$16:$A$992,0),COLUMN())),"X",INDEX(P!$A$16:$G$992,MATCH(NGP!$A8,P!$A$16:$A$992,0),COLUMN())) -> 1 | F8: =IF(ISERROR(INDEX(P!$A$16:$G$992,MATCH(NGP!$A8,P!$A$16:$A$992,0),COLUMN())),"X",INDEX(P!$A$16:$G$992,MATCH(NGP!$A8,P!$A$16:$A$992,0),COLUMN())) -> 4 | G8: =IF(ISERROR(INDEX(P!$A$16:$G$992,MATCH(NGP!$A8,P!$A$16:$A$992,0),COLUMN())),"X",INDEX(P!$A$16:$G$992,MATCH(NGP!$A8,P!$A$16:$A$992,0),COLUMN())) -> P | H8: 4 | I8: 2 | J8: 3 | K8: 4 | L8: 4 | M8: 1 | N8: 4 | O8: 4 | P8: 4 | Q8: 4 | R8: 4 | S8: 0 | T8: 4 | U8: 4 | V8: 4 | W8: 4 | X8: 3 | Y8: 3 | Z8: 1 | AA8: 0 | AB8: 4 | AS8: 1 | AT8: 1 | AU8: 1 | AV8: 1 | AW8: 16 | AX8: 4
A9: =IF(P!$A20>0,P!$A20,"") -> 2013-01-22 | B9: =IF(ISERROR(INDEX(P!$A$16:$G$992,MATCH(NGP!$A9,P!$A$16:$A$992,0),COLUMN())),"X",INDEX(P!$A$16:$G$992,MATCH(NGP!$A9,P!$A$16:$A$992,0),COLUMN())) -> 8 | C9: =IF(ISERROR(INDEX(P!$A$16:$G$992,MATCH(NGP!$A9,P!$A$16:$A$992,0),COLUMN())),"X",INDEX(P!$A$16:$G$992,MATCH(NGP!$A9,P!$A$16:$A$992,0),COLUMN())) -> 11 | D9: =IF(ISERROR(INDEX(P!$A$16:$G$992,MATCH(NGP!$A9,P!$A$16:$A$992,0),COLUMN())),"X",INDEX(P!$A$16:$G$992,MATCH(NGP!$A9,P!$A$16:$A$992,0),COLUMN())) -> 10 | E9: =IF(ISERROR(INDEX(P!$A$16:$G$992,MATCH(NGP!$A9,P!$A$16:$A$992,0),COLUMN())),"X",INDEX(P!$A$16:$G$992,MATCH(NGP!$A9,P!$A$16:$A$992,0),COLUMN())) -> 2 | F9: =IF(ISERROR(INDEX(P!$A$16:$G$992,MATCH(NGP!$A9,P!$A$16:$A$992,0),COLUMN())),"X",INDEX(P!$A$16:$G$992,MATCH(NGP!$A9,P!$A$16:$A$992,0),COLUMN())) -> 12 | G9: =IF(ISERROR(INDEX(P!$A$16:$G$992,MATCH(NGP!$A9,P!$A$16:$A$992,0),COLUMN())),"X",INDEX(P!$A$16:$G$992,MATCH(NGP!$A9,P!$A$16:$A$992,0),COLUMN())) -> P | H9: 5 | I9: 3 | J9: 4 | K9: 5 | L9: 5 | M9: 2 | N9: 5 | O9: 0 | P9: 5 | Q9: 5 | R9: 5 | S9: 1 | T9: 5 | U9: 5 | V9: 5 | W9: 5 | X9: 3 | Y9: 3 | Z9: 1 | AA9: 0 | AB9: 5 | AS9: 1 | AT9: 1 | AU9: 1 | AV9: 1 | AW9: 16 | AX9: 5
A10: =IF(P!$A21>0,P!$A21,"") -> 2013-01-30 | B10: =IF(ISERROR(INDEX(P!$A$16:$G$992,MATCH(NGP!$A10,P!$A$16:$A$992,0),COLUMN())),"X",INDEX(P!$A$16:$G$992,MATCH(NGP!$A10,P!$A$16:$A$992,0),COLUMN())) -> 14 | C10: =IF(ISERROR(INDEX(P!$A$16:$G$992,MATCH(NGP!$A10,P!$A$16:$A$992,0),COLUMN())),"X",INDEX(P!$A$16:$G$992,MATCH(NGP!$A10,P!$A$16:$A$992,0),COLUMN())) -> 15 | D10: =IF(ISERROR(INDEX(P!$A$16:$G$992,MATCH(NGP!$A10,P!$A$16:$A$992,0),COLUMN())),"X",INDEX(P!$A$16:$G$992,MATCH(NGP!$A10,P!$A$16:$A$992,0),COLUMN())) -> 3 | E10: =IF(ISERROR(INDEX(P!$A$16:$G$992,MATCH(NGP!$A10,P!$A$16:$A$992,0),COLUMN())),"X",INDEX(P!$A$16:$G$992,MATCH(NGP!$A10,P!$A$16:$A$992,0),COLUMN())) -> 16 | F10: =IF(ISERROR(INDEX(P!$A$16:$G$992,MATCH(NGP!$A10,P!$A$16:$A$992,0),COLUMN())),"X",INDEX(P!$A$16:$G$992,MATCH(NGP!$A10,P!$A$16:$A$992,0),COLUMN())) -> 9 | G10: =IF(ISERROR(INDEX(P!$A$16:$G$992,MATCH(NGP!$A10,P!$A$16:$A$992,0),COLUMN())),"X",INDEX(P!$A$16:$G$992,MATCH(NGP!$A10,P!$A$16:$A$992,0),COLUMN())) -> P | H10: 6 | I10: 4 | J10: 5 | K10: 6 | L10: 6 | M10: 3 | N10: 6 | O10: 1 | P10: 6 | Q10: 6 | R10: 6 | S10: 2 | T10: 6 | U10: 0 | V10: 6 | W10: 6 | X10: 4 | Y10: 4 | Z10: 1 | AA10: 0 | AB10: 6 | AU10: 1 | AV10: 1 | AW10: 18 | AX10: 6
A11: =IF(P!$A22>0,P!$A22,"") -> 2013-02-13 | B11: =IF(ISERROR(INDEX(P!$A$16:$G$992,MATCH(NGP!$A11,P!$A$16:$A$992,0),COLUMN())),"X",INDEX(P!$A$16:$G$992,MATCH(NGP!$A11,P!$A$16:$A$992,0),COLUMN())) -> 5 | C11: =IF(ISERROR(INDEX(P!$A$16:$G$992,MATCH(NGP!$A11,P!$A$16:$A$992,0),COLUMN())),"X",INDEX(P!$A$16:$G$992,MATCH(NGP!$A11,P!$A$16:$A$992,0),COLUMN())) -> 2 | D11: =IF(ISERROR(INDEX(P!$A$16:$G$992,MATCH(NGP!$A11,P!$A$16:$A$992,0),COLUMN())),"X",INDEX(P!$A$16:$G$992,MATCH(NGP!$A11,P!$A$16:$A$992,0),COLUMN())) -> 9 | E11: =IF(ISERROR(INDEX(P!$A$16:$G$992,MATCH(NGP!$A11,P!$A$16:$A$992,0),COLUMN())),"X",INDEX(P!$A$16:$G$992,MATCH(NGP!$A11,P!$A$16:$A$992,0),COLUMN())) -> 16 | F11: =IF(ISERROR(INDEX(P!$A$16:$G$992,MATCH(NGP!$A11,P!$A$16:$A$992,0),COLUMN())),"X",INDEX(P!$A$16:$G$992,MATCH(NGP!$A11,P!$A$16:$A$992,0),COLUMN())) -> 1 | G11: =IF(ISERROR(INDEX(P!$A$16:$G$992,MATCH(NGP!$A11,P!$A$16:$A$992,0),COLUMN())),"X",INDEX(P!$A$16:$G$992,MATCH(NGP!$A11,P!$A$16:$A$992,0),COLUMN())) -> P | H11: 7 | I11: 5 | J11: 6 | K11: 7 | L11: 0 | M11: 4 | N11: 7 | O11: 2 | P11: 7 | Q11: 7 | R11: 7 | S11: 3 | T11: 7 | U11: 1 | V11: 7 | W11: 7 | X11: 4 | Y11: 4 | Z11: 1 | AA11: 0 | AB11: 7 | AS11: 1 | AT11: 1 | AU11: 1 | AV11: 1 | AW11: 16 | AX11: 7
A12: =IF(P!$A23>0,P!$A23,"") -> 2013-02-16 | B12: =IF(ISERROR(INDEX(P!$A$16:$G$992,MATCH(NGP!$A12,P!$A$16:$A$992,0),COLUMN())),"X",INDEX(P!$A$16:$G$992,MATCH(NGP!$A12,P!$A$16:$A$992,0),COLUMN())) -> 1 | C12: =IF(ISERROR(INDEX(P!$A$16:$G$992,MATCH(NGP!$A12,P!$A$16:$A$992,0),COLUMN())),"X",INDEX(P!$A$16:$G$992,MATCH(NGP!$A12,P!$A$16:$A$992,0),COLUMN())) -> 9 | D12: =IF(ISERROR(INDEX(P!$A$16:$G$992,MATCH(NGP!$A12,P!$A$16:$A$992,0),COLUMN())),"X",INDEX(P!$A$16:$G$992,MATCH(NGP!$A12,P!$A$16:$A$992,0),COLUMN())) -> 6 | E12: =IF(ISERROR(INDEX(P!$A$16:$G$992,MATCH(NGP!$A12,P!$A$16:$A$992,0),COLUMN())),"X",INDEX(P!$A$16:$G$992,MATCH(NGP!$A12,P!$A$16:$A$992,0),COLUMN())) -> 3 | F12: =IF(ISERROR(INDEX(P!$A$16:$G$992,MATCH(NGP!$A12,P!$A$16:$A$992,0),COLUMN())),"X",INDEX(P!$A$16:$G$992,MATCH(NGP!$A12,P!$A$16:$A$992,0),COLUMN())) -> 10 | G12: =IF(ISERROR(INDEX(P!$A$16:$G$992,MATCH(NGP!$A12,P!$A$16:$A$992,0),COLUMN())),"X",INDEX(P!$A$16:$G$992,MATCH(NGP!$A12,P!$A$16:$A$992,0),COLUMN())) -> P | H12: 0 | I12: 6 | J12: 7 | K12: 8 | L12: 1 | M12: 5 | N12: 7 | O12: 3 | P12: 8 | Q12: 8 | R12: 8 | S12: 4 | T12: 8 | U12: 2 | V12: 8 | W12: 8 | X12: 4 | Y12: 4 | Z12: 1 | AA12: 0 | AB12: 8 | AI12: 1 | AS12: 1 | AT12: 1 | AU12: 1 | AV12: 1 | AW12: 15 | AX12: 8 | AY12: 7
A13: =IF(P!$A24>0,P!$A24,"") -> 2013-02-20 | B13: =IF(ISERROR(INDEX(P!$A$16:$G$992,MATCH(NGP!$A13,P!$A$16:$A$992,0),COLUMN())),"X",INDEX(P!$A$16:$G$992,MATCH(NGP!$A13,P!$A$16:$A$992,0),COLUMN())) -> 6 | C13: =IF(ISERROR(INDEX(P!$A$16:$G$992,MATCH(NGP!$A13,P!$A$16:$A$992,0),COLUMN())),"X",INDEX(P!$A$16:$G$992,MATCH(NGP!$A13,P!$A$16:$A$992,0),COLUMN())) -> 17 | D13: =IF(ISERROR(INDEX(P!$A$16:$G$992,MATCH(NGP!$A13,P!$A$16:$A$992,0),COLUMN())),"X",INDEX(P!$A$16:$G$992,MATCH(NGP!$A13,P!$A$16:$A$992,0),COLUMN())) -> 1 | E13: =IF(ISERROR(INDEX(P!$A$16:$G$992,MATCH(NGP!$A13,P!$A$16:$A$992,0),COLUMN())),"X",INDEX(P!$A$16:$G$992,MATCH(NGP!$A13,P!$A$16:$A$992,0),COLUMN())) -> 7 | F13: =IF(ISERROR(INDEX(P!$A$16:$G$992,MATCH(NGP!$A13,P!$A$16:$A$992,0),COLUMN())),"X",INDEX(P!$A$16:$G$992,MATCH(NGP!$A13,P!$A$16:$A$992,0),COLUMN())) -> 11 | G13: =IF(ISERROR(INDEX(P!$A$16:$G$992,MATCH(NGP!$A13,P!$A$16:$A$992,0),COLUMN())),"X",INDEX(P!$A$16:$G$992,MATCH(NGP!$A13,P!$A$16:$A$992,0),COLUMN())) -> P | H13: 1 | I13: 7 | J13: 8 | K13: 9 | L13: 2 | M13: 0 | N13: 8 | O13: 4 | P13: 9 | Q13: 9 | R13: 9 | S13: 5 | T13: 9 | U13: 3 | V13: 9 | W13: 9 | X13: 5 | Y13: 5 | Z13: 1 | AA13: 0 | AB13: 9 | AU13: 1 | AV13: 1 | AW13: 18 | AX13: 9
A14: =IF(P!$A25>0,P!$A25,"") -> 2013-02-23 | B14: =IF(ISERROR(INDEX(P!$A$16:$G$992,MATCH(NGP!$A14,P!$A$16:$A$992,0),COLUMN())),"X",INDEX(P!$A$16:$G$992,MATCH(NGP!$A14,P!$A$16:$A$992,0),COLUMN())) -> 15 | C14: =IF(ISERROR(INDEX(P!$A$16:$G$992,MATCH(NGP!$A14,P!$A$16:$A$992,0),COLUMN())),"X",INDEX(P!$A$16:$G$992,MATCH(NGP!$A14,P!$A$16:$A$992,0),COLUMN())) -> 14 | D14: =IF(ISERROR(INDEX(P!$A$16:$G$992,MATCH(NGP!$A14,P!$A$16:$A$992,0),COLUMN())),"X",INDEX(P!$A$16:$G$992,MATCH(NGP!$A14,P!$A$16:$A$992,0),COLUMN())) -> 5 | E14: =IF(ISERROR(INDEX(P!$A$16:$G$992,MATCH(NGP!$A14,P!$A$16:$A$992,0),COLUMN())),"X",INDEX(P!$A$16:$G$992,MATCH(NGP!$A14,P!$A$16:$A$992,0),COLUMN())) -> 9 | F14: =IF(ISERROR(INDEX(P!$A$16:$G$992,MATCH(NGP!$A14,P!$A$16:$A$992,0),COLUMN())),"X",INDEX(P!$A$16:$G$992,MATCH(NGP!$A14,P!$A$16:$A$992,0),COLUMN())) -> 3 | G14: =IF(ISERROR(INDEX(P!$A$16:$G$992,MATCH(NGP!$A14,P!$A$16:$A$992,0),COLUMN())),"X",INDEX(P!$A$16:$G$992,MATCH(NGP!$A14,P!$A$16:$A$992,0),COLUMN())) -> P | H14: 2 | I14: 8 | J14: 9 | K14: 10 | L14: 3 | M14: 1 | N14: 9 | O14: 5 | P14: 10 | Q14: 10 | R14: 10 | S14: 6 | T14: 10 | U14: 4 | V14: 0 | W14: 10 | X14: 6 | Y14: 6 | Z14: 1 | AA14: 0 | AB14: 10 | AU14: 1 | AV14: 1 | AW14: 18 | AX14: 10
A15: =IF(P!$A26>0,P!$A26,"") -> 2013-02-25 | B15: =IF(ISERROR(INDEX(P!$A$16:$G$992,MATCH(NGP!$A15,P!$A$16:$A$992,0),COLUMN())),"X",INDEX(P!$A$16:$G$992,MATCH(NGP!$A15,P!$A$16:$A$992,0),COLUMN())) -> 16 | C15: =IF(ISERROR(INDEX(P!$A$16:$G$992,MATCH(NGP!$A15,P!$A$16:$A$992,0),COLUMN())),"X",INDEX(P!$A$16:$G$992,MATCH(NGP!$A15,P!$A$16:$A$992,0),COLUMN())) -> 11 | D15: =IF(ISERROR(INDEX(P!$A$16:$G$992,MATCH(NGP!$A15,P!$A$16:$A$992,0),COLUMN())),"X",INDEX(P!$A$16:$G$992,MATCH(NGP!$A15,P!$A$16:$A$992,0),COLUMN())) -> 3 | E15: =IF(ISERROR(INDEX(P!$A$16:$G$992,MATCH(NGP!$A15,P!$A$16:$A$992,0),COLUMN())),"X",INDEX(P!$A$16:$G$992,MATCH(NGP!$A15,P!$A$16:$A$992,0),COLUMN())) -> 2 | F15: =IF(ISERROR(INDEX(P!$A$16:$G$992,MATCH(NGP!$A15,P!$A$16:$A$992,0),COLUMN())),"X",INDEX(P!$A$16:$G$992,MATCH(NGP!$A15,P!$A$16:$A$992,0),COLUMN())) -> 12 | G15: =IF(ISERROR(INDEX(P!$A$16:$G$992,MATCH(NGP!$A15,P!$A$16:$A$992,0),COLUMN())),"X",INDEX(P!$A$16:$G$992,MATCH(NGP!$A15,P!$A$16:$A$992,0),COLUMN())) -> P | H15: 3 | I15: 9 | J15: 10 | K15: 11 | L15: 4 | M15: 2 | N15: 10 | O15: 6 | P15: 11 | Q15: 11 | R15: 11 | S15: 7 | T15: 11 | U15: 5 | V15: 1 | W15: 0 | X15: 6 | Y15: 6 | Z15: 1 | AA15: 0 | AB15: 11 | AS15: 1 | AT15: 1 | AU15: 1 | AV15: 1 | AW15: 16 | AX15: 11
A16: =IF(P!$A27>0,P!$A27,"") -> 2013-03-05 | B16: =IF(ISERROR(INDEX(P!$A$16:$G$992,MATCH(NGP!$A16,P!$A$16:$A$992,0),COLUMN())),"X",INDEX(P!$A$16:$G$992,MATCH(NGP!$A16,P!$A$16:$A$992,0),COLUMN())) -> 5 | C16: =IF(ISERROR(INDEX(P!$A$16:$G$992,MATCH(NGP!$A16,P!$A$16:$A$992,0),COLUMN())),"X",INDEX(P!$A$16:$G$992,MATCH(NGP!$A16,P!$A$16:$A$992,0),COLUMN())) -> 6 | D16: =IF(ISERROR(INDEX(P!$A$16:$G$992,MATCH(NGP!$A16,P!$A$16:$A$992,0),COLUMN())),"X",INDEX(P!$A$16:$G$992,MATCH(NGP!$A16,P!$A$16:$A$992,0),COLUMN())) -> 1 | E16: =IF(ISERROR(INDEX(P!$A$16:$G$992,MATCH(NGP!$A16,P!$A$16:$A$992,0),COLUMN())),"X",INDEX(P!$A$16:$G$992,MATCH(NGP!$A16,P!$A$16:$A$992,0),COLUMN())) -> 16 | F16: =IF(ISERROR(INDEX(P!$A$16:$G$992,MATCH(NGP!$A16,P!$A$16:$A$992,0),COLUMN())),"X",INDEX(P!$A$16:$G$992,MATCH(NGP!$A16,P!$A$16:$A$992,0),COLUMN())) -> 2 | G16: =IF(ISERROR(INDEX(P!$A$16:$G$992,MATCH(NGP!$A16,P!$A$16:$A$992,0),COLUMN())),"X",INDEX(P!$A$16:$G$992,MATCH(NGP!$A16,P!$A$16:$A$992,0),COLUMN())) -> P | H16: 4 | I16: 10 | J16: 11 | K16: 12 | L16: 0 | M16: 3 | N16: 11 | O16: 6 | P16: 12 | Q16: 12 | R16: 12 | S16: 8 | T16: 11 | U16: 6 | V16: 2 | W16: 1 | X16: 7 | Y16: 6 | Z16: 1 | AA16: 0 | AB16: 12 | AJ16: 1 | AO16: 1 | AT16: 1 | AU16: 1 | AV16: 1 | AW16: 15 | AX16: 12 | AY16: 8 | AZ16: 12
A17: =IF(P!$A28>0,P!$A28,"") -> 2013-03-07 | B17: =IF(ISERROR(INDEX(P!$A$16:$G$992,MATCH(NGP!$A17,P!$A$16:$A$992,0),COLUMN())),"X",INDEX(P!$A$16:$G$992,MATCH(NGP!$A17,P!$A$16:$A$992,0),COLUMN())) -> 5 | C17: =IF(ISERROR(INDEX(P!$A$16:$G$992,MATCH(NGP!$A17,P!$A$16:$A$992,0),COLUMN())),"X",INDEX(P!$A$16:$G$992,MATCH(NGP!$A17,P!$A$16:$A$992,0),COLUMN())) -> 1 | D17: =IF(ISERROR(INDEX(P!$A$16:$G$992,MATCH(NGP!$A17,P!$A$16:$A$992,0),COLUMN())),"X",INDEX(P!$A$16:$G$992,MATCH(NGP!$A17,P!$A$16:$A$992,0),COLUMN())) -> 6 | E17: =IF(ISERROR(INDEX(P!$A$16:$G$992,MATCH(NGP!$A17,P!$A$16:$A$992,0),COLUMN())),"X",INDEX(P!$A$16:$G$992,MATCH(NGP!$A17,P!$A$16:$A$992,0),COLUMN())) -> 13 | F17: =IF(ISERROR(INDEX(P!$A$16:$G$992,MATCH(NGP!$A17,P!$A$16:$A$992,0),COLUMN())),"X",INDEX(P!$A$16:$G$992,MATCH(NGP!$A17,P!$A$16:$A$992,0),COLUMN())) -> 10 | G17: =IF(ISERROR(INDEX(P!$A$16:$G$992,MATCH(NGP!$A17,P!$A$16:$A$992,0),COLUMN())),"X",INDEX(P!$A$16:$G$992,MATCH(NGP!$A17,P!$A$16:$A$992,0),COLUMN())) -> P | H17: 5 | I17: 11 | J17: 11 | K17: 13 | L17: 0 | M17: 4 | N17: 12 | O17: 7 | P17: 13 | Q17: 13 | R17: 13 | S17: 9 | T17: 12 | U17: 7 | V17: 3 | W17: =IF(COUNTIF($B17:$D17,"=X")<3,IF(LEN(SUBSTITUTE(SUBSTITUTE($B17,W$1,,1),,1))=0,0,W16+1-AR17),"") -> 2 | X17: 7 | Y17: 6 | Z17: 1 | AA17: 0 | AB17: 13 | AE17: 1 | AS17: 1 | AT17: 1 | AU17: 1 | AV17: 1 | AW17: 15 | AX17: 13 | AZ17: 3
A18: =IF(P!$A29>0,P!$A29,"") -> 2013-03-08 | B18: =IF(ISERROR(INDEX(P!$A$16:$G$992,MATCH(NGP!$A18,P!$A$16:$A$992,0),COLUMN())),"X",INDEX(P!$A$16:$G$992,MATCH(NGP!$A18,P!$A$16:$A$992,0),COLUMN())) -> 2 | C18: =IF(ISERROR(INDEX(P!$A$16:$G$992,MATCH(NGP!$A18,P!$A$16:$A$992,0),COLUMN())),"X",INDEX(P!$A$16:$G$992,MATCH(NGP!$A18,P!$A$16:$A$992,0),COLUMN())) -> 12 | D18: =IF(ISERROR(INDEX(P!$A$16:$G$992,MATCH(NGP!$A18,P!$A$16:$A$992,0),COLUMN())),"X",INDEX(P!$A$16:$G$992,MATCH(NGP!$A18,P!$A$16:$A$992,0),COLUMN())) -> 16 | E18: =IF(ISERROR(INDEX(P!$A$16:$G$992,MATCH(NGP!$A18,P!$A$16:$A$992,0),COLUMN())),"X",INDEX(P!$A$16:$G$992,MATCH(NGP!$A18,P!$A$16:$A$992,0),COLUMN())) -> 14 | F18: =IF(ISERROR(INDEX(P!$A$16:$G$992,MATCH(NGP!$A18,P!$A$16:$A$992,0),COLUMN())),"X",INDEX(P!$A$16:$G$992,MATCH(NGP!$A18,P!$A$16:$A$992,0),COLUMN())) -> 11 | G18: =IF(ISERROR(INDEX(P!$A$16:$G$992,MATCH(NGP!$A18,P!$A$16:$A$992,0),COLUMN())),"X",INDEX(P!$A$16:$G$992,MATCH(NGP!$A18,P!$A$16:$A$992,0),COLUMN())) -> P | H18: =IF(COUNTIF($B18:$D18,"=X")<3,IF(LEN(SUBSTITUTE(SUBSTITUTE($B18,H$1,,1),,1))=0,0,H17+1-AC18),"") -> 6 | I18: 0 | J18: 12 | K18: 14 | L18: 1 | M18: 5 | N18: 13 | O18: 8 | P18: 14 | Q18: 14 | R18: 14 | S18: 10 | T18: 13 | U18: 8 | V18: 4 | W18: 3 | X18: 7 | Y18: 6 | Z18: 1 | AA18: 0 | AB18: 14 | AS18: 1 | AT18: 1 | AU18: 1 | AV18: 1 | AW18: 16 | AX18: 14
A19: =IF(P!$A30>0,P!$A30,"") -> 2013-03-09 | B19: =IF(ISERROR(INDEX(P!$A$16:$G$992,MATCH(NGP!$A19,P!$A$16:$A$992,0),COLUMN())),"X",INDEX(P!$A$16:$G$992,MATCH(NGP!$A19,P!$A$16:$A$992,0),COLUMN())) -> 9 | C19: =IF(ISERROR(INDEX(P!$A$16:$G$992,MATCH(NGP!$A19,P!$A$16:$A$992,0),COLUMN())),"X",INDEX(P!$A$16:$G$992,MATCH(NGP!$A19,P!$A$16:$A$992,0),COLUMN())) -> 15 | D19: =IF(ISERROR(INDEX(P!$A$16:$G$992,MATCH(NGP!$A19,P!$A$16:$A$992,0),COLUMN())),"X",INDEX(P!$A$16:$G$992,MATCH(NGP!$A19,P!$A$16:$A$992,0),COLUMN())) -> 4 | E19: =IF(ISERROR(INDEX(P!$A$16:$G$992,MATCH(NGP!$A19,P!$A$16:$A$992,0),COLUMN())),"X",INDEX(P!$A$16:$G$992,MATCH(NGP!$A19,P!$A$16:$A$992,0),COLUMN())) -> 14 | F19: =IF(ISERROR(INDEX(P!$A$16:$G$992,MATCH(NGP!$A19,P!$A$16:$A$992,0),COLUMN())),"X",INDEX(P!$A$16:$G$992,MATCH(NGP!$A19,P!$A$16:$A$992,0),COLUMN())) -> 10 | G19: =IF(ISERROR(INDEX(P!$A$16:$G$992,MATCH(NGP!$A19,P!$A$16:$A$992,0),COLUMN())),"X",INDEX(P!$A$16:$G$992,MATCH(NGP!$A19,P!$A$16:$A$992,0),COLUMN())) -> P | H19: 7 | I19: 1 | J19: 13 | K19: 15 | L19: 2 | M19: 6 | N19: 14 | O19: 9 | P19: 0 | Q19: 15 | R19: 15 | S19: 11 | T19: 14 | U19: 9 | V19: 5 | W19: 4 | X19: 7 | Y19: 6 | Z19: 1 | AA19: 0 | AB19: 15 | AS19: 1 | AT19: 1 | AU19: 1 | AV19: 1 | AW19: 16 | AX19: 15
A20: =IF(P!$A31>0,P!$A31,"") -> 2013-03-11 | B20: =IF(ISERROR(INDEX(P!$A$16:$G$992,MATCH(NGP!$A20,P!$A$16:$A$992,0),COLUMN())),"X",INDEX(P!$A$16:$G$992,MATCH(NGP!$A20,P!$A$16:$A$992,0),COLUMN())) -> 14 | C20: =IF(ISERROR(INDEX(P!$A$16:$G$992,MATCH(NGP!$A20,P!$A$16:$A$992,0),COLUMN())),"X",INDEX(P!$A$16:$G$992,MATCH(NGP!$A20,P!$A$16:$A$992,0),COLUMN())) -> 3 | D20: =IF(ISERROR(INDEX(P!$A$16:$G$992,MATCH(NGP!$A20,P!$A$16:$A$992,0),COLUMN())),"X",INDEX(P!$A$16:$G$992,MATCH(NGP!$A20,P!$A$16:$A$992,0),COLUMN())) -> 1 | E20: =IF(ISERROR(INDEX(P!$A$16:$G$992,MATCH(NGP!$A20,P!$A$16:$A$992,0),COLUMN())),"X",INDEX(P!$A$16:$G$992,MATCH(NGP!$A20,P!$A$16:$A$992,0),COLUMN())) -> 7 | F20: =IF(ISERROR(INDEX(P!$A$16:$G$992,MATCH(NGP!$A20,P!$A$16:$A$992,0),COLUMN())),"X",INDEX(P!$A$16:$G$992,MATCH(NGP!$A20,P!$A$16:$A$992,0),COLUMN())) -> 12 | G20: =IF(ISERROR(INDEX(P!$A$16:$G$992,MATCH(NGP!$A20,P!$A$16:$A$992,0),COLUMN())),"X",INDEX(P!$A$16:$G$992,MATCH(NGP!$A20,P!$A$16:$A$992,0),COLUMN())) -> P | H20: 8 | I20: 1 | J20: 14 | K20: 16 | L20: 3 | M20: 7 | N20: 15 | O20: 10 | P20: 1 | Q20: 16 | R20: 16 | S20: 12 | T20: 15 | U20: 0 | V20: 6 | W20: 5 | X20: 7 | Y20: 6 | Z20: 1 | AA20: 0 | AB20: 16 | AD20: 1 | AS20: 1 | AT20: 1 | AU20: 1 | AV20: 1 | AW20: 15 | AX20: 16 | AZ20: 2
A21: =IF(P!$A32>0,P!$A32,"") -> 2013-03-16 | B21: =IF(ISERROR(INDEX(P!$A$16:$G$992,MATCH(NGP!$A21,P!$A$16:$A$992,0),COLUMN())),"X",INDEX(P!$A$16:$G$992,MATCH(NGP!$A21,P!$A$16:$A$992,0),COLUMN())) -> 1 | C21: =IF(ISERROR(INDEX(P!$A$16:$G$992,MATCH(NGP!$A21,P!$A$16:$A$992,0),COLUMN())),"X",INDEX(P!$A$16:$G$992,MATCH(NGP!$A21,P!$A$16:$A$992,0),COLUMN())) -> 16 | D21: =IF(ISERROR(INDEX(P!$A$16:$G$992,MATCH(NGP!$A21,P!$A$16:$A$992,0),COLUMN())),"X",INDEX(P!$A$16:$G$992,MATCH(NGP!$A21,P!$A$16:$A$992,0),COLUMN())) -> 5 | E21: =IF(ISERROR(INDEX(P!$A$16:$G$992,MATCH(NGP!$A21,P!$A$16:$A$992,0),COLUMN())),"X",INDEX(P!$A$16:$G$992,MATCH(NGP!$A21,P!$A$16:$A$992,0),COLUMN())) -> 11 | F21: =IF(ISERROR(INDEX(P!$A$16:$G$992,MATCH(NGP!$A21,P!$A$16:$A$992,0),COLUMN())),"X",INDEX(P!$A$16:$G$992,MATCH(NGP!$A21,P!$A$16:$A$992,0),COLUMN())) -> 14 | G21: =IF(ISERROR(INDEX(P!$A$16:$G$992,MATCH(NGP!$A21,P!$A$16:$A$992,0),COLUMN())),"X",INDEX(P!$A$16:$G$992,MATCH(NGP!$A21,P!$A$16:$A$992,0),COLUMN())) -> P | H21: 0 | I21: 2 | J21: 15 | K21: 17 | L21: 4 | M21: 8 | N21: 16 | O21: 11 | P21: 2 | Q21: 17 | R21: 17 | S21: 13 | T21: 16 | U21: 1 | V21: 7 | W21: 6 | X21: 7 | Y21: 6 | Z21: 1 | AA21: 0 | AB21: 17 | AS21: 1 | AT21: 1 | AU21: 1 | AV21: 1 | AW21: 16 | AX21: 17
A22: =IF(P!$A33>0,P!$A33,"") -> 2013-03-18 | B22: =IF(ISERROR(INDEX(P!$A$16:$G$992,MATCH(NGP!$A22,P!$A$16:$A$992,0),COLUMN())),"X",INDEX(P!$A$16:$G$992,MATCH(NGP!$A22,P!$A$16:$A$992,0),COLUMN())) -> 3 | C22: =IF(ISERROR(INDEX(P!$A$16:$G$992,MATCH(NGP!$A22,P!$A$16:$A$992,0),COLUMN())),"X",INDEX(P!$A$16:$G$992,MATCH(NGP!$A22,P!$A$16:$A$992,0),COLUMN())) -> 2 | D22: =IF(ISERROR(INDEX(P!$A$16:$G$992,MATCH(NGP!$A22,P!$A$16:$A$992,0),COLUMN())),"X",INDEX(P!$A$16:$G$992,MATCH(NGP!$A22,P!$A$16:$A$992,0),COLUMN())) -> 4 | E22: =IF(ISERROR(INDEX(P!$A$16:$G$992,MATCH(NGP!$A22,P!$A$16:$A$992,0),COLUMN())),"X",INDEX(P!$A$16:$G$992,MATCH(NGP!$A22,P!$A$16:$A$992,0),COLUMN())) -> 9 | F22: =IF(ISERROR(INDEX(P!$A$16:$G$992,MATCH(NGP!$A22,P!$A$16:$A$992,0),COLUMN())),"X",INDEX(P!$A$16:$G$992,MATCH(NGP!$A22,P!$A$16:$A$992,0),COLUMN())) -> 8 | G22: =IF(ISERROR(INDEX(P!$A$16:$G$992,MATCH(NGP!$A22,P!$A$16:$A$992,0),COLUMN())),"X",INDEX(P!$A$16:$G$992,MATCH(NGP!$A22,P!$A$16:$A$992,0),COLUMN())) -> P | H22: 1 | I22: 3 | J22: 0 | K22: 18 | L22: 5 | M22: 9 | N22: 17 | O22: 12 | P22: 3 | Q22: 18 | R22: 18 | S22: 14 | T22: 17 | U22: 1 | V22: 7 | W22: 6 | X22: 7 | Y22: 6 | Z22: 1 | AA22: 0 | AB22: 18 | AP22: 1 | AQ22: 1 | AR22: 1 | AS22: 1 | AT22: 1 | AU22: 1 | AV22: 1 | AW22: 13 | AX22: 18
A23: =IF(P!$A34>0,P!$A34,"") -> 2013-03-19 | B23: =IF(ISERROR(INDEX(P!$A$16:$G$992,MATCH(NGP!$A23,P!$A$16:$A$992,0),COLUMN())),"X",INDEX(P!$A$16:$G$992,MATCH(NGP!$A23,P!$A$16:$A$992,0),COLUMN())) -> 13 | C23: =IF(ISERROR(INDEX(P!$A$16:$G$992,MATCH(NGP!$A23,P!$A$16:$A$992,0),COLUMN())),"X",INDEX(P!$A$16:$G$992,MATCH(NGP!$A23,P!$A$16:$A$992,0),COLUMN())) -> 9 | D23: =IF(ISERROR(INDEX(P!$A$16:$G$992,MATCH(NGP!$A23,P!$A$16:$A$992,0),COLUMN())),"X",INDEX(P!$A$16:$G$992,MATCH(NGP!$A23,P!$A$16:$A$992,0),COLUMN())) -> 12 | E23: =IF(ISERROR(INDEX(P!$A$16:$G$992,MATCH(NGP!$A23,P!$A$16:$A$992,0),COLUMN())),"X",INDEX(P!$A$16:$G$992,MATCH(NGP!$A23,P!$A$16:$A$992,0),COLUMN())) -> 1 | F23: =IF(ISERROR(INDEX(P!$A$16:$G$992,MATCH(NGP!$A23,P!$A$16:$A$992,0),COLUMN())),"X",INDEX(P!$A$16:$G$992,MATCH(NGP!$A23,P!$A$16:$A$992,0),COLUMN())) -> 15 | G23: =IF(ISERROR(INDEX(P!$A$16:$G$992,MATCH(NGP!$A23,P!$A$16:$A$992,0),COLUMN())),"X",INDEX(P!$A$16:$G$992,MATCH(NGP!$A23,P!$A$16:$A$992,0),COLUMN())) -> P | H23: 2 | I23: 4 | J23: 1 | K23: 19 | L23: 6 | M23: 10 | N23: 18 | O23: 13 | P23: 4 | Q23: 19 | R23: 19 | S23: 15 | T23: 0 | U23: 2 | V23: 8 | W23: 7 | X23: 7 | Y23: 6 | Z23: 1 | AA23: 0 | AB23: 19 | AS23: 1 | AT23: 1 | AU23: 1 | AV23: 1 | AW23: 16 | AX23: 19
A24: =IF(P!$A35>0,P!$A35,"") -> 2013-03-21 | B24: =IF(ISERROR(INDEX(P!$A$16:$G$992,MATCH(NGP!$A24,P!$A$16:$A$992,0),COLUMN())),"X",INDEX(P!$A$16:$G$992,MATCH(NGP!$A24,P!$A$16:$A$992,0),COLUMN())) -> 1 | C24: =IF(ISERROR(INDEX(P!$A$16:$G$992,MATCH(NGP!$A24,P!$A$16:$A$992,0),COLUMN())),"X",INDEX(P!$A$16:$G$992,MATCH(NGP!$A24,P!$A$16:$A$992,0),COLUMN())) -> 7 | D24: =IF(ISERROR(INDEX(P!$A$16:$G$992,MATCH(NGP!$A24,P!$A$16:$A$992,0),COLUMN())),"X",INDEX(P!$A$16:$G$992,MATCH(NGP!$A24,P!$A$16:$A$992,0),COLUMN())) -> 14 | E24: =IF(ISERROR(INDEX(P!$A$16:$G$992,MATCH(NGP!$A24,P!$A$16:$A$992,0),COLUMN())),"X",INDEX(P!$A$16:$G$992,MATCH(NGP!$A24,P!$A$16:$A$992,0),COLUMN())) -> 16 | F24: =IF(ISERROR(INDEX(P!$A$16:$G$992,MATCH(NGP!$A24,P!$A$16:$A$992,0),COLUMN())),"X",INDEX(P!$A$16:$G$992,MATCH(NGP!$A24,P!$A$16:$A$992,0),COLUMN())) -> 12 | G24: =IF(ISERROR(INDEX(P!$A$16:$G$992,MATCH(NGP!$A24,P!$A$16:$A$992,0),COLUMN())),"X",INDEX(P!$A$16:$G$992,MATCH(NGP!$A24,P!$A$16:$A$992,0),COLUMN())) -> P | H24: 0 | I24: 5 | J24: 2 | K24: 20 | L24: 7 | M24: 11 | N24: 19 | O24: 14 | P24: 5 | Q24: 20 | R24: 20 | S24: 16 | T24: 1 | U24: 3 | V24: 9 | W24: 8 | X24: 7 | Y24: 6 | Z24: 1 | AA24: 0 | AB24: 20 | AS24: 1 | AT24: 1 | AU24: 1 | AV24: 1 | AW24: 16 | AX24: 20
A25: =IF(P!$A36>0,P!$A36,"") -> 2013-03-25 | B25: =IF(ISERROR(INDEX(P!$A$16:$G$992,MATCH(NGP!$A25,P!$A$16:$A$992,0),COLUMN())),"X",INDEX(P!$A$16:$G$992,MATCH(NGP!$A25,P!$A$16:$A$992,0),COLUMN())) -> 4 | C25: =IF(ISERROR(INDEX(P!$A$16:$G$992,MATCH(NGP!$A25,P!$A$16:$A$992,0),COLUMN())),"X",INDEX(P!$A$16:$G$992,MATCH(NGP!$A25,P!$A$16:$A$992,0),COLUMN())) -> 9 | D25: =IF(ISERROR(INDEX(P!$A$16:$G$992,MATCH(NGP!$A25,P!$A$16:$A$992,0),COLUMN())),"X",INDEX(P!$A$16:$G$992,MATCH(NGP!$A25,P!$A$16:$A$992,0),COLUMN())) -> 3 | E25: =IF(ISERROR(INDEX(P!$A$16:$G$992,MATCH(NGP!$A25,P!$A$16:$A$992,0),COLUMN())),"X",INDEX(P!$A$16:$G$992,MATCH(NGP!$A25,P!$A$16:$A$992,0),COLUMN())) -> 2 | F25: =IF(ISERROR(INDEX(P!$A$16:$G$992,MATCH(NGP!$A25,P!$A$16:$A$992,0),COLUMN())),"X",INDEX(P!$A$16:$G$992,MATCH(NGP!$A25,P!$A$16:$A$992,0),COLUMN())) -> 5 | G25: =IF(ISERROR(INDEX(P!$A$16:$G$992,MATCH(NGP!$A25,P!$A$16:$A$992,0),COLUMN())),"X",INDEX(P!$A$16:$G$992,MATCH(NGP!$A25,P!$A$16:$A$992,0),COLUMN())) -> P | H25: 1 | I25: 6 | J25: 3 | K25: 0 | L25: 8 | M25: 12 | N25: 20 | O25: 15 | P25: 6 | Q25: 21 | R25: 21 | S25: 17 | T25: 2 | U25: 4 | V25: 10 | W25: 9 | X25: 7 | Y25: 6 | Z25: 1 | AA25: 0 | AB25: 21 | AS25: 1 | AT25: 1 | AU25: 1 | AV25: 1 | AW25: 16 | AX25: 21
A26: =IF(P!$A37>0,P!$A37,"") -> 2013-03-26 | B26: =IF(ISERROR(INDEX(P!$A$16:$G$992,MATCH(NGP!$A26,P!$A$16:$A$992,0),COLUMN())),"X",INDEX(P!$A$16:$G$992,MATCH(NGP!$A26,P!$A$16:$A$992,0),COLUMN())) -> 2 | C26: =IF(ISERROR(INDEX(P!$A$16:$G$992,MATCH(NGP!$A26,P!$A$16:$A$992,0),COLUMN())),"X",INDEX(P!$A$16:$G$992,MATCH(NGP!$A26,P!$A$16:$A$992,0),COLUMN())) -> 5 | D26: =IF(ISERROR(INDEX(P!$A$16:$G$992,MATCH(NGP!$A26,P!$A$16:$A$992,0),COLUMN())),"X",INDEX(P!$A$16:$G$992,MATCH(NGP!$A26,P!$A$16:$A$992,0),COLUMN())) -> 8 | E26: =IF(ISERROR(INDEX(P!$A$16:$G$992,MATCH(NGP!$A26,P!$A$16:$A$992,0),COLUMN())),"X",INDEX(P!$A$16:$G$992,MATCH(NGP!$A26,P!$A$16:$A$992,0),COLUMN())) -> 11 | F26: =IF(ISERROR(INDEX(P!$A$16:$G$992,MATCH(NGP!$A26,P!$A$16:$A$992,0),COLUMN())),"X",INDEX(P!$A$16:$G$992,MATCH(NGP!$A26,P!$A$16:$A$992,0),COLUMN())) -> 10 | G26: =IF(ISERROR(INDEX(P!$A$16:$G$992,MATCH(NGP!$A26,P!$A$16:$A$992,0),COLUMN())),"X",INDEX(P!$A$16:$G$992,MATCH(NGP!$A26,P!$A$16:$A$992,0),COLUMN())) -> P | H26: 2 | I26: 0 | J26: 4 | K26: 1 | L26: 9 | M26: 13 | N26: 21 | O26: 16 | P26: 7 | Q26: 22 | R26: 22 | S26: 18 | T26: 3 | U26: 5 | V26: 11 | W26: 10 | X26: 7 | Y26: 6 | Z26: 1 | AA26: 0 | AB26: 22 | AS26: 1 | AT26: 1 | AU26: 1 | AV26: 1 | AW26: 16 | AX26: 22
A27: =IF(P!$A38>0,P!$A38,"") -> 2013-03-28 | B27: =IF(ISERROR(INDEX(P!$A$16:$G$992,MATCH(NGP!$A27,P!$A$16:$A$992,0),COLUMN())),"X",INDEX(P!$A$16:$G$992,MATCH(NGP!$A27,P!$A$16:$A$992,0),COLUMN())) -> 6 | C27: =IF(ISERROR(INDEX(P!$A$16:$G$992,MATCH(NGP!$A27,P!$A$16:$A$992,0),COLUMN())),"X",INDEX(P!$A$16:$G$992,MATCH(NGP!$A27,P!$A$16:$A$992,0),COLUMN())) -> 3 | D27: =IF(ISERROR(INDEX(P!$A$16:$G$992,MATCH(NGP!$A27,P!$A$16:$A$992,0),COLUMN())),"X",INDEX(P!$A$16:$G$992,MATCH(NGP!$A27,P!$A$16:$A$992,0),COLUMN())) -> 12 | E27: =IF(ISERROR(INDEX(P!$A$16:$G$992,MATCH(NGP!$A27,P!$A$16:$A$992,0),COLUMN())),"X",INDEX(P!$A$16:$G$992,MATCH(NGP!$A27,P!$A$16:$A$992,0),COLUMN())) -> 4 | F27: =IF(ISERROR(INDEX(P!$A$16:$G$992,MATCH(NGP!$A27,P!$A$16:$A$992,0),COLUMN())),"X",INDEX(P!$A$16:$G$992,MATCH(NGP!$A27,P!$A$16:$A$992,0),COLUMN())) -> 10 | G27: =IF(ISERROR(INDEX(P!$A$16:$G$992,MATCH(NGP!$A27,P!$A$16:$A$992,0),COLUMN())),"X",INDEX(P!$A$16:$G$992,MATCH(NGP!$A27,P!$A$16:$A$992,0),COLUMN())) -> P | H27: 3 | I27: 1 | J27: 5 | K27: 2 | L27: 10 | M27: 0 | N27: 22 | O27: 17 | P27: 8 | Q27: 23 | R27: 23 | S27: 19 | T27: 4 | U27: 6 | V27: 12 | W27: 11 | X27: 7 | Y27: 6 | Z27: 1 | AA27: 0 | AB27: 23 | AS27: 1 | AT27: 1 | AU27: 1 | AV27: 1 | AW27: 16 | AX27: 23
A28: =IF(P!$A39>0,P!$A39,"") -> 2013-03-31 | B28: =IF(ISERROR(INDEX(P!$A$16:$G$992,MATCH(NGP!$A28,P!$A$16:$A$992,0),COLUMN())),"X",INDEX(P!$A$16:$G$992,MATCH(NGP!$A28,P!$A$16:$A$992,0),COLUMN())) -> 6 | C28: =IF(ISERROR(INDEX(P!$A$16:$G$992,MATCH(NGP!$A28,P!$A$16:$A$992,0),COLUMN())),"X",INDEX(P!$A$16:$G$992,MATCH(NGP!$A28,P!$A$16:$A$992,0),COLUMN())) -> 8 | D28: =IF(ISERROR(INDEX(P!$A$16:$G$992,MATCH(NGP!$A28,P!$A$16:$A$992,0),COLUMN())),"X",INDEX(P!$A$16:$G$992,MATCH(NGP!$A28,P!$A$16:$A$992,0),COLUMN())) -> 2 | E28: =IF(ISERROR(INDEX(P!$A$16:$G$992,MATCH(NGP!$A28,P!$A$16:$A$992,0),COLUMN())),"X",INDEX(P!$A$16:$G$992,MATCH(NGP!$A28,P!$A$16:$A$992,0),COLUMN())) -> 1 | F28: =IF(ISERROR(INDEX(P!$A$16:$G$992,MATCH(NGP!$A28,P!$A$16:$A$992,0),COLUMN())),"X",INDEX(P!$A$16:$G$992,MATCH(NGP!$A28,P!$A$16:$A$992,0),COLUMN())) -> 11 | G28: =IF(ISERROR(INDEX(P!$A$16:$G$992,MATCH(NGP!$A28,P!$A$16:$A$992,0),COLUMN())),"X",INDEX(P!$A$16:$G$992,MATCH(NGP!$A28,P!$A$16:$A$992,0),COLUMN())) -> P | H28: 4 | I28: 2 | J28: 6 | K28: 3 | L28: 11 | M28: 0 | N28: 23 | O28: 18 | P28: 9 | Q28: 24 | R28: 24 | S28: 20 | T28: 5 | U28: 7 | V28: 13 | W28: 12 | X28: 7 | Y28: 6 | Z28: 1 | AA28: 0 | AB28: 24 | AS28: 1 | AT28: 1 | AU28: 1 | AV28: 1 | AW28: 16 | AX28: 24
A29: =IF(P!$A40>0,P!$A40,"") -> 2013-04-01 | B29: =IF(ISERROR(INDEX(P!$A$16:$G$992,MATCH(NGP!$A29,P!$A$16:$A$992,0),COLUMN())),"X",INDEX(P!$A$16:$G$992,MATCH(NGP!$A29,P!$A$16:$A$992,0),COLUMN())) -> 4 | C29: =IF(ISERROR(INDEX(P!$A$16:$G$992,MATCH(NGP!$A29,P!$A$16:$A$992,0),COLUMN())),"X",INDEX(P!$A$16:$G$992,MATCH(NGP!$A29,P!$A$16:$A$992,0),COLUMN())) -> 6 | D29: =IF(ISERROR(INDEX(P!$A$16:$G$992,MATCH(NGP!$A29,P!$A$16:$A$992,0),COLUMN())),"X",INDEX(P!$A$16:$G$992,MATCH(NGP!$A29,P!$A$16:$A$992,0),COLUMN())) -> 7 | E29: =IF(ISERROR(INDEX(P!$A$16:$G$992,MATCH(NGP!$A29,P!$A$16:$A$992,0),COLUMN())),"X",INDEX(P!$A$16:$G$992,MATCH(NGP!$A29,P!$A$16:$A$992,0),COLUMN())) -> 2 | F29: =IF(ISERROR(INDEX(P!$A$16:$G$992,MATCH(NGP!$A29,P!$A$16:$A$992,0),COLUMN())),"X",INDEX(P!$A$16:$G$992,MATCH(NGP!$A29,P!$A$16:$A$992,0),COLUMN())) -> 8 | G29: =IF(ISERROR(INDEX(P!$A$16:$G$992,MATCH(NGP!$A29,P!$A$16:$A$992,0),COLUMN())),"X",INDEX(P!$A$16:$G$992,MATCH(NGP!$A29,P!$A$16:$A$992,0),COLUMN())) -> P | H29: 5 | I29: 3 | J29: 7 | K29: 0 | L29: 12 | M29: 1 | N29: 24 | O29: 19 | P29: 9 | Q29: 25 | R29: 24 | S29: 21 | T29: 6 | U29: 8 | V29: 14 | W29: 13 | X29: 7 | Y29: 6 | Z29: 1 | AA29: 0 | AB29: 25 | AK29: 1 | AM29: 1 | AS29: 1 | AT29: 1 | AU29: 1 | AV29: 1 | AW29: 14 | AX29: 25 | AY29: 9 | AZ29: 10
A30: =IF(P!$A41>0,P!$A41,"") -> 2013-04-04 | B30: =IF(ISERROR(INDEX(P!$A$16:$G$992,MATCH(NGP!$A30,P!$A$16:$A$992,0),COLUMN())),"X",INDEX(P!$A$16:$G$992,MATCH(NGP!$A30,P!$A$16:$A$992,0),COLUMN())) -> 6 | C30: =IF(ISERROR(INDEX(P!$A$16:$G$992,MATCH(NGP!$A30,P!$A$16:$A$992,0),COLUMN())),"X",INDEX(P!$A$16:$G$992,MATCH(NGP!$A30,P!$A$16:$A$992,0),COLUMN())) -> 5 | D30: =IF(ISERROR(INDEX(P!$A$16:$G$992,MATCH(NGP!$A30,P!$A$16:$A$992,0),COLUMN())),"X",INDEX(P!$A$16:$G$992,MATCH(NGP!$A30,P!$A$16:$A$992,0),COLUMN())) -> 16 | E30: =IF(ISERROR(INDEX(P!$A$16:$G$992,MATCH(NGP!$A30,P!$A$16:$A$992,0),COLUMN())),"X",INDEX(P!$A$16:$G$992,MATCH(NGP!$A30,P!$A$16:$A$992,0),COLUMN())) -> 4 | F30: =IF(ISERROR(INDEX(P!$A$16:$G$992,MATCH(NGP!$A30,P!$A$16:$A$992,0),COLUMN())),"X",INDEX(P!$A$16:$G$992,MATCH(NGP!$A30,P!$A$16:$A$992,0),COLUMN())) -> 7 | G30: =IF(ISERROR(INDEX(P!$A$16:$G$992,MATCH(NGP!$A30,P!$A$16:$A$992,0),COLUMN())),"X",INDEX(P!$A$16:$G$992,MATCH(NGP!$A30,P!$A$16:$A$992,0),COLUMN())) -> P | H30: 6 | I30: 4 | J30: 8 | K30: 1 | L30: 13 | M30: 0 | N30: 25 | O30: 20 | P30: 10 | Q30: 26 | R30: 25 | S30: 22 | T30: 7 | U30: 9 | V30: 15 | W30: 14 | X30: 8 | Y30: 6 | Z30: 1 | AA30: 0 | AB30: 26 | AT30: 1 | AU30: 1 | AV30: 1 | AW30: 17 | AX30: 26
A31: =IF(P!$A42>0,P!$A42,"") -> 2013-04-07 | B31: =IF(ISERROR(INDEX(P!$A$16:$G$992,MATCH(NGP!$A31,P!$A$16:$A$992,0),COLUMN())),"X",INDEX(P!$A$16:$G$992,MATCH(NGP!$A31,P!$A$16:$A$992,0),COLUMN())) -> 13 | C31: =IF(ISERROR(INDEX(P!$A$16:$G$992,MATCH(NGP!$A31,P!$A$16:$A$992,0),COLUMN())),"X",INDEX(P!$A$16:$G$992,MATCH(NGP!$A31,P!$A$16:$A$992,0),COLUMN())) -> 14 | D31: =IF(ISERROR(INDEX(P!$A$16:$G$992,MATCH(NGP!$A31,P!$A$16:$A$992,0),COLUMN())),"X",INDEX(P!$A$16:$G$992,MATCH(NGP!$A31,P!$A$16:$A$992,0),COLUMN())) -> 10 | E31: =IF(ISERROR(INDEX(P!$A$16:$G$992,MATCH(NGP!$A31,P!$A$16:$A$992,0),COLUMN())),"X",INDEX(P!$A$16:$G$992,MATCH(NGP!$A31,P!$A$16:$A$992,0),COLUMN())) -> 5 | F31: =IF(ISERROR(INDEX(P!$A$16:$G$992,MATCH(NGP!$A31,P!$A$16:$A$992,0),COLUMN())),"X",INDEX(P!$A$16:$G$992,MATCH(NGP!$A31,P!$A$16:$A$992,0),COLUMN())) -> 3 | G31: =IF(ISERROR(INDEX(P!$A$16:$G$992,MATCH(NGP!$A31,P!$A$16:$A$992,0),COLUMN())),"X",INDEX(P!$A$16:$G$992,MATCH(NGP!$A31,P!$A$16:$A$992,0),COLUMN())) -> P | H31: 7 | I31: 5 | J31: 9 | K31: 2 | L31: 14 | M31: 1 | N31: 26 | O31: 21 | P31: 11 | Q31: 27 | R31: 26 | S31: 23 | T31: 0 | U31: 10 | V31: 16 | W31: 15 | X31: 8 | Y31: 6 | Z31: 1 | AA31: 0 | AB31: 27 | AS31: 1 | AT31: 1 | AU31: 1 | AV31: 1 | AW31: 16 | AX31: 27
A32: =IF(P!$A43>0,P!$A43,"") -> 2013-04-09 | B32: =IF(ISERROR(INDEX(P!$A$16:$G$992,MATCH(NGP!$A32,P!$A$16:$A$992,0),COLUMN())),"X",INDEX(P!$A$16:$G$992,MATCH(NGP!$A32,P!$A$16:$A$992,0),COLUMN())) -> 7 | C32: =IF(ISERROR(INDEX(P!$A$16:$G$992,MATCH(NGP!$A32,P!$A$16:$A$992,0),COLUMN())),"X",INDEX(P!$A$16:$G$992,MATCH(NGP!$A32,P!$A$16:$A$992,0),COLUMN())) -> 6 | D32: =IF(ISERROR(INDEX(P!$A$16:$G$992,MATCH(NGP!$A32,P!$A$16:$A$992,0),COLUMN())),"X",INDEX(P!$A$16:$G$992,MATCH(NGP!$A32,P!$A$16:$A$992,0),COLUMN())) -> 16 | E32: =IF(ISERROR(INDEX(P!$A$16:$G$992,MATCH(NGP!$A32,P!$A$16:$A$992,0),COLUMN())),"X",INDEX(P!$A$16:$G$992,MATCH(NGP!$A32,P!$A$16:$A$992,0),COLUMN())) -> 12 | F32: =IF(ISERROR(INDEX(P!$A$16:$G$992,MATCH(NGP!$A32,P!$A$16:$A$992,0),COLUMN())),"X",INDEX(P!$A$16:$G$992,MATCH(NGP!$A32,P!$A$16:$A$992,0),COLUMN())) -> 15 | G32: =IF(ISERROR(INDEX(P!$A$16:$G$992,MATCH(NGP!$A32,P!$A$16:$A$992,0),COLUMN())),"X",INDEX(P!$A$16:$G$992,MATCH(NGP!$A32,P!$A$16:$A$992,0),COLUMN())) -> P | H32: 8 | I32: 6 | J32: 10 | K32: 3 | L32: 15 | M32: 2 | N32: 0 | O32: 22 | P32: 12 | Q32: 28 | R32: 27 | S32: 24 | T32: 1 | U32: 11 | V32: 17 | W32: 16 | X32: 8 | Y32: 6 | Z32: 1 | AA32: 0 | AB32: 28 | AS32: 1 | AT32: 1 | AU32: 1 | AV32: 1 | AW32: 16 | AX32: 28
A33: =IF(P!$A44>0,P!$A44,"") -> 2013-04-11 | B33: =IF(ISERROR(INDEX(P!$A$16:$G$992,MATCH(NGP!$A33,P!$A$16:$A$992,0),COLUMN())),"X",INDEX(P!$A$16:$G$992,MATCH(NGP!$A33,P!$A$16:$A$992,0),COLUMN())) -> 15 | C33: =IF(ISERROR(INDEX(P!$A$16:$G$992,MATCH(NGP!$A33,P!$A$16:$A$992,0),COLUMN())),"X",INDEX(P!$A$16:$G$992,MATCH(NGP!$A33,P!$A$16:$A$992,0),COLUMN())) -> 5 | D33: =IF(ISERROR(INDEX(P!$A$16:$G$992,MATCH(NGP!$A33,P!$A$16:$A$992,0),COLUMN())),"X",INDEX(P!$A$16:$G$992,MATCH(NGP!$A33,P!$A$16:$A$992,0),COLUMN())) -> 6 | E33: =IF(ISERROR(INDEX(P!$A$16:$G$992,MATCH(NGP!$A33,P!$A$16:$A$992,0),COLUMN())),"X",INDEX(P!$A$16:$G$992,MATCH(NGP!$A33,P!$A$16:$A$992,0),COLUMN())) -> 8 | F33: =IF(ISERROR(INDEX(P!$A$16:$G$992,MATCH(NGP!$A33,P!$A$16:$A$992,0),COLUMN())),"X",INDEX(P!$A$16:$G$992,MATCH(NGP!$A33,P!$A$16:$A$992,0),COLUMN())) -> 12 | G33: =IF(ISERROR(INDEX(P!$A$16:$G$992,MATCH(NGP!$A33,P!$A$16:$A$992,0),COLUMN())),"X",INDEX(P!$A$16:$G$992,MATCH(NGP!$A33,P!$A$16:$A$992,0),COLUMN())) -> P | H33: 9 | I33: 7 | J33: 11 | K33: 3 | L33: 16 | M33: 3 | N33: 1 | O33: 23 | P33: 13 | Q33: 29 | R33: 28 | S33: 25 | T33: 2 | U33: 12 | V33: 0 | W33: 17 | X33: =IF(COUNTIF($B33:$D33,"=X")<3,IF(LEN(SUBSTITUTE(SUBSTITUTE($B33,X$1,,1),,1))=0,0,X32+1-AS33),"") -> 8 | Y33: 6 | Z33: 1 | AA33: 0 | AB33: 29 | AF33: 1 | AS33: 1 | AT33: 1 | AU33: 1 | AV33: 1 | AW33: 15 | AX33: 29 | AY33: 4
A34: =IF(P!$A45>0,P!$A45,"") -> 2013-04-14 | B34: =IF(ISERROR(INDEX(P!$A$16:$G$992,MATCH(NGP!$A34,P!$A$16:$A$992,0),COLUMN())),"X",INDEX(P!$A$16:$G$992,MATCH(NGP!$A34,P!$A$16:$A$992,0),COLUMN())) -> 13 | C34: =IF(ISERROR(INDEX(P!$A$16:$G$992,MATCH(NGP!$A34,P!$A$16:$A$992,0),COLUMN())),"X",INDEX(P!$A$16:$G$992,MATCH(NGP!$A34,P!$A$16:$A$992,0),COLUMN())) -> 12 | D34: =IF(ISERROR(INDEX(P!$A$16:$G$992,MATCH(NGP!$A34,P!$A$16:$A$992,0),COLUMN())),"X",INDEX(P!$A$16:$G$992,MATCH(NGP!$A34,P!$A$16:$A$992,0),COLUMN())) -> 11 | E34: =IF(ISERROR(INDEX(P!$A$16:$G$992,MATCH(NGP!$A34,P!$A$16:$A$992,0),COLUMN())),"X",INDEX(P!$A$16:$G$992,MATCH(NGP!$A34,P!$A$16:$A$992,0),COLUMN())) -> 14 | F34: =IF(ISERROR(INDEX(P!$A$16:$G$992,MATCH(NGP!$A34,P!$A$16:$A$992,0),COLUMN())),"X",INDEX(P!$A$16:$G$992,MATCH(NGP!$A34,P!$A$16:$A$992,0),COLUMN())) -> 3 | G34: =IF(ISERROR(INDEX(P!$A$16:$G$992,MATCH(NGP!$A34,P!$A$16:$A$992,0),COLUMN())),"X",INDEX(P!$A$16:$G$992,MATCH(NGP!$A34,P!$A$16:$A$992,0),COLUMN())) -> P | H34: =IF(COUNTIF($B34:$D34,"=X")<3,IF(LEN(SUBSTITUTE(SUBSTITUTE($B34,H$1,,1),,1))=0,0,H33+1-AC34),"") -> 10 | I34: 8 | J34: 12 | K34: 4 | L34: 17 | M34: 4 | N34: 2 | O34: 24 | P34: 14 | Q34: 30 | R34: 29 | S34: 26 | T34: 0 | U34: 13 | V34: 1 | W34: 18 | X34: 8 | Y34: 6 | Z34: 1 | AA34: 0 | AB34: 30 | AS34: 1 | AT34: 1 | AU34: 1 | AV34: 1 | AW34: 16 | AX34: 30
A35: =IF(P!$A46>0,P!$A46,"") -> 2013-04-15 | B35: =IF(ISERROR(INDEX(P!$A$16:$G$992,MATCH(NGP!$A35,P!$A$16:$A$992,0),COLUMN())),"X",INDEX(P!$A$16:$G$992,MATCH(NGP!$A35,P!$A$16:$A$992,0),COLUMN())) -> 9 | C35: =IF(ISERROR(INDEX(P!$A$16:$G$992,MATCH(NGP!$A35,P!$A$16:$A$992,0),COLUMN())),"X",INDEX(P!$A$16:$G$992,MATCH(NGP!$A35,P!$A$16:$A$992,0),COLUMN())) -> 11 | D35: =IF(ISERROR(INDEX(P!$A$16:$G$992,MATCH(NGP!$A35,P!$A$16:$A$992,0),COLUMN())),"X",INDEX(P!$A$16:$G$992,MATCH(NGP!$A35,P!$A$16:$A$992,0),COLUMN())) -> 10 | E35: =IF(ISERROR(INDEX(P!$A$16:$G$992,MATCH(NGP!$A35,P!$A$16:$A$992,0),COLUMN())),"X",INDEX(P!$A$16:$G$992,MATCH(NGP!$A35,P!$A$16:$A$992,0),COLUMN())) -> 12 | F35: =IF(ISERROR(INDEX(P!$A$16:$G$992,MATCH(NGP!$A35,P!$A$16:$A$992,0),COLUMN())),"X",INDEX(P!$A$16:$G$992,MATCH(NGP!$A35,P!$A$16:$A$992,0),COLUMN())) -> 13 | G35: =IF(ISERROR(INDEX(P!$A$16:$G$992,MATCH(NGP!$A35,P!$A$16:$A$992,0),COLUMN())),"X",INDEX(P!$A$16:$G$992,MATCH(NGP!$A35,P!$A$16:$A$992,0),COLUMN())) -> P | H35: 11 | I35: 9 | J35: 13 | K35: 5 | L35: 18 | M35: 5 | N35: 3 | O35: 25 | P35: 0 | Q35: 31 | R35: 30 | S35: 27 | T35: 1 | U35: 14 | V35: 2 | W35: 19 | X35: 8 | Y35: 6 | Z35: 1 | AA35: 0 | AB35: 31 | AS35: 1 | AT35: 1 | AU35: 1 | AV35: 1 | AW35: 16 | AX35: 31
A36: =IF(P!$A47>0,P!$A47,"") -> 2013-04-16 | B36: =IF(ISERROR(INDEX(P!$A$16:$G$992,MATCH(NGP!$A36,P!$A$16:$A$992,0),COLUMN())),"X",INDEX(P!$A$16:$G$992,MATCH(NGP!$A36,P!$A$16:$A$992,0),COLUMN())) -> 10 | C36: =IF(ISERROR(INDEX(P!$A$16:$G$992,MATCH(NGP!$A36,P!$A$16:$A$992,0),COLUMN())),"X",INDEX(P!$A$16:$G$992,MATCH(NGP!$A36,P!$A$16:$A$992,0),COLUMN())) -> 15 | D36: =IF(ISERROR(INDEX(P!$A$16:$G$992,MATCH(NGP!$A36,P!$A$16:$A$992,0),COLUMN())),"X",INDEX(P!$A$16:$G$992,MATCH(NGP!$A36,P!$A$16:$A$992,0),COLUMN())) -> 6 | E36: =IF(ISERROR(INDEX(P!$A$16:$G$992,MATCH(NGP!$A36,P!$A$16:$A$992,0),COLUMN())),"X",INDEX(P!$A$16:$G$992,MATCH(NGP!$A36,P!$A$16:$A$992,0),COLUMN())) -> 14 | F36: =IF(ISERROR(INDEX(P!$A$16:$G$992,MATCH(NGP!$A36,P!$A$16:$A$992,0),COLUMN())),"X",INDEX(P!$A$16:$G$992,MATCH(NGP!$A36,P!$A$16:$A$992,0),COLUMN())) -> 1 | G36: =IF(ISERROR(INDEX(P!$A$16:$G$992,MATCH(NGP!$A36,P!$A$16:$A$992,0),COLUMN())),"X",INDEX(P!$A$16:$G$992,MATCH(NGP!$A36,P!$A$16:$A$992,0),COLUMN())) -> P | H36: 12 | I36: 10 | J36: 14 | K36: 6 | L36: 19 | M36: 6 | N36: 4 | O36: 26 | P36: 1 | Q36: 0 | R36: 31 | S36: 28 | T36: 2 | U36: 15 | V36: 3 | W36: 20 | X36: 8 | Y36: 6 | Z36: 1 | AA36: 0 | AB36: 32 | AS36: 1 | AT36: 1 | AU36: 1 | AV36: 1 | AW36: 16 | AX36: 32
A37: =IF(P!$A48>0,P!$A48,"") -> 2013-04-18 | B37: =IF(ISERROR(INDEX(P!$A$16:$G$992,MATCH(NGP!$A37,P!$A$16:$A$992,0),COLUMN())),"X",INDEX(P!$A$16:$G$992,MATCH(NGP!$A37,P!$A$16:$A$992,0),COLUMN())) -> 2 | C37: =IF(ISERROR(INDEX(P!$A$16:$G$992,MATCH(NGP!$A37,P!$A$16:$A$992,0),COLUMN())),"X",INDEX(P!$A$16:$G$992,MATCH(NGP!$A37,P!$A$16:$A$992,0),COLUMN())) -> 1 | D37: =IF(ISERROR(INDEX(P!$A$16:$G$992,MATCH(NGP!$A37,P!$A$16:$A$992,0),COLUMN())),"X",INDEX(P!$A$16:$G$992,MATCH(NGP!$A37,P!$A$16:$A$992,0),COLUMN())) -> 7 | E37: =IF(ISERROR(INDEX(P!$A$16:$G$992,MATCH(NGP!$A37,P!$A$16:$A$992,0),COLUMN())),"X",INDEX(P!$A$16:$G$992,MATCH(NGP!$A37,P!$A$16:$A$992,0),COLUMN())) -> 3 | F37: =IF(ISERROR(INDEX(P!$A$16:$G$992,MATCH(NGP!$A37,P!$A$16:$A$992,0),COLUMN())),"X",INDEX(P!$A$16:$G$992,MATCH(NGP!$A37,P!$A$16:$A$992,0),COLUMN())) -> 5 | G37: =IF(ISERROR(INDEX(P!$A$16:$G$992,MATCH(NGP!$A37,P!$A$16:$A$992,0),COLUMN())),"X",INDEX(P!$A$16:$G$992,MATCH(NGP!$A37,P!$A$16:$A$992,0),COLUMN())) -> P | H37: 13 | I37: 0 | J37: 15 | K37: 7 | L37: 20 | M37: 7 | N37: 5 | O37: 27 | P37: 2 | Q37: 1 | R37: 32 | S37: 29 | T37: 3 | U37: 16 | V37: 4 | W37: 21 | X37: 9 | Y37: 7 | Z37: 1 | AA37: 0 | AB37: 33 | AU37: 1 | AV37: 1 | AW37: 18 | AX37: 33
A38: =IF(P!$A49>0,P!$A49,"") -> 2013-04-22 | B38: =IF(ISERROR(INDEX(P!$A$16:$G$992,MATCH(NGP!$A38,P!$A$16:$A$992,0),COLUMN())),"X",INDEX(P!$A$16:$G$992,MATCH(NGP!$A38,P!$A$16:$A$992,0),COLUMN())) -> 7 | C38: =IF(ISERROR(INDEX(P!$A$16:$G$992,MATCH(NGP!$A38,P!$A$16:$A$992,0),COLUMN())),"X",INDEX(P!$A$16:$G$992,MATCH(NGP!$A38,P!$A$16:$A$992,0),COLUMN())) -> 6 | D38: =IF(ISERROR(INDEX(P!$A$16:$G$992,MATCH(NGP!$A38,P!$A$16:$A$992,0),COLUMN())),"X",INDEX(P!$A$16:$G$992,MATCH(NGP!$A38,P!$A$16:$A$992,0),COLUMN())) -> 12 | E38: =IF(ISERROR(INDEX(P!$A$16:$G$992,MATCH(NGP!$A38,P!$A$16:$A$992,0),COLUMN())),"X",INDEX(P!$A$16:$G$992,MATCH(NGP!$A38,P!$A$16:$A$992,0),COLUMN())) -> 8 | F38: =IF(ISERROR(INDEX(P!$A$16:$G$992,MATCH(NGP!$A38,P!$A$16:$A$992,0),COLUMN())),"X",INDEX(P!$A$16:$G$992,MATCH(NGP!$A38,P!$A$16:$A$992,0),COLUMN())) -> 1 | G38: =IF(ISERROR(INDEX(P!$A$16:$G$992,MATCH(NGP!$A38,P!$A$16:$A$992,0),COLUMN())),"X",INDEX(P!$A$16:$G$992,MATCH(NGP!$A38,P!$A$16:$A$992,0),COLUMN())) -> P | H38: 14 | I38: 1 | J38: 16 | K38: 8 | L38: 21 | M38: 8 | N38: 0 | O38: 28 | P38: 3 | Q38: 2 | R38: 33 | S38: 30 | T38: 4 | U38: 17 | V38: 5 | W38: 22 | X38: 10 | Y38: 8 | Z38: 1 | AA38: 0 | AB38: 34 | AU38: 1 | AV38: 1 | AW38: 18 | AX38: 34
A39: =IF(P!$A50>0,P!$A50,"") -> 2013-04-23 | B39: =IF(ISERROR(INDEX(P!$A$16:$G$992,MATCH(NGP!$A39,P!$A$16:$A$992,0),COLUMN())),"X",INDEX(P!$A$16:$G$992,MATCH(NGP!$A39,P!$A$16:$A$992,0),COLUMN())) -> 4 | C39: =IF(ISERROR(INDEX(P!$A$16:$G$992,MATCH(NGP!$A39,P!$A$16:$A$992,0),COLUMN())),"X",INDEX(P!$A$16:$G$992,MATCH(NGP!$A39,P!$A$16:$A$992,0),COLUMN())) -> 12 | D39: =IF(ISERROR(INDEX(P!$A$16:$G$992,MATCH(NGP!$A39,P!$A$16:$A$992,0),COLUMN())),"X",INDEX(P!$A$16:$G$992,MATCH(NGP!$A39,P!$A$16:$A$992,0),COLUMN())) -> 1 | E39: =IF(ISERROR(INDEX(P!$A$16:$G$992,MATCH(NGP!$A39,P!$A$16:$A$992,0),COLUMN())),"X",INDEX(P!$A$16:$G$992,MATCH(NGP!$A39,P!$A$16:$A$992,0),COLUMN())) -> 10 | F39: =IF(ISERROR(INDEX(P!$A$16:$G$992,MATCH(NGP!$A39,P!$A$16:$A$992,0),COLUMN())),"X",INDEX(P!$A$16:$G$992,MATCH(NGP!$A39,P!$A$16:$A$992,0),COLUMN())) -> 7 | G39: =IF(ISERROR(INDEX(P!$A$16:$G$992,MATCH(NGP!$A39,P!$A$16:$A$992,0),COLUMN())),"X",INDEX(P!$A$16:$G$992,MATCH(NGP!$A39,P!$A$16:$A$992,0),COLUMN())) -> P | H39: 15 | I39: 2 | J39: 17 | K39: 0 | L39: 22 | M39: 9 | N39: 1 | O39: 29 | P39: 4 | Q39: 3 | R39: 34 | S39: 31 | T39: 5 | U39: 18 | V39: 6 | W39: 23 | X39: 10 | Y39: 8 | Z39: 1 | AA39: 0 | AB39: 35 | AS39: 1 | AT39: 1 | AU39: 1 | AV39: 1 | AW39: 16 | AX39: 35
A40: =IF(P!$A51>0,P!$A51,"") -> 2013-04-25 | B40: =IF(ISERROR(INDEX(P!$A$16:$G$992,MATCH(NGP!$A40,P!$A$16:$A$992,0),COLUMN())),"X",INDEX(P!$A$16:$G$992,MATCH(NGP!$A40,P!$A$16:$A$992,0),COLUMN())) -> 14 | C40: =IF(ISERROR(INDEX(P!$A$16:$G$992,MATCH(NGP!$A40,P!$A$16:$A$992,0),COLUMN())),"X",INDEX(P!$A$16:$G$992,MATCH(NGP!$A40,P!$A$16:$A$992,0),COLUMN())) -> 13 | D40: =IF(ISERROR(INDEX(P!$A$16:$G$992,MATCH(NGP!$A40,P!$A$16:$A$992,0),COLUMN())),"X",INDEX(P!$A$16:$G$992,MATCH(NGP!$A40,P!$A$16:$A$992,0),COLUMN())) -> 12 | E40: =IF(ISERROR(INDEX(P!$A$16:$G$992,MATCH(NGP!$A40,P!$A$16:$A$992,0),COLUMN())),"X",INDEX(P!$A$16:$G$992,MATCH(NGP!$A40,P!$A$16:$A$992,0),COLUMN())) -> 6 | F40: =IF(ISERROR(INDEX(P!$A$16:$G$992,MATCH(NGP!$A40,P!$A$16:$A$992,0),COLUMN())),"X",INDEX(P!$A$16:$G$992,MATCH(NGP!$A40,P!$A$16:$A$992,0),COLUMN())) -> 4 | G40: =IF(ISERROR(INDEX(P!$A$16:$G$992,MATCH(NGP!$A40,P!$A$16:$A$992,0),COLUMN())),"X",INDEX(P!$A$16:$G$992,MATCH(NGP!$A40,P!$A$16:$A$992,0),COLUMN())) -> P | H40: 16 | I40: 3 | J40: 17 | K40: 1 | L40: 22 | M40: 10 | N40: 2 | O40: 30 | P40: 5 | Q40: 4 | R40: 35 | S40: 32 | T40: 6 | U40: 0 | V40: 7 | W40: 24 | X40: 11 | Y40: 9 | Z40: 2 | AA40: 0 | AB40: 36 | AE40: 1 | AG40: 1 | AV40: 1 | AW40: 17 | AX40: 36 | AY40: 3 | AZ40: 5
A41: =IF(P!$A52>0,P!$A52,"") -> 2013-04-28 | B41: =IF(ISERROR(INDEX(P!$A$16:$G$992,MATCH(NGP!$A41,P!$A$16:$A$992,0),COLUMN())),"X",INDEX(P!$A$16:$G$992,MATCH(NGP!$A41,P!$A$16:$A$992,0),COLUMN())) -> 8 | C41: =IF(ISERROR(INDEX(P!$A$16:$G$992,MATCH(NGP!$A41,P!$A$16:$A$992,0),COLUMN())),"X",INDEX(P!$A$16:$G$992,MATCH(NGP!$A41,P!$A$16:$A$992,0),COLUMN())) -> 5 | D41: =IF(ISERROR(INDEX(P!$A$16:$G$992,MATCH(NGP!$A41,P!$A$16:$A$992,0),COLUMN())),"X",INDEX(P!$A$16:$G$992,MATCH(NGP!$A41,P!$A$16:$A$992,0),COLUMN())) -> 1 | E41: =IF(ISERROR(INDEX(P!$A$16:$G$992,MATCH(NGP!$A41,P!$A$16:$A$992,0),COLUMN())),"X",INDEX(P!$A$16:$G$992,MATCH(NGP!$A41,P!$A$16:$A$992,0),COLUMN())) -> 16 | F41: =IF(ISERROR(INDEX(P!$A$16:$G$992,MATCH(NGP!$A41,P!$A$16:$A$992,0),COLUMN())),"X",INDEX(P!$A$16:$G$992,MATCH(NGP!$A41,P!$A$16:$A$992,0),COLUMN())) -> 13 | G41: =IF(ISERROR(INDEX(P!$A$16:$G$992,MATCH(NGP!$A41,P!$A$16:$A$992,0),COLUMN())),"X",INDEX(P!$A$16:$G$992,MATCH(NGP!$A41,P!$A$16:$A$992,0),COLUMN())) -> P | H41: 17 | I41: 4 | J41: 18 | K41: 2 | L41: 23 | M41: 11 | N41: 3 | O41: 0 | P41: 6 | Q41: 4 | R41: 36 | S41: 33 | T41: 7 | U41: 1 | V41: 8 | W41: 25 | X41: 11 | Y41: 9 | Z41: 2 | AA41: 0 | AB41: 37 | AL41: 1 | AS41: 1 | AT41: 1 | AU41: 1 | AV41: 1 | AW41: 15 | AX41: 37 | AY41: 10
A42: =IF(P!$A53>0,P!$A53,"") -> 2013-04-29 | B42: =IF(ISERROR(INDEX(P!$A$16:$G$992,MATCH(NGP!$A42,P!$A$16:$A$992,0),COLUMN())),"X",INDEX(P!$A$16:$G$992,MATCH(NGP!$A42,P!$A$16:$A$992,0),COLUMN())) -> 12 | C42: =IF(ISERROR(INDEX(P!$A$16:$G$992,MATCH(NGP!$A42,P!$A$16:$A$992,0),COLUMN())),"X",INDEX(P!$A$16:$G$992,MATCH(NGP!$A42,P!$A$16:$A$992,0),COLUMN())) -> 9 | D42: =IF(ISERROR(INDEX(P!$A$16:$G$992,MATCH(NGP!$A42,P!$A$16:$A$992,0),COLUMN())),"X",INDEX(P!$A$16:$G$992,MATCH(NGP!$A42,P!$A$16:$A$992,0),COLUMN())) -> 13 | E42: =IF(ISERROR(INDEX(P!$A$16:$G$992,MATCH(NGP!$A42,P!$A$16:$A$992,0),COLUMN())),"X",INDEX(P!$A$16:$G$992,MATCH(NGP!$A42,P!$A$16:$A$992,0),COLUMN())) -> 6 | F42: =IF(ISERROR(INDEX(P!$A$16:$G$992,MATCH(NGP!$A42,P!$A$16:$A$992,0),COLUMN())),"X",INDEX(P!$A$16:$G$992,MATCH(NGP!$A42,P!$A$16:$A$992,0),COLUMN())) -> 3 | G42: =IF(ISERROR(INDEX(P!$A$16:$G$992,MATCH(NGP!$A42,P!$A$16:$A$992,0),COLUMN())),"X",INDEX(P!$A$16:$G$992,MATCH(NGP!$A42,P!$A$16:$A$992,0),COLUMN())) -> P | H42: 17 | I42: 5 | J42: 19 | K42: 3 | L42: 23 | M42: 12 | N42: 4 | O42: 0 | P42: 7 | Q42: 5 | R42: 37 | S42: 0 | T42: 8 | U42: 2 | V42: 9 | W42: 26 | X42: 12 | Y42: 10 | Z42: 2 | AA42: 0 | AB42: 38 | AC42: 1 | AG42: 1 | AJ42: 1 | AU42: 1 | AV42: 1 | AW42: 15 | AX42: 38 | AY42: 1 | AZ42: 4 | BA42: 6
A43: =IF(P!$A54>0,P!$A54,"") -> 2013-05-01 | B43: =IF(ISERROR(INDEX(P!$A$16:$G$992,MATCH(NGP!$A43,P!$A$16:$A$992,0),COLUMN())),"X",INDEX(P!$A$16:$G$992,MATCH(NGP!$A43,P!$A$16:$A$992,0),COLUMN())) -> 7 | C43: =IF(ISERROR(INDEX(P!$A$16:$G$992,MATCH(NGP!$A43,P!$A$16:$A$992,0),COLUMN())),"X",INDEX(P!$A$16:$G$992,MATCH(NGP!$A43,P!$A$16:$A$992,0),COLUMN())) -> 8 | D43: =IF(ISERROR(INDEX(P!$A$16:$G$992,MATCH(NGP!$A43,P!$A$16:$A$992,0),COLUMN())),"X",INDEX(P!$A$16:$G$992,MATCH(NGP!$A43,P!$A$16:$A$992,0),COLUMN())) -> 11 | E43: =IF(ISERROR(INDEX(P!$A$16:$G$992,MATCH(NGP!$A43,P!$A$16:$A$992,0),COLUMN())),"X",INDEX(P!$A$16:$G$992,MATCH(NGP!$A43,P!$A$16:$A$992,0),COLUMN())) -> 4 | F43: =IF(ISERROR(INDEX(P!$A$16:$G$992,MATCH(NGP!$A43,P!$A$16:$A$992,0),COLUMN())),"X",INDEX(P!$A$16:$G$992,MATCH(NGP!$A43,P!$A$16:$A$992,0),COLUMN())) -> 3 | G43: =IF(ISERROR(INDEX(P!$A$16:$G$992,MATCH(NGP!$A43,P!$A$16:$A$992,0),COLUMN())),"X",INDEX(P!$A$16:$G$992,MATCH(NGP!$A43,P!$A$16:$A$992,0),COLUMN())) -> P | H43: 18 | I43: 6 | J43: 20 | K43: 4 | L43: 24 | M43: 13 | N43: 0 | O43: 1 | P43: 8 | Q43: 6 | R43: 38 | S43: 1 | T43: 8 | U43: 3 | V43: 10 | W43: 27 | X43: 13 | Y43: 10 | Z43: 2 | AA43: 0 | AB43: 39 | AO43: 1 | AT43: 1 | AU43: 1 | AV43: 1 | AW43: 16 | AX43: 39 | AY43: 12
A44: =IF(P!$A55>0,P!$A55,"") -> 2013-05-02 | B44: =IF(ISERROR(INDEX(P!$A$16:$G$992,MATCH(NGP!$A44,P!$A$16:$A$992,0),COLUMN())),"X",INDEX(P!$A$16:$G$992,MATCH(NGP!$A44,P!$A$16:$A$992,0),COLUMN())) -> 5 | C44: =IF(ISERROR(INDEX(P!$A$16:$G$992,MATCH(NGP!$A44,P!$A$16:$A$992,0),COLUMN())),"X",INDEX(P!$A$16:$G$992,MATCH(NGP!$A44,P!$A$16:$A$992,0),COLUMN())) -> 6 | D44: =IF(ISERROR(INDEX(P!$A$16:$G$992,MATCH(NGP!$A44,P!$A$16:$A$992,0),COLUMN())),"X",INDEX(P!$A$16:$G$992,MATCH(NGP!$A44,P!$A$16:$A$992,0),COLUMN())) -> 3 | E44: =IF(ISERROR(INDEX(P!$A$16:$G$992,MATCH(NGP!$A44,P!$A$16:$A$992,0),COLUMN())),"X",INDEX(P!$A$16:$G$992,MATCH(NGP!$A44,P!$A$16:$A$992,0),COLUMN())) -> 1 | F44: =IF(ISERROR(INDEX(P!$A$16:$G$992,MATCH(NGP!$A44,P!$A$16:$A$992,0),COLUMN())),"X",INDEX(P!$A$16:$G$992,MATCH(NGP!$A44,P!$A$16:$A$992,0),COLUMN())) -> 10 | G44: =IF(ISERROR(INDEX(P!$A$16:$G$992,MATCH(NGP!$A44,P!$A$16:$A$992,0),COLUMN())),"X",INDEX(P!$A$16:$G$992,MATCH(NGP!$A44,P!$A$16:$A$992,0),COLUMN())) -> P | H44: 19 | I44: 7 | J44: 21 | K44: 5 | L44: 0 | M44: 14 | N44: 1 | O44: 2 | P44: 9 | Q44: 7 | R44: 39 | S44: 2 | T44: 9 | U44: 4 | V44: 11 | W44: 27 | X44: 13 | Y44: 10 | Z44: 2 | AA44: 0 | AB44: 40 | AR44: 1 | AS44: 1 | AT44: 1 | AU44: 1 | AV44: 1 | AW44: 15 | AX44: 40 | AY44: 15
A45: =IF(P!$A56>0,P!$A56,"") -> 2013-05-06 | B45: =IF(ISERROR(INDEX(P!$A$16:$G$992,MATCH(NGP!$A45,P!$A$16:$A$992,0),COLUMN())),"X",INDEX(P!$A$16:$G$992,MATCH(NGP!$A45,P!$A$16:$A$992,0),COLUMN())) -> 9 | C45: =IF(ISERROR(INDEX(P!$A$16:$G$992,MATCH(NGP!$A45,P!$A$16:$A$992,0),COLUMN())),"X",INDEX(P!$A$16:$G$992,MATCH(NGP!$A45,P!$A$16:$A$992,0),COLUMN())) -> 4 | D45: =IF(ISERROR(INDEX(P!$A$16:$G$992,MATCH(NGP!$A45,P!$A$16:$A$992,0),COLUMN())),"X",INDEX(P!$A$16:$G$992,MATCH(NGP!$A45,P!$A$16:$A$992,0),COLUMN())) -> 10 | E45: =IF(ISERROR(INDEX(P!$A$16:$G$992,MATCH(NGP!$A45,P!$A$16:$A$992,0),COLUMN())),"X",INDEX(P!$A$16:$G$992,MATCH(NGP!$A45,P!$A$16:$A$992,0),COLUMN())) -> 8 | F45: =IF(ISERROR(INDEX(P!$A$16:$G$992,MATCH(NGP!$A45,P!$A$16:$A$992,0),COLUMN())),"X",INDEX(P!$A$16:$G$992,MATCH(NGP!$A45,P!$A$16:$A$992,0),COLUMN())) -> 15 | G45: =IF(ISERROR(INDEX(P!$A$16:$G$992,MATCH(NGP!$A45,P!$A$16:$A$992,0),COLUMN())),"X",INDEX(P!$A$16:$G$992,MATCH(NGP!$A45,P!$A$16:$A$992,0),COLUMN())) -> P | H45: 20 | I45: 8 | J45: 22 | K45: 6 | L45: 1 | M45: 15 | N45: 2 | O45: 3 | P45: 0 | Q45: 8 | R45: 40 | S45: 3 | T45: 10 | U45: 5 | V45: 12 | W45: 28 | X45: 14 | Y45: 10 | Z45: 2 | AA45: 0 | AB45: 41 | AT45: 1 | AU45: 1 | AV45: 1 | AW45: 17 | AX45: 41 | AY45: 17
A46: =IF(P!$A57>0,P!$A57,"") -> 2013-05-07 | B46: =IF(ISERROR(INDEX(P!$A$16:$G$992,MATCH(NGP!$A46,P!$A$16:$A$992,0),COLUMN())),"X",INDEX(P!$A$16:$G$992,MATCH(NGP!$A46,P!$A$16:$A$992,0),COLUMN())) -> 12 | C46: =IF(ISERROR(INDEX(P!$A$16:$G$992,MATCH(NGP!$A46,P!$A$16:$A$992,0),COLUMN())),"X",INDEX(P!$A$16:$G$992,MATCH(NGP!$A46,P!$A$16:$A$992,0),COLUMN())) -> 2 | D46: =IF(ISERROR(INDEX(P!$A$16:$G$992,MATCH(NGP!$A46,P!$A$16:$A$992,0),COLUMN())),"X",INDEX(P!$A$16:$G$992,MATCH(NGP!$A46,P!$A$16:$A$992,0),COLUMN())) -> 3 | E46: =IF(ISERROR(INDEX(P!$A$16:$G$992,MATCH(NGP!$A46,P!$A$16:$A$992,0),COLUMN())),"X",INDEX(P!$A$16:$G$992,MATCH(NGP!$A46,P!$A$16:$A$992,0),COLUMN())) -> 16 | F46: =IF(ISERROR(INDEX(P!$A$16:$G$992,MATCH(NGP!$A46,P!$A$16:$A$992,0),COLUMN())),"X",INDEX(P!$A$16:$G$992,MATCH(NGP!$A46,P!$A$16:$A$992,0),COLUMN())) -> 10 | G46: =IF(ISERROR(INDEX(P!$A$16:$G$992,MATCH(NGP!$A46,P!$A$16:$A$992,0),COLUMN())),"X",INDEX(P!$A$16:$G$992,MATCH(NGP!$A46,P!$A$16:$A$992,0),COLUMN())) -> P | H46: 21 | I46: 9 | J46: 23 | K46: 7 | L46: 2 | M46: 16 | N46: 3 | O46: 4 | P46: 1 | Q46: 9 | R46: 41 | S46: 0 | T46: 11 | U46: 6 | V46: 13 | W46: 29 | X46: 15 | Y46: 10 | Z46: 2 | AA46: 0 | AB46: 42 | AT46: 1 | AU46: 1 | AV46: 1 | AW46: 17 | AX46: 42
A47: =IF(P!$A58>0,P!$A58,"") -> 2013-05-08 | B47: =IF(ISERROR(INDEX(P!$A$16:$G$992,MATCH(NGP!$A47,P!$A$16:$A$992,0),COLUMN())),"X",INDEX(P!$A$16:$G$992,MATCH(NGP!$A47,P!$A$16:$A$992,0),COLUMN())) -> 9 | C47: =IF(ISERROR(INDEX(P!$A$16:$G$992,MATCH(NGP!$A47,P!$A$16:$A$992,0),COLUMN())),"X",INDEX(P!$A$16:$G$992,MATCH(NGP!$A47,P!$A$16:$A$992,0),COLUMN())) -> 10 | D47: =IF(ISERROR(INDEX(P!$A$16:$G$992,MATCH(NGP!$A47,P!$A$16:$A$992,0),COLUMN())),"X",INDEX(P!$A$16:$G$992,MATCH(NGP!$A47,P!$A$16:$A$992,0),COLUMN())) -> 2 | E47: =IF(ISERROR(INDEX(P!$A$16:$G$992,MATCH(NGP!$A47,P!$A$16:$A$992,0),COLUMN())),"X",INDEX(P!$A$16:$G$992,MATCH(NGP!$A47,P!$A$16:$A$992,0),COLUMN())) -> 4 | F47: =IF(ISERROR(INDEX(P!$A$16:$G$992,MATCH(NGP!$A47,P!$A$16:$A$992,0),COLUMN())),"X",INDEX(P!$A$16:$G$992,MATCH(NGP!$A47,P!$A$16:$A$992,0),COLUMN())) -> 12 | G47: =IF(ISERROR(INDEX(P!$A$16:$G$992,MATCH(NGP!$A47,P!$A$16:$A$992,0),COLUMN())),"X",INDEX(P!$A$16:$G$992,MATCH(NGP!$A47,P!$A$16:$A$992,0),COLUMN())) -> P | H47: 22 | I47: 10 | J47: 24 | K47: 8 | L47: 3 | M47: 17 | N47: 4 | O47: 5 | P47: 0 | Q47: 10 | R47: 42 | S47: 1 | T47: 12 | U47: 7 | V47: 14 | W47: 30 | X47: 15 | Y47: 10 | Z47: 2 | AA47: 0 | AB47: 43 | AS47: 1 | AT47: 1 | AU47: 1 | AV47: 1 | AW47: 16 | AX47: 43
A48: =IF(P!$A59>0,P!$A59,"") -> 2013-05-09 | B48: =IF(ISERROR(INDEX(P!$A$16:$G$992,MATCH(NGP!$A48,P!$A$16:$A$992,0),COLUMN())),"X",INDEX(P!$A$16:$G$992,MATCH(NGP!$A48,P!$A$16:$A$992,0),COLUMN())) -> 1 | C48: =IF(ISERROR(INDEX(P!$A$16:$G$992,MATCH(NGP!$A48,P!$A$16:$A$992,0),COLUMN())),"X",INDEX(P!$A$16:$G$992,MATCH(NGP!$A48,P!$A$16:$A$992,0),COLUMN())) -> 14 | D48: =IF(ISERROR(INDEX(P!$A$16:$G$992,MATCH(NGP!$A48,P!$A$16:$A$992,0),COLUMN())),"X",INDEX(P!$A$16:$G$992,MATCH(NGP!$A48,P!$A$16:$A$992,0),COLUMN())) -> 2 | E48: =IF(ISERROR(INDEX(P!$A$16:$G$992,MATCH(NGP!$A48,P!$A$16:$A$992,0),COLUMN())),"X",INDEX(P!$A$16:$G$992,MATCH(NGP!$A48,P!$A$16:$A$992,0),COLUMN())) -> 9 | F48: =IF(ISERROR(INDEX(P!$A$16:$G$992,MATCH(NGP!$A48,P!$A$16:$A$992,0),COLUMN())),"X",INDEX(P!$A$16:$G$992,MATCH(NGP!$A48,P!$A$16:$A$992,0),COLUMN())) -> 11 | G48: =IF(ISERROR(INDEX(P!$A$16:$G$992,MATCH(NGP!$A48,P!$A$16:$A$992,0),COLUMN())),"X",INDEX(P!$A$16:$G$992,MATCH(NGP!$A48,P!$A$16:$A$992,0),COLUMN())) -> P | H48: 0 | I48: 11 | J48: 25 | K48: 9 | L48: 4 | M48: 18 | N48: 5 | O48: 6 | P48: 1 | Q48: 11 | R48: 42 | S48: 2 | T48: 13 | U48: 8 | V48: 15 | W48: 31 | X48: 15 | Y48: 10 | Z48: 2 | AA48: 0 | AB48: 44 | AM48: 1 | AS48: 1 | AT48: 1 | AU48: 1 | AV48: 1 | AW48: 15 | AX48: 44 | AY48: 12
A49: =IF(P!$A60>0,P!$A60,"") -> 2013-05-12 | B49: =IF(ISERROR(INDEX(P!$A$16:$G$992,MATCH(NGP!$A49,P!$A$16:$A$992,0),COLUMN())),"X",INDEX(P!$A$16:$G$992,MATCH(NGP!$A49,P!$A$16:$A$992,0),COLUMN())) -> 5 | C49: =IF(ISERROR(INDEX(P!$A$16:$G$992,MATCH(NGP!$A49,P!$A$16:$A$992,0),COLUMN())),"X",INDEX(P!$A$16:$G$992,MATCH(NGP!$A49,P!$A$16:$A$992,0),COLUMN())) -> 6 | D49: =IF(ISERROR(INDEX(P!$A$16:$G$992,MATCH(NGP!$A49,P!$A$16:$A$992,0),COLUMN())),"X",INDEX(P!$A$16:$G$992,MATCH(NGP!$A49,P!$A$16:$A$992,0),COLUMN())) -> 18 | E49: =IF(ISERROR(INDEX(P!$A$16:$G$992,MATCH(NGP!$A49,P!$A$16:$A$992,0),COLUMN())),"X",INDEX(P!$A$16:$G$992,MATCH(NGP!$A49,P!$A$16:$A$992,0),COLUMN())) -> 7 | F49: =IF(ISERROR(INDEX(P!$A$16:$G$992,MATCH(NGP!$A49,P!$A$16:$A$992,0),COLUMN())),"X",INDEX(P!$A$16:$G$992,MATCH(NGP!$A49,P!$A$16:$A$992,0),COLUMN())) -> 11 | G49: =IF(ISERROR(INDEX(P!$A$16:$G$992,MATCH(NGP!$A49,P!$A$16:$A$992,0),COLUMN())),"X",INDEX(P!$A$16:$G$992,MATCH(NGP!$A49,P!$A$16:$A$992,0),COLUMN())) -> P | H49: 1 | I49: 12 | J49: 26 | K49: 10 | L49: 0 | M49: 19 | N49: 6 | O49: 7 | P49: 2 | Q49: 12 | R49: 43 | S49: 3 | T49: 14 | U49: 9 | V49: 16 | W49: =IF(COUNTIF($B49:$D49,"=X")<3,IF(LEN(SUBSTITUTE(SUBSTITUTE($B49,W$1,,1),,1))=0,0,W48+1-AR49),"") -> 32 | X49: 16 | Y49: 11 | Z49: 2 | AA49: 0 | AB49: 45 | AU49: 1 | AV49: 1 | AW49: 18 | AX49: 45
A50: =IF(P!$A61>0,P!$A61,"") -> 2013-05-13 | B50: =IF(ISERROR(INDEX(P!$A$16:$G$992,MATCH(NGP!$A50,P!$A$16:$A$992,0),COLUMN())),"X",INDEX(P!$A$16:$G$992,MATCH(NGP!$A50,P!$A$16:$A$992,0),COLUMN())) -> 2 | C50: =IF(ISERROR(INDEX(P!$A$16:$G$992,MATCH(NGP!$A50,P!$A$16:$A$992,0),COLUMN())),"X",INDEX(P!$A$16:$G$992,MATCH(NGP!$A50,P!$A$16:$A$992,0),COLUMN())) -> 5 | D50: =IF(ISERROR(INDEX(P!$A$16:$G$992,MATCH(NGP!$A50,P!$A$16:$A$992,0),COLUMN())),"X",INDEX(P!$A$16:$G$992,MATCH(NGP!$A50,P!$A$16:$A$992,0),COLUMN())) -> 9 | E50: =IF(ISERROR(INDEX(P!$A$16:$G$992,MATCH(NGP!$A50,P!$A$16:$A$992,0),COLUMN())),"X",INDEX(P!$A$16:$G$992,MATCH(NGP!$A50,P!$A$16:$A$992,0),COLUMN())) -> 14 | F50: =IF(ISERROR(INDEX(P!$A$16:$G$992,MATCH(NGP!$A50,P!$A$16:$A$992,0),COLUMN())),"X",INDEX(P!$A$16:$G$992,MATCH(NGP!$A50,P!$A$16:$A$992,0),COLUMN())) -> 4 | G50: =IF(ISERROR(INDEX(P!$A$16:$G$992,MATCH(NGP!$A50,P!$A$16:$A$992,0),COLUMN())),"X",INDEX(P!$A$16:$G$992,MATCH(NGP!$A50,P!$A$16:$A$992,0),COLUMN())) -> P | H50: =IF(COUNTIF($B50:$D50,"=X")<3,IF(LEN(SUBSTITUTE(SUBSTITUTE($B50,H$1,,1),,1))=0,0,H49+1-AC50),"") -> 2 | I50: 0 | J50: 27 | K50: 11 | L50: 1 | M50: 19 | N50: 7 | O50: 8 | P50: 3 | Q50: 13 | R50: 44 | S50: 4 | T50: 15 | U50: 10 | V50: 17 | W50: 33 | X50: 16 | Y50: 11 | Z50: 2 | AA50: 0 | AB50: 46 | AH50: 1 | AS50: 1 | AT50: 1 | AU50: 1 | AV50: 1 | AW50: 15 | AX50: 46 | AY50: 6
A51: =IF(P!$A62>0,P!$A62,"") -> 2013-05-14 | B51: =IF(ISERROR(INDEX(P!$A$16:$G$992,MATCH(NGP!$A51,P!$A$16:$A$992,0),COLUMN())),"X",INDEX(P!$A$16:$G$992,MATCH(NGP!$A51,P!$A$16:$A$992,0),COLUMN())) -> 6 | C51: =IF(ISERROR(INDEX(P!$A$16:$G$992,MATCH(NGP!$A51,P!$A$16:$A$992,0),COLUMN())),"X",INDEX(P!$A$16:$G$992,MATCH(NGP!$A51,P!$A$16:$A$992,0),COLUMN())) -> 15 | D51: =IF(ISERROR(INDEX(P!$A$16:$G$992,MATCH(NGP!$A51,P!$A$16:$A$992,0),COLUMN())),"X",INDEX(P!$A$16:$G$992,MATCH(NGP!$A51,P!$A$16:$A$992,0),COLUMN())) -> 2 | E51: =IF(ISERROR(INDEX(P!$A$16:$G$992,MATCH(NGP!$A51,P!$A$16:$A$992,0),COLUMN())),"X",INDEX(P!$A$16:$G$992,MATCH(NGP!$A51,P!$A$16:$A$992,0),COLUMN())) -> 16 | F51: =IF(ISERROR(INDEX(P!$A$16:$G$992,MATCH(NGP!$A51,P!$A$16:$A$992,0),COLUMN())),"X",INDEX(P!$A$16:$G$992,MATCH(NGP!$A51,P!$A$16:$A$992,0),COLUMN())) -> 8 | G51: =IF(ISERROR(INDEX(P!$A$16:$G$992,MATCH(NGP!$A51,P!$A$16:$A$992,0),COLUMN())),"X",INDEX(P!$A$16:$G$992,MATCH(NGP!$A51,P!$A$16:$A$992,0),COLUMN())) -> P | H51: 3 | I51: 1 | J51: 28 | K51: 12 | L51: 2 | M51: 0 | N51: 8 | O51: 9 | P51: 4 | Q51: 14 | R51: 45 | S51: 5 | T51: 16 | U51: 11 | V51: 18 | W51: 34 | X51: 16 | Y51: 11 | Z51: 2 | AA51: 0 | AB51: 47 | AS51: 1 | AT51: 1 | AU51: 1 | AV51: 1 | AW51: 16 | AX51: 47
A52: =IF(P!$A63>0,P!$A63,"") -> 2013-05-18 | B52: =IF(ISERROR(INDEX(P!$A$16:$G$992,MATCH(NGP!$A52,P!$A$16:$A$992,0),COLUMN())),"X",INDEX(P!$A$16:$G$992,MATCH(NGP!$A52,P!$A$16:$A$992,0),COLUMN())) -> 8 | C52: =IF(ISERROR(INDEX(P!$A$16:$G$992,MATCH(NGP!$A52,P!$A$16:$A$992,0),COLUMN())),"X",INDEX(P!$A$16:$G$992,MATCH(NGP!$A52,P!$A$16:$A$992,0),COLUMN())) -> 2 | D52: =IF(ISERROR(INDEX(P!$A$16:$G$992,MATCH(NGP!$A52,P!$A$16:$A$992,0),COLUMN())),"X",INDEX(P!$A$16:$G$992,MATCH(NGP!$A52,P!$A$16:$A$992,0),COLUMN())) -> 4 | E52: =IF(ISERROR(INDEX(P!$A$16:$G$992,MATCH(NGP!$A52,P!$A$16:$A$992,0),COLUMN())),"X",INDEX(P!$A$16:$G$992,MATCH(NGP!$A52,P!$A$16:$A$992,0),COLUMN())) -> 14 | F52: =IF(ISERROR(INDEX(P!$A$16:$G$992,MATCH(NGP!$A52,P!$A$16:$A$992,0),COLUMN())),"X",INDEX(P!$A$16:$G$992,MATCH(NGP!$A52,P!$A$16:$A$992,0),COLUMN())) -> 15 | G52: =IF(ISERROR(INDEX(P!$A$16:$G$992,MATCH(NGP!$A52,P!$A$16:$A$992,0),COLUMN())),"X",INDEX(P!$A$16:$G$992,MATCH(NGP!$A52,P!$A$16:$A$992,0),COLUMN())) -> P | H52: 4 | I52: 2 | J52: 29 | K52: 13 | L52: 3 | M52: 1 | N52: 9 | O52: 0 | P52: 5 | Q52: 15 | R52: 46 | S52: 6 | T52: 17 | U52: 12 | V52: 19 | W52: 35 | X52: 16 | Y52: 11 | Z52: 2 | AA52: 0 | AB52: 48 | AS52: 1 | AT52: 1 | AU52: 1 | AV52: 1 | AW52: 16 | AX52: 48
A53: =IF(P!$A64>0,P!$A64,"") -> 2013-05-20 | B53: =IF(ISERROR(INDEX(P!$A$16:$G$992,MATCH(NGP!$A53,P!$A$16:$A$992,0),COLUMN())),"X",INDEX(P!$A$16:$G$992,MATCH(NGP!$A53,P!$A$16:$A$992,0),COLUMN())) -> 1 | C53: =IF(ISERROR(INDEX(P!$A$16:$G$992,MATCH(NGP!$A53,P!$A$16:$A$992,0),COLUMN())),"X",INDEX(P!$A$16:$G$992,MATCH(NGP!$A53,P!$A$16:$A$992,0),COLUMN())) -> 15 | D53: =IF(ISERROR(INDEX(P!$A$16:$G$992,MATCH(NGP!$A53,P!$A$16:$A$992,0),COLUMN())),"X",INDEX(P!$A$16:$G$992,MATCH(NGP!$A53,P!$A$16:$A$992,0),COLUMN())) -> 5 | E53: =IF(ISERROR(INDEX(P!$A$16:$G$992,MATCH(NGP!$A53,P!$A$16:$A$992,0),COLUMN())),"X",INDEX(P!$A$16:$G$992,MATCH(NGP!$A53,P!$A$16:$A$992,0),COLUMN())) -> 4 | F53: =IF(ISERROR(INDEX(P!$A$16:$G$992,MATCH(NGP!$A53,P!$A$16:$A$992,0),COLUMN())),"X",INDEX(P!$A$16:$G$992,MATCH(NGP!$A53,P!$A$16:$A$992,0),COLUMN())) -> 11 | G53: =IF(ISERROR(INDEX(P!$A$16:$G$992,MATCH(NGP!$A53,P!$A$16:$A$992,0),COLUMN())),"X",INDEX(P!$A$16:$G$992,MATCH(NGP!$A53,P!$A$16:$A$992,0),COLUMN())) -> P | H53: 0 | I53: 3 | J53: 30 | K53: 14 | L53: 4 | M53: 2 | N53: 10 | O53: 1 | P53: 6 | Q53: 16 | R53: 47 | S53: 7 | T53: 18 | U53: 13 | V53: 20 | W53: 36 | X53: 16 | Y53: 11 | Z53: 2 | AA53: 0 | AB53: 49 | AS53: 1 | AT53: 1 | AU53: 1 | AV53: 1 | AW53: 16 | AX53: 49
A54: =IF(P!$A65>0,P!$A65,"") -> 2013-05-21 | B54: =IF(ISERROR(INDEX(P!$A$16:$G$992,MATCH(NGP!$A54,P!$A$16:$A$992,0),COLUMN())),"X",INDEX(P!$A$16:$G$992,MATCH(NGP!$A54,P!$A$16:$A$992,0),COLUMN())) -> 9 | C54: =IF(ISERROR(INDEX(P!$A$16:$G$992,MATCH(NGP!$A54,P!$A$16:$A$992,0),COLUMN())),"X",INDEX(P!$A$16:$G$992,MATCH(NGP!$A54,P!$A$16:$A$992,0),COLUMN())) -> 1 | D54: =IF(ISERROR(INDEX(P!$A$16:$G$992,MATCH(NGP!$A54,P!$A$16:$A$992,0),COLUMN())),"X",INDEX(P!$A$16:$G$992,MATCH(NGP!$A54,P!$A$16:$A$992,0),COLUMN())) -> 11 | E54: =IF(ISERROR(INDEX(P!$A$16:$G$992,MATCH(NGP!$A54,P!$A$16:$A$992,0),COLUMN())),"X",INDEX(P!$A$16:$G$992,MATCH(NGP!$A54,P!$A$16:$A$992,0),COLUMN())) -> 2 | F54: =IF(ISERROR(INDEX(P!$A$16:$G$992,MATCH(NGP!$A54,P!$A$16:$A$992,0),COLUMN())),"X",INDEX(P!$A$16:$G$992,MATCH(NGP!$A54,P!$A$16:$A$992,0),COLUMN())) -> 3 | G54: =IF(ISERROR(INDEX(P!$A$16:$G$992,MATCH(NGP!$A54,P!$A$16:$A$992,0),COLUMN())),"X",INDEX(P!$A$16:$G$992,MATCH(NGP!$A54,P!$A$16:$A$992,0),COLUMN())) -> P | H54: 1 | I54: 4 | J54: 31 | K54: 15 | L54: 5 | M54: 3 | N54: 11 | O54: 2 | P54: 0 | Q54: 17 | R54: 48 | S54: 7 | T54: 19 | U54: 14 | V54: 21 | W54: 37 | X54: 16 | Y54: 11 | Z54: 2 | AA54: 0 | AB54: 50 | AN54: 1 | AS54: 1 | AT54: 1 | AU54: 1 | AV54: 1 | AW54: 15 | AX54: 50 | AY54: 12
A55: =IF(P!$A66>0,P!$A66,"") -> 2013-05-26 | B55: =IF(ISERROR(INDEX(P!$A$16:$G$992,MATCH(NGP!$A55,P!$A$16:$A$992,0),COLUMN())),"X",INDEX(P!$A$16:$G$992,MATCH(NGP!$A55,P!$A$16:$A$992,0),COLUMN())) -> 5 | C55: =IF(ISERROR(INDEX(P!$A$16:$G$992,MATCH(NGP!$A55,P!$A$16:$A$992,0),COLUMN())),"X",INDEX(P!$A$16:$G$992,MATCH(NGP!$A55,P!$A$16:$A$992,0),COLUMN())) -> 12 | D55: =IF(ISERROR(INDEX(P!$A$16:$G$992,MATCH(NGP!$A55,P!$A$16:$A$992,0),COLUMN())),"X",INDEX(P!$A$16:$G$992,MATCH(NGP!$A55,P!$A$16:$A$992,0),COLUMN())) -> 2 | E55: =IF(ISERROR(INDEX(P!$A$16:$G$992,MATCH(NGP!$A55,P!$A$16:$A$992,0),COLUMN())),"X",INDEX(P!$A$16:$G$992,MATCH(NGP!$A55,P!$A$16:$A$992,0),COLUMN())) -> 18 | F55: =IF(ISERROR(INDEX(P!$A$16:$G$992,MATCH(NGP!$A55,P!$A$16:$A$992,0),COLUMN())),"X",INDEX(P!$A$16:$G$992,MATCH(NGP!$A55,P!$A$16:$A$992,0),COLUMN())) -> 13 | G55: =IF(ISERROR(INDEX(P!$A$16:$G$992,MATCH(NGP!$A55,P!$A$16:$A$992,0),COLUMN())),"X",INDEX(P!$A$16:$G$992,MATCH(NGP!$A55,P!$A$16:$A$992,0),COLUMN())) -> P | H55: 2 | I55: 5 | J55: 32 | K55: 16 | L55: 0 | M55: 4 | N55: 12 | O55: 3 | P55: 1 | Q55: 18 | R55: 49 | S55: 8 | T55: 20 | U55: 15 | V55: 22 | W55: 38 | X55: 17 | Y55: 12 | Z55: 2 | AA55: 0 | AB55: 51 | AU55: 1 | AV55: 1 | AW55: 18 | AX55: 51
A56: =IF(P!$A67>0,P!$A67,"") -> 2013-05-27 | B56: =IF(ISERROR(INDEX(P!$A$16:$G$992,MATCH(NGP!$A56,P!$A$16:$A$992,0),COLUMN())),"X",INDEX(P!$A$16:$G$992,MATCH(NGP!$A56,P!$A$16:$A$992,0),COLUMN())) -> 6 | C56: =IF(ISERROR(INDEX(P!$A$16:$G$992,MATCH(NGP!$A56,P!$A$16:$A$992,0),COLUMN())),"X",INDEX(P!$A$16:$G$992,MATCH(NGP!$A56,P!$A$16:$A$992,0),COLUMN())) -> 13 | D56: =IF(ISERROR(INDEX(P!$A$16:$G$992,MATCH(NGP!$A56,P!$A$16:$A$992,0),COLUMN())),"X",INDEX(P!$A$16:$G$992,MATCH(NGP!$A56,P!$A$16:$A$992,0),COLUMN())) -> 7 | E56: =IF(ISERROR(INDEX(P!$A$16:$G$992,MATCH(NGP!$A56,P!$A$16:$A$992,0),COLUMN())),"X",INDEX(P!$A$16:$G$992,MATCH(NGP!$A56,P!$A$16:$A$992,0),COLUMN())) -> 5 | F56: =IF(ISERROR(INDEX(P!$A$16:$G$992,MATCH(NGP!$A56,P!$A$16:$A$992,0),COLUMN())),"X",INDEX(P!$A$16:$G$992,MATCH(NGP!$A56,P!$A$16:$A$992,0),COLUMN())) -> 12 | G56: =IF(ISERROR(INDEX(P!$A$16:$G$992,MATCH(NGP!$A56,P!$A$16:$A$992,0),COLUMN())),"X",INDEX(P!$A$16:$G$992,MATCH(NGP!$A56,P!$A$16:$A$992,0),COLUMN())) -> P | H56: 3 | I56: 6 | J56: 33 | K56: 17 | L56: 1 | M56: 0 | N56: 13 | O56: 4 | P56: 2 | Q56: 19 | R56: 50 | S56: 9 | T56: 21 | U56: 16 | V56: 23 | W56: 39 | X56: 17 | Y56: 12 | Z56: 2 | AA56: 0 | AB56: 52 | AS56: 1 | AT56: 1 | AU56: 1 | AV56: 1 | AW56: 16 | AX56: 52
A57: =IF(P!$A68>0,P!$A68,"") -> 2013-05-28 | B57: =IF(ISERROR(INDEX(P!$A$16:$G$992,MATCH(NGP!$A57,P!$A$16:$A$992,0),COLUMN())),"X",INDEX(P!$A$16:$G$992,MATCH(NGP!$A57,P!$A$16:$A$992,0),COLUMN())) -> 8 | C57: =IF(ISERROR(INDEX(P!$A$16:$G$992,MATCH(NGP!$A57,P!$A$16:$A$992,0),COLUMN())),"X",INDEX(P!$A$16:$G$992,MATCH(NGP!$A57,P!$A$16:$A$992,0),COLUMN())) -> 2 | D57: =IF(ISERROR(INDEX(P!$A$16:$G$992,MATCH(NGP!$A57,P!$A$16:$A$992,0),COLUMN())),"X",INDEX(P!$A$16:$G$992,MATCH(NGP!$A57,P!$A$16:$A$992,0),COLUMN())) -> 15 | E57: =IF(ISERROR(INDEX(P!$A$16:$G$992,MATCH(NGP!$A57,P!$A$16:$A$992,0),COLUMN())),"X",INDEX(P!$A$16:$G$992,MATCH(NGP!$A57,P!$A$16:$A$992,0),COLUMN())) -> 7 | F57: =IF(ISERROR(INDEX(P!$A$16:$G$992,MATCH(NGP!$A57,P!$A$16:$A$992,0),COLUMN())),"X",INDEX(P!$A$16:$G$992,MATCH(NGP!$A57,P!$A$16:$A$992,0),COLUMN())) -> 5 | G57: =IF(ISERROR(INDEX(P!$A$16:$G$992,MATCH(NGP!$A57,P!$A$16:$A$992,0),COLUMN())),"X",INDEX(P!$A$16:$G$992,MATCH(NGP!$A57,P!$A$16:$A$992,0),COLUMN())) -> P | H57: 4 | I57: 7 | J57: 34 | K57: 18 | L57: 2 | M57: 1 | N57: 14 | O57: 0 | P57: 3 | Q57: 20 | R57: 51 | S57: 10 | T57: 22 | U57: 17 | V57: 24 | W57: 40 | X57: 17 | Y57: 12 | Z57: 2 | AA57: 0 | AB57: 53 | AS57: 1 | AT57: 1 | AU57: 1 | AV57: 1 | AW57: 16 | AX57: 53
A58: =IF(P!$A69>0,P!$A69,"") -> 2013-05-29 | B58: =IF(ISERROR(INDEX(P!$A$16:$G$992,MATCH(NGP!$A58,P!$A$16:$A$992,0),COLUMN())),"X",INDEX(P!$A$16:$G$992,MATCH(NGP!$A58,P!$A$16:$A$992,0),COLUMN())) -> 5 | C58: =IF(ISERROR(INDEX(P!$A$16:$G$992,MATCH(NGP!$A58,P!$A$16:$A$992,0),COLUMN())),"X",INDEX(P!$A$16:$G$992,MATCH(NGP!$A58,P!$A$16:$A$992,0),COLUMN())) -> 10 | D58: =IF(ISERROR(INDEX(P!$A$16:$G$992,MATCH(NGP!$A58,P!$A$16:$A$992,0),COLUMN())),"X",INDEX(P!$A$16:$G$992,MATCH(NGP!$A58,P!$A$16:$A$992,0),COLUMN())) -> 15 | E58: =IF(ISERROR(INDEX(P!$A$16:$G$992,MATCH(NGP!$A58,P!$A$16:$A$992,0),COLUMN())),"X",INDEX(P!$A$16:$G$992,MATCH(NGP!$A58,P!$A$16:$A$992,0),COLUMN())) -> 13 | F58: =IF(ISERROR(INDEX(P!$A$16:$G$992,MATCH(NGP!$A58,P!$A$16:$A$992,0),COLUMN())),"X",INDEX(P!$A$16:$G$992,MATCH(NGP!$A58,P!$A$16:$A$992,0),COLUMN())) -> 11 | G58: =IF(ISERROR(INDEX(P!$A$16:$G$992,MATCH(NGP!$A58,P!$A$16:$A$992,0),COLUMN())),"X",INDEX(P!$A$16:$G$992,MATCH(NGP!$A58,P!$A$16:$A$992,0),COLUMN())) -> P | H58: 4 | I58: 8 | J58: 34 | K58: 19 | L58: 0 | M58: 2 | N58: 15 | O58: 1 | P58: 4 | Q58: 21 | R58: 52 | S58: 11 | T58: 23 | U58: 18 | V58: 25 | W58: 41 | X58: 17 | Y58: 12 | Z58: 2 | AA58: 0 | AB58: 54 | AC58: 1 | AE58: 1 | AS58: 1 | AT58: 1 | AU58: 1 | AV58: 1 | AW58: 14 | AX58: 54 | AY58: 1 | AZ58: 3
A59: =IF(P!$A70>0,P!$A70,"") -> 2013-05-30 | B59: =IF(ISERROR(INDEX(P!$A$16:$G$992,MATCH(NGP!$A59,P!$A$16:$A$992,0),COLUMN())),"X",INDEX(P!$A$16:$G$992,MATCH(NGP!$A59,P!$A$16:$A$992,0),COLUMN())) -> 12 | C59: =IF(ISERROR(INDEX(P!$A$16:$G$992,MATCH(NGP!$A59,P!$A$16:$A$992,0),COLUMN())),"X",INDEX(P!$A$16:$G$992,MATCH(NGP!$A59,P!$A$16:$A$992,0),COLUMN())) -> 6 | D59: =IF(ISERROR(INDEX(P!$A$16:$G$992,MATCH(NGP!$A59,P!$A$16:$A$992,0),COLUMN())),"X",INDEX(P!$A$16:$G$992,MATCH(NGP!$A59,P!$A$16:$A$992,0),COLUMN())) -> 16 | E59: =IF(ISERROR(INDEX(P!$A$16:$G$992,MATCH(NGP!$A59,P!$A$16:$A$992,0),COLUMN())),"X",INDEX(P!$A$16:$G$992,MATCH(NGP!$A59,P!$A$16:$A$992,0),COLUMN())) -> 8 | F59: =IF(ISERROR(INDEX(P!$A$16:$G$992,MATCH(NGP!$A59,P!$A$16:$A$992,0),COLUMN())),"X",INDEX(P!$A$16:$G$992,MATCH(NGP!$A59,P!$A$16:$A$992,0),COLUMN())) -> 10 | G59: =IF(ISERROR(INDEX(P!$A$16:$G$992,MATCH(NGP!$A59,P!$A$16:$A$992,0),COLUMN())),"X",INDEX(P!$A$16:$G$992,MATCH(NGP!$A59,P!$A$16:$A$992,0),COLUMN())) -> P | H59: 5 | I59: 9 | J59: 35 | K59: 20 | L59: 1 | M59: 3 | N59: 16 | O59: 2 | P59: 5 | Q59: 22 | R59: 53 | S59: 0 | T59: 24 | U59: 19 | V59: 26 | W59: 42 | X59: 18 | Y59: 13 | Z59: 2 | AA59: 0 | AB59: 55 | AU59: 1 | AV59: 1 | AW59: 18 | AX59: 55 | AY59: 5
A60: =IF(P!$A71>0,P!$A71,"") -> 2013-06-01 | B60: =IF(ISERROR(INDEX(P!$A$16:$G$992,MATCH(NGP!$A60,P!$A$16:$A$992,0),COLUMN())),"X",INDEX(P!$A$16:$G$992,MATCH(NGP!$A60,P!$A$16:$A$992,0),COLUMN())) -> 9 | C60: =IF(ISERROR(INDEX(P!$A$16:$G$992,MATCH(NGP!$A60,P!$A$16:$A$992,0),COLUMN())),"X",INDEX(P!$A$16:$G$992,MATCH(NGP!$A60,P!$A$16:$A$992,0),COLUMN())) -> 14 | D60: =IF(ISERROR(INDEX(P!$A$16:$G$992,MATCH(NGP!$A60,P!$A$16:$A$992,0),COLUMN())),"X",INDEX(P!$A$16:$G$992,MATCH(NGP!$A60,P!$A$16:$A$992,0),COLUMN())) -> 4 | E60: =IF(ISERROR(INDEX(P!$A$16:$G$992,MATCH(NGP!$A60,P!$A$16:$A$992,0),COLUMN())),"X",INDEX(P!$A$16:$G$992,MATCH(NGP!$A60,P!$A$16:$A$992,0),COLUMN())) -> 7 | F60: =IF(ISERROR(INDEX(P!$A$16:$G$992,MATCH(NGP!$A60,P!$A$16:$A$992,0),COLUMN())),"X",INDEX(P!$A$16:$G$992,MATCH(NGP!$A60,P!$A$16:$A$992,0),COLUMN())) -> 2 | G60: =IF(ISERROR(INDEX(P!$A$16:$G$992,MATCH(NGP!$A60,P!$A$16:$A$992,0),COLUMN())),"X",INDEX(P!$A$16:$G$992,MATCH(NGP!$A60,P!$A$16:$A$992,0),COLUMN())) -> P | H60: 6 | I60: 10 | J60: 36 | K60: 21 | L60: 2 | M60: 4 | N60: 17 | O60: 3 | P60: 0 | Q60: 23 | R60: 54 | S60: 1 | T60: 25 | U60: 20 | V60: 27 | W60: 43 | X60: 19 | Y60: 14 | Z60: 2 | AA60: 0 | AB60: 56 | AU60: 1 | AV60: 1 | AW60: 18 | AX60: 56
A61: =IF(P!$A72>0,P!$A72,"") -> 2013-06-02 | B61: =IF(ISERROR(INDEX(P!$A$16:$G$992,MATCH(NGP!$A61,P!$A$16:$A$992,0),COLUMN())),"X",INDEX(P!$A$16:$G$992,MATCH(NGP!$A61,P!$A$16:$A$992,0),COLUMN())) -> 19 | C61: =IF(ISERROR(INDEX(P!$A$16:$G$992,MATCH(NGP!$A61,P!$A$16:$A$992,0),COLUMN())),"X",INDEX(P!$A$16:$G$992,MATCH(NGP!$A61,P!$A$16:$A$992,0),COLUMN())) -> 18 | D61: =IF(ISERROR(INDEX(P!$A$16:$G$992,MATCH(NGP!$A61,P!$A$16:$A$992,0),COLUMN())),"X",INDEX(P!$A$16:$G$992,MATCH(NGP!$A61,P!$A$16:$A$992,0),COLUMN())) -> 8 | E61: =IF(ISERROR(INDEX(P!$A$16:$G$992,MATCH(NGP!$A61,P!$A$16:$A$992,0),COLUMN())),"X",INDEX(P!$A$16:$G$992,MATCH(NGP!$A61,P!$A$16:$A$992,0),COLUMN())) -> 3 | F61: =IF(ISERROR(INDEX(P!$A$16:$G$992,MATCH(NGP!$A61,P!$A$16:$A$992,0),COLUMN())),"X",INDEX(P!$A$16:$G$992,MATCH(NGP!$A61,P!$A$16:$A$992,0),COLUMN())) -> 2 | G61: =IF(ISERROR(INDEX(P!$A$16:$G$992,MATCH(NGP!$A61,P!$A$16:$A$992,0),COLUMN())),"X",INDEX(P!$A$16:$G$992,MATCH(NGP!$A61,P!$A$16:$A$992,0),COLUMN())) -> P | H61: 7 | I61: 11 | J61: 37 | K61: 22 | L61: 3 | M61: 5 | N61: 18 | O61: 4 | P61: 1 | Q61: 24 | R61: 55 | S61: 2 | T61: 26 | U61: 21 | V61: 28 | W61: 44 | X61: 20 | Y61: 15 | Z61: 0 | AA61: 0 | AB61: 57 | AV61: 1 | AW61: 19 | AX61: 57
A62: =IF(P!$A73>0,P!$A73,"") -> 2013-06-04 | B62: =IF(ISERROR(INDEX(P!$A$16:$G$992,MATCH(NGP!$A62,P!$A$16:$A$992,0),COLUMN())),"X",INDEX(P!$A$16:$G$992,MATCH(NGP!$A62,P!$A$16:$A$992,0),COLUMN())) -> 16 | C62: =IF(ISERROR(INDEX(P!$A$16:$G$992,MATCH(NGP!$A62,P!$A$16:$A$992,0),COLUMN())),"X",INDEX(P!$A$16:$G$992,MATCH(NGP!$A62,P!$A$16:$A$992,0),COLUMN())) -> 9 | D62: =IF(ISERROR(INDEX(P!$A$16:$G$992,MATCH(NGP!$A62,P!$A$16:$A$992,0),COLUMN())),"X",INDEX(P!$A$16:$G$992,MATCH(NGP!$A62,P!$A$16:$A$992,0),COLUMN())) -> 14 | E62: =IF(ISERROR(INDEX(P!$A$16:$G$992,MATCH(NGP!$A62,P!$A$16:$A$992,0),COLUMN())),"X",INDEX(P!$A$16:$G$992,MATCH(NGP!$A62,P!$A$16:$A$992,0),COLUMN())) -> 4 | F62: =IF(ISERROR(INDEX(P!$A$16:$G$992,MATCH(NGP!$A62,P!$A$16:$A$992,0),COLUMN())),"X",INDEX(P!$A$16:$G$992,MATCH(NGP!$A62,P!$A$16:$A$992,0),COLUMN())) -> 2 | G62: =IF(ISERROR(INDEX(P!$A$16:$G$992,MATCH(NGP!$A62,P!$A$16:$A$992,0),COLUMN())),"X",INDEX(P!$A$16:$G$992,MATCH(NGP!$A62,P!$A$16:$A$992,0),COLUMN())) -> P | H62: 8 | I62: 12 | J62: 38 | K62: 23 | L62: 4 | M62: 6 | N62: 19 | O62: 5 | P62: 2 | Q62: 25 | R62: 56 | S62: 3 | T62: 27 | U62: 22 | V62: 29 | W62: 0 | X62: 20 | Y62: 15 | Z62: 0 | AA62: 0 | AB62: 58 | AS62: 1 | AT62: 1 | AU62: 1 | AV62: 1 | AW62: 16 | AX62: 58
A63: =IF(P!$A74>0,P!$A74,"") -> 2013-06-10 | B63: =IF(ISERROR(INDEX(P!$A$16:$G$992,MATCH(NGP!$A63,P!$A$16:$A$992,0),COLUMN())),"X",INDEX(P!$A$16:$G$992,MATCH(NGP!$A63,P!$A$16:$A$992,0),COLUMN())) -> 16 | C63: =IF(ISERROR(INDEX(P!$A$16:$G$992,MATCH(NGP!$A63,P!$A$16:$A$992,0),COLUMN())),"X",INDEX(P!$A$16:$G$992,MATCH(NGP!$A63,P!$A$16:$A$992,0),COLUMN())) -> 11 | D63: =IF(ISERROR(INDEX(P!$A$16:$G$992,MATCH(NGP!$A63,P!$A$16:$A$992,0),COLUMN())),"X",INDEX(P!$A$16:$G$992,MATCH(NGP!$A63,P!$A$16:$A$992,0),COLUMN())) -> 6 | E63: =IF(ISERROR(INDEX(P!$A$16:$G$992,MATCH(NGP!$A63,P!$A$16:$A$992,0),COLUMN())),"X",INDEX(P!$A$16:$G$992,MATCH(NGP!$A63,P!$A$16:$A$992,0),COLUMN())) -> 2 | F63: =IF(ISERROR(INDEX(P!$A$16:$G$992,MATCH(NGP!$A63,P!$A$16:$A$992,0),COLUMN())),"X",INDEX(P!$A$16:$G$992,MATCH(NGP!$A63,P!$A$16:$A$992,0),COLUMN())) -> 12 | G63: =IF(ISERROR(INDEX(P!$A$16:$G$992,MATCH(NGP!$A63,P!$A$16:$A$992,0),COLUMN())),"X",INDEX(P!$A$16:$G$992,MATCH(NGP!$A63,P!$A$16:$A$992,0),COLUMN())) -> P | H63: 9 | I63: 13 | J63: 39 | K63: 24 | L63: 5 | M63: 7 | N63: 20 | O63: 6 | P63: 3 | Q63: 26 | R63: 57 | S63: 4 | T63: 28 | U63: 23 | V63: 29 | W63: 0 | X63: 20 | Y63: 15 | Z63: 0 | AA63: 0 | AB63: 59 | AQ63: 1 | AS63: 1 | AT63: 1 | AU63: 1 | AV63: 1 | AW63: 15 | AX63: 59 | AY63: 14
A64: =IF(P!$A75>0,P!$A75,"") -> 2013-06-12 | B64: =IF(ISERROR(INDEX(P!$A$16:$G$992,MATCH(NGP!$A64,P!$A$16:$A$992,0),COLUMN())),"X",INDEX(P!$A$16:$G$992,MATCH(NGP!$A64,P!$A$16:$A$992,0),COLUMN())) -> 2 | C64: =IF(ISERROR(INDEX(P!$A$16:$G$992,MATCH(NGP!$A64,P!$A$16:$A$992,0),COLUMN())),"X",INDEX(P!$A$16:$G$992,MATCH(NGP!$A64,P!$A$16:$A$992,0),COLUMN())) -> 3 | D64: =IF(ISERROR(INDEX(P!$A$16:$G$992,MATCH(NGP!$A64,P!$A$16:$A$992,0),COLUMN())),"X",INDEX(P!$A$16:$G$992,MATCH(NGP!$A64,P!$A$16:$A$992,0),COLUMN())) -> 10 | E64: =IF(ISERROR(INDEX(P!$A$16:$G$992,MATCH(NGP!$A64,P!$A$16:$A$992,0),COLUMN())),"X",INDEX(P!$A$16:$G$992,MATCH(NGP!$A64,P!$A$16:$A$992,0),COLUMN())) -> 13 | F64: =IF(ISERROR(INDEX(P!$A$16:$G$992,MATCH(NGP!$A64,P!$A$16:$A$992,0),COLUMN())),"X",INDEX(P!$A$16:$G$992,MATCH(NGP!$A64,P!$A$16:$A$992,0),COLUMN())) -> 12 | G64: =IF(ISERROR(INDEX(P!$A$16:$G$992,MATCH(NGP!$A64,P!$A$16:$A$992,0),COLUMN())),"X",INDEX(P!$A$16:$G$992,MATCH(NGP!$A64,P!$A$16:$A$992,0),COLUMN())) -> P | H64: 10 | I64: 0 | J64: 40 | K64: 25 | L64: 6 | M64: 8 | N64: 21 | O64: 7 | P64: 4 | Q64: 27 | R64: 58 | S64: 5 | T64: 29 | U64: 24 | V64: 30 | W64: 1 | X64: 20 | Y64: 15 | Z64: 0 | AA64: 0 | AB64: 60 | AS64: 1 | AT64: 1 | AU64: 1 | AV64: 1 | AW64: 16 | AX64: 60
A65: =IF(P!$A76>0,P!$A76,"") -> 2013-06-16 | B65: =IF(ISERROR(INDEX(P!$A$16:$G$992,MATCH(NGP!$A65,P!$A$16:$A$992,0),COLUMN())),"X",INDEX(P!$A$16:$G$992,MATCH(NGP!$A65,P!$A$16:$A$992,0),COLUMN())) -> 7 | C65: =IF(ISERROR(INDEX(P!$A$16:$G$992,MATCH(NGP!$A65,P!$A$16:$A$992,0),COLUMN())),"X",INDEX(P!$A$16:$G$992,MATCH(NGP!$A65,P!$A$16:$A$992,0),COLUMN())) -> 9 | D65: =IF(ISERROR(INDEX(P!$A$16:$G$992,MATCH(NGP!$A65,P!$A$16:$A$992,0),COLUMN())),"X",INDEX(P!$A$16:$G$992,MATCH(NGP!$A65,P!$A$16:$A$992,0),COLUMN())) -> 12 | E65: =IF(ISERROR(INDEX(P!$A$16:$G$992,MATCH(NGP!$A65,P!$A$16:$A$992,0),COLUMN())),"X",INDEX(P!$A$16:$G$992,MATCH(NGP!$A65,P!$A$16:$A$992,0),COLUMN())) -> 14 | F65: =IF(ISERROR(INDEX(P!$A$16:$G$992,MATCH(NGP!$A65,P!$A$16:$A$992,0),COLUMN())),"X",INDEX(P!$A$16:$G$992,MATCH(NGP!$A65,P!$A$16:$A$992,0),COLUMN())) -> 15 | G65: =IF(ISERROR(INDEX(P!$A$16:$G$992,MATCH(NGP!$A65,P!$A$16:$A$992,0),COLUMN())),"X",INDEX(P!$A$16:$G$992,MATCH(NGP!$A65,P!$A$16:$A$992,0),COLUMN())) -> P | H65: 11 | I65: 1 | J65: 41 | K65: 26 | L65: 7 | M65: 9 | N65: 0 | O65: 8 | P65: 5 | Q65: 28 | R65: 59 | S65: 6 | T65: 30 | U65: 25 | V65: 31 | W65: 2 | X65: =IF(COUNTIF($B65:$D65,"=X")<3,IF(LEN(SUBSTITUTE(SUBSTITUTE($B65,X$1,,1),,1))=0,0,X64+1-AS65),"") -> 20 | Y65: 15 | Z65: 0 | AA65: 0 | AB65: 61 | AS65: 1 | AT65: 1 | AU65: 1 | AV65: 1 | AW65: 16 | AX65: 61
A66: =IF(P!$A77>0,P!$A77,"") -> 2013-06-23 | B66: =IF(ISERROR(INDEX(P!$A$16:$G$992,MATCH(NGP!$A66,P!$A$16:$A$992,0),COLUMN())),"X",INDEX(P!$A$16:$G$992,MATCH(NGP!$A66,P!$A$16:$A$992,0),COLUMN())) -> 8 | C66: =IF(ISERROR(INDEX(P!$A$16:$G$992,MATCH(NGP!$A66,P!$A$16:$A$992,0),COLUMN())),"X",INDEX(P!$A$16:$G$992,MATCH(NGP!$A66,P!$A$16:$A$992,0),COLUMN())) -> 7 | D66: =IF(ISERROR(INDEX(P!$A$16:$G$992,MATCH(NGP!$A66,P!$A$16:$A$992,0),COLUMN())),"X",INDEX(P!$A$16:$G$992,MATCH(NGP!$A66,P!$A$16:$A$992,0),COLUMN())) -> 1 | E66: =IF(ISERROR(INDEX(P!$A$16:$G$992,MATCH(NGP!$A66,P!$A$16:$A$992,0),COLUMN())),"X",INDEX(P!$A$16:$G$992,MATCH(NGP!$A66,P!$A$16:$A$992,0),COLUMN())) -> 15 | F66: =IF(ISERROR(INDEX(P!$A$16:$G$992,MATCH(NGP!$A66,P!$A$16:$A$992,0),COLUMN())),"X",INDEX(P!$A$16:$G$992,MATCH(NGP!$A66,P!$A$16:$A$992,0),COLUMN())) -> 11 | G66: =IF(ISERROR(INDEX(P!$A$16:$G$992,MATCH(NGP!$A66,P!$A$16:$A$992,0),COLUMN())),"X",INDEX(P!$A$16:$G$992,MATCH(NGP!$A66,P!$A$16:$A$992,0),COLUMN())) -> P | H66: =IF(COUNTIF($B66:$D66,"=X")<3,IF(LEN(SUBSTITUTE(SUBSTITUTE($B66,H$1,,1),,1))=0,0,H65+1-AC66),"") -> 12 | I66: 2 | J66: 42 | K66: 27 | L66: 8 | M66: 10 | N66: 1 | O66: 0 | P66: 6 | Q66: 29 | R66: 60 | S66: 7 | T66: 31 | U66: 26 | V66: 32 | W66: 3 | X66: 20 | Y66: 15 | Z66: 0 | AA66: 0 | AB66: 62 | AS66: 1 | AT66: 1 | AU66: 1 | AV66: 1 | AW66: 16 | AX66: 62
A67: =IF(P!$A78>0,P!$A78,"") -> 2013-06-24 | B67: =IF(ISERROR(INDEX(P!$A$16:$G$992,MATCH(NGP!$A67,P!$A$16:$A$992,0),COLUMN())),"X",INDEX(P!$A$16:$G$992,MATCH(NGP!$A67,P!$A$16:$A$992,0),COLUMN())) -> 6 | C67: =IF(ISERROR(INDEX(P!$A$16:$G$992,MATCH(NGP!$A67,P!$A$16:$A$992,0),COLUMN())),"X",INDEX(P!$A$16:$G$992,MATCH(NGP!$A67,P!$A$16:$A$992,0),COLUMN())) -> 9 | D67: =IF(ISERROR(INDEX(P!$A$16:$G$992,MATCH(NGP!$A67,P!$A$16:$A$992,0),COLUMN())),"X",INDEX(P!$A$16:$G$992,MATCH(NGP!$A67,P!$A$16:$A$992,0),COLUMN())) -> 8 | E67: =IF(ISERROR(INDEX(P!$A$16:$G$992,MATCH(NGP!$A67,P!$A$16:$A$992,0),COLUMN())),"X",INDEX(P!$A$16:$G$992,MATCH(NGP!$A67,P!$A$16:$A$992,0),COLUMN())) -> 11 | F67: =IF(ISERROR(INDEX(P!$A$16:$G$992,MATCH(NGP!$A67,P!$A$16:$A$992,0),COLUMN())),"X",INDEX(P!$A$16:$G$992,MATCH(NGP!$A67,P!$A$16:$A$992,0),COLUMN())) -> 1 | G67: =IF(ISERROR(INDEX(P!$A$16:$G$992,MATCH(NGP!$A67,P!$A$16:$A$992,0),COLUMN())),"X",INDEX(P!$A$16:$G$992,MATCH(NGP!$A67,P!$A$16:$A$992,0),COLUMN())) -> P | H67: 13 | I67: 3 | J67: 43 | K67: 28 | L67: 9 | M67: 0 | N67: 2 | O67: 1 | P67: 7 | Q67: 30 | R67: 61 | S67: 8 | T67: 32 | U67: 27 | V67: 33 | W67: 3 | X67: 20 | Y67: 15 | Z67: 0 | AA67: 0 | AB67: 63 | AR67: 1 | AS67: 1 | AT67: 1 | AU67: 1 | AV67: 1 | AW67: 15 | AX67: 63
A68: =IF(P!$A79>0,P!$A79,"") -> 2013-06-25 | B68: =IF(ISERROR(INDEX(P!$A$16:$G$992,MATCH(NGP!$A68,P!$A$16:$A$992,0),COLUMN())),"X",INDEX(P!$A$16:$G$992,MATCH(NGP!$A68,P!$A$16:$A$992,0),COLUMN())) -> 14 | C68: =IF(ISERROR(INDEX(P!$A$16:$G$992,MATCH(NGP!$A68,P!$A$16:$A$992,0),COLUMN())),"X",INDEX(P!$A$16:$G$992,MATCH(NGP!$A68,P!$A$16:$A$992,0),COLUMN())) -> 13 | D68: =IF(ISERROR(INDEX(P!$A$16:$G$992,MATCH(NGP!$A68,P!$A$16:$A$992,0),COLUMN())),"X",INDEX(P!$A$16:$G$992,MATCH(NGP!$A68,P!$A$16:$A$992,0),COLUMN())) -> 6 | E68: =IF(ISERROR(INDEX(P!$A$16:$G$992,MATCH(NGP!$A68,P!$A$16:$A$992,0),COLUMN())),"X",INDEX(P!$A$16:$G$992,MATCH(NGP!$A68,P!$A$16:$A$992,0),COLUMN())) -> 7 | F68: =IF(ISERROR(INDEX(P!$A$16:$G$992,MATCH(NGP!$A68,P!$A$16:$A$992,0),COLUMN())),"X",INDEX(P!$A$16:$G$992,MATCH(NGP!$A68,P!$A$16:$A$992,0),COLUMN())) -> 18 | G68: =IF(ISERROR(INDEX(P!$A$16:$G$992,MATCH(NGP!$A68,P!$A$16:$A$992,0),COLUMN())),"X",INDEX(P!$A$16:$G$992,MATCH(NGP!$A68,P!$A$16:$A$992,0),COLUMN())) -> P | H68: 14 | I68: 4 | J68: 44 | K68: 29 | L68: 10 | M68: 1 | N68: 3 | O68: 2 | P68: 8 | Q68: 31 | R68: 62 | S68: 9 | T68: 33 | U68: 0 | V68: 34 | W68: 4 | X68: 21 | Y68: 16 | Z68: 0 | AA68: 0 | AB68: 64 | AU68: 1 | AV68: 1 | AW68: 18 | AX68: 64
A69: =IF(P!$A80>0,P!$A80,"") -> 2013-06-26 | B69: =IF(ISERROR(INDEX(P!$A$16:$G$992,MATCH(NGP!$A69,P!$A$16:$A$992,0),COLUMN())),"X",INDEX(P!$A$16:$G$992,MATCH(NGP!$A69,P!$A$16:$A$992,0),COLUMN())) -> 7 | C69: =IF(ISERROR(INDEX(P!$A$16:$G$992,MATCH(NGP!$A69,P!$A$16:$A$992,0),COLUMN())),"X",INDEX(P!$A$16:$G$992,MATCH(NGP!$A69,P!$A$16:$A$992,0),COLUMN())) -> 5 | D69: =IF(ISERROR(INDEX(P!$A$16:$G$992,MATCH(NGP!$A69,P!$A$16:$A$992,0),COLUMN())),"X",INDEX(P!$A$16:$G$992,MATCH(NGP!$A69,P!$A$16:$A$992,0),COLUMN())) -> 9 | E69: =IF(ISERROR(INDEX(P!$A$16:$G$992,MATCH(NGP!$A69,P!$A$16:$A$992,0),COLUMN())),"X",INDEX(P!$A$16:$G$992,MATCH(NGP!$A69,P!$A$16:$A$992,0),COLUMN())) -> 11 | F69: =IF(ISERROR(INDEX(P!$A$16:$G$992,MATCH(NGP!$A69,P!$A$16:$A$992,0),COLUMN())),"X",INDEX(P!$A$16:$G$992,MATCH(NGP!$A69,P!$A$16:$A$992,0),COLUMN())) -> 4 | G69: =IF(ISERROR(INDEX(P!$A$16:$G$992,MATCH(NGP!$A69,P!$A$16:$A$992,0),COLUMN())),"X",INDEX(P!$A$16:$G$992,MATCH(NGP!$A69,P!$A$16:$A$992,0),COLUMN())) -> P | H69: 15 | I69: 5 | J69: 45 | K69: 30 | L69: 11 | M69: 2 | N69: 0 | O69: 3 | P69: 9 | Q69: 32 | R69: 63 | S69: 10 | T69: 34 | U69: 1 | V69: 35 | W69: 5 | X69: 22 | Y69: 16 | Z69: 0 | AA69: 0 | AB69: 65 | AT69: 1 | AU69: 1 | AV69: 1 | AW69: 17 | AX69: 65
A70: =IF(P!$A81>0,P!$A81,"") -> 2013-06-30 | B70: =IF(ISERROR(INDEX(P!$A$16:$G$992,MATCH(NGP!$A70,P!$A$16:$A$992,0),COLUMN())),"X",INDEX(P!$A$16:$G$992,MATCH(NGP!$A70,P!$A$16:$A$992,0),COLUMN())) -> 1 | C70: =IF(ISERROR(INDEX(P!$A$16:$G$992,MATCH(NGP!$A70,P!$A$16:$A$992,0),COLUMN())),"X",INDEX(P!$A$16:$G$992,MATCH(NGP!$A70,P!$A$16:$A$992,0),COLUMN())) -> 8 | D70: =IF(ISERROR(INDEX(P!$A$16:$G$992,MATCH(NGP!$A70,P!$A$16:$A$992,0),COLUMN())),"X",INDEX(P!$A$16:$G$992,MATCH(NGP!$A70,P!$A$16:$A$992,0),COLUMN())) -> 10 | E70: =IF(ISERROR(INDEX(P!$A$16:$G$992,MATCH(NGP!$A70,P!$A$16:$A$992,0),COLUMN())),"X",INDEX(P!$A$16:$G$992,MATCH(NGP!$A70,P!$A$16:$A$992,0),COLUMN())) -> 4 | F70: =IF(ISERROR(INDEX(P!$A$16:$G$992,MATCH(NGP!$A70,P!$A$16:$A$992,0),COLUMN())),"X",INDEX(P!$A$16:$G$992,MATCH(NGP!$A70,P!$A$16:$A$992,0),COLUMN())) -> 16 | G70: =IF(ISERROR(INDEX(P!$A$16:$G$992,MATCH(NGP!$A70,P!$A$16:$A$992,0),COLUMN())),"X",INDEX(P!$A$16:$G$992,MATCH(NGP!$A70,P!$A$16:$A$992,0),COLUMN())) -> P | H70: 0 | I70: 6 | J70: 45 | K70: 31 | L70: 12 | M70: 3 | N70: 1 | O70: 4 | P70: 10 | Q70: 33 | R70: 64 | S70: 11 | T70: 35 | U70: 2 | V70: 36 | W70: 6 | X70: 22 | Y70: 16 | Z70: 0 | AA70: 0 | AB70: 66 | AE70: 1 | AS70: 1 | AT70: 1 | AU70: 1 | AV70: 1 | AW70: =IF(A70<>"",20-SUM(AC70:AV70),"") -> 15 | AX70: 66 | AY70: 3
A71: =IF(P!$A82>0,P!$A82,"") -> 2013-07-01 | B71: =IF(ISERROR(INDEX(P!$A$16:$G$992,MATCH(NGP!$A71,P!$A$16:$A$992,0),COLUMN())),"X",INDEX(P!$A$16:$G$992,MATCH(NGP!$A71,P!$A$16:$A$992,0),COLUMN())) -> 8 | C71: =IF(ISERROR(INDEX(P!$A$16:$G$992,MATCH(NGP!$A71,P!$A$16:$A$992,0),COLUMN())),"X",INDEX(P!$A$16:$G$992,MATCH(NGP!$A71,P!$A$16:$A$992,0),COLUMN())) -> 13 | D71: =IF(ISERROR(INDEX(P!$A$16:$G$992,MATCH(NGP!$A71,P!$A$16:$A$992,0),COLUMN())),"X",INDEX(P!$A$16:$G$992,MATCH(NGP!$A71,P!$A$16:$A$992,0),COLUMN())) -> 15 | E71: =IF(ISERROR(INDEX(P!$A$16:$G$992,MATCH(NGP!$A71,P!$A$16:$A$992,0),COLUMN())),"X",INDEX(P!$A$16:$G$992,MATCH(NGP!$A71,P!$A$16:$A$992,0),COLUMN())) -> 2 | F71: =IF(ISERROR(INDEX(P!$A$16:$G$992,MATCH(NGP!$A71,P!$A$16:$A$992,0),COLUMN())),"X",INDEX(P!$A$16:$G$992,MATCH(NGP!$A71,P!$A$16:$A$992,0),COLUMN())) -> 16 | G71: =IF(ISERROR(INDEX(P!$A$16:$G$992,MATCH(NGP!$A71,P!$A$16:$A$992,0),COLUMN())),"X",INDEX(P!$A$16:$G$992,MATCH(NGP!$A71,P!$A$16:$A$992,0),COLUMN())) -> P | H71: 1 | I71: 7 | J71: 45 | K71: 32 | L71: 13 | M71: 4 | N71: 2 | O71: 0 | P71: 11 | Q71: 34 | R71: 65 | S71: 12 | T71: 36 | U71: 3 | V71: 37 | W71: 7 | X71: 22 | Y71: 16 | Z71: 0 | AA71: 0 | AB71: =SUM(AB70+1) -> 67 | AE71: 1 | AS71: 1 | AT71: 1 | AU71: 1 | AV71: 1 | AW71: 15 | AX71: =SUM(AX70+1) -> 67 | AY71: 3
A72: =IF(P!$A83>0,P!$A83,"") -> 2013-07-07 | B72: =IF(ISERROR(INDEX(P!$A$16:$G$992,MATCH(NGP!$A72,P!$A$16:$A$992,0),COLUMN())),"X",INDEX(P!$A$16:$G$992,MATCH(NGP!$A72,P!$A$16:$A$992,0),COLUMN())) -> 5 | C72: =IF(ISERROR(INDEX(P!$A$16:$G$992,MATCH(NGP!$A72,P!$A$16:$A$992,0),COLUMN())),"X",INDEX(P!$A$16:$G$992,MATCH(NGP!$A72,P!$A$16:$A$992,0),COLUMN())) -> 1 | D72: =IF(ISERROR(INDEX(P!$A$16:$G$992,MATCH(NGP!$A72,P!$A$16:$A$992,0),COLUMN())),"X",INDEX(P!$A$16:$G$992,MATCH(NGP!$A72,P!$A$16:$A$992,0),COLUMN())) -> 13 | E72: =IF(ISERROR(INDEX(P!$A$16:$G$992,MATCH(NGP!$A72,P!$A$16:$A$992,0),COLUMN())),"X",INDEX(P!$A$16:$G$992,MATCH(NGP!$A72,P!$A$16:$A$992,0),COLUMN())) -> 12 | F72: =IF(ISERROR(INDEX(P!$A$16:$G$992,MATCH(NGP!$A72,P!$A$16:$A$992,0),COLUMN())),"X",INDEX(P!$A$16:$G$992,MATCH(NGP!$A72,P!$A$16:$A$992,0),COLUMN())) -> 14 | G72: =IF(ISERROR(INDEX(P!$A$16:$G$992,MATCH(NGP!$A72,P!$A$16:$A$992,0),COLUMN())),"X",INDEX(P!$A$16:$G$992,MATCH(NGP!$A72,P!$A$16:$A$992,0),COLUMN())) -> P | H72: 2 | I72: 8 | J72: 46 | K72: 33 | L72: 0 | M72: 5 | N72: 3 | O72: 1 | P72: 12 | Q72: 35 | R72: 66 | S72: 13 | T72: 37 | U72: 4 | V72: 38 | W72: 8 | X72: 22 | Y72: 16 | Z72: 0 | AA72: 0 | AB72: 68 | AS72: 1 | AT72: 1 | AU72: 1 | AV72: 1 | AW72: 16 | AX72: 68
A73: 2013-07-08 | B73: =IF(ISERROR(INDEX(P!$A$16:$G$992,MATCH(NGP!$A73,P!$A$16:$A$992,0),COLUMN())),"X",INDEX(P!$A$16:$G$992,MATCH(NGP!$A73,P!$A$16:$A$992,0),COLUMN())) -> 6 | C73: =IF(ISERROR(INDEX(P!$A$16:$G$992,MATCH(NGP!$A73,P!$A$16:$A$992,0),COLUMN())),"X",INDEX(P!$A$16:$G$992,MATCH(NGP!$A73,P!$A$16:$A$992,0),COLUMN())) -> 5 | D73: =IF(ISERROR(INDEX(P!$A$16:$G$992,MATCH(NGP!$A73,P!$A$16:$A$992,0),COLUMN())),"X",INDEX(P!$A$16:$G$992,MATCH(NGP!$A73,P!$A$16:$A$992,0),COLUMN())) -> 16 | E73: =IF(ISERROR(INDEX(P!$A$16:$G$992,MATCH(NGP!$A73,P!$A$16:$A$992,0),COLUMN())),"X",INDEX(P!$A$16:$G$992,MATCH(NGP!$A73,P!$A$16:$A$992,0),COLUMN())) -> 10 | F73: =IF(ISERROR(INDEX(P!$A$16:$G$992,MATCH(NGP!$A73,P!$A$16:$A$992,0),COLUMN())),"X",INDEX(P!$A$16:$G$992,MATCH(NGP!$A73,P!$A$16:$A$992,0),COLUMN())) -> 8 | G73: =IF(ISERROR(INDEX(P!$A$16:$G$992,MATCH(NGP!$A73,P!$A$16:$A$992,0),COLUMN())),"X",INDEX(P!$A$16:$G$992,MATCH(NGP!$A73,P!$A$16:$A$992,0),COLUMN())) -> P | H73: 3 | I73: 9 | J73: 47 | K73: 34 | L73: 1 | M73: 0 | N73: 4 | O73: 2 | P73: 13 | Q73: 36 | R73: 67 | S73: 14 | T73: 38 | U73: 5 | V73: 39 | W73: 9 | X73: 22 | Y73: 16 | Z73: 0 | AA73: 0 | AB73: 69 | AS73: 1 | AT73: 1 | AU73: 1 | AV73: 1 | AW73: =IF(A74<>"",20-SUM(AC74:AV74),"") -> 14 | AX73: 69 | AY73: 13
A74: =IF(P!$A85>0,P!$A85,"") -> 2013-07-11 | B74: =IF(ISERROR(INDEX(P!$A$16:$G$992,MATCH(NGP!$A74,P!$A$16:$A$992,0),COLUMN())),"X",INDEX(P!$A$16:$G$992,MATCH(NGP!$A74,P!$A$16:$A$992,0),COLUMN())) -> 6 | C74: =IF(ISERROR(INDEX(P!$A$16:$G$992,MATCH(NGP!$A74,P!$A$16:$A$992,0),COLUMN())),"X",INDEX(P!$A$16:$G$992,MATCH(NGP!$A74,P!$A$16:$A$992,0),COLUMN())) -> 1 | D74: =IF(ISERROR(INDEX(P!$A$16:$G$992,MATCH(NGP!$A74,P!$A$16:$A$992,0),COLUMN())),"X",INDEX(P!$A$16:$G$992,MATCH(NGP!$A74,P!$A$16:$A$992,0),COLUMN())) -> 11 | E74: =IF(ISERROR(INDEX(P!$A$16:$G$992,MATCH(NGP!$A74,P!$A$16:$A$992,0),COLUMN())),"X",INDEX(P!$A$16:$G$992,MATCH(NGP!$A74,P!$A$16:$A$992,0),COLUMN())) -> 2 | F74: =IF(ISERROR(INDEX(P!$A$16:$G$992,MATCH(NGP!$A74,P!$A$16:$A$992,0),COLUMN())),"X",INDEX(P!$A$16:$G$992,MATCH(NGP!$A74,P!$A$16:$A$992,0),COLUMN())) -> 14 | G74: =IF(ISERROR(INDEX(P!$A$16:$G$992,MATCH(NGP!$A74,P!$A$16:$A$992,0),COLUMN())),"X",INDEX(P!$A$16:$G$992,MATCH(NGP!$A74,P!$A$16:$A$992,0),COLUMN())) -> P | H74: 4 | I74: 10 | J74: 48 | K74: 35 | L74: 2 | M74: 0 | N74: 5 | O74: 3 | P74: 14 | Q74: 37 | R74: 68 | S74: 15 | T74: 38 | U74: 6 | V74: 40 | W74: 9 | X74: 22 | Y74: 16 | Z74: 0 | AA74: 0 | AB74: 70 | AO74: 1 | AR74: 1 | AS74: 1 | AT74: 1 | AU74: 1 | AV74: 1 | AW74: =IF(A75<>"",20-SUM(AC75:AV75),"") -> 15 | AX74: 70
A75: =IF(P!$A86>0,P!$A86,"") -> 2013-07-13 | B75: =IF(ISERROR(INDEX(P!$A$16:$G$992,MATCH(NGP!$A75,P!$A$16:$A$992,0),COLUMN())),"X",INDEX(P!$A$16:$G$992,MATCH(NGP!$A75,P!$A$16:$A$992,0),COLUMN())) -> 10 | C75: =IF(ISERROR(INDEX(P!$A$16:$G$992,MATCH(NGP!$A75,P!$A$16:$A$992,0),COLUMN())),"X",INDEX(P!$A$16:$G$992,MATCH(NGP!$A75,P!$A$16:$A$992,0),COLUMN())) -> 2 | D75: =IF(ISERROR(INDEX(P!$A$16:$G$992,MATCH(NGP!$A75,P!$A$16:$A$992,0),COLUMN())),"X",INDEX(P!$A$16:$G$992,MATCH(NGP!$A75,P!$A$16:$A$992,0),COLUMN())) -> 13 | E75: =IF(ISERROR(INDEX(P!$A$16:$G$992,MATCH(NGP!$A75,P!$A$16:$A$992,0),COLUMN())),"X",INDEX(P!$A$16:$G$992,MATCH(NGP!$A75,P!$A$16:$A$992,0),COLUMN())) -> 12 | F75: =IF(ISERROR(INDEX(P!$A$16:$G$992,MATCH(NGP!$A75,P!$A$16:$A$992,0),COLUMN())),"X",INDEX(P!$A$16:$G$992,MATCH(NGP!$A75,P!$A$16:$A$992,0),COLUMN())) -> 8 | G75: =IF(ISERROR(INDEX(P!$A$16:$G$992,MATCH(NGP!$A75,P!$A$16:$A$992,0),COLUMN())),"X",INDEX(P!$A$16:$G$992,MATCH(NGP!$A75,P!$A$16:$A$992,0),COLUMN())) -> P | H75: 5 | I75: 11 | J75: 49 | K75: 36 | L75: 3 | M75: 1 | N75: 6 | O75: 4 | P75: 15 | Q75: 0 | R75: 69 | S75: 16 | T75: 39 | U75: 7 | V75: 41 | W75: 9 | X75: 22 | Y75: 16 | Z75: 0 | AA75: 0 | AB75: 71 | AR75: 1 | AS75: 1 | AT75: 1 | AU75: 1 | AV75: 1 | AW75: =IF(A76<>"",20-SUM(AC76:AV76),"") -> 15 | AX75: 71
A76: =IF(P!$A87>0,P!$A87,"") -> 2013-07-14 | B76: =IF(ISERROR(INDEX(P!$A$16:$G$992,MATCH(NGP!$A76,P!$A$16:$A$992,0),COLUMN())),"X",INDEX(P!$A$16:$G$992,MATCH(NGP!$A76,P!$A$16:$A$992,0),COLUMN())) -> 7 | C76: =IF(ISERROR(INDEX(P!$A$16:$G$992,MATCH(NGP!$A76,P!$A$16:$A$992,0),COLUMN())),"X",INDEX(P!$A$16:$G$992,MATCH(NGP!$A76,P!$A$16:$A$992,0),COLUMN())) -> 14 | D76: =IF(ISERROR(INDEX(P!$A$16:$G$992,MATCH(NGP!$A76,P!$A$16:$A$992,0),COLUMN())),"X",INDEX(P!$A$16:$G$992,MATCH(NGP!$A76,P!$A$16:$A$992,0),COLUMN())) -> 4 | E76: =IF(ISERROR(INDEX(P!$A$16:$G$992,MATCH(NGP!$A76,P!$A$16:$A$992,0),COLUMN())),"X",INDEX(P!$A$16:$G$992,MATCH(NGP!$A76,P!$A$16:$A$992,0),COLUMN())) -> 13 | F76: =IF(ISERROR(INDEX(P!$A$16:$G$992,MATCH(NGP!$A76,P!$A$16:$A$992,0),COLUMN())),"X",INDEX(P!$A$16:$G$992,MATCH(NGP!$A76,P!$A$16:$A$992,0),COLUMN())) -> 1 | G76: =IF(ISERROR(INDEX(P!$A$16:$G$992,MATCH(NGP!$A76,P!$A$16:$A$992,0),COLUMN())),"X",INDEX(P!$A$16:$G$992,MATCH(NGP!$A76,P!$A$16:$A$992,0),COLUMN())) -> P | H76: 6 | I76: 12 | J76: 50 | K76: 37 | L76: 4 | M76: 2 | N76: 0 | O76: 5 | P76: 16 | Q76: 1 | R76: 70 | S76: 17 | T76: 40 | U76: 8 | V76: 42 | W76: 9 | X76: 22 | Y76: 16 | Z76: 0 | AA76: 0 | AB76: 72 | AR76: 1 | AS76: 1 | AT76: 1 | AU76: 1 | AV76: 1 | AW76: =IF(A77<>"",20-SUM(AC77:AV77),"") -> 19 | AX76: 72
A77: =IF(P!$A88>0,P!$A88,"") -> 2013-07-15 | B77: =IF(ISERROR(INDEX(P!$A$16:$G$992,MATCH(NGP!$A77,P!$A$16:$A$992,0),COLUMN())),"X",INDEX(P!$A$16:$G$992,MATCH(NGP!$A77,P!$A$16:$A$992,0),COLUMN())) -> 4 | C77: =IF(ISERROR(INDEX(P!$A$16:$G$992,MATCH(NGP!$A77,P!$A$16:$A$992,0),COLUMN())),"X",INDEX(P!$A$16:$G$992,MATCH(NGP!$A77,P!$A$16:$A$992,0),COLUMN())) -> 13 | D77: =IF(ISERROR(INDEX(P!$A$16:$G$992,MATCH(NGP!$A77,P!$A$16:$A$992,0),COLUMN())),"X",INDEX(P!$A$16:$G$992,MATCH(NGP!$A77,P!$A$16:$A$992,0),COLUMN())) -> 16 | E77: =IF(ISERROR(INDEX(P!$A$16:$G$992,MATCH(NGP!$A77,P!$A$16:$A$992,0),COLUMN())),"X",INDEX(P!$A$16:$G$992,MATCH(NGP!$A77,P!$A$16:$A$992,0),COLUMN())) -> 2 | F77: =IF(ISERROR(INDEX(P!$A$16:$G$992,MATCH(NGP!$A77,P!$A$16:$A$992,0),COLUMN())),"X",INDEX(P!$A$16:$G$992,MATCH(NGP!$A77,P!$A$16:$A$992,0),COLUMN())) -> 9 | G77: =IF(ISERROR(INDEX(P!$A$16:$G$992,MATCH(NGP!$A77,P!$A$16:$A$992,0),COLUMN())),"X",INDEX(P!$A$16:$G$992,MATCH(NGP!$A77,P!$A$16:$A$992,0),COLUMN())) -> P | H77: 7 | I77: 13 | J77: 51 | K77: 0 | L77: 5 | M77: 3 | N77: 1 | O77: 6 | P77: 17 | Q77: 2 | R77: 71 | S77: 18 | T77: 41 | U77: 9 | V77: 43 | W77: 10 | X77: 23 | Y77: 17 | Z77: 1 | AA77: 0 | AB77: 73 | AV77: 1 | AW77: =IF(A78<>"",20-SUM(AC78:AV78),"") -> 18 | AX77: 73
A78: =IF(P!$A89>0,P!$A89,"") -> 2013-07-16 | B78: =IF(ISERROR(INDEX(P!$A$16:$G$992,MATCH(NGP!$A78,P!$A$16:$A$992,0),COLUMN())),"X",INDEX(P!$A$16:$G$992,MATCH(NGP!$A78,P!$A$16:$A$992,0),COLUMN())) -> 16 | C78: =IF(ISERROR(INDEX(P!$A$16:$G$992,MATCH(NGP!$A78,P!$A$16:$A$992,0),COLUMN())),"X",INDEX(P!$A$16:$G$992,MATCH(NGP!$A78,P!$A$16:$A$992,0),COLUMN())) -> 8 | D78: =IF(ISERROR(INDEX(P!$A$16:$G$992,MATCH(NGP!$A78,P!$A$16:$A$992,0),COLUMN())),"X",INDEX(P!$A$16:$G$992,MATCH(NGP!$A78,P!$A$16:$A$992,0),COLUMN())) -> 18 | E78: =IF(ISERROR(INDEX(P!$A$16:$G$992,MATCH(NGP!$A78,P!$A$16:$A$992,0),COLUMN())),"X",INDEX(P!$A$16:$G$992,MATCH(NGP!$A78,P!$A$16:$A$992,0),COLUMN())) -> 2 | F78: =IF(ISERROR(INDEX(P!$A$16:$G$992,MATCH(NGP!$A78,P!$A$16:$A$992,0),COLUMN())),"X",INDEX(P!$A$16:$G$992,MATCH(NGP!$A78,P!$A$16:$A$992,0),COLUMN())) -> 11 | G78: =IF(ISERROR(INDEX(P!$A$16:$G$992,MATCH(NGP!$A78,P!$A$16:$A$992,0),COLUMN())),"X",INDEX(P!$A$16:$G$992,MATCH(NGP!$A78,P!$A$16:$A$992,0),COLUMN())) -> P | H78: 8 | I78: 14 | J78: 52 | K78: 1 | L78: 6 | M78: 4 | N78: 2 | O78: 7 | P78: 18 | Q78: 3 | R78: 72 | S78: 19 | T78: 42 | U78: 10 | V78: 44 | W78: 0 | X78: 24 | Y78: 18 | Z78: 1 | AA78: 0 | AB78: 74 | AU78: 1 | AV78: 1 | AW78: =IF(A79<>"",20-SUM(AC79:AV79),"") -> 14 | AX78: 74
A79: =IF(P!$A90>0,P!$A90,"") -> 2013-07-18 | B79: =IF(ISERROR(INDEX(P!$A$16:$G$992,MATCH(NGP!$A79,P!$A$16:$A$992,0),COLUMN())),"X",INDEX(P!$A$16:$G$992,MATCH(NGP!$A79,P!$A$16:$A$992,0),COLUMN())) -> 8 | C79: =IF(ISERROR(INDEX(P!$A$16:$G$992,MATCH(NGP!$A79,P!$A$16:$A$992,0),COLUMN())),"X",INDEX(P!$A$16:$G$992,MATCH(NGP!$A79,P!$A$16:$A$992,0),COLUMN())) -> 6 | D79: =IF(ISERROR(INDEX(P!$A$16:$G$992,MATCH(NGP!$A79,P!$A$16:$A$992,0),COLUMN())),"X",INDEX(P!$A$16:$G$992,MATCH(NGP!$A79,P!$A$16:$A$992,0),COLUMN())) -> 2 | E79: =IF(ISERROR(INDEX(P!$A$16:$G$992,MATCH(NGP!$A79,P!$A$16:$A$992,0),COLUMN())),"X",INDEX(P!$A$16:$G$992,MATCH(NGP!$A79,P!$A$16:$A$992,0),COLUMN())) -> 7 | F79: =IF(ISERROR(INDEX(P!$A$16:$G$992,MATCH(NGP!$A79,P!$A$16:$A$992,0),COLUMN())),"X",INDEX(P!$A$16:$G$992,MATCH(NGP!$A79,P!$A$16:$A$992,0),COLUMN())) -> 5 | G79: =IF(ISERROR(INDEX(P!$A$16:$G$992,MATCH(NGP!$A79,P!$A$16:$A$992,0),COLUMN())),"X",INDEX(P!$A$16:$G$992,MATCH(NGP!$A79,P!$A$16:$A$992,0),COLUMN())) -> P | H79: 9 | I79: 15 | J79: 53 | K79: 2 | L79: 7 | M79: 5 | N79: 3 | O79: 0 | P79: 19 | Q79: 4 | R79: 73 | S79: 20 | T79: 43 | U79: 11 | V79: 44 | W79: 0 | X79: 24 | Y79: 18 | Z79: 1 | AA79: 0 | AB79: 75 | AQ79: 1 | AR79: 1 | AS79: 1 | AT79: 1 | AU79: 1 | AV79: 1 | AW79: =IF(A80<>"",20-SUM(AC80:AV80),"") -> 14 | AX79: 75 | AY79: 14
A80: =IF(P!$A91>0,P!$A91,"") -> 2013-07-21 | B80: =IF(ISERROR(INDEX(P!$A$16:$G$992,MATCH(NGP!$A80,P!$A$16:$A$992,0),COLUMN())),"X",INDEX(P!$A$16:$G$992,MATCH(NGP!$A80,P!$A$16:$A$992,0),COLUMN())) -> 7 | C80: =IF(ISERROR(INDEX(P!$A$16:$G$992,MATCH(NGP!$A80,P!$A$16:$A$992,0),COLUMN())),"X",INDEX(P!$A$16:$G$992,MATCH(NGP!$A80,P!$A$16:$A$992,0),COLUMN())) -> 13 | D80: =IF(ISERROR(INDEX(P!$A$16:$G$992,MATCH(NGP!$A80,P!$A$16:$A$992,0),COLUMN())),"X",INDEX(P!$A$16:$G$992,MATCH(NGP!$A80,P!$A$16:$A$992,0),COLUMN())) -> 5 | E80: =IF(ISERROR(INDEX(P!$A$16:$G$992,MATCH(NGP!$A80,P!$A$16:$A$992,0),COLUMN())),"X",INDEX(P!$A$16:$G$992,MATCH(NGP!$A80,P!$A$16:$A$992,0),COLUMN())) -> 6 | F80: =IF(ISERROR(INDEX(P!$A$16:$G$992,MATCH(NGP!$A80,P!$A$16:$A$992,0),COLUMN())),"X",INDEX(P!$A$16:$G$992,MATCH(NGP!$A80,P!$A$16:$A$992,0),COLUMN())) -> 2 | G80: =IF(ISERROR(INDEX(P!$A$16:$G$992,MATCH(NGP!$A80,P!$A$16:$A$992,0),COLUMN())),"X",INDEX(P!$A$16:$G$992,MATCH(NGP!$A80,P!$A$16:$A$992,0),COLUMN())) -> P | H80: 10 | I80: 16 | J80: 54 | K80: 3 | L80: 8 | M80: 6 | N80: 0 | O80: 1 | P80: 20 | Q80: 5 | R80: 74 | S80: 21 | T80: 44 | U80: 11 | V80: 45 | W80: 0 | X80: 24 | Y80: 18 | Z80: 1 | AA80: 0 | AB80: 76 | AP80: 1 | AR80: 1 | AS80: 1 | AT80: 1 | AU80: 1 | AV80: 1 | AW80: =IF(A81<>"",20-SUM(AC81:AV81),"") -> 16 | AX80: 76
A81: =IF(P!$A92>0,P!$A92,"") -> 2013-07-22 | B81: =IF(ISERROR(INDEX(P!$A$16:$G$992,MATCH(NGP!$A81,P!$A$16:$A$992,0),COLUMN())),"X",INDEX(P!$A$16:$G$992,MATCH(NGP!$A81,P!$A$16:$A$992,0),COLUMN())) -> 12 | C81: =IF(ISERROR(INDEX(P!$A$16:$G$992,MATCH(NGP!$A81,P!$A$16:$A$992,0),COLUMN())),"X",INDEX(P!$A$16:$G$992,MATCH(NGP!$A81,P!$A$16:$A$992,0),COLUMN())) -> 6 | D81: =IF(ISERROR(INDEX(P!$A$16:$G$992,MATCH(NGP!$A81,P!$A$16:$A$992,0),COLUMN())),"X",INDEX(P!$A$16:$G$992,MATCH(NGP!$A81,P!$A$16:$A$992,0),COLUMN())) -> 5 | E81: =IF(ISERROR(INDEX(P!$A$16:$G$992,MATCH(NGP!$A81,P!$A$16:$A$992,0),COLUMN())),"X",INDEX(P!$A$16:$G$992,MATCH(NGP!$A81,P!$A$16:$A$992,0),COLUMN())) -> 2 | F81: =IF(ISERROR(INDEX(P!$A$16:$G$992,MATCH(NGP!$A81,P!$A$16:$A$992,0),COLUMN())),"X",INDEX(P!$A$16:$G$992,MATCH(NGP!$A81,P!$A$16:$A$992,0),COLUMN())) -> 3 | G81: =IF(ISERROR(INDEX(P!$A$16:$G$992,MATCH(NGP!$A81,P!$A$16:$A$992,0),COLUMN())),"X",INDEX(P!$A$16:$G$992,MATCH(NGP!$A81,P!$A$16:$A$992,0),COLUMN())) -> P | H81: 11 | I81: 17 | J81: 55 | K81: 4 | L81: 9 | M81: 7 | N81: 1 | O81: 2 | P81: 21 | Q81: 6 | R81: 75 | S81: 0 | T81: 45 | U81: 12 | V81: 46 | W81: =IF(COUNTIF($B81:$D81,"=X")<3,IF(LEN(SUBSTITUTE(SUBSTITUTE($B81,W$1,,1),,1))=0,0,W80+1-AR81),"") -> 1 | X81: 24 | Y81: 18 | Z81: 1 | AA81: 0 | AB81: 77 | AS81: 1 | AT81: 1 | AU81: 1 | AV81: 1 | AW81: =IF(A82<>"",20-SUM(AC82:AV82),"") -> 18 | AX81: 77
A82: =IF(P!$A93>0,P!$A93,"") -> 2013-07-23 | B82: =IF(ISERROR(INDEX(P!$A$16:$G$992,MATCH(NGP!$A82,P!$A$16:$A$992,0),COLUMN())),"X",INDEX(P!$A$16:$G$992,MATCH(NGP!$A82,P!$A$16:$A$992,0),COLUMN())) -> 18 | C82: =IF(ISERROR(INDEX(P!$A$16:$G$992,MATCH(NGP!$A82,P!$A$16:$A$992,0),COLUMN())),"X",INDEX(P!$A$16:$G$992,MATCH(NGP!$A82,P!$A$16:$A$992,0),COLUMN())) -> 2 | D82: =IF(ISERROR(INDEX(P!$A$16:$G$992,MATCH(NGP!$A82,P!$A$16:$A$992,0),COLUMN())),"X",INDEX(P!$A$16:$G$992,MATCH(NGP!$A82,P!$A$16:$A$992,0),COLUMN())) -> 12 | E82: =IF(ISERROR(INDEX(P!$A$16:$G$992,MATCH(NGP!$A82,P!$A$16:$A$992,0),COLUMN())),"X",INDEX(P!$A$16:$G$992,MATCH(NGP!$A82,P!$A$16:$A$992,0),COLUMN())) -> 10 | F82: =IF(ISERROR(INDEX(P!$A$16:$G$992,MATCH(NGP!$A82,P!$A$16:$A$992,0),COLUMN())),"X",INDEX(P!$A$16:$G$992,MATCH(NGP!$A82,P!$A$16:$A$992,0),COLUMN())) -> 9 | G82: =IF(ISERROR(INDEX(P!$A$16:$G$992,MATCH(NGP!$A82,P!$A$16:$A$992,0),COLUMN())),"X",INDEX(P!$A$16:$G$992,MATCH(NGP!$A82,P!$A$16:$A$992,0),COLUMN())) -> P | H82: =IF(COUNTIF($B82:$D82,"=X")<3,IF(LEN(SUBSTITUTE(SUBSTITUTE($B82,H$1,,1),,1))=0,0,H81+1-AC82),"") -> 12 | I82: 18 | J82: 56 | K82: 5 | L82: 10 | M82: 8 | N82: 2 | O82: 3 | P82: 22 | Q82: 7 | R82: 76 | S82: 1 | T82: 46 | U82: 13 | V82: 47 | W82: 2 | X82: 25 | Y82: 0 | Z82: 1 | AA82: 0 | AB82: 78 | AU82: 1 | AV82: 1 | AW82: =IF(A83<>"",20-SUM(AC83:AV83),"") -> 16 | AX82: 78
A83: =IF(P!$A94>0,P!$A94,"") -> 2013-07-25 | B83: =IF(ISERROR(INDEX(P!$A$16:$G$992,MATCH(NGP!$A83,P!$A$16:$A$992,0),COLUMN())),"X",INDEX(P!$A$16:$G$992,MATCH(NGP!$A83,P!$A$16:$A$992,0),COLUMN())) -> 10 | C83: =IF(ISERROR(INDEX(P!$A$16:$G$992,MATCH(NGP!$A83,P!$A$16:$A$992,0),COLUMN())),"X",INDEX(P!$A$16:$G$992,MATCH(NGP!$A83,P!$A$16:$A$992,0),COLUMN())) -> 6 | D83: =IF(ISERROR(INDEX(P!$A$16:$G$992,MATCH(NGP!$A83,P!$A$16:$A$992,0),COLUMN())),"X",INDEX(P!$A$16:$G$992,MATCH(NGP!$A83,P!$A$16:$A$992,0),COLUMN())) -> 9 | E83: =IF(ISERROR(INDEX(P!$A$16:$G$992,MATCH(NGP!$A83,P!$A$16:$A$992,0),COLUMN())),"X",INDEX(P!$A$16:$G$992,MATCH(NGP!$A83,P!$A$16:$A$992,0),COLUMN())) -> 15 | F83: =IF(ISERROR(INDEX(P!$A$16:$G$992,MATCH(NGP!$A83,P!$A$16:$A$992,0),COLUMN())),"X",INDEX(P!$A$16:$G$992,MATCH(NGP!$A83,P!$A$16:$A$992,0),COLUMN())) -> 13 | G83: =IF(ISERROR(INDEX(P!$A$16:$G$992,MATCH(NGP!$A83,P!$A$16:$A$992,0),COLUMN())),"X",INDEX(P!$A$16:$G$992,MATCH(NGP!$A83,P!$A$16:$A$992,0),COLUMN())) -> P | H83: 13 | I83: 19 | J83: 57 | K83: 6 | L83: 11 | M83: 9 | N83: 3 | O83: 4 | P83: 23 | Q83: 0 | R83: 77 | S83: 2 | T83: 47 | U83: 14 | V83: 48 | W83: 3 | X83: 25 | Y83: 0 | Z83: 1 | AA83: 0 | AB83: 79 | AS83: 1 | AT83: 1 | AU83: 1 | AV83: 1 | AW83: =IF(A84<>"",20-SUM(AC84:AV84),"") -> 16 | AX83: 79
A84: =IF(P!$A95>0,P!$A95,"") -> 2013-07-28 | B84: =IF(ISERROR(INDEX(P!$A$16:$G$992,MATCH(NGP!$A84,P!$A$16:$A$992,0),COLUMN())),"X",INDEX(P!$A$16:$G$992,MATCH(NGP!$A84,P!$A$16:$A$992,0),COLUMN())) -> 14 | C84: =IF(ISERROR(INDEX(P!$A$16:$G$992,MATCH(NGP!$A84,P!$A$16:$A$992,0),COLUMN())),"X",INDEX(P!$A$16:$G$992,MATCH(NGP!$A84,P!$A$16:$A$992,0),COLUMN())) -> 5 | D84: =IF(ISERROR(INDEX(P!$A$16:$G$992,MATCH(NGP!$A84,P!$A$16:$A$992,0),COLUMN())),"X",INDEX(P!$A$16:$G$992,MATCH(NGP!$A84,P!$A$16:$A$992,0),COLUMN())) -> 3 | E84: =IF(ISERROR(INDEX(P!$A$16:$G$992,MATCH(NGP!$A84,P!$A$16:$A$992,0),COLUMN())),"X",INDEX(P!$A$16:$G$992,MATCH(NGP!$A84,P!$A$16:$A$992,0),COLUMN())) -> 1 | F84: =IF(ISERROR(INDEX(P!$A$16:$G$992,MATCH(NGP!$A84,P!$A$16:$A$992,0),COLUMN())),"X",INDEX(P!$A$16:$G$992,MATCH(NGP!$A84,P!$A$16:$A$992,0),COLUMN())) -> 13 | G84: =IF(ISERROR(INDEX(P!$A$16:$G$992,MATCH(NGP!$A84,P!$A$16:$A$992,0),COLUMN())),"X",INDEX(P!$A$16:$G$992,MATCH(NGP!$A84,P!$A$16:$A$992,0),COLUMN())) -> P | H84: 14 | I84: 20 | J84: 58 | K84: 7 | L84: 12 | M84: 10 | N84: 4 | O84: 5 | P84: 24 | Q84: 1 | R84: 78 | S84: 3 | T84: 48 | U84: 0 | V84: 49 | W84: 4 | X84: 25 | Y84: 0 | Z84: 1 | AA84: 0 | AB84: 80 | AS84: 1 | AT84: 1 | AU84: 1 | AV84: 1 | AW84: =IF(A85<>"",20-SUM(AC85:AV85),"") -> 13 | AX84: 80 | AY84: 12 | AZ84: 13
A85: =IF(P!$A96>0,P!$A96,"") -> 2013-07-29 | B85: =IF(ISERROR(INDEX(P!$A$16:$G$992,MATCH(NGP!$A85,P!$A$16:$A$992,0),COLUMN())),"X",INDEX(P!$A$16:$G$992,MATCH(NGP!$A85,P!$A$16:$A$992,0),COLUMN())) -> 1 | C85: =IF(ISERROR(INDEX(P!$A$16:$G$992,MATCH(NGP!$A85,P!$A$16:$A$992,0),COLUMN())),"X",INDEX(P!$A$16:$G$992,MATCH(NGP!$A85,P!$A$16:$A$992,0),COLUMN())) -> 5 | D85: =IF(ISERROR(INDEX(P!$A$16:$G$992,MATCH(NGP!$A85,P!$A$16:$A$992,0),COLUMN())),"X",INDEX(P!$A$16:$G$992,MATCH(NGP!$A85,P!$A$16:$A$992,0),COLUMN())) -> 8 | E85: =IF(ISERROR(INDEX(P!$A$16:$G$992,MATCH(NGP!$A85,P!$A$16:$A$992,0),COLUMN())),"X",INDEX(P!$A$16:$G$992,MATCH(NGP!$A85,P!$A$16:$A$992,0),COLUMN())) -> 4 | F85: =IF(ISERROR(INDEX(P!$A$16:$G$992,MATCH(NGP!$A85,P!$A$16:$A$992,0),COLUMN())),"X",INDEX(P!$A$16:$G$992,MATCH(NGP!$A85,P!$A$16:$A$992,0),COLUMN())) -> 6 | G85: =IF(ISERROR(INDEX(P!$A$16:$G$992,MATCH(NGP!$A85,P!$A$16:$A$992,0),COLUMN())),"X",INDEX(P!$A$16:$G$992,MATCH(NGP!$A85,P!$A$16:$A$992,0),COLUMN())) -> P | H85: 0 | I85: 21 | J85: 59 | K85: 8 | L85: 13 | M85: 11 | N85: 5 | O85: 6 | P85: 25 | Q85: 2 | R85: 79 | S85: 3 | T85: 48 | U85: 1 | V85: 50 | W85: 4 | X85: 25 | Y85: 0 | Z85: 1 | AA85: 0 | AB85: 81 | AN85: 1 | AO85: 1 | AR85: 1 | AS85: 1 | AT85: 1 | AU85: 1 | AV85: 1 | AW85: =IF(A86<>"",20-SUM(AC86:AV86),"") -> 16 | AX85: 81
A86: =IF(P!$A97>0,P!$A97,"") -> 2013-07-30 | B86: =IF(ISERROR(INDEX(P!$A$16:$G$992,MATCH(NGP!$A86,P!$A$16:$A$992,0),COLUMN())),"X",INDEX(P!$A$16:$G$992,MATCH(NGP!$A86,P!$A$16:$A$992,0),COLUMN())) -> 11 | C86: =IF(ISERROR(INDEX(P!$A$16:$G$992,MATCH(NGP!$A86,P!$A$16:$A$992,0),COLUMN())),"X",INDEX(P!$A$16:$G$992,MATCH(NGP!$A86,P!$A$16:$A$992,0),COLUMN())) -> 9 | D86: =IF(ISERROR(INDEX(P!$A$16:$G$992,MATCH(NGP!$A86,P!$A$16:$A$992,0),COLUMN())),"X",INDEX(P!$A$16:$G$992,MATCH(NGP!$A86,P!$A$16:$A$992,0),COLUMN())) -> 13 | E86: =IF(ISERROR(INDEX(P!$A$16:$G$992,MATCH(NGP!$A86,P!$A$16:$A$992,0),COLUMN())),"X",INDEX(P!$A$16:$G$992,MATCH(NGP!$A86,P!$A$16:$A$992,0),COLUMN())) -> 15 | F86: =IF(ISERROR(INDEX(P!$A$16:$G$992,MATCH(NGP!$A86,P!$A$16:$A$992,0),COLUMN())),"X",INDEX(P!$A$16:$G$992,MATCH(NGP!$A86,P!$A$16:$A$992,0),COLUMN())) -> 10 | G86: =IF(ISERROR(INDEX(P!$A$16:$G$992,MATCH(NGP!$A86,P!$A$16:$A$992,0),COLUMN())),"X",INDEX(P!$A$16:$G$992,MATCH(NGP!$A86,P!$A$16:$A$992,0),COLUMN())) -> P | H86: 1 | I86: 22 | J86: 60 | K86: 9 | L86: 14 | M86: 12 | N86: 6 | O86: 7 | P86: 26 | Q86: 3 | R86: 0 | S86: 4 | T86: 49 | U86: 2 | V86: 51 | W86: 5 | X86: 25 | Y86: 0 | Z86: 1 | AA86: 0 | AB86: 82 | AS86: 1 | AT86: 1 | AU86: 1 | AV86: 1 | AW86: =IF(A87<>"",20-SUM(AC87:AV87),"") -> 16 | AX86: 82
A87: =IF(P!$A98>0,P!$A98,"") -> 2013-08-01 | B87: =IF(ISERROR(INDEX(P!$A$16:$G$992,MATCH(NGP!$A87,P!$A$16:$A$992,0),COLUMN())),"X",INDEX(P!$A$16:$G$992,MATCH(NGP!$A87,P!$A$16:$A$992,0),COLUMN())) -> 8 | C87: =IF(ISERROR(INDEX(P!$A$16:$G$992,MATCH(NGP!$A87,P!$A$16:$A$992,0),COLUMN())),"X",INDEX(P!$A$16:$G$992,MATCH(NGP!$A87,P!$A$16:$A$992,0),COLUMN())) -> 15 | D87: =IF(ISERROR(INDEX(P!$A$16:$G$992,MATCH(NGP!$A87,P!$A$16:$A$992,0),COLUMN())),"X",INDEX(P!$A$16:$G$992,MATCH(NGP!$A87,P!$A$16:$A$992,0),COLUMN())) -> 3 | E87: =IF(ISERROR(INDEX(P!$A$16:$G$992,MATCH(NGP!$A87,P!$A$16:$A$992,0),COLUMN())),"X",INDEX(P!$A$16:$G$992,MATCH(NGP!$A87,P!$A$16:$A$992,0),COLUMN())) -> 1 | F87: =IF(ISERROR(INDEX(P!$A$16:$G$992,MATCH(NGP!$A87,P!$A$16:$A$992,0),COLUMN())),"X",INDEX(P!$A$16:$G$992,MATCH(NGP!$A87,P!$A$16:$A$992,0),COLUMN())) -> 11 | G87: =IF(ISERROR(INDEX(P!$A$16:$G$992,MATCH(NGP!$A87,P!$A$16:$A$992,0),COLUMN())),"X",INDEX(P!$A$16:$G$992,MATCH(NGP!$A87,P!$A$16:$A$992,0),COLUMN())) -> P | H87: 2 | I87: 23 | J87: 61 | K87: 10 | L87: 15 | M87: 13 | N87: 7 | O87: 0 | P87: 27 | Q87: 4 | R87: 1 | S87: 5 | T87: 50 | U87: 3 | V87: 52 | W87: 6 | X87: 25 | Y87: 0 | Z87: 1 | AA87: 0 | AB87: 83 | AS87: 1 | AT87: 1 | AU87: 1 | AV87: 1 | AW87: =IF(A88<>"",20-SUM(AC88:AV88),"") -> 14 | AX87: 83
A88: =IF(P!$A99>0,P!$A99,"") -> 2013-08-04 | B88: =IF(ISERROR(INDEX(P!$A$16:$G$992,MATCH(NGP!$A88,P!$A$16:$A$992,0),COLUMN())),"X",INDEX(P!$A$16:$G$992,MATCH(NGP!$A88,P!$A$16:$A$992,0),COLUMN())) -> 11 | C88: =IF(ISERROR(INDEX(P!$A$16:$G$992,MATCH(NGP!$A88,P!$A$16:$A$992,0),COLUMN())),"X",INDEX(P!$A$16:$G$992,MATCH(NGP!$A88,P!$A$16:$A$992,0),COLUMN())) -> 3 | D88: =IF(ISERROR(INDEX(P!$A$16:$G$992,MATCH(NGP!$A88,P!$A$16:$A$992,0),COLUMN())),"X",INDEX(P!$A$16:$G$992,MATCH(NGP!$A88,P!$A$16:$A$992,0),COLUMN())) -> 2 | E88: =IF(ISERROR(INDEX(P!$A$16:$G$992,MATCH(NGP!$A88,P!$A$16:$A$992,0),COLUMN())),"X",INDEX(P!$A$16:$G$992,MATCH(NGP!$A88,P!$A$16:$A$992,0),COLUMN())) -> 10 | F88: =IF(ISERROR(INDEX(P!$A$16:$G$992,MATCH(NGP!$A88,P!$A$16:$A$992,0),COLUMN())),"X",INDEX(P!$A$16:$G$992,MATCH(NGP!$A88,P!$A$16:$A$992,0),COLUMN())) -> 5 | G88: =IF(ISERROR(INDEX(P!$A$16:$G$992,MATCH(NGP!$A88,P!$A$16:$A$992,0),COLUMN())),"X",INDEX(P!$A$16:$G$992,MATCH(NGP!$A88,P!$A$16:$A$992,0),COLUMN())) -> P | H88: 3 | I88: 24 | J88: 62 | K88: 11 | L88: 16 | M88: 14 | N88: 8 | O88: 1 | P88: 28 | Q88: 5 | R88: 0 | S88: 6 | T88: 51 | U88: 4 | V88: 52 | W88: 6 | X88: 25 | Y88: 0 | Z88: 1 | AA88: 0 | AB88: 84 | AQ88: 1 | AR88: 1 | AS88: 1 | AT88: 1 | AU88: 1 | AV88: 1 | AW88: =IF(A89<>"",20-SUM(AC89:AV89),"") -> 16 | AX88: 84
A89: =IF(P!$A100>0,P!$A100,"") -> 2013-08-05 | B89: =IF(ISERROR(INDEX(P!$A$16:$G$992,MATCH(NGP!$A89,P!$A$16:$A$992,0),COLUMN())),"X",INDEX(P!$A$16:$G$992,MATCH(NGP!$A89,P!$A$16:$A$992,0),COLUMN())) -> 2 | C89: =IF(ISERROR(INDEX(P!$A$16:$G$992,MATCH(NGP!$A89,P!$A$16:$A$992,0),COLUMN())),"X",INDEX(P!$A$16:$G$992,MATCH(NGP!$A89,P!$A$16:$A$992,0),COLUMN())) -> 15 | D89: =IF(ISERROR(INDEX(P!$A$16:$G$992,MATCH(NGP!$A89,P!$A$16:$A$992,0),COLUMN())),"X",INDEX(P!$A$16:$G$992,MATCH(NGP!$A89,P!$A$16:$A$992,0),COLUMN())) -> 6 | E89: =IF(ISERROR(INDEX(P!$A$16:$G$992,MATCH(NGP!$A89,P!$A$16:$A$992,0),COLUMN())),"X",INDEX(P!$A$16:$G$992,MATCH(NGP!$A89,P!$A$16:$A$992,0),COLUMN())) -> 8 | F89: =IF(ISERROR(INDEX(P!$A$16:$G$992,MATCH(NGP!$A89,P!$A$16:$A$992,0),COLUMN())),"X",INDEX(P!$A$16:$G$992,MATCH(NGP!$A89,P!$A$16:$A$992,0),COLUMN())) -> 7 | G89: =IF(ISERROR(INDEX(P!$A$16:$G$992,MATCH(NGP!$A89,P!$A$16:$A$992,0),COLUMN())),"X",INDEX(P!$A$16:$G$992,MATCH(NGP!$A89,P!$A$16:$A$992,0),COLUMN())) -> P | H89: 4 | I89: 0 | J89: 63 | K89: 12 | L89: 17 | M89: 15 | N89: 9 | O89: 2 | P89: 29 | Q89: 6 | R89: 1 | S89: 7 | T89: 52 | U89: 5 | V89: 53 | W89: 7 | X89: 25 | Y89: 0 | Z89: 1 | AA89: 0 | AB89: 85 | AS89: 1 | AT89: 1 | AU89: 1 | AV89: 1 | AW89: =IF(A90<>"",20-SUM(AC90:AV90),"") -> 16 | AX89: 85
A90: =IF(P!$A101>0,P!$A101,"") -> 2013-08-06 | B90: =IF(ISERROR(INDEX(P!$A$16:$G$992,MATCH(NGP!$A90,P!$A$16:$A$992,0),COLUMN())),"X",INDEX(P!$A$16:$G$992,MATCH(NGP!$A90,P!$A$16:$A$992,0),COLUMN())) -> 7 | C90: =IF(ISERROR(INDEX(P!$A$16:$G$992,MATCH(NGP!$A90,P!$A$16:$A$992,0),COLUMN())),"X",INDEX(P!$A$16:$G$992,MATCH(NGP!$A90,P!$A$16:$A$992,0),COLUMN())) -> 3 | D90: =IF(ISERROR(INDEX(P!$A$16:$G$992,MATCH(NGP!$A90,P!$A$16:$A$992,0),COLUMN())),"X",INDEX(P!$A$16:$G$992,MATCH(NGP!$A90,P!$A$16:$A$992,0),COLUMN())) -> 1 | E90: =IF(ISERROR(INDEX(P!$A$16:$G$992,MATCH(NGP!$A90,P!$A$16:$A$992,0),COLUMN())),"X",INDEX(P!$A$16:$G$992,MATCH(NGP!$A90,P!$A$16:$A$992,0),COLUMN())) -> 11 | F90: =IF(ISERROR(INDEX(P!$A$16:$G$992,MATCH(NGP!$A90,P!$A$16:$A$992,0),COLUMN())),"X",INDEX(P!$A$16:$G$992,MATCH(NGP!$A90,P!$A$16:$A$992,0),COLUMN())) -> 10 | G90: =IF(ISERROR(INDEX(P!$A$16:$G$992,MATCH(NGP!$A90,P!$A$16:$A$992,0),COLUMN())),"X",INDEX(P!$A$16:$G$992,MATCH(NGP!$A90,P!$A$16:$A$992,0),COLUMN())) -> P | H90: 5 | I90: 1 | J90: 64 | K90: 13 | L90: 18 | M90: 16 | N90: 0 | O90: 3 | P90: 30 | Q90: 7 | R90: 2 | S90: 8 | T90: 53 | U90: 6 | V90: 54 | W90: 8 | X90: 25 | Y90: 0 | Z90: 1 | AA90: 0 | AB90: 86 | AS90: 1 | AT90: 1 | AU90: 1 | AV90: 1 | AW90: =IF(A91<>"",20-SUM(AC91:AV91),"") -> 18 | AX90: 86
A91: =IF(P!$A102>0,P!$A102,"") -> 2013-08-10 | B91: =IF(ISERROR(INDEX(P!$A$16:$G$992,MATCH(NGP!$A91,P!$A$16:$A$992,0),COLUMN())),"X",INDEX(P!$A$16:$G$992,MATCH(NGP!$A91,P!$A$16:$A$992,0),COLUMN())) -> 13 | C91: =IF(ISERROR(INDEX(P!$A$16:$G$992,MATCH(NGP!$A91,P!$A$16:$A$992,0),COLUMN())),"X",INDEX(P!$A$16:$G$992,MATCH(NGP!$A91,P!$A$16:$A$992,0),COLUMN())) -> 6 | D91: =IF(ISERROR(INDEX(P!$A$16:$G$992,MATCH(NGP!$A91,P!$A$16:$A$992,0),COLUMN())),"X",INDEX(P!$A$16:$G$992,MATCH(NGP!$A91,P!$A$16:$A$992,0),COLUMN())) -> 12 | E91: =IF(ISERROR(INDEX(P!$A$16:$G$992,MATCH(NGP!$A91,P!$A$16:$A$992,0),COLUMN())),"X",INDEX(P!$A$16:$G$992,MATCH(NGP!$A91,P!$A$16:$A$992,0),COLUMN())) -> 4 | F91: =IF(ISERROR(INDEX(P!$A$16:$G$992,MATCH(NGP!$A91,P!$A$16:$A$992,0),COLUMN())),"X",INDEX(P!$A$16:$G$992,MATCH(NGP!$A91,P!$A$16:$A$992,0),COLUMN())) -> 14 | G91: =IF(ISERROR(INDEX(P!$A$16:$G$992,MATCH(NGP!$A91,P!$A$16:$A$992,0),COLUMN())),"X",INDEX(P!$A$16:$G$992,MATCH(NGP!$A91,P!$A$16:$A$992,0),COLUMN())) -> P | H91: 6 | I91: 2 | J91: 65 | K91: 14 | L91: 19 | M91: 17 | N91: 1 | O91: 4 | P91: 31 | Q91: 8 | R91: 3 | S91: 9 | T91: 0 | U91: 7 | V91: 55 | W91: 9 | X91: 26 | Y91: 1 | Z91: 1 | AA91: 0 | AB91: 87 | AU91: 1 | AV91: 1 | AW91: =IF(A92<>"",20-SUM(AC92:AV92),"") -> 17 | AX91: 87
A92: =IF(P!$A103>0,P!$A103,"") -> 2013-08-11 | B92: =IF(ISERROR(INDEX(P!$A$16:$G$992,MATCH(NGP!$A92,P!$A$16:$A$992,0),COLUMN())),"X",INDEX(P!$A$16:$G$992,MATCH(NGP!$A92,P!$A$16:$A$992,0),COLUMN())) -> 7 | C92: =IF(ISERROR(INDEX(P!$A$16:$G$992,MATCH(NGP!$A92,P!$A$16:$A$992,0),COLUMN())),"X",INDEX(P!$A$16:$G$992,MATCH(NGP!$A92,P!$A$16:$A$992,0),COLUMN())) -> 16 | D92: =IF(ISERROR(INDEX(P!$A$16:$G$992,MATCH(NGP!$A92,P!$A$16:$A$992,0),COLUMN())),"X",INDEX(P!$A$16:$G$992,MATCH(NGP!$A92,P!$A$16:$A$992,0),COLUMN())) -> 17 | E92: =IF(ISERROR(INDEX(P!$A$16:$G$992,MATCH(NGP!$A92,P!$A$16:$A$992,0),COLUMN())),"X",INDEX(P!$A$16:$G$992,MATCH(NGP!$A92,P!$A$16:$A$992,0),COLUMN())) -> 3 | F92: =IF(ISERROR(INDEX(P!$A$16:$G$992,MATCH(NGP!$A92,P!$A$16:$A$992,0),COLUMN())),"X",INDEX(P!$A$16:$G$992,MATCH(NGP!$A92,P!$A$16:$A$992,0),COLUMN())) -> 2 | G92: =IF(ISERROR(INDEX(P!$A$16:$G$992,MATCH(NGP!$A92,P!$A$16:$A$992,0),COLUMN())),"X",INDEX(P!$A$16:$G$992,MATCH(NGP!$A92,P!$A$16:$A$992,0),COLUMN())) -> P | H92: 7 | I92: 3 | J92: 66 | K92: 15 | L92: 20 | M92: 18 | N92: 0 | O92: 5 | P92: 32 | Q92: 9 | R92: 4 | S92: 10 | T92: 1 | U92: 8 | V92: 56 | W92: 10 | X92: 27 | Y92: 1 | Z92: 1 | AA92: 0 | AB92: 88 | AT92: 1 | AU92: 1 | AV92: 1 | AW92: =IF(A93<>"",20-SUM(AC93:AV93),"") -> 17 | AX92: 88
A93: =IF(P!$A104>0,P!$A104,"") -> 2013-08-12 | B93: =IF(ISERROR(INDEX(P!$A$16:$G$992,MATCH(NGP!$A93,P!$A$16:$A$992,0),COLUMN())),"X",INDEX(P!$A$16:$G$992,MATCH(NGP!$A93,P!$A$16:$A$992,0),COLUMN())) -> 14 | C93: =IF(ISERROR(INDEX(P!$A$16:$G$992,MATCH(NGP!$A93,P!$A$16:$A$992,0),COLUMN())),"X",INDEX(P!$A$16:$G$992,MATCH(NGP!$A93,P!$A$16:$A$992,0),COLUMN())) -> 16 | D93: =IF(ISERROR(INDEX(P!$A$16:$G$992,MATCH(NGP!$A93,P!$A$16:$A$992,0),COLUMN())),"X",INDEX(P!$A$16:$G$992,MATCH(NGP!$A93,P!$A$16:$A$992,0),COLUMN())) -> 5 | E93: =IF(ISERROR(INDEX(P!$A$16:$G$992,MATCH(NGP!$A93,P!$A$16:$A$992,0),COLUMN())),"X",INDEX(P!$A$16:$G$992,MATCH(NGP!$A93,P!$A$16:$A$992,0),COLUMN())) -> 6 | F93: =IF(ISERROR(INDEX(P!$A$16:$G$992,MATCH(NGP!$A93,P!$A$16:$A$992,0),COLUMN())),"X",INDEX(P!$A$16:$G$992,MATCH(NGP!$A93,P!$A$16:$A$992,0),COLUMN())) -> 1 | G93: =IF(ISERROR(INDEX(P!$A$16:$G$992,MATCH(NGP!$A93,P!$A$16:$A$992,0),COLUMN())),"X",INDEX(P!$A$16:$G$992,MATCH(NGP!$A93,P!$A$16:$A$992,0),COLUMN())) -> P | H93: 8 | I93: 4 | J93: 67 | K93: 16 | L93: 21 | M93: 19 | N93: 1 | O93: 6 | P93: 33 | Q93: 10 | R93: 5 | S93: 11 | T93: 2 | U93: 0 | V93: 57 | W93: 11 | X93: 28 | Y93: 1 | Z93: 1 | AA93: 0 | AB93: 89 | AT93: 1 | AU93: 1 | AV93: 1 | AW93: =IF(A94<>"",20-SUM(AC94:AV94),"") -> 16 | AX93: 89
A94: =IF(P!$A105>0,P!$A105,"") -> 2013-08-13 | B94: =IF(ISERROR(INDEX(P!$A$16:$G$992,MATCH(NGP!$A94,P!$A$16:$A$992,0),COLUMN())),"X",INDEX(P!$A$16:$G$992,MATCH(NGP!$A94,P!$A$16:$A$992,0),COLUMN())) -> 2 | C94: =IF(ISERROR(INDEX(P!$A$16:$G$992,MATCH(NGP!$A94,P!$A$16:$A$992,0),COLUMN())),"X",INDEX(P!$A$16:$G$992,MATCH(NGP!$A94,P!$A$16:$A$992,0),COLUMN())) -> 3 | D94: =IF(ISERROR(INDEX(P!$A$16:$G$992,MATCH(NGP!$A94,P!$A$16:$A$992,0),COLUMN())),"X",INDEX(P!$A$16:$G$992,MATCH(NGP!$A94,P!$A$16:$A$992,0),COLUMN())) -> 4 | E94: =IF(ISERROR(INDEX(P!$A$16:$G$992,MATCH(NGP!$A94,P!$A$16:$A$992,0),COLUMN())),"X",INDEX(P!$A$16:$G$992,MATCH(NGP!$A94,P!$A$16:$A$992,0),COLUMN())) -> 11 | F94: =IF(ISERROR(INDEX(P!$A$16:$G$992,MATCH(NGP!$A94,P!$A$16:$A$992,0),COLUMN())),"X",INDEX(P!$A$16:$G$992,MATCH(NGP!$A94,P!$A$16:$A$992,0),COLUMN())) -> 6 | G94: =IF(ISERROR(INDEX(P!$A$16:$G$992,MATCH(NGP!$A94,P!$A$16:$A$992,0),COLUMN())),"X",INDEX(P!$A$16:$G$992,MATCH(NGP!$A94,P!$A$16:$A$992,0),COLUMN())) -> P | H94: 9 | I94: 0 | J94: 68 | K94: 17 | L94: 22 | M94: 20 | N94: 2 | O94: 7 | P94: 34 | Q94: 11 | R94: 6 | S94: 12 | T94: 3 | U94: 1 | V94: 58 | W94: 12 | X94: 28 | Y94: 1 | Z94: 1 | AA94: 0 | AB94: 90 | AS94: 1 | AT94: 1 | AU94: 1 | AV94: 1 | AW94: =IF(A95<>"",20-SUM(AC95:AV95),"") -> 16 | AX94: 90
A95: =IF(P!$A106>0,P!$A106,"") -> 2013-08-15 | B95: =IF(ISERROR(INDEX(P!$A$16:$G$992,MATCH(NGP!$A95,P!$A$16:$A$992,0),COLUMN())),"X",INDEX(P!$A$16:$G$992,MATCH(NGP!$A95,P!$A$16:$A$992,0),COLUMN())) -> 2 | C95: =IF(ISERROR(INDEX(P!$A$16:$G$992,MATCH(NGP!$A95,P!$A$16:$A$992,0),COLUMN())),"X",INDEX(P!$A$16:$G$992,MATCH(NGP!$A95,P!$A$16:$A$992,0),COLUMN())) -> 1 | D95: =IF(ISERROR(INDEX(P!$A$16:$G$992,MATCH(NGP!$A95,P!$A$16:$A$992,0),COLUMN())),"X",INDEX(P!$A$16:$G$992,MATCH(NGP!$A95,P!$A$16:$A$992,0),COLUMN())) -> 11 | E95: =IF(ISERROR(INDEX(P!$A$16:$G$992,MATCH(NGP!$A95,P!$A$16:$A$992,0),COLUMN())),"X",INDEX(P!$A$16:$G$992,MATCH(NGP!$A95,P!$A$16:$A$992,0),COLUMN())) -> 8 | F95: =IF(ISERROR(INDEX(P!$A$16:$G$992,MATCH(NGP!$A95,P!$A$16:$A$992,0),COLUMN())),"X",INDEX(P!$A$16:$G$992,MATCH(NGP!$A95,P!$A$16:$A$992,0),COLUMN())) -> 5 | G95: =IF(ISERROR(INDEX(P!$A$16:$G$992,MATCH(NGP!$A95,P!$A$16:$A$992,0),COLUMN())),"X",INDEX(P!$A$16:$G$992,MATCH(NGP!$A95,P!$A$16:$A$992,0),COLUMN())) -> P | H95: 10 | I95: 0 | J95: 69 | K95: 18 | L95: 23 | M95: 21 | N95: 3 | O95: 8 | P95: 35 | Q95: 12 | R95: 7 | S95: 13 | T95: 4 | U95: 2 | V95: 59 | W95: 13 | X95: 28 | Y95: 1 | Z95: 1 | AA95: 0 | AB95: 91 | AS95: 1 | AT95: 1 | AU95: 1 | AV95: 1 | AW95: =IF(A96<>"",20-SUM(AC96:AV96),"") -> 16 | AX95: 91
A96: =IF(P!$A107>0,P!$A107,"") -> 2013-08-17 | B96: =IF(ISERROR(INDEX(P!$A$16:$G$992,MATCH(NGP!$A96,P!$A$16:$A$992,0),COLUMN())),"X",INDEX(P!$A$16:$G$992,MATCH(NGP!$A96,P!$A$16:$A$992,0),COLUMN())) -> 15 | C96: =IF(ISERROR(INDEX(P!$A$16:$G$992,MATCH(NGP!$A96,P!$A$16:$A$992,0),COLUMN())),"X",INDEX(P!$A$16:$G$992,MATCH(NGP!$A96,P!$A$16:$A$992,0),COLUMN())) -> 5 | D96: =IF(ISERROR(INDEX(P!$A$16:$G$992,MATCH(NGP!$A96,P!$A$16:$A$992,0),COLUMN())),"X",INDEX(P!$A$16:$G$992,MATCH(NGP!$A96,P!$A$16:$A$992,0),COLUMN())) -> 4 | E96: =IF(ISERROR(INDEX(P!$A$16:$G$992,MATCH(NGP!$A96,P!$A$16:$A$992,0),COLUMN())),"X",INDEX(P!$A$16:$G$992,MATCH(NGP!$A96,P!$A$16:$A$992,0),COLUMN())) -> 11 | F96: =IF(ISERROR(INDEX(P!$A$16:$G$992,MATCH(NGP!$A96,P!$A$16:$A$992,0),COLUMN())),"X",INDEX(P!$A$16:$G$992,MATCH(NGP!$A96,P!$A$16:$A$992,0),COLUMN())) -> 3 | G96: =IF(ISERROR(INDEX(P!$A$16:$G$992,MATCH(NGP!$A96,P!$A$16:$A$992,0),COLUMN())),"X",INDEX(P!$A$16:$G$992,MATCH(NGP!$A96,P!$A$16:$A$992,0),COLUMN())) -> P | H96: 11 | I96: 1 | J96: 70 | K96: 19 | L96: 24 | M96: 22 | N96: 4 | O96: 9 | P96: 36 | Q96: 13 | R96: 8 | S96: 14 | T96: 5 | U96: 3 | V96: 0 | W96: 14 | X96: 28 | Y96: 1 | Z96: 1 | AA96: 0 | AB96: 92 | AS96: 1 | AT96: 1 | AU96: 1 | AV96: 1 | AW96: =IF(A97<>"",20-SUM(AC97:AV97),"") -> 16 | AX96: 92
A97: =IF(P!$A108>0,P!$A108,"") -> 2013-08-18 | B97: =IF(ISERROR(INDEX(P!$A$16:$G$992,MATCH(NGP!$A97,P!$A$16:$A$992,0),COLUMN())),"X",INDEX(P!$A$16:$G$992,MATCH(NGP!$A97,P!$A$16:$A$992,0),COLUMN())) -> 8 | C97: =IF(ISERROR(INDEX(P!$A$16:$G$992,MATCH(NGP!$A97,P!$A$16:$A$992,0),COLUMN())),"X",INDEX(P!$A$16:$G$992,MATCH(NGP!$A97,P!$A$16:$A$992,0),COLUMN())) -> 6 | D97: =IF(ISERROR(INDEX(P!$A$16:$G$992,MATCH(NGP!$A97,P!$A$16:$A$992,0),COLUMN())),"X",INDEX(P!$A$16:$G$992,MATCH(NGP!$A97,P!$A$16:$A$992,0),COLUMN())) -> 16 | E97: =IF(ISERROR(INDEX(P!$A$16:$G$992,MATCH(NGP!$A97,P!$A$16:$A$992,0),COLUMN())),"X",INDEX(P!$A$16:$G$992,MATCH(NGP!$A97,P!$A$16:$A$992,0),COLUMN())) -> 9 | F97: =IF(ISERROR(INDEX(P!$A$16:$G$992,MATCH(NGP!$A97,P!$A$16:$A$992,0),COLUMN())),"X",INDEX(P!$A$16:$G$992,MATCH(NGP!$A97,P!$A$16:$A$992,0),COLUMN())) -> 5 | G97: =IF(ISERROR(INDEX(P!$A$16:$G$992,MATCH(NGP!$A97,P!$A$16:$A$992,0),COLUMN())),"X",INDEX(P!$A$16:$G$992,MATCH(NGP!$A97,P!$A$16:$A$992,0),COLUMN())) -> P | H97: 12 | I97: 2 | J97: 71 | K97: 20 | L97: 25 | M97: 23 | N97: 5 | O97: 0 | P97: 37 | Q97: 14 | R97: 9 | S97: 15 | T97: 6 | U97: 4 | V97: 1 | W97: 15 | X97: =IF(COUNTIF($B97:$D97,"=X")<3,IF(LEN(SUBSTITUTE(SUBSTITUTE($B97,X$1,,1),,1))=0,0,X96+1-AS97),"") -> 28 | Y97: 1 | Z97: 1 | AA97: 0 | AB97: 93 | AS97: 1 | AT97: 1 | AU97: 1 | AV97: 1 | AW97: =IF(A98<>"",20-SUM(AC98:AV98),"") -> 16 | AX97: 93
A98: =IF(P!$A109>0,P!$A109,"") -> 2013-08-20 | B98: =IF(ISERROR(INDEX(P!$A$16:$G$992,MATCH(NGP!$A98,P!$A$16:$A$992,0),COLUMN())),"X",INDEX(P!$A$16:$G$992,MATCH(NGP!$A98,P!$A$16:$A$992,0),COLUMN())) -> 5 | C98: =IF(ISERROR(INDEX(P!$A$16:$G$992,MATCH(NGP!$A98,P!$A$16:$A$992,0),COLUMN())),"X",INDEX(P!$A$16:$G$992,MATCH(NGP!$A98,P!$A$16:$A$992,0),COLUMN())) -> 8 | D98: =IF(ISERROR(INDEX(P!$A$16:$G$992,MATCH(NGP!$A98,P!$A$16:$A$992,0),COLUMN())),"X",INDEX(P!$A$16:$G$992,MATCH(NGP!$A98,P!$A$16:$A$992,0),COLUMN())) -> 6 | E98: =IF(ISERROR(INDEX(P!$A$16:$G$992,MATCH(NGP!$A98,P!$A$16:$A$992,0),COLUMN())),"X",INDEX(P!$A$16:$G$992,MATCH(NGP!$A98,P!$A$16:$A$992,0),COLUMN())) -> 15 | F98: =IF(ISERROR(INDEX(P!$A$16:$G$992,MATCH(NGP!$A98,P!$A$16:$A$992,0),COLUMN())),"X",INDEX(P!$A$16:$G$992,MATCH(NGP!$A98,P!$A$16:$A$992,0),COLUMN())) -> 2 | G98: =IF(ISERROR(INDEX(P!$A$16:$G$992,MATCH(NGP!$A98,P!$A$16:$A$992,0),COLUMN())),"X",INDEX(P!$A$16:$G$992,MATCH(NGP!$A98,P!$A$16:$A$992,0),COLUMN())) -> P | H98: =IF(COUNTIF($B98:$D98,"=X")<3,IF(LEN(SUBSTITUTE(SUBSTITUTE($B98,H$1,,1),,1))=0,0,H97+1-AC98),"") -> 13 | I98: 3 | J98: 72 | K98: 21 | L98: 0 | M98: 24 | N98: 6 | O98: 1 | P98: 38 | Q98: 15 | R98: 10 | S98: 16 | T98: 7 | U98: 5 | V98: 2 | W98: 16 | X98: 28 | Y98: 1 | Z98: 1 | AA98: 0 | AB98: 94 | AS98: 1 | AT98: 1 | AU98: 1 | AV98: 1 | AW98: =IF(A99<>"",20-SUM(AC99:AV99),"") -> 18 | AX98: 94
A99: =IF(P!$A110>0,P!$A110,"") -> 2013-08-24 | B99: =IF(ISERROR(INDEX(P!$A$16:$G$992,MATCH(NGP!$A99,P!$A$16:$A$992,0),COLUMN())),"X",INDEX(P!$A$16:$G$992,MATCH(NGP!$A99,P!$A$16:$A$992,0),COLUMN())) -> 8 | C99: =IF(ISERROR(INDEX(P!$A$16:$G$992,MATCH(NGP!$A99,P!$A$16:$A$992,0),COLUMN())),"X",INDEX(P!$A$16:$G$992,MATCH(NGP!$A99,P!$A$16:$A$992,0),COLUMN())) -> 4 | D99: =IF(ISERROR(INDEX(P!$A$16:$G$992,MATCH(NGP!$A99,P!$A$16:$A$992,0),COLUMN())),"X",INDEX(P!$A$16:$G$992,MATCH(NGP!$A99,P!$A$16:$A$992,0),COLUMN())) -> 3 | E99: =IF(ISERROR(INDEX(P!$A$16:$G$992,MATCH(NGP!$A99,P!$A$16:$A$992,0),COLUMN())),"X",INDEX(P!$A$16:$G$992,MATCH(NGP!$A99,P!$A$16:$A$992,0),COLUMN())) -> 2 | F99: =IF(ISERROR(INDEX(P!$A$16:$G$992,MATCH(NGP!$A99,P!$A$16:$A$992,0),COLUMN())),"X",INDEX(P!$A$16:$G$992,MATCH(NGP!$A99,P!$A$16:$A$992,0),COLUMN())) -> 16 | G99: =IF(ISERROR(INDEX(P!$A$16:$G$992,MATCH(NGP!$A99,P!$A$16:$A$992,0),COLUMN())),"X",INDEX(P!$A$16:$G$992,MATCH(NGP!$A99,P!$A$16:$A$992,0),COLUMN())) -> P | H99: 14 | I99: 4 | J99: 73 | K99: 22 | L99: 1 | M99: 25 | N99: 7 | O99: 0 | P99: 39 | Q99: 16 | R99: 11 | S99: 17 | T99: 8 | U99: 6 | V99: 3 | W99: 17 | X99: 29 | Y99: 2 | Z99: 1 | AA99: 0 | AB99: 95 | AU99: 1 | AV99: 1 | AW99: =IF(A100<>"",20-SUM(AC100:AV100),"") -> 16 | AX99: 95
A100: =IF(P!$A111>0,P!$A111,"") -> 2013-08-25 | B100: =IF(ISERROR(INDEX(P!$A$16:$G$992,MATCH(NGP!$A100,P!$A$16:$A$992,0),COLUMN())),"X",INDEX(P!$A$16:$G$992,MATCH(NGP!$A100,P!$A$16:$A$992,0),COLUMN())) -> 3 | C100: =IF(ISERROR(INDEX(P!$A$16:$G$992,MATCH(NGP!$A100,P!$A$16:$A$992,0),COLUMN())),"X",INDEX(P!$A$16:$G$992,MATCH(NGP!$A100,P!$A$16:$A$992,0),COLUMN())) -> 9 | D100: =IF(ISERROR(INDEX(P!$A$16:$G$992,MATCH(NGP!$A100,P!$A$16:$A$992,0),COLUMN())),"X",INDEX(P!$A$16:$G$992,MATCH(NGP!$A100,P!$A$16:$A$992,0),COLUMN())) -> 13 | E100: =IF(ISERROR(INDEX(P!$A$16:$G$992,MATCH(NGP!$A100,P!$A$16:$A$992,0),COLUMN())),"X",INDEX(P!$A$16:$G$992,MATCH(NGP!$A100,P!$A$16:$A$992,0),COLUMN())) -> 15 | F100: =IF(ISERROR(INDEX(P!$A$16:$G$992,MATCH(NGP!$A100,P!$A$16:$A$992,0),COLUMN())),"X",INDEX(P!$A$16:$G$992,MATCH(NGP!$A100,P!$A$16:$A$992,0),COLUMN())) -> 1 | G100: =IF(ISERROR(INDEX(P!$A$16:$G$992,MATCH(NGP!$A100,P!$A$16:$A$992,0),COLUMN())),"X",INDEX(P!$A$16:$G$992,MATCH(NGP!$A100,P!$A$16:$A$992,0),COLUMN())) -> P | H100: 15 | I100: 5 | J100: 0 | K100: 23 | L100: 2 | M100: 26 | N100: 8 | O100: 1 | P100: 40 | Q100: 17 | R100: 12 | S100: 18 | T100: 9 | U100: 7 | V100: 4 | W100: 18 | X100: 29 | Y100: 2 | Z100: 1 | AA100: 0 | AB100: 96 | AS100: 1 | AT100: 1 | AU100: 1 | AV100: 1 | AW100: =IF(A101<>"",20-SUM(AC101:AV101),"") -> 16 | AX100: 96
A101: =IF(P!$A112>0,P!$A112,"") -> 2013-08-27 | B101: =IF(ISERROR(INDEX(P!$A$16:$G$992,MATCH(NGP!$A101,P!$A$16:$A$992,0),COLUMN())),"X",INDEX(P!$A$16:$G$992,MATCH(NGP!$A101,P!$A$16:$A$992,0),COLUMN())) -> 1 | C101: =IF(ISERROR(INDEX(P!$A$16:$G$992,MATCH(NGP!$A101,P!$A$16:$A$992,0),COLUMN())),"X",INDEX(P!$A$16:$G$992,MATCH(NGP!$A101,P!$A$16:$A$992,0),COLUMN())) -> 8 | D101: =IF(ISERROR(INDEX(P!$A$16:$G$992,MATCH(NGP!$A101,P!$A$16:$A$992,0),COLUMN())),"X",INDEX(P!$A$16:$G$992,MATCH(NGP!$A101,P!$A$16:$A$992,0),COLUMN())) -> 12 | E101: =IF(ISERROR(INDEX(P!$A$16:$G$992,MATCH(NGP!$A101,P!$A$16:$A$992,0),COLUMN())),"X",INDEX(P!$A$16:$G$992,MATCH(NGP!$A101,P!$A$16:$A$992,0),COLUMN())) -> 11 | F101: =IF(ISERROR(INDEX(P!$A$16:$G$992,MATCH(NGP!$A101,P!$A$16:$A$992,0),COLUMN())),"X",INDEX(P!$A$16:$G$992,MATCH(NGP!$A101,P!$A$16:$A$992,0),COLUMN())) -> 10 | G101: =IF(ISERROR(INDEX(P!$A$16:$G$992,MATCH(NGP!$A101,P!$A$16:$A$992,0),COLUMN())),"X",INDEX(P!$A$16:$G$992,MATCH(NGP!$A101,P!$A$16:$A$992,0),COLUMN())) -> P | H101: 0 | I101: 6 | J101: 1 | K101: 24 | L101: 3 | M101: 27 | N101: 9 | O101: 2 | P101: 41 | Q101: 18 | R101: 13 | S101: 19 | T101: 10 | U101: 8 | V101: 5 | W101: 19 | X101: 29 | Y101: 2 | Z101: 1 | AA101: 0 | AB101: 97 | AS101: 1 | AT101: 1 | AU101: 1 | AV101: 1 | AW101: =IF(A102<>"",20-SUM(AC102:AV102),"") -> 16 | AX101: 97
A102: =IF(P!$A113>0,P!$A113,"") -> 2013-08-28 | B102: =IF(ISERROR(INDEX(P!$A$16:$G$992,MATCH(NGP!$A102,P!$A$16:$A$992,0),COLUMN())),"X",INDEX(P!$A$16:$G$992,MATCH(NGP!$A102,P!$A$16:$A$992,0),COLUMN())) -> 8 | C102: =IF(ISERROR(INDEX(P!$A$16:$G$992,MATCH(NGP!$A102,P!$A$16:$A$992,0),COLUMN())),"X",INDEX(P!$A$16:$G$992,MATCH(NGP!$A102,P!$A$16:$A$992,0),COLUMN())) -> 3 | D102: =IF(ISERROR(INDEX(P!$A$16:$G$992,MATCH(NGP!$A102,P!$A$16:$A$992,0),COLUMN())),"X",INDEX(P!$A$16:$G$992,MATCH(NGP!$A102,P!$A$16:$A$992,0),COLUMN())) -> 12 | E102: =IF(ISERROR(INDEX(P!$A$16:$G$992,MATCH(NGP!$A102,P!$A$16:$A$992,0),COLUMN())),"X",INDEX(P!$A$16:$G$992,MATCH(NGP!$A102,P!$A$16:$A$992,0),COLUMN())) -> 9 | F102: =IF(ISERROR(INDEX(P!$A$16:$G$992,MATCH(NGP!$A102,P!$A$16:$A$992,0),COLUMN())),"X",INDEX(P!$A$16:$G$992,MATCH(NGP!$A102,P!$A$16:$A$992,0),COLUMN())) -> 10 | G102: =IF(ISERROR(INDEX(P!$A$16:$G$992,MATCH(NGP!$A102,P!$A$16:$A$992,0),COLUMN())),"X",INDEX(P!$A$16:$G$992,MATCH(NGP!$A102,P!$A$16:$A$992,0),COLUMN())) -> P | H102: 1 | I102: 7 | J102: 2 | K102: 25 | L102: 4 | M102: 28 | N102: 10 | O102: 0 | P102: 42 | Q102: 19 | R102: 14 | S102: 20 | T102: 11 | U102: 9 | V102: 6 | W102: 20 | X102: 29 | Y102: 2 | Z102: 1 | AA102: 0 | AB102: 98 | AS102: 1 | AT102: 1 | AU102: 1 | AV102: 1 | AW102: =IF(A103<>"",20-SUM(AC103:AV103),"") -> 16 | AX102: 98
A103: =IF(P!$A114>0,P!$A114,"") -> 2013-09-01 | B103: =IF(ISERROR(INDEX(P!$A$16:$G$992,MATCH(NGP!$A103,P!$A$16:$A$992,0),COLUMN())),"X",INDEX(P!$A$16:$G$992,MATCH(NGP!$A103,P!$A$16:$A$992,0),COLUMN())) -> 13 | C103: =IF(ISERROR(INDEX(P!$A$16:$G$992,MATCH(NGP!$A103,P!$A$16:$A$992,0),COLUMN())),"X",INDEX(P!$A$16:$G$992,MATCH(NGP!$A103,P!$A$16:$A$992,0),COLUMN())) -> 1 | D103: =IF(ISERROR(INDEX(P!$A$16:$G$992,MATCH(NGP!$A103,P!$A$16:$A$992,0),COLUMN())),"X",INDEX(P!$A$16:$G$992,MATCH(NGP!$A103,P!$A$16:$A$992,0),COLUMN())) -> 8 | E103: =IF(ISERROR(INDEX(P!$A$16:$G$992,MATCH(NGP!$A103,P!$A$16:$A$992,0),COLUMN())),"X",INDEX(P!$A$16:$G$992,MATCH(NGP!$A103,P!$A$16:$A$992,0),COLUMN())) -> 10 | F103: =IF(ISERROR(INDEX(P!$A$16:$G$992,MATCH(NGP!$A103,P!$A$16:$A$992,0),COLUMN())),"X",INDEX(P!$A$16:$G$992,MATCH(NGP!$A103,P!$A$16:$A$992,0),COLUMN())) -> 3 | G103: =IF(ISERROR(INDEX(P!$A$16:$G$992,MATCH(NGP!$A103,P!$A$16:$A$992,0),COLUMN())),"X",INDEX(P!$A$16:$G$992,MATCH(NGP!$A103,P!$A$16:$A$992,0),COLUMN())) -> P | H103: 2 | I103: 8 | J103: 3 | K103: 26 | L103: 5 | M103: 29 | N103: 11 | O103: 1 | P103: 43 | Q103: 20 | R103: 15 | S103: 21 | T103: 0 | U103: 10 | V103: 7 | W103: 21 | X103: 29 | Y103: 2 | Z103: 1 | AA103: 0 | AB103: 99 | AS103: 1 | AT103: 1 | AU103: 1 | AV103: 1 | AW103: =IF(A104<>"",20-SUM(AC104:AV104),"") -> 17 | AX103: 99 | AY103: 5 | AZ103: 14 | BA103: 19
A104: =IF(P!$A115>0,P!$A115,"") -> 2013-09-02 | B104: =IF(ISERROR(INDEX(P!$A$16:$G$992,MATCH(NGP!$A104,P!$A$16:$A$992,0),COLUMN())),"X",INDEX(P!$A$16:$G$992,MATCH(NGP!$A104,P!$A$16:$A$992,0),COLUMN())) -> 17 | C104: =IF(ISERROR(INDEX(P!$A$16:$G$992,MATCH(NGP!$A104,P!$A$16:$A$992,0),COLUMN())),"X",INDEX(P!$A$16:$G$992,MATCH(NGP!$A104,P!$A$16:$A$992,0),COLUMN())) -> 6 | D104: =IF(ISERROR(INDEX(P!$A$16:$G$992,MATCH(NGP!$A104,P!$A$16:$A$992,0),COLUMN())),"X",INDEX(P!$A$16:$G$992,MATCH(NGP!$A104,P!$A$16:$A$992,0),COLUMN())) -> 8 | E104: =IF(ISERROR(INDEX(P!$A$16:$G$992,MATCH(NGP!$A104,P!$A$16:$A$992,0),COLUMN())),"X",INDEX(P!$A$16:$G$992,MATCH(NGP!$A104,P!$A$16:$A$992,0),COLUMN())) -> 4 | F104: =IF(ISERROR(INDEX(P!$A$16:$G$992,MATCH(NGP!$A104,P!$A$16:$A$992,0),COLUMN())),"X",INDEX(P!$A$16:$G$992,MATCH(NGP!$A104,P!$A$16:$A$992,0),COLUMN())) -> 1 | G104: =IF(ISERROR(INDEX(P!$A$16:$G$992,MATCH(NGP!$A104,P!$A$16:$A$992,0),COLUMN())),"X",INDEX(P!$A$16:$G$992,MATCH(NGP!$A104,P!$A$16:$A$992,0),COLUMN())) -> P | H104: 3 | I104: 9 | J104: 4 | K104: 27 | L104: 5 | M104: 30 | N104: 12 | O104: 2 | P104: 44 | Q104: 21 | R104: 16 | S104: 22 | T104: 1 | U104: 10 | V104: 8 | W104: 22 | X104: 0 | Y104: 3 | Z104: 1 | AA104: 1 | AB104: 100 | AG104: 1 | AP104: 1 | AU104: 1 | AW104: =IF(A105<>"",20-SUM(AC105:AV105),"") -> 14 | AX104: 100
A105: =IF(P!$A116>0,P!$A116,"") -> 2013-09-03 | B105: =IF(ISERROR(INDEX(P!$A$16:$G$992,MATCH(NGP!$A105,P!$A$16:$A$992,0),COLUMN())),"X",INDEX(P!$A$16:$G$992,MATCH(NGP!$A105,P!$A$16:$A$992,0),COLUMN())) -> 1 | C105: =IF(ISERROR(INDEX(P!$A$16:$G$992,MATCH(NGP!$A105,P!$A$16:$A$992,0),COLUMN())),"X",INDEX(P!$A$16:$G$992,MATCH(NGP!$A105,P!$A$16:$A$992,0),COLUMN())) -> 13 | D105: =IF(ISERROR(INDEX(P!$A$16:$G$992,MATCH(NGP!$A105,P!$A$16:$A$992,0),COLUMN())),"X",INDEX(P!$A$16:$G$992,MATCH(NGP!$A105,P!$A$16:$A$992,0),COLUMN())) -> 10 | E105: =IF(ISERROR(INDEX(P!$A$16:$G$992,MATCH(NGP!$A105,P!$A$16:$A$992,0),COLUMN())),"X",INDEX(P!$A$16:$G$992,MATCH(NGP!$A105,P!$A$16:$A$992,0),COLUMN())) -> 3 | F105: =IF(ISERROR(INDEX(P!$A$16:$G$992,MATCH(NGP!$A105,P!$A$16:$A$992,0),COLUMN())),"X",INDEX(P!$A$16:$G$992,MATCH(NGP!$A105,P!$A$16:$A$992,0),COLUMN())) -> 2 | G105: =IF(ISERROR(INDEX(P!$A$16:$G$992,MATCH(NGP!$A105,P!$A$16:$A$992,0),COLUMN())),"X",INDEX(P!$A$16:$G$992,MATCH(NGP!$A105,P!$A$16:$A$992,0),COLUMN())) -> P | H105: 0 | I105: 10 | J105: 5 | K105: 28 | L105: 6 | M105: 31 | N105: 13 | O105: 3 | P105: 45 | Q105: 22 | R105: 17 | S105: 23 | T105: 2 | U105: 11 | V105: 8 | W105: 22 | X105: 0 | Y105: 3 | Z105: 1 | AA105: 1 | AB105: 101 | AQ105: 1 | AR105: 1 | AS105: 1 | AT105: 1 | AU105: 1 | AV105: 1 | AW105: =IF(A106<>"",20-SUM(AC106:AV106),"") -> 16 | AX105: 101
A106: =IF(P!$A117>0,P!$A117,"") -> 2013-09-05 | B106: =IF(ISERROR(INDEX(P!$A$16:$G$992,MATCH(NGP!$A106,P!$A$16:$A$992,0),COLUMN())),"X",INDEX(P!$A$16:$G$992,MATCH(NGP!$A106,P!$A$16:$A$992,0),COLUMN())) -> 16 | C106: =IF(ISERROR(INDEX(P!$A$16:$G$992,MATCH(NGP!$A106,P!$A$16:$A$992,0),COLUMN())),"X",INDEX(P!$A$16:$G$992,MATCH(NGP!$A106,P!$A$16:$A$992,0),COLUMN())) -> 9 | D106: =IF(ISERROR(INDEX(P!$A$16:$G$992,MATCH(NGP!$A106,P!$A$16:$A$992,0),COLUMN())),"X",INDEX(P!$A$16:$G$992,MATCH(NGP!$A106,P!$A$16:$A$992,0),COLUMN())) -> 15 | E106: =IF(ISERROR(INDEX(P!$A$16:$G$992,MATCH(NGP!$A106,P!$A$16:$A$992,0),COLUMN())),"X",INDEX(P!$A$16:$G$992,MATCH(NGP!$A106,P!$A$16:$A$992,0),COLUMN())) -> 10 | F106: =IF(ISERROR(INDEX(P!$A$16:$G$992,MATCH(NGP!$A106,P!$A$16:$A$992,0),COLUMN())),"X",INDEX(P!$A$16:$G$992,MATCH(NGP!$A106,P!$A$16:$A$992,0),COLUMN())) -> 14 | G106: =IF(ISERROR(INDEX(P!$A$16:$G$992,MATCH(NGP!$A106,P!$A$16:$A$992,0),COLUMN())),"X",INDEX(P!$A$16:$G$992,MATCH(NGP!$A106,P!$A$16:$A$992,0),COLUMN())) -> P | H106: 1 | I106: 11 | J106: 6 | K106: 29 | L106: 7 | M106: 32 | N106: 14 | O106: 4 | P106: 46 | Q106: 23 | R106: 18 | S106: 24 | T106: 3 | U106: 12 | V106: 9 | W106: 0 | X106: 0 | Y106: 3 | Z106: 1 | AA106: 1 | AB106: 102 | AS106: 1 | AT106: 1 | AU106: 1 | AV106: 1 | AW106: =IF(A107<>"",20-SUM(AC107:AV107),"") -> 16 | AX106: 102
A107: =IF(P!$A118>0,P!$A118,"") -> 2013-09-08 | B107: =IF(ISERROR(INDEX(P!$A$16:$G$992,MATCH(NGP!$A107,P!$A$16:$A$992,0),COLUMN())),"X",INDEX(P!$A$16:$G$992,MATCH(NGP!$A107,P!$A$16:$A$992,0),COLUMN())) -> 1 | C107: =IF(ISERROR(INDEX(P!$A$16:$G$992,MATCH(NGP!$A107,P!$A$16:$A$992,0),COLUMN())),"X",INDEX(P!$A$16:$G$992,MATCH(NGP!$A107,P!$A$16:$A$992,0),COLUMN())) -> 5 | D107: =IF(ISERROR(INDEX(P!$A$16:$G$992,MATCH(NGP!$A107,P!$A$16:$A$992,0),COLUMN())),"X",INDEX(P!$A$16:$G$992,MATCH(NGP!$A107,P!$A$16:$A$992,0),COLUMN())) -> 6 | E107: =IF(ISERROR(INDEX(P!$A$16:$G$992,MATCH(NGP!$A107,P!$A$16:$A$992,0),COLUMN())),"X",INDEX(P!$A$16:$G$992,MATCH(NGP!$A107,P!$A$16:$A$992,0),COLUMN())) -> 9 | F107: =IF(ISERROR(INDEX(P!$A$16:$G$992,MATCH(NGP!$A107,P!$A$16:$A$992,0),COLUMN())),"X",INDEX(P!$A$16:$G$992,MATCH(NGP!$A107,P!$A$16:$A$992,0),COLUMN())) -> 12 | G107: =IF(ISERROR(INDEX(P!$A$16:$G$992,MATCH(NGP!$A107,P!$A$16:$A$992,0),COLUMN())),"X",INDEX(P!$A$16:$G$992,MATCH(NGP!$A107,P!$A$16:$A$992,0),COLUMN())) -> P | H107: 0 | I107: 12 | J107: 7 | K107: 30 | L107: 8 | M107: 33 | N107: 15 | O107: 5 | P107: 47 | Q107: 24 | R107: 19 | S107: 25 | T107: 4 | U107: 13 | V107: 10 | W107: 1 | X107: 0 | Y107: 3 | Z107: 1 | AA107: 1 | AB107: 103 | AS107: 1 | AT107: 1 | AU107: 1 | AV107: 1 | AW107: =IF(A108<>"",20-SUM(AC108:AV108),"") -> 16 | AX107: 103
A108: =IF(P!$A119>0,P!$A119,"") -> 2013-09-09 | B108: =IF(ISERROR(INDEX(P!$A$16:$G$992,MATCH(NGP!$A108,P!$A$16:$A$992,0),COLUMN())),"X",INDEX(P!$A$16:$G$992,MATCH(NGP!$A108,P!$A$16:$A$992,0),COLUMN())) -> 10 | C108: =IF(ISERROR(INDEX(P!$A$16:$G$992,MATCH(NGP!$A108,P!$A$16:$A$992,0),COLUMN())),"X",INDEX(P!$A$16:$G$992,MATCH(NGP!$A108,P!$A$16:$A$992,0),COLUMN())) -> 2 | D108: =IF(ISERROR(INDEX(P!$A$16:$G$992,MATCH(NGP!$A108,P!$A$16:$A$992,0),COLUMN())),"X",INDEX(P!$A$16:$G$992,MATCH(NGP!$A108,P!$A$16:$A$992,0),COLUMN())) -> 9 | E108: =IF(ISERROR(INDEX(P!$A$16:$G$992,MATCH(NGP!$A108,P!$A$16:$A$992,0),COLUMN())),"X",INDEX(P!$A$16:$G$992,MATCH(NGP!$A108,P!$A$16:$A$992,0),COLUMN())) -> 11 | F108: =IF(ISERROR(INDEX(P!$A$16:$G$992,MATCH(NGP!$A108,P!$A$16:$A$992,0),COLUMN())),"X",INDEX(P!$A$16:$G$992,MATCH(NGP!$A108,P!$A$16:$A$992,0),COLUMN())) -> 14 | G108: =IF(ISERROR(INDEX(P!$A$16:$G$992,MATCH(NGP!$A108,P!$A$16:$A$992,0),COLUMN())),"X",INDEX(P!$A$16:$G$992,MATCH(NGP!$A108,P!$A$16:$A$992,0),COLUMN())) -> P | H108: 1 | I108: 13 | J108: 8 | K108: 31 | L108: 9 | M108: 34 | N108: 16 | O108: 6 | P108: 48 | Q108: 0 | R108: 20 | S108: 26 | T108: 5 | U108: 14 | V108: 11 | W108: 2 | X108: 0 | Y108: 3 | Z108: 1 | AA108: 1 | AB108: 104 | AS108: 1 | AT108: 1 | AU108: 1 | AV108: 1 | AW108: =IF(A109<>"",20-SUM(AC109:AV109),"") -> 19 | AX108: 104
A109: =IF(P!$A120>0,P!$A120,"") -> 2013-09-10 | B109: =IF(ISERROR(INDEX(P!$A$16:$G$992,MATCH(NGP!$A109,P!$A$16:$A$992,0),COLUMN())),"X",INDEX(P!$A$16:$G$992,MATCH(NGP!$A109,P!$A$16:$A$992,0),COLUMN())) -> 7 | C109: =IF(ISERROR(INDEX(P!$A$16:$G$992,MATCH(NGP!$A109,P!$A$16:$A$992,0),COLUMN())),"X",INDEX(P!$A$16:$G$992,MATCH(NGP!$A109,P!$A$16:$A$992,0),COLUMN())) -> 12 | D109: =IF(ISERROR(INDEX(P!$A$16:$G$992,MATCH(NGP!$A109,P!$A$16:$A$992,0),COLUMN())),"X",INDEX(P!$A$16:$G$992,MATCH(NGP!$A109,P!$A$16:$A$992,0),COLUMN())) -> 14 | E109: =IF(ISERROR(INDEX(P!$A$16:$G$992,MATCH(NGP!$A109,P!$A$16:$A$992,0),COLUMN())),"X",INDEX(P!$A$16:$G$992,MATCH(NGP!$A109,P!$A$16:$A$992,0),COLUMN())) -> 3 | F109: =IF(ISERROR(INDEX(P!$A$16:$G$992,MATCH(NGP!$A109,P!$A$16:$A$992,0),COLUMN())),"X",INDEX(P!$A$16:$G$992,MATCH(NGP!$A109,P!$A$16:$A$992,0),COLUMN())) -> 15 | G109: =IF(ISERROR(INDEX(P!$A$16:$G$992,MATCH(NGP!$A109,P!$A$16:$A$992,0),COLUMN())),"X",INDEX(P!$A$16:$G$992,MATCH(NGP!$A109,P!$A$16:$A$992,0),COLUMN())) -> P | H109: 2 | I109: 14 | J109: 9 | K109: 32 | L109: 10 | M109: 35 | N109: 0 | O109: 7 | P109: 49 | Q109: 1 | R109: 21 | S109: 27 | T109: 6 | U109: 15 | V109: 12 | W109: 3 | X109: 1 | Y109: 4 | Z109: 2 | AA109: 1 | AB109: 105 | AV109: 1 | AW109: =IF(A110<>"",20-SUM(AC110:AV110),"") -> 16 | AX109: 105
A110: =IF(P!$A121>0,P!$A121,"") -> 2013-09-15 | B110: =IF(ISERROR(INDEX(P!$A$16:$G$992,MATCH(NGP!$A110,P!$A$16:$A$992,0),COLUMN())),"X",INDEX(P!$A$16:$G$992,MATCH(NGP!$A110,P!$A$16:$A$992,0),COLUMN())) -> 2 | C110: =IF(ISERROR(INDEX(P!$A$16:$G$992,MATCH(NGP!$A110,P!$A$16:$A$992,0),COLUMN())),"X",INDEX(P!$A$16:$G$992,MATCH(NGP!$A110,P!$A$16:$A$992,0),COLUMN())) -> 1 | D110: =IF(ISERROR(INDEX(P!$A$16:$G$992,MATCH(NGP!$A110,P!$A$16:$A$992,0),COLUMN())),"X",INDEX(P!$A$16:$G$992,MATCH(NGP!$A110,P!$A$16:$A$992,0),COLUMN())) -> 11 | E110: =IF(ISERROR(INDEX(P!$A$16:$G$992,MATCH(NGP!$A110,P!$A$16:$A$992,0),COLUMN())),"X",INDEX(P!$A$16:$G$992,MATCH(NGP!$A110,P!$A$16:$A$992,0),COLUMN())) -> 9 | F110: =IF(ISERROR(INDEX(P!$A$16:$G$992,MATCH(NGP!$A110,P!$A$16:$A$992,0),COLUMN())),"X",INDEX(P!$A$16:$G$992,MATCH(NGP!$A110,P!$A$16:$A$992,0),COLUMN())) -> 13 | G110: =IF(ISERROR(INDEX(P!$A$16:$G$992,MATCH(NGP!$A110,P!$A$16:$A$992,0),COLUMN())),"X",INDEX(P!$A$16:$G$992,MATCH(NGP!$A110,P!$A$16:$A$992,0),COLUMN())) -> P | H110: 3 | I110: 0 | J110: 10 | K110: 33 | L110: 11 | M110: 36 | N110: 1 | O110: 8 | P110: 50 | Q110: 2 | R110: 22 | S110: 28 | T110: 7 | U110: 16 | V110: 13 | W110: 4 | X110: 1 | Y110: 4 | Z110: 2 | AA110: 1 | AB110: 106 | AS110: 1 | AT110: 1 | AU110: 1 | AV110: 1 | AW110: =IF(A111<>"",20-SUM(AC111:AV111),"") -> 18 | AX110: 106
A111: =IF(P!$A122>0,P!$A122,"") -> 2013-09-17 | B111: =IF(ISERROR(INDEX(P!$A$16:$G$992,MATCH(NGP!$A111,P!$A$16:$A$992,0),COLUMN())),"X",INDEX(P!$A$16:$G$992,MATCH(NGP!$A111,P!$A$16:$A$992,0),COLUMN())) -> 10 | C111: =IF(ISERROR(INDEX(P!$A$16:$G$992,MATCH(NGP!$A111,P!$A$16:$A$992,0),COLUMN())),"X",INDEX(P!$A$16:$G$992,MATCH(NGP!$A111,P!$A$16:$A$992,0),COLUMN())) -> 9 | D111: =IF(ISERROR(INDEX(P!$A$16:$G$992,MATCH(NGP!$A111,P!$A$16:$A$992,0),COLUMN())),"X",INDEX(P!$A$16:$G$992,MATCH(NGP!$A111,P!$A$16:$A$992,0),COLUMN())) -> 7 | E111: =IF(ISERROR(INDEX(P!$A$16:$G$992,MATCH(NGP!$A111,P!$A$16:$A$992,0),COLUMN())),"X",INDEX(P!$A$16:$G$992,MATCH(NGP!$A111,P!$A$16:$A$992,0),COLUMN())) -> 12 | F111: =IF(ISERROR(INDEX(P!$A$16:$G$992,MATCH(NGP!$A111,P!$A$16:$A$992,0),COLUMN())),"X",INDEX(P!$A$16:$G$992,MATCH(NGP!$A111,P!$A$16:$A$992,0),COLUMN())) -> 11 | G111: =IF(ISERROR(INDEX(P!$A$16:$G$992,MATCH(NGP!$A111,P!$A$16:$A$992,0),COLUMN())),"X",INDEX(P!$A$16:$G$992,MATCH(NGP!$A111,P!$A$16:$A$992,0),COLUMN())) -> P | H111: 4 | I111: 1 | J111: 11 | K111: 34 | L111: 12 | M111: 37 | N111: 2 | O111: 9 | P111: 51 | Q111: 0 | R111: 23 | S111: 29 | T111: 8 | U111: 17 | V111: 14 | W111: 5 | X111: 2 | Y111: 5 | Z111: 2 | AA111: 1 | AB111: 107 | AU111: 1 | AV111: 1 | AW111: =IF(A112<>"",20-SUM(AC112:AV112),"") -> 12 | AX111: 107
A112: =IF(P!$A123>0,P!$A123,"") -> 2013-09-21 | B112: =IF(ISERROR(INDEX(P!$A$16:$G$992,MATCH(NGP!$A112,P!$A$16:$A$992,0),COLUMN())),"X",INDEX(P!$A$16:$G$992,MATCH(NGP!$A112,P!$A$16:$A$992,0),COLUMN())) -> 7 | C112: =IF(ISERROR(INDEX(P!$A$16:$G$992,MATCH(NGP!$A112,P!$A$16:$A$992,0),COLUMN())),"X",INDEX(P!$A$16:$G$992,MATCH(NGP!$A112,P!$A$16:$A$992,0),COLUMN())) -> 10 | D112: =IF(ISERROR(INDEX(P!$A$16:$G$992,MATCH(NGP!$A112,P!$A$16:$A$992,0),COLUMN())),"X",INDEX(P!$A$16:$G$992,MATCH(NGP!$A112,P!$A$16:$A$992,0),COLUMN())) -> 11 | E112: =IF(ISERROR(INDEX(P!$A$16:$G$992,MATCH(NGP!$A112,P!$A$16:$A$992,0),COLUMN())),"X",INDEX(P!$A$16:$G$992,MATCH(NGP!$A112,P!$A$16:$A$992,0),COLUMN())) -> 13 | F112: =IF(ISERROR(INDEX(P!$A$16:$G$992,MATCH(NGP!$A112,P!$A$16:$A$992,0),COLUMN())),"X",INDEX(P!$A$16:$G$992,MATCH(NGP!$A112,P!$A$16:$A$992,0),COLUMN())) -> 12 | G112: =IF(ISERROR(INDEX(P!$A$16:$G$992,MATCH(NGP!$A112,P!$A$16:$A$992,0),COLUMN())),"X",INDEX(P!$A$16:$G$992,MATCH(NGP!$A112,P!$A$16:$A$992,0),COLUMN())) -> P | H112: 5 | I112: 2 | J112: 12 | K112: 35 | L112: 12 | M112: 38 | N112: 0 | O112: 10 | P112: 52 | Q112: 1 | R112: 24 | S112: 30 | T112: 9 | U112: 17 | V112: 14 | W112: 5 | X112: 2 | Y112: 5 | Z112: 2 | AA112: 1 | AB112: 108 | AG112: 1 | AP112: 1 | AQ112: 1 | AR112: 1 | AS112: 1 | AT112: 1 | AU112: 1 | AV112: 1 | AW112: =IF(A113<>"",20-SUM(AC113:AV113),"") -> 14 | AX112: 108
A113: =IF(P!$A124>0,P!$A124,"") -> 2013-09-23 | B113: =IF(ISERROR(INDEX(P!$A$16:$G$992,MATCH(NGP!$A113,P!$A$16:$A$992,0),COLUMN())),"X",INDEX(P!$A$16:$G$992,MATCH(NGP!$A113,P!$A$16:$A$992,0),COLUMN())) -> 2 | C113: =IF(ISERROR(INDEX(P!$A$16:$G$992,MATCH(NGP!$A113,P!$A$16:$A$992,0),COLUMN())),"X",INDEX(P!$A$16:$G$992,MATCH(NGP!$A113,P!$A$16:$A$992,0),COLUMN())) -> 11 | D113: =IF(ISERROR(INDEX(P!$A$16:$G$992,MATCH(NGP!$A113,P!$A$16:$A$992,0),COLUMN())),"X",INDEX(P!$A$16:$G$992,MATCH(NGP!$A113,P!$A$16:$A$992,0),COLUMN())) -> 14 | E113: =IF(ISERROR(INDEX(P!$A$16:$G$992,MATCH(NGP!$A113,P!$A$16:$A$992,0),COLUMN())),"X",INDEX(P!$A$16:$G$992,MATCH(NGP!$A113,P!$A$16:$A$992,0),COLUMN())) -> 8 | F113: =IF(ISERROR(INDEX(P!$A$16:$G$992,MATCH(NGP!$A113,P!$A$16:$A$992,0),COLUMN())),"X",INDEX(P!$A$16:$G$992,MATCH(NGP!$A113,P!$A$16:$A$992,0),COLUMN())) -> 1 | G113: =IF(ISERROR(INDEX(P!$A$16:$G$992,MATCH(NGP!$A113,P!$A$16:$A$992,0),COLUMN())),"X",INDEX(P!$A$16:$G$992,MATCH(NGP!$A113,P!$A$16:$A$992,0),COLUMN())) -> P | H113: 6 | I113: 0 | J113: 13 | K113: 36 | L113: 13 | M113: 39 | N113: 1 | O113: 11 | P113: 53 | Q113: 2 | R113: 25 | S113: 31 | T113: 10 | U113: 18 | V113: 14 | W113: =IF(COUNTIF($B113:$D113,"=X")<3,IF(LEN(SUBSTITUTE(SUBSTITUTE($B113,W$1,,1),,1))=0,0,W112+1-AR113),"") -> 5 | X113: 2 | Y113: 5 | Z113: 2 | AA113: 1 | AB113: 109 | AQ113: 1 | AR113: 1 | AS113: 1 | AT113: 1 | AU113: 1 | AV113: 1 | AW113: =IF(A114<>"",20-SUM(AC114:AV114),"") -> 17 | AX113: 109
A114: =IF(P!$A125>0,P!$A125,"") -> 2013-09-26 | B114: =IF(ISERROR(INDEX(P!$A$16:$G$992,MATCH(NGP!$A114,P!$A$16:$A$992,0),COLUMN())),"X",INDEX(P!$A$16:$G$992,MATCH(NGP!$A114,P!$A$16:$A$992,0),COLUMN())) -> 3 | C114: =IF(ISERROR(INDEX(P!$A$16:$G$992,MATCH(NGP!$A114,P!$A$16:$A$992,0),COLUMN())),"X",INDEX(P!$A$16:$G$992,MATCH(NGP!$A114,P!$A$16:$A$992,0),COLUMN())) -> 5 | D114: =IF(ISERROR(INDEX(P!$A$16:$G$992,MATCH(NGP!$A114,P!$A$16:$A$992,0),COLUMN())),"X",INDEX(P!$A$16:$G$992,MATCH(NGP!$A114,P!$A$16:$A$992,0),COLUMN())) -> 11 | E114: =IF(ISERROR(INDEX(P!$A$16:$G$992,MATCH(NGP!$A114,P!$A$16:$A$992,0),COLUMN())),"X",INDEX(P!$A$16:$G$992,MATCH(NGP!$A114,P!$A$16:$A$992,0),COLUMN())) -> 17 | F114: =IF(ISERROR(INDEX(P!$A$16:$G$992,MATCH(NGP!$A114,P!$A$16:$A$992,0),COLUMN())),"X",INDEX(P!$A$16:$G$992,MATCH(NGP!$A114,P!$A$16:$A$992,0),COLUMN())) -> 12 | G114: =IF(ISERROR(INDEX(P!$A$16:$G$992,MATCH(NGP!$A114,P!$A$16:$A$992,0),COLUMN())),"X",INDEX(P!$A$16:$G$992,MATCH(NGP!$A114,P!$A$16:$A$992,0),COLUMN())) -> P | H114: =IF(COUNTIF($B114:$D114,"=X")<3,IF(LEN(SUBSTITUTE(SUBSTITUTE($B114,H$1,,1),,1))=0,0,H113+1-AC114),"") -> 7 | I114: 1 | J114: 0 | K114: 37 | L114: 14 | M114: 40 | N114: 2 | O114: 12 | P114: 54 | Q114: 3 | R114: 26 | S114: 32 | T114: 11 | U114: 19 | V114: 15 | W114: 6 | X114: 3 | Y114: 5 | Z114: 2 | AA114: 1 | AB114: 110 | AT114: 1 | AU114: 1 | AV114: 1 | AW114: =IF(A115<>"",20-SUM(AC115:AV115),"") -> 18 | AX114: 110
A115: =IF(P!$A126>0,P!$A126,"") -> 2013-10-05 | B115: =IF(ISERROR(INDEX(P!$A$16:$G$992,MATCH(NGP!$A115,P!$A$16:$A$992,0),COLUMN())),"X",INDEX(P!$A$16:$G$992,MATCH(NGP!$A115,P!$A$16:$A$992,0),COLUMN())) -> 14 | C115: =IF(ISERROR(INDEX(P!$A$16:$G$992,MATCH(NGP!$A115,P!$A$16:$A$992,0),COLUMN())),"X",INDEX(P!$A$16:$G$992,MATCH(NGP!$A115,P!$A$16:$A$992,0),COLUMN())) -> 10 | D115: =IF(ISERROR(INDEX(P!$A$16:$G$992,MATCH(NGP!$A115,P!$A$16:$A$992,0),COLUMN())),"X",INDEX(P!$A$16:$G$992,MATCH(NGP!$A115,P!$A$16:$A$992,0),COLUMN())) -> 17 | E115: =IF(ISERROR(INDEX(P!$A$16:$G$992,MATCH(NGP!$A115,P!$A$16:$A$992,0),COLUMN())),"X",INDEX(P!$A$16:$G$992,MATCH(NGP!$A115,P!$A$16:$A$992,0),COLUMN())) -> 15 | F115: =IF(ISERROR(INDEX(P!$A$16:$G$992,MATCH(NGP!$A115,P!$A$16:$A$992,0),COLUMN())),"X",INDEX(P!$A$16:$G$992,MATCH(NGP!$A115,P!$A$16:$A$992,0),COLUMN())) -> 18 | G115: =IF(ISERROR(INDEX(P!$A$16:$G$992,MATCH(NGP!$A115,P!$A$16:$A$992,0),COLUMN())),"X",INDEX(P!$A$16:$G$992,MATCH(NGP!$A115,P!$A$16:$A$992,0),COLUMN())) -> P | H115: 8 | I115: 2 | J115: 1 | K115: 38 | L115: 15 | M115: 41 | N115: 3 | O115: 13 | P115: 55 | Q115: 4 | R115: 27 | S115: 33 | T115: 12 | U115: 0 | V115: 16 | W115: 7 | X115: 4 | Y115: 6 | Z115: 2 | AA115: 1 | AB115: 111 | AU115: 1 | AV115: 1 | AW115: =IF(A116<>"",20-SUM(AC116:AV116),"") -> 18 | AX115: 111
A116: =IF(P!$A127>0,P!$A127,"") -> 2013-10-06 | B116: =IF(ISERROR(INDEX(P!$A$16:$G$992,MATCH(NGP!$A116,P!$A$16:$A$992,0),COLUMN())),"X",INDEX(P!$A$16:$G$992,MATCH(NGP!$A116,P!$A$16:$A$992,0),COLUMN())) -> 18 | C116: =IF(ISERROR(INDEX(P!$A$16:$G$992,MATCH(NGP!$A116,P!$A$16:$A$992,0),COLUMN())),"X",INDEX(P!$A$16:$G$992,MATCH(NGP!$A116,P!$A$16:$A$992,0),COLUMN())) -> 6 | D116: =IF(ISERROR(INDEX(P!$A$16:$G$992,MATCH(NGP!$A116,P!$A$16:$A$992,0),COLUMN())),"X",INDEX(P!$A$16:$G$992,MATCH(NGP!$A116,P!$A$16:$A$992,0),COLUMN())) -> 17 | E116: =IF(ISERROR(INDEX(P!$A$16:$G$992,MATCH(NGP!$A116,P!$A$16:$A$992,0),COLUMN())),"X",INDEX(P!$A$16:$G$992,MATCH(NGP!$A116,P!$A$16:$A$992,0),COLUMN())) -> 14 | F116: =IF(ISERROR(INDEX(P!$A$16:$G$992,MATCH(NGP!$A116,P!$A$16:$A$992,0),COLUMN())),"X",INDEX(P!$A$16:$G$992,MATCH(NGP!$A116,P!$A$16:$A$992,0),COLUMN())) -> 13 | G116: =IF(ISERROR(INDEX(P!$A$16:$G$992,MATCH(NGP!$A116,P!$A$16:$A$992,0),COLUMN())),"X",INDEX(P!$A$16:$G$992,MATCH(NGP!$A116,P!$A$16:$A$992,0),COLUMN())) -> P | H116: 9 | I116: 3 | J116: 2 | K116: 39 | L116: 16 | M116: 42 | N116: 4 | O116: 14 | P116: 56 | Q116: 5 | R116: 28 | S116: 34 | T116: 13 | U116: 1 | V116: 17 | W116: 8 | X116: 5 | Y116: 0 | Z116: 2 | AA116: 1 | AB116: 112 | AU116: 1 | AV116: 1 | AW116: =IF(A117<>"",20-SUM(AC117:AV117),"") -> 16 | AX116: 112
A117: =IF(P!$A128>0,P!$A128,"") -> 2013-10-08 | B117: =IF(ISERROR(INDEX(P!$A$16:$G$992,MATCH(NGP!$A117,P!$A$16:$A$992,0),COLUMN())),"X",INDEX(P!$A$16:$G$992,MATCH(NGP!$A117,P!$A$16:$A$992,0),COLUMN())) -> 11 | C117: =IF(ISERROR(INDEX(P!$A$16:$G$992,MATCH(NGP!$A117,P!$A$16:$A$992,0),COLUMN())),"X",INDEX(P!$A$16:$G$992,MATCH(NGP!$A117,P!$A$16:$A$992,0),COLUMN())) -> 13 | D117: =IF(ISERROR(INDEX(P!$A$16:$G$992,MATCH(NGP!$A117,P!$A$16:$A$992,0),COLUMN())),"X",INDEX(P!$A$16:$G$992,MATCH(NGP!$A117,P!$A$16:$A$992,0),COLUMN())) -> 6 | E117: =IF(ISERROR(INDEX(P!$A$16:$G$992,MATCH(NGP!$A117,P!$A$16:$A$992,0),COLUMN())),"X",INDEX(P!$A$16:$G$992,MATCH(NGP!$A117,P!$A$16:$A$992,0),COLUMN())) -> 7 | F117: =IF(ISERROR(INDEX(P!$A$16:$G$992,MATCH(NGP!$A117,P!$A$16:$A$992,0),COLUMN())),"X",INDEX(P!$A$16:$G$992,MATCH(NGP!$A117,P!$A$16:$A$992,0),COLUMN())) -> 10 | G117: =IF(ISERROR(INDEX(P!$A$16:$G$992,MATCH(NGP!$A117,P!$A$16:$A$992,0),COLUMN())),"X",INDEX(P!$A$16:$G$992,MATCH(NGP!$A117,P!$A$16:$A$992,0),COLUMN())) -> P | H117: 10 | I117: 4 | J117: 3 | K117: 40 | L117: 17 | M117: 43 | N117: 5 | O117: 15 | P117: 57 | Q117: 6 | R117: 0 | S117: 35 | T117: 14 | U117: 2 | V117: 18 | W117: 9 | X117: 5 | Y117: 0 | Z117: 2 | AA117: 1 | AB117: 113 | AS117: 1 | AT117: 1 | AU117: 1 | AV117: 1 | AW117: =IF(A118<>"",20-SUM(AC118:AV118),"") -> 18 | AX117: 113
A118: =IF(P!$A129>0,P!$A129,"") -> 2013-10-10 | B118: =IF(ISERROR(INDEX(P!$A$16:$G$992,MATCH(NGP!$A118,P!$A$16:$A$992,0),COLUMN())),"X",INDEX(P!$A$16:$G$992,MATCH(NGP!$A118,P!$A$16:$A$992,0),COLUMN())) -> 8 | C118: =IF(ISERROR(INDEX(P!$A$16:$G$992,MATCH(NGP!$A118,P!$A$16:$A$992,0),COLUMN())),"X",INDEX(P!$A$16:$G$992,MATCH(NGP!$A118,P!$A$16:$A$992,0),COLUMN())) -> 3 | D118: =IF(ISERROR(INDEX(P!$A$16:$G$992,MATCH(NGP!$A118,P!$A$16:$A$992,0),COLUMN())),"X",INDEX(P!$A$16:$G$992,MATCH(NGP!$A118,P!$A$16:$A$992,0),COLUMN())) -> 5 | E118: =IF(ISERROR(INDEX(P!$A$16:$G$992,MATCH(NGP!$A118,P!$A$16:$A$992,0),COLUMN())),"X",INDEX(P!$A$16:$G$992,MATCH(NGP!$A118,P!$A$16:$A$992,0),COLUMN())) -> 14 | F118: =IF(ISERROR(INDEX(P!$A$16:$G$992,MATCH(NGP!$A118,P!$A$16:$A$992,0),COLUMN())),"X",INDEX(P!$A$16:$G$992,MATCH(NGP!$A118,P!$A$16:$A$992,0),COLUMN())) -> 9 | G118: =IF(ISERROR(INDEX(P!$A$16:$G$992,MATCH(NGP!$A118,P!$A$16:$A$992,0),COLUMN())),"X",INDEX(P!$A$16:$G$992,MATCH(NGP!$A118,P!$A$16:$A$992,0),COLUMN())) -> P | H118: 11 | I118: 5 | J118: 4 | K118: 41 | L118: 18 | M118: 44 | N118: 6 | O118: 0 | P118: 58 | Q118: 7 | R118: 1 | S118: 36 | T118: 15 | U118: 3 | V118: 19 | W118: 10 | X118: 6 | Y118: 1 | Z118: 2 | AA118: 1 | AB118: 114 | AU118: 1 | AV118: 1 | AW118: =IF(A119<>"",20-SUM(AC119:AV119),"") -> 16 | AX118: 114
A119: =IF(P!$A130>0,P!$A130,"") -> 2013-10-12 | B119: =IF(ISERROR(INDEX(P!$A$16:$G$992,MATCH(NGP!$A119,P!$A$16:$A$992,0),COLUMN())),"X",INDEX(P!$A$16:$G$992,MATCH(NGP!$A119,P!$A$16:$A$992,0),COLUMN())) -> 10 | C119: =IF(ISERROR(INDEX(P!$A$16:$G$992,MATCH(NGP!$A119,P!$A$16:$A$992,0),COLUMN())),"X",INDEX(P!$A$16:$G$992,MATCH(NGP!$A119,P!$A$16:$A$992,0),COLUMN())) -> 9 | D119: =IF(ISERROR(INDEX(P!$A$16:$G$992,MATCH(NGP!$A119,P!$A$16:$A$992,0),COLUMN())),"X",INDEX(P!$A$16:$G$992,MATCH(NGP!$A119,P!$A$16:$A$992,0),COLUMN())) -> 2 | E119: =IF(ISERROR(INDEX(P!$A$16:$G$992,MATCH(NGP!$A119,P!$A$16:$A$992,0),COLUMN())),"X",INDEX(P!$A$16:$G$992,MATCH(NGP!$A119,P!$A$16:$A$992,0),COLUMN())) -> 11 | F119: =IF(ISERROR(INDEX(P!$A$16:$G$992,MATCH(NGP!$A119,P!$A$16:$A$992,0),COLUMN())),"X",INDEX(P!$A$16:$G$992,MATCH(NGP!$A119,P!$A$16:$A$992,0),COLUMN())) -> 6 | G119: =IF(ISERROR(INDEX(P!$A$16:$G$992,MATCH(NGP!$A119,P!$A$16:$A$992,0),COLUMN())),"X",INDEX(P!$A$16:$G$992,MATCH(NGP!$A119,P!$A$16:$A$992,0),COLUMN())) -> P | H119: 12 | I119: 6 | J119: 5 | K119: 42 | L119: 19 | M119: 45 | N119: 7 | O119: 1 | P119: 59 | Q119: 0 | R119: 2 | S119: 37 | T119: 16 | U119: 4 | V119: 20 | W119: 11 | X119: 6 | Y119: 1 | Z119: 2 | AA119: 1 | AS119: 1 | AT119: 1 | AU119: 1 | AV119: 1 | AW119: =IF(A120<>"",20-SUM(AC120:AV120),"") -> 16 | AX119: 115
A120: =IF(P!$A131>0,P!$A131,"") -> 2013-10-15 | B120: =IF(ISERROR(INDEX(P!$A$16:$G$992,MATCH(NGP!$A120,P!$A$16:$A$992,0),COLUMN())),"X",INDEX(P!$A$16:$G$992,MATCH(NGP!$A120,P!$A$16:$A$992,0),COLUMN())) -> 16 | C120: =IF(ISERROR(INDEX(P!$A$16:$G$992,MATCH(NGP!$A120,P!$A$16:$A$992,0),COLUMN())),"X",INDEX(P!$A$16:$G$992,MATCH(NGP!$A120,P!$A$16:$A$992,0),COLUMN())) -> 5 | D120: =IF(ISERROR(INDEX(P!$A$16:$G$992,MATCH(NGP!$A120,P!$A$16:$A$992,0),COLUMN())),"X",INDEX(P!$A$16:$G$992,MATCH(NGP!$A120,P!$A$16:$A$992,0),COLUMN())) -> 4 | E120: =IF(ISERROR(INDEX(P!$A$16:$G$992,MATCH(NGP!$A120,P!$A$16:$A$992,0),COLUMN())),"X",INDEX(P!$A$16:$G$992,MATCH(NGP!$A120,P!$A$16:$A$992,0),COLUMN())) -> 13 | F120: =IF(ISERROR(INDEX(P!$A$16:$G$992,MATCH(NGP!$A120,P!$A$16:$A$992,0),COLUMN())),"X",INDEX(P!$A$16:$G$992,MATCH(NGP!$A120,P!$A$16:$A$992,0),COLUMN())) -> 7 | G120: =IF(ISERROR(INDEX(P!$A$16:$G$992,MATCH(NGP!$A120,P!$A$16:$A$992,0),COLUMN())),"X",INDEX(P!$A$16:$G$992,MATCH(NGP!$A120,P!$A$16:$A$992,0),COLUMN())) -> P | H120: 13 | I120: 7 | J120: 6 | K120: 43 | L120: 20 | M120: 46 | N120: 8 | O120: 2 | P120: 60 | Q120: 1 | R120: 3 | S120: 38 | T120: 17 | U120: 5 | V120: 21 | W120: 0 | X120: 6 | Y120: 1 | Z120: 2 | AA120: 1 | AS120: 1 | AT120: 1 | AU120: 1 | AV120: 1 | AW120: =IF(A121<>"",20-SUM(AC121:AV121),"") -> 16 | AX120: 116
A121: =IF(P!$A132>0,P!$A132,"") -> 2013-10-17 | B121: =IF(ISERROR(INDEX(P!$A$16:$G$992,MATCH(NGP!$A121,P!$A$16:$A$992,0),COLUMN())),"X",INDEX(P!$A$16:$G$992,MATCH(NGP!$A121,P!$A$16:$A$992,0),COLUMN())) -> 5 | C121: =IF(ISERROR(INDEX(P!$A$16:$G$992,MATCH(NGP!$A121,P!$A$16:$A$992,0),COLUMN())),"X",INDEX(P!$A$16:$G$992,MATCH(NGP!$A121,P!$A$16:$A$992,0),COLUMN())) -> 13 | D121: =IF(ISERROR(INDEX(P!$A$16:$G$992,MATCH(NGP!$A121,P!$A$16:$A$992,0),COLUMN())),"X",INDEX(P!$A$16:$G$992,MATCH(NGP!$A121,P!$A$16:$A$992,0),COLUMN())) -> 12 | E121: =IF(ISERROR(INDEX(P!$A$16:$G$992,MATCH(NGP!$A121,P!$A$16:$A$992,0),COLUMN())),"X",INDEX(P!$A$16:$G$992,MATCH(NGP!$A121,P!$A$16:$A$992,0),COLUMN())) -> 6 | F121: =IF(ISERROR(INDEX(P!$A$16:$G$992,MATCH(NGP!$A121,P!$A$16:$A$992,0),COLUMN())),"X",INDEX(P!$A$16:$G$992,MATCH(NGP!$A121,P!$A$16:$A$992,0),COLUMN())) -> 14 | G121: =IF(ISERROR(INDEX(P!$A$16:$G$992,MATCH(NGP!$A121,P!$A$16:$A$992,0),COLUMN())),"X",INDEX(P!$A$16:$G$992,MATCH(NGP!$A121,P!$A$16:$A$992,0),COLUMN())) -> P | H121: 14 | I121: 8 | J121: 7 | K121: 44 | L121: 0 | M121: 47 | N121: 9 | O121: 3 | P121: 61 | Q121: 2 | R121: 4 | S121: 39 | T121: 18 | U121: 6 | V121: 22 | W121: 1 | X121: 6 | Y121: 1 | Z121: 2 | AA121: 1 | AS121: 1 | AT121: 1 | AU121: 1 | AV121: 1 | AW121: =IF(A122<>"",20-SUM(AC122:AV122),"") -> 14 | AX121: 117
A122: =IF(P!$A133>0,P!$A133,"") -> 2013-10-20 | B122: =IF(ISERROR(INDEX(P!$A$16:$G$992,MATCH(NGP!$A122,P!$A$16:$A$992,0),COLUMN())),"X",INDEX(P!$A$16:$G$992,MATCH(NGP!$A122,P!$A$16:$A$992,0),COLUMN())) -> 6 | C122: =IF(ISERROR(INDEX(P!$A$16:$G$992,MATCH(NGP!$A122,P!$A$16:$A$992,0),COLUMN())),"X",INDEX(P!$A$16:$G$992,MATCH(NGP!$A122,P!$A$16:$A$992,0),COLUMN())) -> 12 | D122: =IF(ISERROR(INDEX(P!$A$16:$G$992,MATCH(NGP!$A122,P!$A$16:$A$992,0),COLUMN())),"X",INDEX(P!$A$16:$G$992,MATCH(NGP!$A122,P!$A$16:$A$992,0),COLUMN())) -> 8 | E122: =IF(ISERROR(INDEX(P!$A$16:$G$992,MATCH(NGP!$A122,P!$A$16:$A$992,0),COLUMN())),"X",INDEX(P!$A$16:$G$992,MATCH(NGP!$A122,P!$A$16:$A$992,0),COLUMN())) -> 10 | F122: =IF(ISERROR(INDEX(P!$A$16:$G$992,MATCH(NGP!$A122,P!$A$16:$A$992,0),COLUMN())),"X",INDEX(P!$A$16:$G$992,MATCH(NGP!$A122,P!$A$16:$A$992,0),COLUMN())) -> 14 | G122: =IF(ISERROR(INDEX(P!$A$16:$G$992,MATCH(NGP!$A122,P!$A$16:$A$992,0),COLUMN())),"X",INDEX(P!$A$16:$G$992,MATCH(NGP!$A122,P!$A$16:$A$992,0),COLUMN())) -> P | H122: 15 | I122: 9 | J122: 8 | K122: 45 | L122: 1 | M122: 0 | N122: 10 | O122: 4 | P122: 62 | Q122: 3 | R122: 5 | S122: 40 | T122: 19 | U122: 7 | V122: 22 | W122: 1 | X122: 6 | Y122: 1 | Z122: 2 | AA122: 1 | AQ122: 1 | AR122: 1 | AS122: 1 | AT122: 1 | AU122: 1 | AV122: 1 | AW122: =IF(A123<>"",20-SUM(AC123:AV123),"") -> 16 | AX122: 118
A123: =IF(P!$A134>0,P!$A134,"") -> 2013-10-22 | B123: =IF(ISERROR(INDEX(P!$A$16:$G$992,MATCH(NGP!$A123,P!$A$16:$A$992,0),COLUMN())),"X",INDEX(P!$A$16:$G$992,MATCH(NGP!$A123,P!$A$16:$A$992,0),COLUMN())) -> 10 | C123: =IF(ISERROR(INDEX(P!$A$16:$G$992,MATCH(NGP!$A123,P!$A$16:$A$992,0),COLUMN())),"X",INDEX(P!$A$16:$G$992,MATCH(NGP!$A123,P!$A$16:$A$992,0),COLUMN())) -> 12 | D123: =IF(ISERROR(INDEX(P!$A$16:$G$992,MATCH(NGP!$A123,P!$A$16:$A$992,0),COLUMN())),"X",INDEX(P!$A$16:$G$992,MATCH(NGP!$A123,P!$A$16:$A$992,0),COLUMN())) -> 5 | E123: =IF(ISERROR(INDEX(P!$A$16:$G$992,MATCH(NGP!$A123,P!$A$16:$A$992,0),COLUMN())),"X",INDEX(P!$A$16:$G$992,MATCH(NGP!$A123,P!$A$16:$A$992,0),COLUMN())) -> 11 | F123: =IF(ISERROR(INDEX(P!$A$16:$G$992,MATCH(NGP!$A123,P!$A$16:$A$992,0),COLUMN())),"X",INDEX(P!$A$16:$G$992,MATCH(NGP!$A123,P!$A$16:$A$992,0),COLUMN())) -> 1 | G123: =IF(ISERROR(INDEX(P!$A$16:$G$992,MATCH(NGP!$A123,P!$A$16:$A$992,0),COLUMN())),"X",INDEX(P!$A$16:$G$992,MATCH(NGP!$A123,P!$A$16:$A$992,0),COLUMN())) -> P | H123: 16 | I123: 10 | J123: 9 | K123: 46 | L123: 2 | M123: 1 | N123: 11 | O123: 5 | P123: 63 | Q123: 0 | R123: 6 | S123: 41 | T123: 20 | U123: 8 | V123: 23 | W123: 2 | X123: 6 | Y123: 1 | Z123: 2 | AA123: 1 | AS123: 1 | AT123: 1 | AU123: 1 | AV123: 1 | AW123: =IF(A124<>"",20-SUM(AC124:AV124),"") -> 15 | AX123: 119 | AY123: 15
A124: =IF(P!$A135>0,P!$A135,"") -> 2013-10-23 | B124: =IF(ISERROR(INDEX(P!$A$16:$G$992,MATCH(NGP!$A124,P!$A$16:$A$992,0),COLUMN())),"X",INDEX(P!$A$16:$G$992,MATCH(NGP!$A124,P!$A$16:$A$992,0),COLUMN())) -> 6 | C124: =IF(ISERROR(INDEX(P!$A$16:$G$992,MATCH(NGP!$A124,P!$A$16:$A$992,0),COLUMN())),"X",INDEX(P!$A$16:$G$992,MATCH(NGP!$A124,P!$A$16:$A$992,0),COLUMN())) -> 1 | D124: =IF(ISERROR(INDEX(P!$A$16:$G$992,MATCH(NGP!$A124,P!$A$16:$A$992,0),COLUMN())),"X",INDEX(P!$A$16:$G$992,MATCH(NGP!$A124,P!$A$16:$A$992,0),COLUMN())) -> 12 | E124: =IF(ISERROR(INDEX(P!$A$16:$G$992,MATCH(NGP!$A124,P!$A$16:$A$992,0),COLUMN())),"X",INDEX(P!$A$16:$G$992,MATCH(NGP!$A124,P!$A$16:$A$992,0),COLUMN())) -> 7 | F124: =IF(ISERROR(INDEX(P!$A$16:$G$992,MATCH(NGP!$A124,P!$A$16:$A$992,0),COLUMN())),"X",INDEX(P!$A$16:$G$992,MATCH(NGP!$A124,P!$A$16:$A$992,0),COLUMN())) -> 14 | G124: =IF(ISERROR(INDEX(P!$A$16:$G$992,MATCH(NGP!$A124,P!$A$16:$A$992,0),COLUMN())),"X",INDEX(P!$A$16:$G$992,MATCH(NGP!$A124,P!$A$16:$A$992,0),COLUMN())) -> P | H124: 17 | I124: 11 | J124: 10 | K124: 47 | L124: 3 | M124: 0 | N124: 12 | O124: 6 | P124: 64 | Q124: 1 | R124: 7 | S124: 42 | T124: 21 | U124: 9 | V124: 24 | W124: 2 | X124: 6 | Y124: 1 | Z124: 2 | AA124: 1 | AR124: 1 | AS124: 1 | AT124: 1 | AU124: 1 | AV124: 1 | AW124: =IF(A125<>"",20-SUM(AC125:AV125),"") -> 14 | AX124: 120 | AY124: 14
A125: =IF(P!$A136>0,P!$A136,"") -> 2013-10-27 | B125: =IF(ISERROR(INDEX(P!$A$16:$G$992,MATCH(NGP!$A125,P!$A$16:$A$992,0),COLUMN())),"X",INDEX(P!$A$16:$G$992,MATCH(NGP!$A125,P!$A$16:$A$992,0),COLUMN())) -> 8 | C125: =IF(ISERROR(INDEX(P!$A$16:$G$992,MATCH(NGP!$A125,P!$A$16:$A$992,0),COLUMN())),"X",INDEX(P!$A$16:$G$992,MATCH(NGP!$A125,P!$A$16:$A$992,0),COLUMN())) -> 9 | D125: =IF(ISERROR(INDEX(P!$A$16:$G$992,MATCH(NGP!$A125,P!$A$16:$A$992,0),COLUMN())),"X",INDEX(P!$A$16:$G$992,MATCH(NGP!$A125,P!$A$16:$A$992,0),COLUMN())) -> 11 | E125: =IF(ISERROR(INDEX(P!$A$16:$G$992,MATCH(NGP!$A125,P!$A$16:$A$992,0),COLUMN())),"X",INDEX(P!$A$16:$G$992,MATCH(NGP!$A125,P!$A$16:$A$992,0),COLUMN())) -> 4 | F125: =IF(ISERROR(INDEX(P!$A$16:$G$992,MATCH(NGP!$A125,P!$A$16:$A$992,0),COLUMN())),"X",INDEX(P!$A$16:$G$992,MATCH(NGP!$A125,P!$A$16:$A$992,0),COLUMN())) -> 5 | G125: =IF(ISERROR(INDEX(P!$A$16:$G$992,MATCH(NGP!$A125,P!$A$16:$A$992,0),COLUMN())),"X",INDEX(P!$A$16:$G$992,MATCH(NGP!$A125,P!$A$16:$A$992,0),COLUMN())) -> P | H125: 18 | I125: 12 | J125: 11 | K125: 48 | L125: 4 | M125: 1 | N125: 13 | O125: 0 | P125: 65 | Q125: 2 | R125: 8 | S125: 43 | T125: 22 | U125: 10 | V125: 24 | W125: 2 | X125: 6 | Y125: 1 | Z125: 2 | AA125: 1 | AQ125: 1 | AR125: 1 | AS125: 1 | AT125: 1 | AU125: 1 | AV125: 1 | AW125: =IF(A126<>"",20-SUM(AC126:AV126),"") -> 15 | AX125: 121
A126: =IF(P!$A137>0,P!$A137,"") -> 2013-10-28 | B126: =IF(ISERROR(INDEX(P!$A$16:$G$992,MATCH(NGP!$A126,P!$A$16:$A$992,0),COLUMN())),"X",INDEX(P!$A$16:$G$992,MATCH(NGP!$A126,P!$A$16:$A$992,0),COLUMN())) -> 14 | C126: =IF(ISERROR(INDEX(P!$A$16:$G$992,MATCH(NGP!$A126,P!$A$16:$A$992,0),COLUMN())),"X",INDEX(P!$A$16:$G$992,MATCH(NGP!$A126,P!$A$16:$A$992,0),COLUMN())) -> 8 | D126: =IF(ISERROR(INDEX(P!$A$16:$G$992,MATCH(NGP!$A126,P!$A$16:$A$992,0),COLUMN())),"X",INDEX(P!$A$16:$G$992,MATCH(NGP!$A126,P!$A$16:$A$992,0),COLUMN())) -> 3 | E126: =IF(ISERROR(INDEX(P!$A$16:$G$992,MATCH(NGP!$A126,P!$A$16:$A$992,0),COLUMN())),"X",INDEX(P!$A$16:$G$992,MATCH(NGP!$A126,P!$A$16:$A$992,0),COLUMN())) -> 6 | F126: =IF(ISERROR(INDEX(P!$A$16:$G$992,MATCH(NGP!$A126,P!$A$16:$A$992,0),COLUMN())),"X",INDEX(P!$A$16:$G$992,MATCH(NGP!$A126,P!$A$16:$A$992,0),COLUMN())) -> 11 | G126: =IF(ISERROR(INDEX(P!$A$16:$G$992,MATCH(NGP!$A126,P!$A$16:$A$992,0),COLUMN())),"X",INDEX(P!$A$16:$G$992,MATCH(NGP!$A126,P!$A$16:$A$992,0),COLUMN())) -> P | H126: 19 | I126: 13 | J126: 12 | K126: 49 | L126: 5 | M126: 2 | N126: 14 | O126: 1 | P126: 66 | Q126: 3 | R126: 9 | S126: 44 | T126: 23 | U126: 0 | V126: 25 | W126: 2 | X126: 6 | Y126: 1 | Z126: 2 | AA126: 1 | AR126: 1 | AS126: 1 | AT126: 1 | AU126: 1 | AV126: 1 | AW126: =IF(A127<>"",20-SUM(AC127:AV127),"") -> 18 | AX126: 122
A127: =IF(P!$A138>0,P!$A138,"") -> 2013-10-29 | B127: =IF(ISERROR(INDEX(P!$A$16:$G$992,MATCH(NGP!$A127,P!$A$16:$A$992,0),COLUMN())),"X",INDEX(P!$A$16:$G$992,MATCH(NGP!$A127,P!$A$16:$A$992,0),COLUMN())) -> 9 | C127: =IF(ISERROR(INDEX(P!$A$16:$G$992,MATCH(NGP!$A127,P!$A$16:$A$992,0),COLUMN())),"X",INDEX(P!$A$16:$G$992,MATCH(NGP!$A127,P!$A$16:$A$992,0),COLUMN())) -> 17 | D127: =IF(ISERROR(INDEX(P!$A$16:$G$992,MATCH(NGP!$A127,P!$A$16:$A$992,0),COLUMN())),"X",INDEX(P!$A$16:$G$992,MATCH(NGP!$A127,P!$A$16:$A$992,0),COLUMN())) -> 2 | E127: =IF(ISERROR(INDEX(P!$A$16:$G$992,MATCH(NGP!$A127,P!$A$16:$A$992,0),COLUMN())),"X",INDEX(P!$A$16:$G$992,MATCH(NGP!$A127,P!$A$16:$A$992,0),COLUMN())) -> 1 | F127: =IF(ISERROR(INDEX(P!$A$16:$G$992,MATCH(NGP!$A127,P!$A$16:$A$992,0),COLUMN())),"X",INDEX(P!$A$16:$G$992,MATCH(NGP!$A127,P!$A$16:$A$992,0),COLUMN())) -> 10 | G127: =IF(ISERROR(INDEX(P!$A$16:$G$992,MATCH(NGP!$A127,P!$A$16:$A$992,0),COLUMN())),"X",INDEX(P!$A$16:$G$992,MATCH(NGP!$A127,P!$A$16:$A$992,0),COLUMN())) -> P | H127: 20 | I127: 14 | J127: 13 | K127: 50 | L127: 6 | M127: 3 | N127: 15 | O127: 2 | P127: 0 | Q127: 4 | R127: 10 | S127: 45 | T127: 24 | U127: 1 | V127: 26 | W127: 3 | X127: 7 | Y127: 2 | Z127: 2 | AA127: 1 | AU127: 1 | AV127: 1 | AW127: =IF(A128<>"",20-SUM(AC128:AV128),"") -> 16 | AX127: 123
A128: =IF(P!$A139>0,P!$A139,"") -> 2013-10-31 | B128: =IF(ISERROR(INDEX(P!$A$16:$G$992,MATCH(NGP!$A128,P!$A$16:$A$992,0),COLUMN())),"X",INDEX(P!$A$16:$G$992,MATCH(NGP!$A128,P!$A$16:$A$992,0),COLUMN())) -> 3 | C128: =IF(ISERROR(INDEX(P!$A$16:$G$992,MATCH(NGP!$A128,P!$A$16:$A$992,0),COLUMN())),"X",INDEX(P!$A$16:$G$992,MATCH(NGP!$A128,P!$A$16:$A$992,0),COLUMN())) -> 1 | D128: =IF(ISERROR(INDEX(P!$A$16:$G$992,MATCH(NGP!$A128,P!$A$16:$A$992,0),COLUMN())),"X",INDEX(P!$A$16:$G$992,MATCH(NGP!$A128,P!$A$16:$A$992,0),COLUMN())) -> 16 | E128: =IF(ISERROR(INDEX(P!$A$16:$G$992,MATCH(NGP!$A128,P!$A$16:$A$992,0),COLUMN())),"X",INDEX(P!$A$16:$G$992,MATCH(NGP!$A128,P!$A$16:$A$992,0),COLUMN())) -> 6 | F128: =IF(ISERROR(INDEX(P!$A$16:$G$992,MATCH(NGP!$A128,P!$A$16:$A$992,0),COLUMN())),"X",INDEX(P!$A$16:$G$992,MATCH(NGP!$A128,P!$A$16:$A$992,0),COLUMN())) -> 11 | G128: =IF(ISERROR(INDEX(P!$A$16:$G$992,MATCH(NGP!$A128,P!$A$16:$A$992,0),COLUMN())),"X",INDEX(P!$A$16:$G$992,MATCH(NGP!$A128,P!$A$16:$A$992,0),COLUMN())) -> P | H128: 21 | I128: 15 | J128: 0 | K128: 51 | L128: 7 | M128: 4 | N128: 16 | O128: 3 | P128: 1 | Q128: 5 | R128: 11 | S128: 46 | T128: 25 | U128: 2 | V128: 27 | W128: 4 | X128: 7 | Y128: 2 | Z128: 2 | AA128: 1 | AS128: 1 | AT128: 1 | AU128: 1 | AV128: 1 | AW128: =IF(A129<>"",20-SUM(AC129:AV129),"") -> 16 | AX128: 124
A129: =IF(P!$A140>0,P!$A140,"") -> 2013-11-01 | B129: =IF(ISERROR(INDEX(P!$A$16:$G$992,MATCH(NGP!$A129,P!$A$16:$A$992,0),COLUMN())),"X",INDEX(P!$A$16:$G$992,MATCH(NGP!$A129,P!$A$16:$A$992,0),COLUMN())) -> 9 | C129: =IF(ISERROR(INDEX(P!$A$16:$G$992,MATCH(NGP!$A129,P!$A$16:$A$992,0),COLUMN())),"X",INDEX(P!$A$16:$G$992,MATCH(NGP!$A129,P!$A$16:$A$992,0),COLUMN())) -> 10 | D129: =IF(ISERROR(INDEX(P!$A$16:$G$992,MATCH(NGP!$A129,P!$A$16:$A$992,0),COLUMN())),"X",INDEX(P!$A$16:$G$992,MATCH(NGP!$A129,P!$A$16:$A$992,0),COLUMN())) -> 14 | E129: =IF(ISERROR(INDEX(P!$A$16:$G$992,MATCH(NGP!$A129,P!$A$16:$A$992,0),COLUMN())),"X",INDEX(P!$A$16:$G$992,MATCH(NGP!$A129,P!$A$16:$A$992,0),COLUMN())) -> 11 | F129: =IF(ISERROR(INDEX(P!$A$16:$G$992,MATCH(NGP!$A129,P!$A$16:$A$992,0),COLUMN())),"X",INDEX(P!$A$16:$G$992,MATCH(NGP!$A129,P!$A$16:$A$992,0),COLUMN())) -> 6 | G129: =IF(ISERROR(INDEX(P!$A$16:$G$992,MATCH(NGP!$A129,P!$A$16:$A$992,0),COLUMN())),"X",INDEX(P!$A$16:$G$992,MATCH(NGP!$A129,P!$A$16:$A$992,0),COLUMN())) -> P | H129: 22 | I129: 16 | J129: 1 | K129: 52 | L129: 8 | M129: 5 | N129: 17 | O129: 4 | P129: 0 | Q129: 6 | R129: 12 | S129: 47 | T129: 26 | U129: 3 | V129: 28 | W129: 5 | X129: =IF(COUNTIF($B129:$D129,"=X")<3,IF(LEN(SUBSTITUTE(SUBSTITUTE($B129,X$1,,1),,1))=0,0,X128+1-AS129),"") -> 7 | Y129: 2 | Z129: 2 | AA129: 1 | AS129: 1 | AT129: 1 | AU129: 1 | AV129: 1 | AW129: =IF(A130<>"",20-SUM(AC130:AV130),"") -> 18 | AX129: 125
A130: =IF(P!$A141>0,P!$A141,"") -> 2013-11-09 | B130: =IF(ISERROR(INDEX(P!$A$16:$G$992,MATCH(NGP!$A130,P!$A$16:$A$992,0),COLUMN())),"X",INDEX(P!$A$16:$G$992,MATCH(NGP!$A130,P!$A$16:$A$992,0),COLUMN())) -> 2 | C130: =IF(ISERROR(INDEX(P!$A$16:$G$992,MATCH(NGP!$A130,P!$A$16:$A$992,0),COLUMN())),"X",INDEX(P!$A$16:$G$992,MATCH(NGP!$A130,P!$A$16:$A$992,0),COLUMN())) -> 8 | D130: =IF(ISERROR(INDEX(P!$A$16:$G$992,MATCH(NGP!$A130,P!$A$16:$A$992,0),COLUMN())),"X",INDEX(P!$A$16:$G$992,MATCH(NGP!$A130,P!$A$16:$A$992,0),COLUMN())) -> 16 | E130: =IF(ISERROR(INDEX(P!$A$16:$G$992,MATCH(NGP!$A130,P!$A$16:$A$992,0),COLUMN())),"X",INDEX(P!$A$16:$G$992,MATCH(NGP!$A130,P!$A$16:$A$992,0),COLUMN())) -> 18 | F130: =IF(ISERROR(INDEX(P!$A$16:$G$992,MATCH(NGP!$A130,P!$A$16:$A$992,0),COLUMN())),"X",INDEX(P!$A$16:$G$992,MATCH(NGP!$A130,P!$A$16:$A$992,0),COLUMN())) -> 12 | G130: =IF(ISERROR(INDEX(P!$A$16:$G$992,MATCH(NGP!$A130,P!$A$16:$A$992,0),COLUMN())),"X",INDEX(P!$A$16:$G$992,MATCH(NGP!$A130,P!$A$16:$A$992,0),COLUMN())) -> P | H130: =IF(COUNTIF($B130:$D130,"=X")<3,IF(LEN(SUBSTITUTE(SUBSTITUTE($B130,H$1,,1),,1))=0,0,H129+1-AC130),"") -> 23 | I130: 0 | J130: 2 | K130: 53 | L130: 9 | M130: 6 | N130: 18 | O130: 5 | P130: 1 | Q130: 7 | R130: 13 | S130: 48 | T130: 27 | U130: 4 | V130: 29 | W130: 6 | X130: 8 | Y130: 3 | Z130: 2 | AA130: 1 | AU130: 1 | AV130: 1 | AW130: =IF(A131<>"",20-SUM(AC131:AV131),"") -> 16 | AX130: 126
A131: =IF(P!$A142>0,P!$A142,"") -> 2013-11-11 | B131: =IF(ISERROR(INDEX(P!$A$16:$G$992,MATCH(NGP!$A131,P!$A$16:$A$992,0),COLUMN())),"X",INDEX(P!$A$16:$G$992,MATCH(NGP!$A131,P!$A$16:$A$992,0),COLUMN())) -> 7 | C131: =IF(ISERROR(INDEX(P!$A$16:$G$992,MATCH(NGP!$A131,P!$A$16:$A$992,0),COLUMN())),"X",INDEX(P!$A$16:$G$992,MATCH(NGP!$A131,P!$A$16:$A$992,0),COLUMN())) -> 10 | D131: =IF(ISERROR(INDEX(P!$A$16:$G$992,MATCH(NGP!$A131,P!$A$16:$A$992,0),COLUMN())),"X",INDEX(P!$A$16:$G$992,MATCH(NGP!$A131,P!$A$16:$A$992,0),COLUMN())) -> 2 | E131: =IF(ISERROR(INDEX(P!$A$16:$G$992,MATCH(NGP!$A131,P!$A$16:$A$992,0),COLUMN())),"X",INDEX(P!$A$16:$G$992,MATCH(NGP!$A131,P!$A$16:$A$992,0),COLUMN())) -> 12 | F131: =IF(ISERROR(INDEX(P!$A$16:$G$992,MATCH(NGP!$A131,P!$A$16:$A$992,0),COLUMN())),"X",INDEX(P!$A$16:$G$992,MATCH(NGP!$A131,P!$A$16:$A$992,0),COLUMN())) -> 11 | G131: =IF(ISERROR(INDEX(P!$A$16:$G$992,MATCH(NGP!$A131,P!$A$16:$A$992,0),COLUMN())),"X",INDEX(P!$A$16:$G$992,MATCH(NGP!$A131,P!$A$16:$A$992,0),COLUMN())) -> P | H131: 24 | I131: 1 | J131: 3 | K131: 54 | L131: 10 | M131: 7 | N131: 0 | O131: 6 | P131: 2 | Q131: 8 | R131: 14 | S131: 49 | T131: 28 | U131: 5 | V131: 30 | W131: 7 | X131: 8 | Y131: 3 | Z131: 2 | AA131: 1 | AS131: 1 | AT131: 1 | AU131: 1 | AV131: 1 | AW131: =IF(A132<>"",20-SUM(AC132:AV132),"") -> 16 | AX131: 127
A132: =IF(P!$A143>0,P!$A143,"") -> 2013-11-12 | B132: =IF(ISERROR(INDEX(P!$A$16:$G$992,MATCH(NGP!$A132,P!$A$16:$A$992,0),COLUMN())),"X",INDEX(P!$A$16:$G$992,MATCH(NGP!$A132,P!$A$16:$A$992,0),COLUMN())) -> 3 | C132: =IF(ISERROR(INDEX(P!$A$16:$G$992,MATCH(NGP!$A132,P!$A$16:$A$992,0),COLUMN())),"X",INDEX(P!$A$16:$G$992,MATCH(NGP!$A132,P!$A$16:$A$992,0),COLUMN())) -> 6 | D132: =IF(ISERROR(INDEX(P!$A$16:$G$992,MATCH(NGP!$A132,P!$A$16:$A$992,0),COLUMN())),"X",INDEX(P!$A$16:$G$992,MATCH(NGP!$A132,P!$A$16:$A$992,0),COLUMN())) -> 7 | E132: =IF(ISERROR(INDEX(P!$A$16:$G$992,MATCH(NGP!$A132,P!$A$16:$A$992,0),COLUMN())),"X",INDEX(P!$A$16:$G$992,MATCH(NGP!$A132,P!$A$16:$A$992,0),COLUMN())) -> 8 | F132: =IF(ISERROR(INDEX(P!$A$16:$G$992,MATCH(NGP!$A132,P!$A$16:$A$992,0),COLUMN())),"X",INDEX(P!$A$16:$G$992,MATCH(NGP!$A132,P!$A$16:$A$992,0),COLUMN())) -> 9 | G132: =IF(ISERROR(INDEX(P!$A$16:$G$992,MATCH(NGP!$A132,P!$A$16:$A$992,0),COLUMN())),"X",INDEX(P!$A$16:$G$992,MATCH(NGP!$A132,P!$A$16:$A$992,0),COLUMN())) -> P | H132: 25 | I132: 2 | J132: 0 | K132: 55 | L132: 11 | M132: 8 | N132: 1 | O132: 7 | P132: 3 | Q132: 9 | R132: 15 | S132: 50 | T132: 29 | U132: 6 | V132: 31 | W132: 8 | X132: 8 | Y132: 3 | Z132: 2 | AA132: 1 | AS132: 1 | AT132: 1 | AU132: 1 | AV132: 1 | AW132: =IF(A133<>"",20-SUM(AC133:AV133),"") -> 13 | AX132: 128 | AY132: 4 | AZ132: 7 | BA132: 15
A133: =IF(P!$A144>0,P!$A144,"") -> 2013-11-19 | B133: =IF(ISERROR(INDEX(P!$A$16:$G$992,MATCH(NGP!$A133,P!$A$16:$A$992,0),COLUMN())),"X",INDEX(P!$A$16:$G$992,MATCH(NGP!$A133,P!$A$16:$A$992,0),COLUMN())) -> 3 | C133: =IF(ISERROR(INDEX(P!$A$16:$G$992,MATCH(NGP!$A133,P!$A$16:$A$992,0),COLUMN())),"X",INDEX(P!$A$16:$G$992,MATCH(NGP!$A133,P!$A$16:$A$992,0),COLUMN())) -> 14 | D133: =IF(ISERROR(INDEX(P!$A$16:$G$992,MATCH(NGP!$A133,P!$A$16:$A$992,0),COLUMN())),"X",INDEX(P!$A$16:$G$992,MATCH(NGP!$A133,P!$A$16:$A$992,0),COLUMN())) -> 15 | E133: =IF(ISERROR(INDEX(P!$A$16:$G$992,MATCH(NGP!$A133,P!$A$16:$A$992,0),COLUMN())),"X",INDEX(P!$A$16:$G$992,MATCH(NGP!$A133,P!$A$16:$A$992,0),COLUMN())) -> 10 | F133: =IF(ISERROR(INDEX(P!$A$16:$G$992,MATCH(NGP!$A133,P!$A$16:$A$992,0),COLUMN())),"X",INDEX(P!$A$16:$G$992,MATCH(NGP!$A133,P!$A$16:$A$992,0),COLUMN())) -> 8 | G133: =IF(ISERROR(INDEX(P!$A$16:$G$992,MATCH(NGP!$A133,P!$A$16:$A$992,0),COLUMN())),"X",INDEX(P!$A$16:$G$992,MATCH(NGP!$A133,P!$A$16:$A$992,0),COLUMN())) -> P | H133: 26 | I133: 3 | J133: 0 | K133: 55 | L133: 12 | M133: 9 | N133: 1 | O133: 8 | P133: 4 | Q133: 10 | R133: 16 | S133: 51 | T133: 30 | U133: 7 | V133: 32 | W133: 8 | X133: 8 | Y133: 3 | Z133: 2 | AA133: 1 | AF133: 1 | AI133: 1 | AR133: 1 | AS133: 1 | AT133: 1 | AU133: 1 | AV133: 1 | AW133: =IF(A134<>"",20-SUM(AC134:AV134),"") -> 18 | AX133: 129
A134: =IF(P!$A145>0,P!$A145,"") -> 2013-11-21 | B134: =IF(ISERROR(INDEX(P!$A$16:$G$992,MATCH(NGP!$A134,P!$A$16:$A$992,0),COLUMN())),"X",INDEX(P!$A$16:$G$992,MATCH(NGP!$A134,P!$A$16:$A$992,0),COLUMN())) -> 2 | C134: =IF(ISERROR(INDEX(P!$A$16:$G$992,MATCH(NGP!$A134,P!$A$16:$A$992,0),COLUMN())),"X",INDEX(P!$A$16:$G$992,MATCH(NGP!$A134,P!$A$16:$A$992,0),COLUMN())) -> 16 | D134: =IF(ISERROR(INDEX(P!$A$16:$G$992,MATCH(NGP!$A134,P!$A$16:$A$992,0),COLUMN())),"X",INDEX(P!$A$16:$G$992,MATCH(NGP!$A134,P!$A$16:$A$992,0),COLUMN())) -> 7 | E134: =IF(ISERROR(INDEX(P!$A$16:$G$992,MATCH(NGP!$A134,P!$A$16:$A$992,0),COLUMN())),"X",INDEX(P!$A$16:$G$992,MATCH(NGP!$A134,P!$A$16:$A$992,0),COLUMN())) -> 14 | F134: =IF(ISERROR(INDEX(P!$A$16:$G$992,MATCH(NGP!$A134,P!$A$16:$A$992,0),COLUMN())),"X",INDEX(P!$A$16:$G$992,MATCH(NGP!$A134,P!$A$16:$A$992,0),COLUMN())) -> 3 | G134: =IF(ISERROR(INDEX(P!$A$16:$G$992,MATCH(NGP!$A134,P!$A$16:$A$992,0),COLUMN())),"X",INDEX(P!$A$16:$G$992,MATCH(NGP!$A134,P!$A$16:$A$992,0),COLUMN())) -> P | H134: 27 | I134: 0 | J134: 1 | K134: 56 | L134: 13 | M134: 10 | N134: 2 | O134: 9 | P134: 5 | Q134: 11 | R134: 17 | S134: 52 | T134: 31 | U134: 8 | V134: 33 | W134: 9 | X134: 9 | Y134: 4 | Z134: 2 | AA134: 1 | AU134: 1 | AV134: 1 | AW134: =IF(A135<>"",20-SUM(AC135:AV135),"") -> 17 | AX134: 130
A135: =IF(P!$A146>0,P!$A146,"") -> 2013-11-26 | B135: =IF(ISERROR(INDEX(P!$A$16:$G$992,MATCH(NGP!$A135,P!$A$16:$A$992,0),COLUMN())),"X",INDEX(P!$A$16:$G$992,MATCH(NGP!$A135,P!$A$16:$A$992,0),COLUMN())) -> 15 | C135: =IF(ISERROR(INDEX(P!$A$16:$G$992,MATCH(NGP!$A135,P!$A$16:$A$992,0),COLUMN())),"X",INDEX(P!$A$16:$G$992,MATCH(NGP!$A135,P!$A$16:$A$992,0),COLUMN())) -> 12 | D135: =IF(ISERROR(INDEX(P!$A$16:$G$992,MATCH(NGP!$A135,P!$A$16:$A$992,0),COLUMN())),"X",INDEX(P!$A$16:$G$992,MATCH(NGP!$A135,P!$A$16:$A$992,0),COLUMN())) -> 10 | E135: =IF(ISERROR(INDEX(P!$A$16:$G$992,MATCH(NGP!$A135,P!$A$16:$A$992,0),COLUMN())),"X",INDEX(P!$A$16:$G$992,MATCH(NGP!$A135,P!$A$16:$A$992,0),COLUMN())) -> 16 | F135: =IF(ISERROR(INDEX(P!$A$16:$G$992,MATCH(NGP!$A135,P!$A$16:$A$992,0),COLUMN())),"X",INDEX(P!$A$16:$G$992,MATCH(NGP!$A135,P!$A$16:$A$992,0),COLUMN())) -> 9 | G135: =IF(ISERROR(INDEX(P!$A$16:$G$992,MATCH(NGP!$A135,P!$A$16:$A$992,0),COLUMN())),"X",INDEX(P!$A$16:$G$992,MATCH(NGP!$A135,P!$A$16:$A$992,0),COLUMN())) -> P | H135: 28 | I135: 1 | J135: 2 | K135: 57 | L135: 14 | M135: 11 | N135: 3 | O135: 10 | P135: 6 | Q135: 12 | R135: 18 | S135: 53 | T135: 32 | U135: 9 | V135: 0 | W135: 10 | X135: 10 | Y135: 4 | Z135: 2 | AA135: 1 | AT135: 1 | AU135: 1 | AV135: 1 | AW135: =IF(A136<>"",20-SUM(AC136:AV136),"") -> 15 | AX135: =SUM(AX134+1) -> 131
A136: =IF(P!$A147>0,P!$A147,"") -> 2013-12-23 | B136: =IF(ISERROR(INDEX(P!$A$16:$G$992,MATCH(NGP!$A136,P!$A$16:$A$992,0),COLUMN())),"X",INDEX(P!$A$16:$G$992,MATCH(NGP!$A136,P!$A$16:$A$992,0),COLUMN())) -> 16 | C136: =IF(ISERROR(INDEX(P!$A$16:$G$992,MATCH(NGP!$A136,P!$A$16:$A$992,0),COLUMN())),"X",INDEX(P!$A$16:$G$992,MATCH(NGP!$A136,P!$A$16:$A$992,0),COLUMN())) -> 5 | D136: =IF(ISERROR(INDEX(P!$A$16:$G$992,MATCH(NGP!$A136,P!$A$16:$A$992,0),COLUMN())),"X",INDEX(P!$A$16:$G$992,MATCH(NGP!$A136,P!$A$16:$A$992,0),COLUMN())) -> 12 | E136: =IF(ISERROR(INDEX(P!$A$16:$G$992,MATCH(NGP!$A136,P!$A$16:$A$992,0),COLUMN())),"X",INDEX(P!$A$16:$G$992,MATCH(NGP!$A136,P!$A$16:$A$992,0),COLUMN())) -> 11 | F136: =IF(ISERROR(INDEX(P!$A$16:$G$992,MATCH(NGP!$A136,P!$A$16:$A$992,0),COLUMN())),"X",INDEX(P!$A$16:$G$992,MATCH(NGP!$A136,P!$A$16:$A$992,0),COLUMN())) -> 10 | G136: =IF(ISERROR(INDEX(P!$A$16:$G$992,MATCH(NGP!$A136,P!$A$16:$A$992,0),COLUMN())),"X",INDEX(P!$A$16:$G$992,MATCH(NGP!$A136,P!$A$16:$A$992,0),COLUMN())) -> P | H136: 29 | I136: 2 | J136: 3 | K136: 58 | L136: 15 | M136: 12 | N136: 4 | O136: 11 | P136: 7 | Q136: 13 | R136: 19 | S136: 54 | T136: 33 | U136: 10 | V136: 0 | W136: 0 | X136: 10 | Y136: 4 | Z136: 2 | AA136: 1 | AQ136: 1 | AS136: 1 | AT136: 1 | AU136: 1 | AV136: 1 | AW136: =IF(A137<>"",20-SUM(AC137:AV137),"") -> 15 | AX136: 132
A137: =IF(P!$A148>0,P!$A148,"") -> 2014-01-03 | B137: =IF(ISERROR(INDEX(P!$A$16:$G$992,MATCH(NGP!$A137,P!$A$16:$A$992,0),COLUMN())),"X",INDEX(P!$A$16:$G$992,MATCH(NGP!$A137,P!$A$16:$A$992,0),COLUMN())) -> 16 | C137: =IF(ISERROR(INDEX(P!$A$16:$G$992,MATCH(NGP!$A137,P!$A$16:$A$992,0),COLUMN())),"X",INDEX(P!$A$16:$G$992,MATCH(NGP!$A137,P!$A$16:$A$992,0),COLUMN())) -> 15 | D137: =IF(ISERROR(INDEX(P!$A$16:$G$992,MATCH(NGP!$A137,P!$A$16:$A$992,0),COLUMN())),"X",INDEX(P!$A$16:$G$992,MATCH(NGP!$A137,P!$A$16:$A$992,0),COLUMN())) -> 3 | E137: =IF(ISERROR(INDEX(P!$A$16:$G$992,MATCH(NGP!$A137,P!$A$16:$A$992,0),COLUMN())),"X",INDEX(P!$A$16:$G$992,MATCH(NGP!$A137,P!$A$16:$A$992,0),COLUMN())) -> 11 | F137: =IF(ISERROR(INDEX(P!$A$16:$G$992,MATCH(NGP!$A137,P!$A$16:$A$992,0),COLUMN())),"X",INDEX(P!$A$16:$G$992,MATCH(NGP!$A137,P!$A$16:$A$992,0),COLUMN())) -> 1 | G137: =IF(ISERROR(INDEX(P!$A$16:$G$992,MATCH(NGP!$A137,P!$A$16:$A$992,0),COLUMN())),"X",INDEX(P!$A$16:$G$992,MATCH(NGP!$A137,P!$A$16:$A$992,0),COLUMN())) -> P | H137: 30 | I137: 3 | J137: 4 | K137: 58 | L137: 16 | M137: 13 | N137: 5 | O137: 12 | P137: 8 | Q137: 14 | R137: 20 | S137: 55 | T137: 34 | U137: 11 | V137: 1 | W137: 0 | X137: 10 | Y137: 4 | Z137: 2 | AA137: 1 | AF137: 1 | AS137: 1 | AT137: 1 | AU137: 1 | AV137: 1 | AW137: =IF(A138<>"",20-SUM(AC138:AV138),"") -> 18 | AX137: 133
A138: =IF(P!$A149>0,P!$A149,"") -> 2014-01-15 | B138: =IF(ISERROR(INDEX(P!$A$16:$G$992,MATCH(NGP!$A138,P!$A$16:$A$992,0),COLUMN())),"X",INDEX(P!$A$16:$G$992,MATCH(NGP!$A138,P!$A$16:$A$992,0),COLUMN())) -> 16 | C138: =IF(ISERROR(INDEX(P!$A$16:$G$992,MATCH(NGP!$A138,P!$A$16:$A$992,0),COLUMN())),"X",INDEX(P!$A$16:$G$992,MATCH(NGP!$A138,P!$A$16:$A$992,0),COLUMN())) -> 11 | D138: =IF(ISERROR(INDEX(P!$A$16:$G$992,MATCH(NGP!$A138,P!$A$16:$A$992,0),COLUMN())),"X",INDEX(P!$A$16:$G$992,MATCH(NGP!$A138,P!$A$16:$A$992,0),COLUMN())) -> 1 | E138: =IF(ISERROR(INDEX(P!$A$16:$G$992,MATCH(NGP!$A138,P!$A$16:$A$992,0),COLUMN())),"X",INDEX(P!$A$16:$G$992,MATCH(NGP!$A138,P!$A$16:$A$992,0),COLUMN())) -> 17 | F138: =IF(ISERROR(INDEX(P!$A$16:$G$992,MATCH(NGP!$A138,P!$A$16:$A$992,0),COLUMN())),"X",INDEX(P!$A$16:$G$992,MATCH(NGP!$A138,P!$A$16:$A$992,0),COLUMN())) -> 14 | G138: =IF(ISERROR(INDEX(P!$A$16:$G$992,MATCH(NGP!$A138,P!$A$16:$A$992,0),COLUMN())),"X",INDEX(P!$A$16:$G$992,MATCH(NGP!$A138,P!$A$16:$A$992,0),COLUMN())) -> P | H138: 31 | I138: 4 | J138: 5 | K138: 59 | L138: 17 | M138: 14 | N138: 6 | O138: 13 | P138: 9 | Q138: 15 | R138: 21 | S138: 56 | T138: 35 | U138: 12 | V138: 2 | W138: 0 | X138: 11 | Y138: 5 | Z138: 2 | AA138: 1 | AU138: 1 | AV138: 1 | AW138: =IF(A139<>"",20-SUM(AC139:AV139),"") -> 14 | AX138: 134
A139: =IF(P!$A150>0,P!$A150,"") -> 2014-01-17 | B139: =IF(ISERROR(INDEX(P!$A$16:$G$992,MATCH(NGP!$A139,P!$A$16:$A$992,0),COLUMN())),"X",INDEX(P!$A$16:$G$992,MATCH(NGP!$A139,P!$A$16:$A$992,0),COLUMN())) -> 9 | C139: =IF(ISERROR(INDEX(P!$A$16:$G$992,MATCH(NGP!$A139,P!$A$16:$A$992,0),COLUMN())),"X",INDEX(P!$A$16:$G$992,MATCH(NGP!$A139,P!$A$16:$A$992,0),COLUMN())) -> 15 | D139: =IF(ISERROR(INDEX(P!$A$16:$G$992,MATCH(NGP!$A139,P!$A$16:$A$992,0),COLUMN())),"X",INDEX(P!$A$16:$G$992,MATCH(NGP!$A139,P!$A$16:$A$992,0),COLUMN())) -> 3 | E139: =IF(ISERROR(INDEX(P!$A$16:$G$992,MATCH(NGP!$A139,P!$A$16:$A$992,0),COLUMN())),"X",INDEX(P!$A$16:$G$992,MATCH(NGP!$A139,P!$A$16:$A$992,0),COLUMN())) -> 4 | F139: =IF(ISERROR(INDEX(P!$A$16:$G$992,MATCH(NGP!$A139,P!$A$16:$A$992,0),COLUMN())),"X",INDEX(P!$A$16:$G$992,MATCH(NGP!$A139,P!$A$16:$A$992,0),COLUMN())) -> 10 | G139: =IF(ISERROR(INDEX(P!$A$16:$G$992,MATCH(NGP!$A139,P!$A$16:$A$992,0),COLUMN())),"X",INDEX(P!$A$16:$G$992,MATCH(NGP!$A139,P!$A$16:$A$992,0),COLUMN())) -> P | H139: 32 | I139: 5 | J139: 6 | K139: 60 | L139: 18 | M139: 15 | N139: 7 | O139: 14 | P139: 0 | Q139: 16 | R139: 21 | S139: 57 | T139: 36 | U139: 13 | V139: 3 | W139: 0 | X139: 11 | Y139: 5 | Z139: 2 | AA139: 1 | AM139: 1 | AR139: 1 | AS139: 1 | AT139: 1 | AU139: 1 | AV139: 1 | AW139: =IF(A140<>"",20-SUM(AC140:AV140),"") -> 16 | AX139: 135
A140: =IF(P!$A151>0,P!$A151,"") -> 2014-01-20 | B140: =IF(ISERROR(INDEX(P!$A$16:$G$992,MATCH(NGP!$A140,P!$A$16:$A$992,0),COLUMN())),"X",INDEX(P!$A$16:$G$992,MATCH(NGP!$A140,P!$A$16:$A$992,0),COLUMN())) -> 16 | C140: =IF(ISERROR(INDEX(P!$A$16:$G$992,MATCH(NGP!$A140,P!$A$16:$A$992,0),COLUMN())),"X",INDEX(P!$A$16:$G$992,MATCH(NGP!$A140,P!$A$16:$A$992,0),COLUMN())) -> 14 | D140: =IF(ISERROR(INDEX(P!$A$16:$G$992,MATCH(NGP!$A140,P!$A$16:$A$992,0),COLUMN())),"X",INDEX(P!$A$16:$G$992,MATCH(NGP!$A140,P!$A$16:$A$992,0),COLUMN())) -> 11 | E140: =IF(ISERROR(INDEX(P!$A$16:$G$992,MATCH(NGP!$A140,P!$A$16:$A$992,0),COLUMN())),"X",INDEX(P!$A$16:$G$992,MATCH(NGP!$A140,P!$A$16:$A$992,0),COLUMN())) -> 5 | F140: =IF(ISERROR(INDEX(P!$A$16:$G$992,MATCH(NGP!$A140,P!$A$16:$A$992,0),COLUMN())),"X",INDEX(P!$A$16:$G$992,MATCH(NGP!$A140,P!$A$16:$A$992,0),COLUMN())) -> 7 | G140: =IF(ISERROR(INDEX(P!$A$16:$G$992,MATCH(NGP!$A140,P!$A$16:$A$992,0),COLUMN())),"X",INDEX(P!$A$16:$G$992,MATCH(NGP!$A140,P!$A$16:$A$992,0),COLUMN())) -> P | H140: 33 | I140: 6 | J140: 7 | K140: 61 | L140: 19 | M140: 16 | N140: 8 | O140: 15 | P140: 1 | Q140: 17 | R140: 22 | S140: 58 | T140: 37 | U140: 14 | V140: 4 | W140: 0 | X140: 11 | Y140: 5 | Z140: 2 | AA140: 1 | AS140: 1 | AT140: 1 | AU140: 1 | AV140: 1 | AW140: =IF(A141<>"",20-SUM(AC141:AV141),"") -> 16 | AX140: 136
A141: =IF(P!$A152>0,P!$A152,"") -> 2014-01-21 | B141: =IF(ISERROR(INDEX(P!$A$16:$G$992,MATCH(NGP!$A141,P!$A$16:$A$992,0),COLUMN())),"X",INDEX(P!$A$16:$G$992,MATCH(NGP!$A141,P!$A$16:$A$992,0),COLUMN())) -> 9 | C141: =IF(ISERROR(INDEX(P!$A$16:$G$992,MATCH(NGP!$A141,P!$A$16:$A$992,0),COLUMN())),"X",INDEX(P!$A$16:$G$992,MATCH(NGP!$A141,P!$A$16:$A$992,0),COLUMN())) -> 2 | D141: =IF(ISERROR(INDEX(P!$A$16:$G$992,MATCH(NGP!$A141,P!$A$16:$A$992,0),COLUMN())),"X",INDEX(P!$A$16:$G$992,MATCH(NGP!$A141,P!$A$16:$A$992,0),COLUMN())) -> 10 | E141: =IF(ISERROR(INDEX(P!$A$16:$G$992,MATCH(NGP!$A141,P!$A$16:$A$992,0),COLUMN())),"X",INDEX(P!$A$16:$G$992,MATCH(NGP!$A141,P!$A$16:$A$992,0),COLUMN())) -> 11 | F141: =IF(ISERROR(INDEX(P!$A$16:$G$992,MATCH(NGP!$A141,P!$A$16:$A$992,0),COLUMN())),"X",INDEX(P!$A$16:$G$992,MATCH(NGP!$A141,P!$A$16:$A$992,0),COLUMN())) -> 13 | G141: =IF(ISERROR(INDEX(P!$A$16:$G$992,MATCH(NGP!$A141,P!$A$16:$A$992,0),COLUMN())),"X",INDEX(P!$A$16:$G$992,MATCH(NGP!$A141,P!$A$16:$A$992,0),COLUMN())) -> P | H141: 34 | I141: 7 | J141: 8 | K141: 62 | L141: 20 | M141: 17 | N141: 9 | O141: 16 | P141: 0 | Q141: 18 | R141: 23 | S141: 59 | T141: 38 | U141: 15 | V141: 5 | W141: 1 | X141: 11 | Y141: 5 | Z141: 2 | AA141: 1 | AS141: 1 | AT141: 1 | AU141: 1 | AV141: 1 | AW141: =IF(A142<>"",20-SUM(AC142:AV142),"") -> 18 | AX141: 137
A142: =IF(P!$A153>0,P!$A153,"") -> 2014-01-29 | B142: =IF(ISERROR(INDEX(P!$A$16:$G$992,MATCH(NGP!$A142,P!$A$16:$A$992,0),COLUMN())),"X",INDEX(P!$A$16:$G$992,MATCH(NGP!$A142,P!$A$16:$A$992,0),COLUMN())) -> 8 | C142: =IF(ISERROR(INDEX(P!$A$16:$G$992,MATCH(NGP!$A142,P!$A$16:$A$992,0),COLUMN())),"X",INDEX(P!$A$16:$G$992,MATCH(NGP!$A142,P!$A$16:$A$992,0),COLUMN())) -> 5 | D142: =IF(ISERROR(INDEX(P!$A$16:$G$992,MATCH(NGP!$A142,P!$A$16:$A$992,0),COLUMN())),"X",INDEX(P!$A$16:$G$992,MATCH(NGP!$A142,P!$A$16:$A$992,0),COLUMN())) -> 16 | E142: =IF(ISERROR(INDEX(P!$A$16:$G$992,MATCH(NGP!$A142,P!$A$16:$A$992,0),COLUMN())),"X",INDEX(P!$A$16:$G$992,MATCH(NGP!$A142,P!$A$16:$A$992,0),COLUMN())) -> 15 | F142: =IF(ISERROR(INDEX(P!$A$16:$G$992,MATCH(NGP!$A142,P!$A$16:$A$992,0),COLUMN())),"X",INDEX(P!$A$16:$G$992,MATCH(NGP!$A142,P!$A$16:$A$992,0),COLUMN())) -> 7 | G142: =IF(ISERROR(INDEX(P!$A$16:$G$992,MATCH(NGP!$A142,P!$A$16:$A$992,0),COLUMN())),"X",INDEX(P!$A$16:$G$992,MATCH(NGP!$A142,P!$A$16:$A$992,0),COLUMN())) -> P | H142: 35 | I142: 8 | J142: 9 | K142: 63 | L142: 21 | M142: 18 | N142: 10 | O142: 0 | P142: 1 | Q142: 19 | R142: 24 | S142: 60 | T142: 39 | U142: 16 | V142: 6 | W142: 2 | X142: 12 | Y142: 6 | Z142: 2 | AA142: 1 | AU142: 1 | AV142: 1 | AW142: =IF(A143<>"",20-SUM(AC143:AV143),"") -> 16 | AX142: 138
A143: =IF(P!$A154>0,P!$A154,"") -> 2014-02-12 | B143: =IF(ISERROR(INDEX(P!$A$16:$G$992,MATCH(NGP!$A143,P!$A$16:$A$992,0),COLUMN())),"X",INDEX(P!$A$16:$G$992,MATCH(NGP!$A143,P!$A$16:$A$992,0),COLUMN())) -> 10 | C143: =IF(ISERROR(INDEX(P!$A$16:$G$992,MATCH(NGP!$A143,P!$A$16:$A$992,0),COLUMN())),"X",INDEX(P!$A$16:$G$992,MATCH(NGP!$A143,P!$A$16:$A$992,0),COLUMN())) -> 3 | D143: =IF(ISERROR(INDEX(P!$A$16:$G$992,MATCH(NGP!$A143,P!$A$16:$A$992,0),COLUMN())),"X",INDEX(P!$A$16:$G$992,MATCH(NGP!$A143,P!$A$16:$A$992,0),COLUMN())) -> 8 | E143: =IF(ISERROR(INDEX(P!$A$16:$G$992,MATCH(NGP!$A143,P!$A$16:$A$992,0),COLUMN())),"X",INDEX(P!$A$16:$G$992,MATCH(NGP!$A143,P!$A$16:$A$992,0),COLUMN())) -> 6 | F143: =IF(ISERROR(INDEX(P!$A$16:$G$992,MATCH(NGP!$A143,P!$A$16:$A$992,0),COLUMN())),"X",INDEX(P!$A$16:$G$992,MATCH(NGP!$A143,P!$A$16:$A$992,0),COLUMN())) -> 11 | G143: =IF(ISERROR(INDEX(P!$A$16:$G$992,MATCH(NGP!$A143,P!$A$16:$A$992,0),COLUMN())),"X",INDEX(P!$A$16:$G$992,MATCH(NGP!$A143,P!$A$16:$A$992,0),COLUMN())) -> P | H143: 36 | I143: 9 | J143: 10 | K143: 64 | L143: 22 | M143: 19 | N143: 11 | O143: 1 | P143: 2 | Q143: 0 | R143: 25 | S143: 61 | T143: 40 | U143: 17 | V143: 7 | W143: 3 | X143: 12 | Y143: 6 | Z143: 2 | AA143: 1 | AS143: 1 | AT143: 1 | AU143: 1 | AV143: 1 | AW143: =IF(A144<>"",20-SUM(AC144:AV144),"") -> 13 | AX143: 139
A144: =IF(P!$A155>0,P!$A155,"") -> 2014-02-15 | B144: =IF(ISERROR(INDEX(P!$A$16:$G$992,MATCH(NGP!$A144,P!$A$16:$A$992,0),COLUMN())),"X",INDEX(P!$A$16:$G$992,MATCH(NGP!$A144,P!$A$16:$A$992,0),COLUMN())) -> 7 | C144: =IF(ISERROR(INDEX(P!$A$16:$G$992,MATCH(NGP!$A144,P!$A$16:$A$992,0),COLUMN())),"X",INDEX(P!$A$16:$G$992,MATCH(NGP!$A144,P!$A$16:$A$992,0),COLUMN())) -> 11 | D144: =IF(ISERROR(INDEX(P!$A$16:$G$992,MATCH(NGP!$A144,P!$A$16:$A$992,0),COLUMN())),"X",INDEX(P!$A$16:$G$992,MATCH(NGP!$A144,P!$A$16:$A$992,0),COLUMN())) -> 4 | E144: =IF(ISERROR(INDEX(P!$A$16:$G$992,MATCH(NGP!$A144,P!$A$16:$A$992,0),COLUMN())),"X",INDEX(P!$A$16:$G$992,MATCH(NGP!$A144,P!$A$16:$A$992,0),COLUMN())) -> 12 | F144: =IF(ISERROR(INDEX(P!$A$16:$G$992,MATCH(NGP!$A144,P!$A$16:$A$992,0),COLUMN())),"X",INDEX(P!$A$16:$G$992,MATCH(NGP!$A144,P!$A$16:$A$992,0),COLUMN())) -> 1 | G144: =IF(ISERROR(INDEX(P!$A$16:$G$992,MATCH(NGP!$A144,P!$A$16:$A$992,0),COLUMN())),"X",INDEX(P!$A$16:$G$992,MATCH(NGP!$A144,P!$A$16:$A$992,0),COLUMN())) -> P | H144: 37 | I144: 10 | J144: 11 | K144: 65 | L144: 23 | M144: 20 | N144: 0 | O144: 2 | P144: 3 | Q144: 1 | R144: 26 | S144: 62 | T144: 41 | U144: 17 | V144: 7 | W144: 3 | X144: 12 | Y144: 6 | Z144: 2 | AA144: 1 | AP144: 1 | AQ144: 1 | AR144: 1 | AS144: 1 | AT144: 1 | AU144: 1 | AV144: 1 | AW144: =IF(A145<>"",20-SUM(AC145:AV145),"") -> 18 | AX144: 140
A145: =IF(P!$A156>0,P!$A156,"") -> 2014-02-19 | B145: =IF(ISERROR(INDEX(P!$A$16:$G$992,MATCH(NGP!$A145,P!$A$16:$A$992,0),COLUMN())),"X",INDEX(P!$A$16:$G$992,MATCH(NGP!$A145,P!$A$16:$A$992,0),COLUMN())) -> 17 | C145: =IF(ISERROR(INDEX(P!$A$16:$G$992,MATCH(NGP!$A145,P!$A$16:$A$992,0),COLUMN())),"X",INDEX(P!$A$16:$G$992,MATCH(NGP!$A145,P!$A$16:$A$992,0),COLUMN())) -> 7 | D145: =IF(ISERROR(INDEX(P!$A$16:$G$992,MATCH(NGP!$A145,P!$A$16:$A$992,0),COLUMN())),"X",INDEX(P!$A$16:$G$992,MATCH(NGP!$A145,P!$A$16:$A$992,0),COLUMN())) -> 2 | E145: =IF(ISERROR(INDEX(P!$A$16:$G$992,MATCH(NGP!$A145,P!$A$16:$A$992,0),COLUMN())),"X",INDEX(P!$A$16:$G$992,MATCH(NGP!$A145,P!$A$16:$A$992,0),COLUMN())) -> 1 | F145: =IF(ISERROR(INDEX(P!$A$16:$G$992,MATCH(NGP!$A145,P!$A$16:$A$992,0),COLUMN())),"X",INDEX(P!$A$16:$G$992,MATCH(NGP!$A145,P!$A$16:$A$992,0),COLUMN())) -> 6 | G145: =IF(ISERROR(INDEX(P!$A$16:$G$992,MATCH(NGP!$A145,P!$A$16:$A$992,0),COLUMN())),"X",INDEX(P!$A$16:$G$992,MATCH(NGP!$A145,P!$A$16:$A$992,0),COLUMN())) -> P | H145: 38 | I145: 11 | J145: 12 | K145: 66 | L145: 24 | M145: 21 | N145: 1 | O145: 3 | P145: 4 | Q145: 2 | R145: 27 | S145: =IF(COUNTIF($B145:$D145,"=X")<3,IF(LEN(SUBSTITUTE(SUBSTITUTE($B145,S$1,,1),,1))=0,0,S144+1-AN145),"") -> 63 | T145: 42 | U145: 18 | V145: 8 | W145: 4 | X145: 0 | Y145: 7 | Z145: 2 | AA145: 1 | AU145: 1 | AV145: 1 | AW145: =IF(A146<>"",20-SUM(AC146:AV146),"") -> 18 | AX145: 141
A146: =IF(P!$A157>0,P!$A157,"") -> 2014-02-22 | B146: =IF(ISERROR(INDEX(P!$A$16:$G$992,MATCH(NGP!$A146,P!$A$16:$A$992,0),COLUMN())),"X",INDEX(P!$A$16:$G$992,MATCH(NGP!$A146,P!$A$16:$A$992,0),COLUMN())) -> 7 | C146: =IF(ISERROR(INDEX(P!$A$16:$G$992,MATCH(NGP!$A146,P!$A$16:$A$992,0),COLUMN())),"X",INDEX(P!$A$16:$G$992,MATCH(NGP!$A146,P!$A$16:$A$992,0),COLUMN())) -> 3 | D146: =IF(ISERROR(INDEX(P!$A$16:$G$992,MATCH(NGP!$A146,P!$A$16:$A$992,0),COLUMN())),"X",INDEX(P!$A$16:$G$992,MATCH(NGP!$A146,P!$A$16:$A$992,0),COLUMN())) -> 6 | E146: =IF(ISERROR(INDEX(P!$A$16:$G$992,MATCH(NGP!$A146,P!$A$16:$A$992,0),COLUMN())),"X",INDEX(P!$A$16:$G$992,MATCH(NGP!$A146,P!$A$16:$A$992,0),COLUMN())) -> 1 | F146: =IF(ISERROR(INDEX(P!$A$16:$G$992,MATCH(NGP!$A146,P!$A$16:$A$992,0),COLUMN())),"X",INDEX(P!$A$16:$G$992,MATCH(NGP!$A146,P!$A$16:$A$992,0),COLUMN())) -> 9 | G146: =IF(ISERROR(INDEX(P!$A$16:$G$992,MATCH(NGP!$A146,P!$A$16:$A$992,0),COLUMN())),"X",INDEX(P!$A$16:$G$992,MATCH(NGP!$A146,P!$A$16:$A$992,0),COLUMN())) -> P | H146: =IF(COUNTIF($B146:$D146,"=X")<3,IF(LEN(SUBSTITUTE(SUBSTITUTE($B146,H$1,,1),,1))=0,0,H145+1-AC146),"") -> 39 | I146: 12 | J146: 13 | K146: 67 | L146: 25 | M146: 22 | N146: 0 | O146: 4 | P146: 5 | Q146: 3 | R146: 28 | S146: 64 | T146: 43 | U146: 19 | V146: 9 | W146: 5 | X146: 1 | Y146: 8 | Z146: 2 | AA146: 1 | AU146: 1 | AV146: 1 | AW146: =IF(A147<>"",20-SUM(AC147:AV147),"") -> 16 | AX146: 142
A147: =IF(P!$A158>0,P!$A158,"") -> 2014-02-24 | B147: =IF(ISERROR(INDEX(P!$A$16:$G$992,MATCH(NGP!$A147,P!$A$16:$A$992,0),COLUMN())),"X",INDEX(P!$A$16:$G$992,MATCH(NGP!$A147,P!$A$16:$A$992,0),COLUMN())) -> 4 | C147: =IF(ISERROR(INDEX(P!$A$16:$G$992,MATCH(NGP!$A147,P!$A$16:$A$992,0),COLUMN())),"X",INDEX(P!$A$16:$G$992,MATCH(NGP!$A147,P!$A$16:$A$992,0),COLUMN())) -> 2 | D147: =IF(ISERROR(INDEX(P!$A$16:$G$992,MATCH(NGP!$A147,P!$A$16:$A$992,0),COLUMN())),"X",INDEX(P!$A$16:$G$992,MATCH(NGP!$A147,P!$A$16:$A$992,0),COLUMN())) -> 7 | E147: =IF(ISERROR(INDEX(P!$A$16:$G$992,MATCH(NGP!$A147,P!$A$16:$A$992,0),COLUMN())),"X",INDEX(P!$A$16:$G$992,MATCH(NGP!$A147,P!$A$16:$A$992,0),COLUMN())) -> 16 | F147: =IF(ISERROR(INDEX(P!$A$16:$G$992,MATCH(NGP!$A147,P!$A$16:$A$992,0),COLUMN())),"X",INDEX(P!$A$16:$G$992,MATCH(NGP!$A147,P!$A$16:$A$992,0),COLUMN())) -> 1 | G147: =IF(ISERROR(INDEX(P!$A$16:$G$992,MATCH(NGP!$A147,P!$A$16:$A$992,0),COLUMN())),"X",INDEX(P!$A$16:$G$992,MATCH(NGP!$A147,P!$A$16:$A$992,0),COLUMN())) -> P | H147: 40 | I147: 13 | J147: 14 | K147: 0 | L147: 26 | M147: 23 | N147: 1 | O147: 5 | P147: 6 | Q147: 4 | R147: 29 | S147: 65 | T147: 44 | U147: 20 | V147: 10 | W147: 6 | X147: 1 | Y147: 8 | Z147: 2 | AA147: 1 | AS147: 1 | AT147: 1 | AU147: 1 | AV147: 1 | AW147: =IF(A148<>"",20-SUM(AC148:AV148),"") -> 17 | AX147: 143
A148: =IF(P!$A159>0,P!$A159,"") -> 2014-03-04 | B148: =IF(ISERROR(INDEX(P!$A$16:$G$992,MATCH(NGP!$A148,P!$A$16:$A$992,0),COLUMN())),"X",INDEX(P!$A$16:$G$992,MATCH(NGP!$A148,P!$A$16:$A$992,0),COLUMN())) -> 17 | C148: =IF(ISERROR(INDEX(P!$A$16:$G$992,MATCH(NGP!$A148,P!$A$16:$A$992,0),COLUMN())),"X",INDEX(P!$A$16:$G$992,MATCH(NGP!$A148,P!$A$16:$A$992,0),COLUMN())) -> 5 | D148: =IF(ISERROR(INDEX(P!$A$16:$G$992,MATCH(NGP!$A148,P!$A$16:$A$992,0),COLUMN())),"X",INDEX(P!$A$16:$G$992,MATCH(NGP!$A148,P!$A$16:$A$992,0),COLUMN())) -> 12 | E148: =IF(ISERROR(INDEX(P!$A$16:$G$992,MATCH(NGP!$A148,P!$A$16:$A$992,0),COLUMN())),"X",INDEX(P!$A$16:$G$992,MATCH(NGP!$A148,P!$A$16:$A$992,0),COLUMN())) -> 3 | F148: =IF(ISERROR(INDEX(P!$A$16:$G$992,MATCH(NGP!$A148,P!$A$16:$A$992,0),COLUMN())),"X",INDEX(P!$A$16:$G$992,MATCH(NGP!$A148,P!$A$16:$A$992,0),COLUMN())) -> 2 | G148: =IF(ISERROR(INDEX(P!$A$16:$G$992,MATCH(NGP!$A148,P!$A$16:$A$992,0),COLUMN())),"X",INDEX(P!$A$16:$G$992,MATCH(NGP!$A148,P!$A$16:$A$992,0),COLUMN())) -> P | H148: 41 | I148: 14 | J148: 15 | K148: 1 | L148: 27 | M148: 24 | N148: 1 | O148: 6 | P148: 7 | Q148: 5 | R148: 30 | S148: 66 | T148: 45 | U148: 21 | V148: 11 | W148: 7 | X148: 0 | Y148: 9 | Z148: 2 | AA148: 1 | AI148: 1 | AU148: 1 | AV148: 1 | AW148: =IF(A149<>"",20-SUM(AC149:AV149),"") -> 16 | AX148: 144
A149: =IF(P!$A160>0,P!$A160,"") -> 2014-03-06 | B149: =IF(ISERROR(INDEX(P!$A$16:$G$992,MATCH(NGP!$A149,P!$A$16:$A$992,0),COLUMN())),"X",INDEX(P!$A$16:$G$992,MATCH(NGP!$A149,P!$A$16:$A$992,0),COLUMN())) -> 16 | C149: =IF(ISERROR(INDEX(P!$A$16:$G$992,MATCH(NGP!$A149,P!$A$16:$A$992,0),COLUMN())),"X",INDEX(P!$A$16:$G$992,MATCH(NGP!$A149,P!$A$16:$A$992,0),COLUMN())) -> 11 | D149: =IF(ISERROR(INDEX(P!$A$16:$G$992,MATCH(NGP!$A149,P!$A$16:$A$992,0),COLUMN())),"X",INDEX(P!$A$16:$G$992,MATCH(NGP!$A149,P!$A$16:$A$992,0),COLUMN())) -> 6 | E149: =IF(ISERROR(INDEX(P!$A$16:$G$992,MATCH(NGP!$A149,P!$A$16:$A$992,0),COLUMN())),"X",INDEX(P!$A$16:$G$992,MATCH(NGP!$A149,P!$A$16:$A$992,0),COLUMN())) -> 4 | F149: =IF(ISERROR(INDEX(P!$A$16:$G$992,MATCH(NGP!$A149,P!$A$16:$A$992,0),COLUMN())),"X",INDEX(P!$A$16:$G$992,MATCH(NGP!$A149,P!$A$16:$A$992,0),COLUMN())) -> 5 | G149: =IF(ISERROR(INDEX(P!$A$16:$G$992,MATCH(NGP!$A149,P!$A$16:$A$992,0),COLUMN())),"X",INDEX(P!$A$16:$G$992,MATCH(NGP!$A149,P!$A$16:$A$992,0),COLUMN())) -> P | H149: 42 | I149: 15 | J149: 16 | K149: 2 | L149: 28 | M149: 25 | N149: 2 | O149: 7 | P149: 8 | Q149: 6 | R149: 31 | S149: 67 | T149: 46 | U149: 22 | V149: 12 | W149: 0 | X149: 0 | Y149: 9 | Z149: 2 | AA149: 1 | AS149: 1 | AT149: 1 | AU149: 1 | AV149: 1 | AW149: =IF(A150<>"",20-SUM(AC150:AV150),"") -> 16 | AX149: 145
A150: =IF(P!$A161>0,P!$A161,"") -> 2014-03-07 | B150: =IF(ISERROR(INDEX(P!$A$16:$G$992,MATCH(NGP!$A150,P!$A$16:$A$992,0),COLUMN())),"X",INDEX(P!$A$16:$G$992,MATCH(NGP!$A150,P!$A$16:$A$992,0),COLUMN())) -> 1 | C150: =IF(ISERROR(INDEX(P!$A$16:$G$992,MATCH(NGP!$A150,P!$A$16:$A$992,0),COLUMN())),"X",INDEX(P!$A$16:$G$992,MATCH(NGP!$A150,P!$A$16:$A$992,0),COLUMN())) -> 9 | D150: =IF(ISERROR(INDEX(P!$A$16:$G$992,MATCH(NGP!$A150,P!$A$16:$A$992,0),COLUMN())),"X",INDEX(P!$A$16:$G$992,MATCH(NGP!$A150,P!$A$16:$A$992,0),COLUMN())) -> 2 | E150: =IF(ISERROR(INDEX(P!$A$16:$G$992,MATCH(NGP!$A150,P!$A$16:$A$992,0),COLUMN())),"X",INDEX(P!$A$16:$G$992,MATCH(NGP!$A150,P!$A$16:$A$992,0),COLUMN())) -> 7 | F150: =IF(ISERROR(INDEX(P!$A$16:$G$992,MATCH(NGP!$A150,P!$A$16:$A$992,0),COLUMN())),"X",INDEX(P!$A$16:$G$992,MATCH(NGP!$A150,P!$A$16:$A$992,0),COLUMN())) -> 14 | G150: =IF(ISERROR(INDEX(P!$A$16:$G$992,MATCH(NGP!$A150,P!$A$16:$A$992,0),COLUMN())),"X",INDEX(P!$A$16:$G$992,MATCH(NGP!$A150,P!$A$16:$A$992,0),COLUMN())) -> P | H150: 0 | I150: 16 | J150: 17 | K150: 3 | L150: 29 | M150: 26 | N150: 3 | O150: 8 | P150: 9 | Q150: 7 | R150: 32 | S150: 68 | T150: 47 | U150: 23 | V150: 13 | W150: 1 | X150: 0 | Y150: 9 | Z150: 2 | AA150: 1 | AS150: 1 | AT150: 1 | AU150: 1 | AV150: 1 | AW150: =IF(A151<>"",20-SUM(AC151:AV151),"") -> 16 | AX150: 146
A151: =IF(P!$A162>0,P!$A162,"") -> 2014-03-08 | B151: =IF(ISERROR(INDEX(P!$A$16:$G$992,MATCH(NGP!$A151,P!$A$16:$A$992,0),COLUMN())),"X",INDEX(P!$A$16:$G$992,MATCH(NGP!$A151,P!$A$16:$A$992,0),COLUMN())) -> 12 | C151: =IF(ISERROR(INDEX(P!$A$16:$G$992,MATCH(NGP!$A151,P!$A$16:$A$992,0),COLUMN())),"X",INDEX(P!$A$16:$G$992,MATCH(NGP!$A151,P!$A$16:$A$992,0),COLUMN())) -> 7 | D151: =IF(ISERROR(INDEX(P!$A$16:$G$992,MATCH(NGP!$A151,P!$A$16:$A$992,0),COLUMN())),"X",INDEX(P!$A$16:$G$992,MATCH(NGP!$A151,P!$A$16:$A$992,0),COLUMN())) -> 14 | E151: =IF(ISERROR(INDEX(P!$A$16:$G$992,MATCH(NGP!$A151,P!$A$16:$A$992,0),COLUMN())),"X",INDEX(P!$A$16:$G$992,MATCH(NGP!$A151,P!$A$16:$A$992,0),COLUMN())) -> 4 | F151: =IF(ISERROR(INDEX(P!$A$16:$G$992,MATCH(NGP!$A151,P!$A$16:$A$992,0),COLUMN())),"X",INDEX(P!$A$16:$G$992,MATCH(NGP!$A151,P!$A$16:$A$992,0),COLUMN())) -> 16 | G151: =IF(ISERROR(INDEX(P!$A$16:$G$992,MATCH(NGP!$A151,P!$A$16:$A$992,0),COLUMN())),"X",INDEX(P!$A$16:$G$992,MATCH(NGP!$A151,P!$A$16:$A$992,0),COLUMN())) -> P | H151: 1 | I151: 17 | J151: 18 | K151: 4 | L151: 30 | M151: 27 | N151: 4 | O151: 9 | P151: 10 | Q151: 8 | R151: 33 | S151: 0 | T151: 48 | U151: 24 | V151: 14 | W151: 2 | X151: 0 | Y151: 9 | Z151: 2 | AA151: 1 | AS151: 1 | AT151: 1 | AU151: 1 | AV151: 1 | AW151: =IF(A152<>"",20-SUM(AC152:AV152),"") -> 16 | AX151: 147
A152: =IF(P!$A163>0,P!$A163,"") -> 2014-03-10 | B152: =IF(ISERROR(INDEX(P!$A$16:$G$992,MATCH(NGP!$A152,P!$A$16:$A$992,0),COLUMN())),"X",INDEX(P!$A$16:$G$992,MATCH(NGP!$A152,P!$A$16:$A$992,0),COLUMN())) -> 4 | C152: =IF(ISERROR(INDEX(P!$A$16:$G$992,MATCH(NGP!$A152,P!$A$16:$A$992,0),COLUMN())),"X",INDEX(P!$A$16:$G$992,MATCH(NGP!$A152,P!$A$16:$A$992,0),COLUMN())) -> 16 | D152: =IF(ISERROR(INDEX(P!$A$16:$G$992,MATCH(NGP!$A152,P!$A$16:$A$992,0),COLUMN())),"X",INDEX(P!$A$16:$G$992,MATCH(NGP!$A152,P!$A$16:$A$992,0),COLUMN())) -> 14 | E152: =IF(ISERROR(INDEX(P!$A$16:$G$992,MATCH(NGP!$A152,P!$A$16:$A$992,0),COLUMN())),"X",INDEX(P!$A$16:$G$992,MATCH(NGP!$A152,P!$A$16:$A$992,0),COLUMN())) -> 5 | F152: =IF(ISERROR(INDEX(P!$A$16:$G$992,MATCH(NGP!$A152,P!$A$16:$A$992,0),COLUMN())),"X",INDEX(P!$A$16:$G$992,MATCH(NGP!$A152,P!$A$16:$A$992,0),COLUMN())) -> 1 | G152: =IF(ISERROR(INDEX(P!$A$16:$G$992,MATCH(NGP!$A152,P!$A$16:$A$992,0),COLUMN())),"X",INDEX(P!$A$16:$G$992,MATCH(NGP!$A152,P!$A$16:$A$992,0),COLUMN())) -> P | H152: 2 | I152: 18 | J152: 19 | K152: 0 | L152: 31 | M152: 28 | N152: 5 | O152: 10 | P152: 11 | Q152: 9 | R152: 34 | S152: 1 | T152: 49 | U152: 25 | V152: 15 | W152: 3 | X152: 0 | Y152: 9 | Z152: 2 | AA152: 1 | AS152: 1 | AT152: 1 | AU152: 1 | AV152: 1 | AW152: =IF(A153<>"",20-SUM(AC153:AV153),"") -> 14 | AX152: 148
A153: =IF(P!$A164>0,P!$A164,"") -> 2014-03-11 | B153: =IF(ISERROR(INDEX(P!$A$16:$G$992,MATCH(NGP!$A153,P!$A$16:$A$992,0),COLUMN())),"X",INDEX(P!$A$16:$G$992,MATCH(NGP!$A153,P!$A$16:$A$992,0),COLUMN())) -> 8 | C153: =IF(ISERROR(INDEX(P!$A$16:$G$992,MATCH(NGP!$A153,P!$A$16:$A$992,0),COLUMN())),"X",INDEX(P!$A$16:$G$992,MATCH(NGP!$A153,P!$A$16:$A$992,0),COLUMN())) -> 3 | D153: =IF(ISERROR(INDEX(P!$A$16:$G$992,MATCH(NGP!$A153,P!$A$16:$A$992,0),COLUMN())),"X",INDEX(P!$A$16:$G$992,MATCH(NGP!$A153,P!$A$16:$A$992,0),COLUMN())) -> 11 | E153: =IF(ISERROR(INDEX(P!$A$16:$G$992,MATCH(NGP!$A153,P!$A$16:$A$992,0),COLUMN())),"X",INDEX(P!$A$16:$G$992,MATCH(NGP!$A153,P!$A$16:$A$992,0),COLUMN())) -> 4 | F153: =IF(ISERROR(INDEX(P!$A$16:$G$992,MATCH(NGP!$A153,P!$A$16:$A$992,0),COLUMN())),"X",INDEX(P!$A$16:$G$992,MATCH(NGP!$A153,P!$A$16:$A$992,0),COLUMN())) -> 5 | G153: =IF(ISERROR(INDEX(P!$A$16:$G$992,MATCH(NGP!$A153,P!$A$16:$A$992,0),COLUMN())),"X",INDEX(P!$A$16:$G$992,MATCH(NGP!$A153,P!$A$16:$A$992,0),COLUMN())) -> P | H153: 3 | I153: 19 | J153: 20 | K153: 1 | L153: 32 | M153: 28 | N153: 6 | O153: 0 | P153: 12 | Q153: 10 | R153: 35 | S153: 2 | T153: 50 | U153: 26 | V153: 16 | W153: 3 | X153: 0 | Y153: 9 | Z153: 2 | AA153: 1 | AH153: 1 | AR153: 1 | AS153: 1 | AT153: 1 | AU153: 1 | AV153: 1 | AW153: =IF(A154<>"",20-SUM(AC154:AV154),"") -> 16 | AX153: 149
A154: =IF(P!$A165>0,P!$A165,"") -> 2014-03-13 | B154: =IF(ISERROR(INDEX(P!$A$16:$G$992,MATCH(NGP!$A154,P!$A$16:$A$992,0),COLUMN())),"X",INDEX(P!$A$16:$G$992,MATCH(NGP!$A154,P!$A$16:$A$992,0),COLUMN())) -> 14 | C154: =IF(ISERROR(INDEX(P!$A$16:$G$992,MATCH(NGP!$A154,P!$A$16:$A$992,0),COLUMN())),"X",INDEX(P!$A$16:$G$992,MATCH(NGP!$A154,P!$A$16:$A$992,0),COLUMN())) -> 10 | D154: =IF(ISERROR(INDEX(P!$A$16:$G$992,MATCH(NGP!$A154,P!$A$16:$A$992,0),COLUMN())),"X",INDEX(P!$A$16:$G$992,MATCH(NGP!$A154,P!$A$16:$A$992,0),COLUMN())) -> 1 | E154: =IF(ISERROR(INDEX(P!$A$16:$G$992,MATCH(NGP!$A154,P!$A$16:$A$992,0),COLUMN())),"X",INDEX(P!$A$16:$G$992,MATCH(NGP!$A154,P!$A$16:$A$992,0),COLUMN())) -> 12 | F154: =IF(ISERROR(INDEX(P!$A$16:$G$992,MATCH(NGP!$A154,P!$A$16:$A$992,0),COLUMN())),"X",INDEX(P!$A$16:$G$992,MATCH(NGP!$A154,P!$A$16:$A$992,0),COLUMN())) -> 3 | G154: =IF(ISERROR(INDEX(P!$A$16:$G$992,MATCH(NGP!$A154,P!$A$16:$A$992,0),COLUMN())),"X",INDEX(P!$A$16:$G$992,MATCH(NGP!$A154,P!$A$16:$A$992,0),COLUMN())) -> P | H154: 4 | I154: 20 | J154: 21 | K154: 2 | L154: 33 | M154: 29 | N154: 7 | O154: 1 | P154: 13 | Q154: 11 | R154: 36 | S154: 3 | T154: 51 | U154: 0 | V154: 17 | W154: 4 | X154: 0 | Y154: 9 | Z154: 2 | AA154: 1 | AS154: 1 | AT154: 1 | AU154: 1 | AV154: 1 | AW154: =IF(A155<>"",20-SUM(AC155:AV155),"") -> 16 | AX154: 150
A155: =IF(P!$A166>0,P!$A166,"") -> 2014-03-15 | B155: =IF(ISERROR(INDEX(P!$A$16:$G$992,MATCH(NGP!$A155,P!$A$16:$A$992,0),COLUMN())),"X",INDEX(P!$A$16:$G$992,MATCH(NGP!$A155,P!$A$16:$A$992,0),COLUMN())) -> 4 | C155: =IF(ISERROR(INDEX(P!$A$16:$G$992,MATCH(NGP!$A155,P!$A$16:$A$992,0),COLUMN())),"X",INDEX(P!$A$16:$G$992,MATCH(NGP!$A155,P!$A$16:$A$992,0),COLUMN())) -> 7 | D155: =IF(ISERROR(INDEX(P!$A$16:$G$992,MATCH(NGP!$A155,P!$A$16:$A$992,0),COLUMN())),"X",INDEX(P!$A$16:$G$992,MATCH(NGP!$A155,P!$A$16:$A$992,0),COLUMN())) -> 14 | E155: =IF(ISERROR(INDEX(P!$A$16:$G$992,MATCH(NGP!$A155,P!$A$16:$A$992,0),COLUMN())),"X",INDEX(P!$A$16:$G$992,MATCH(NGP!$A155,P!$A$16:$A$992,0),COLUMN())) -> 2 | F155: =IF(ISERROR(INDEX(P!$A$16:$G$992,MATCH(NGP!$A155,P!$A$16:$A$992,0),COLUMN())),"X",INDEX(P!$A$16:$G$992,MATCH(NGP!$A155,P!$A$16:$A$992,0),COLUMN())) -> 5 | G155: =IF(ISERROR(INDEX(P!$A$16:$G$992,MATCH(NGP!$A155,P!$A$16:$A$992,0),COLUMN())),"X",INDEX(P!$A$16:$G$992,MATCH(NGP!$A155,P!$A$16:$A$992,0),COLUMN())) -> P | H155: 5 | I155: 21 | J155: 22 | K155: 0 | L155: 34 | M155: 30 | N155: 8 | O155: 2 | P155: 14 | Q155: 12 | R155: 37 | S155: 4 | T155: 52 | U155: 1 | V155: 18 | W155: 5 | X155: 0 | Y155: 9 | Z155: 2 | AA155: 1 | AS155: 1 | AT155: 1 | AU155: 1 | AV155: 1 | AW155: =IF(A156<>"",20-SUM(AC156:AV156),"") -> 15 | AX155: 151
A156: =IF(P!$A167>0,P!$A167,"") -> 2014-03-17 | B156: =IF(ISERROR(INDEX(P!$A$16:$G$992,MATCH(NGP!$A156,P!$A$16:$A$992,0),COLUMN())),"X",INDEX(P!$A$16:$G$992,MATCH(NGP!$A156,P!$A$16:$A$992,0),COLUMN())) -> 2 | C156: =IF(ISERROR(INDEX(P!$A$16:$G$992,MATCH(NGP!$A156,P!$A$16:$A$992,0),COLUMN())),"X",INDEX(P!$A$16:$G$992,MATCH(NGP!$A156,P!$A$16:$A$992,0),COLUMN())) -> 8 | D156: =IF(ISERROR(INDEX(P!$A$16:$G$992,MATCH(NGP!$A156,P!$A$16:$A$992,0),COLUMN())),"X",INDEX(P!$A$16:$G$992,MATCH(NGP!$A156,P!$A$16:$A$992,0),COLUMN())) -> 3 | E156: =IF(ISERROR(INDEX(P!$A$16:$G$992,MATCH(NGP!$A156,P!$A$16:$A$992,0),COLUMN())),"X",INDEX(P!$A$16:$G$992,MATCH(NGP!$A156,P!$A$16:$A$992,0),COLUMN())) -> 15 | F156: =IF(ISERROR(INDEX(P!$A$16:$G$992,MATCH(NGP!$A156,P!$A$16:$A$992,0),COLUMN())),"X",INDEX(P!$A$16:$G$992,MATCH(NGP!$A156,P!$A$16:$A$992,0),COLUMN())) -> 16 | G156: =IF(ISERROR(INDEX(P!$A$16:$G$992,MATCH(NGP!$A156,P!$A$16:$A$992,0),COLUMN())),"X",INDEX(P!$A$16:$G$992,MATCH(NGP!$A156,P!$A$16:$A$992,0),COLUMN())) -> P | H156: 5 | I156: 0 | J156: 23 | K156: 1 | L156: 35 | M156: 31 | N156: 9 | O156: 3 | P156: 15 | Q156: 13 | R156: 38 | S156: 5 | T156: 53 | U156: 2 | V156: 19 | W156: 6 | X156: 0 | Y156: 9 | Z156: 2 | AA156: 1 | AC156: 1 | AS156: 1 | AT156: 1 | AU156: 1 | AV156: 1 | AW156: =IF(A157<>"",20-SUM(AC157:AV157),"") -> 16 | AX156: 152
A157: =IF(P!$A168>0,P!$A168,"") -> 2014-03-18 | B157: =IF(ISERROR(INDEX(P!$A$16:$G$992,MATCH(NGP!$A157,P!$A$16:$A$992,0),COLUMN())),"X",INDEX(P!$A$16:$G$992,MATCH(NGP!$A157,P!$A$16:$A$992,0),COLUMN())) -> 3 | C157: =IF(ISERROR(INDEX(P!$A$16:$G$992,MATCH(NGP!$A157,P!$A$16:$A$992,0),COLUMN())),"X",INDEX(P!$A$16:$G$992,MATCH(NGP!$A157,P!$A$16:$A$992,0),COLUMN())) -> 6 | D157: =IF(ISERROR(INDEX(P!$A$16:$G$992,MATCH(NGP!$A157,P!$A$16:$A$992,0),COLUMN())),"X",INDEX(P!$A$16:$G$992,MATCH(NGP!$A157,P!$A$16:$A$992,0),COLUMN())) -> 4 | E157: =IF(ISERROR(INDEX(P!$A$16:$G$992,MATCH(NGP!$A157,P!$A$16:$A$992,0),COLUMN())),"X",INDEX(P!$A$16:$G$992,MATCH(NGP!$A157,P!$A$16:$A$992,0),COLUMN())) -> 13 | F157: =IF(ISERROR(INDEX(P!$A$16:$G$992,MATCH(NGP!$A157,P!$A$16:$A$992,0),COLUMN())),"X",INDEX(P!$A$16:$G$992,MATCH(NGP!$A157,P!$A$16:$A$992,0),COLUMN())) -> 7 | G157: =IF(ISERROR(INDEX(P!$A$16:$G$992,MATCH(NGP!$A157,P!$A$16:$A$992,0),COLUMN())),"X",INDEX(P!$A$16:$G$992,MATCH(NGP!$A157,P!$A$16:$A$992,0),COLUMN())) -> P | H157: 6 | I157: 1 | J157: 0 | K157: 2 | L157: 36 | M157: 32 | N157: 10 | O157: 4 | P157: 16 | Q157: 14 | R157: 39 | S157: 6 | T157: 54 | U157: 3 | V157: 20 | W157: 7 | X157: 0 | Y157: 9 | Z157: 2 | AA157: 1 | AS157: 1 | AT157: 1 | AU157: 1 | AV157: 1 | AW157: =IF(A158<>"",20-SUM(AC158:AV158),"") -> 15 | AX157: 153
A158: =IF(P!$A169>0,P!$A169,"") -> 2014-03-20 | B158: =IF(ISERROR(INDEX(P!$A$16:$G$992,MATCH(NGP!$A158,P!$A$16:$A$992,0),COLUMN())),"X",INDEX(P!$A$16:$G$992,MATCH(NGP!$A158,P!$A$16:$A$992,0),COLUMN())) -> 10 | C158: =IF(ISERROR(INDEX(P!$A$16:$G$992,MATCH(NGP!$A158,P!$A$16:$A$992,0),COLUMN())),"X",INDEX(P!$A$16:$G$992,MATCH(NGP!$A158,P!$A$16:$A$992,0),COLUMN())) -> 4 | D158: =IF(ISERROR(INDEX(P!$A$16:$G$992,MATCH(NGP!$A158,P!$A$16:$A$992,0),COLUMN())),"X",INDEX(P!$A$16:$G$992,MATCH(NGP!$A158,P!$A$16:$A$992,0),COLUMN())) -> 5 | E158: =IF(ISERROR(INDEX(P!$A$16:$G$992,MATCH(NGP!$A158,P!$A$16:$A$992,0),COLUMN())),"X",INDEX(P!$A$16:$G$992,MATCH(NGP!$A158,P!$A$16:$A$992,0),COLUMN())) -> 14 | F158: =IF(ISERROR(INDEX(P!$A$16:$G$992,MATCH(NGP!$A158,P!$A$16:$A$992,0),COLUMN())),"X",INDEX(P!$A$16:$G$992,MATCH(NGP!$A158,P!$A$16:$A$992,0),COLUMN())) -> 9 | G158: =IF(ISERROR(INDEX(P!$A$16:$G$992,MATCH(NGP!$A158,P!$A$16:$A$992,0),COLUMN())),"X",INDEX(P!$A$16:$G$992,MATCH(NGP!$A158,P!$A$16:$A$992,0),COLUMN())) -> P | H158: 7 | I158: 2 | J158: 1 | K158: 3 | L158: 37 | M158: 33 | N158: 11 | O158: 5 | P158: 17 | Q158: 0 | R158: 40 | S158: 7 | T158: 55 | U158: 4 | V158: 21 | W158: 7 | X158: 0 | Y158: 9 | Z158: 2 | AA158: 1 | AR158: 1 | AS158: 1 | AT158: 1 | AU158: 1 | AV158: 1 | AW158: =IF(A159<>"",20-SUM(AC159:AV159),"") -> 18 | AX158: 154
A159: =IF(P!$A170>0,P!$A170,"") -> 2014-03-24 | B159: =IF(ISERROR(INDEX(P!$A$16:$G$992,MATCH(NGP!$A159,P!$A$16:$A$992,0),COLUMN())),"X",INDEX(P!$A$16:$G$992,MATCH(NGP!$A159,P!$A$16:$A$992,0),COLUMN())) -> 3 | C159: =IF(ISERROR(INDEX(P!$A$16:$G$992,MATCH(NGP!$A159,P!$A$16:$A$992,0),COLUMN())),"X",INDEX(P!$A$16:$G$992,MATCH(NGP!$A159,P!$A$16:$A$992,0),COLUMN())) -> 10 | D159: =IF(ISERROR(INDEX(P!$A$16:$G$992,MATCH(NGP!$A159,P!$A$16:$A$992,0),COLUMN())),"X",INDEX(P!$A$16:$G$992,MATCH(NGP!$A159,P!$A$16:$A$992,0),COLUMN())) -> 2 | E159: =IF(ISERROR(INDEX(P!$A$16:$G$992,MATCH(NGP!$A159,P!$A$16:$A$992,0),COLUMN())),"X",INDEX(P!$A$16:$G$992,MATCH(NGP!$A159,P!$A$16:$A$992,0),COLUMN())) -> 1 | F159: =IF(ISERROR(INDEX(P!$A$16:$G$992,MATCH(NGP!$A159,P!$A$16:$A$992,0),COLUMN())),"X",INDEX(P!$A$16:$G$992,MATCH(NGP!$A159,P!$A$16:$A$992,0),COLUMN())) -> 9 | G159: =IF(ISERROR(INDEX(P!$A$16:$G$992,MATCH(NGP!$A159,P!$A$16:$A$992,0),COLUMN())),"X",INDEX(P!$A$16:$G$992,MATCH(NGP!$A159,P!$A$16:$A$992,0),COLUMN())) -> P | H159: 8 | I159: 3 | J159: 0 | K159: 4 | L159: 38 | M159: 34 | N159: 12 | O159: 6 | P159: 18 | Q159: 1 | R159: 41 | S159: 8 | T159: 56 | U159: 5 | V159: 22 | W159: 8 | X159: 1 | Y159: 10 | Z159: 2 | AA159: 1 | AU159: 1 | AV159: 1 | AW159: =IF(A160<>"",20-SUM(AC160:AV160),"") -> 16 | AX159: 155
A160: =IF(P!$A171>0,P!$A171,"") -> 2014-03-25 | B160: =IF(ISERROR(INDEX(P!$A$16:$G$992,MATCH(NGP!$A160,P!$A$16:$A$992,0),COLUMN())),"X",INDEX(P!$A$16:$G$992,MATCH(NGP!$A160,P!$A$16:$A$992,0),COLUMN())) -> 4 | C160: =IF(ISERROR(INDEX(P!$A$16:$G$992,MATCH(NGP!$A160,P!$A$16:$A$992,0),COLUMN())),"X",INDEX(P!$A$16:$G$992,MATCH(NGP!$A160,P!$A$16:$A$992,0),COLUMN())) -> 14 | D160: =IF(ISERROR(INDEX(P!$A$16:$G$992,MATCH(NGP!$A160,P!$A$16:$A$992,0),COLUMN())),"X",INDEX(P!$A$16:$G$992,MATCH(NGP!$A160,P!$A$16:$A$992,0),COLUMN())) -> 7 | E160: =IF(ISERROR(INDEX(P!$A$16:$G$992,MATCH(NGP!$A160,P!$A$16:$A$992,0),COLUMN())),"X",INDEX(P!$A$16:$G$992,MATCH(NGP!$A160,P!$A$16:$A$992,0),COLUMN())) -> 3 | F160: =IF(ISERROR(INDEX(P!$A$16:$G$992,MATCH(NGP!$A160,P!$A$16:$A$992,0),COLUMN())),"X",INDEX(P!$A$16:$G$992,MATCH(NGP!$A160,P!$A$16:$A$992,0),COLUMN())) -> 12 | G160: =IF(ISERROR(INDEX(P!$A$16:$G$992,MATCH(NGP!$A160,P!$A$16:$A$992,0),COLUMN())),"X",INDEX(P!$A$16:$G$992,MATCH(NGP!$A160,P!$A$16:$A$992,0),COLUMN())) -> P | H160: 9 | I160: 4 | J160: 1 | K160: 0 | L160: 39 | M160: 35 | N160: 13 | O160: 7 | P160: 19 | Q160: 2 | R160: 42 | S160: 9 | T160: 57 | U160: 6 | V160: 23 | W160: 9 | X160: 1 | Y160: 10 | Z160: 2 | AA160: 1 | AS160: 1 | AT160: 1 | AU160: 1 | AV160: 1 | AW160: =IF(A161<>"",20-SUM(AC161:AV161),"") -> 15 | AX160: 156
A161: =IF(P!$A172>0,P!$A172,"") -> 2014-03-27 | B161: =IF(ISERROR(INDEX(P!$A$16:$G$992,MATCH(NGP!$A161,P!$A$16:$A$992,0),COLUMN())),"X",INDEX(P!$A$16:$G$992,MATCH(NGP!$A161,P!$A$16:$A$992,0),COLUMN())) -> 7 | C161: =IF(ISERROR(INDEX(P!$A$16:$G$992,MATCH(NGP!$A161,P!$A$16:$A$992,0),COLUMN())),"X",INDEX(P!$A$16:$G$992,MATCH(NGP!$A161,P!$A$16:$A$992,0),COLUMN())) -> 6 | D161: =IF(ISERROR(INDEX(P!$A$16:$G$992,MATCH(NGP!$A161,P!$A$16:$A$992,0),COLUMN())),"X",INDEX(P!$A$16:$G$992,MATCH(NGP!$A161,P!$A$16:$A$992,0),COLUMN())) -> 3 | E161: =IF(ISERROR(INDEX(P!$A$16:$G$992,MATCH(NGP!$A161,P!$A$16:$A$992,0),COLUMN())),"X",INDEX(P!$A$16:$G$992,MATCH(NGP!$A161,P!$A$16:$A$992,0),COLUMN())) -> 14 | F161: =IF(ISERROR(INDEX(P!$A$16:$G$992,MATCH(NGP!$A161,P!$A$16:$A$992,0),COLUMN())),"X",INDEX(P!$A$16:$G$992,MATCH(NGP!$A161,P!$A$16:$A$992,0),COLUMN())) -> 5 | G161: =IF(ISERROR(INDEX(P!$A$16:$G$992,MATCH(NGP!$A161,P!$A$16:$A$992,0),COLUMN())),"X",INDEX(P!$A$16:$G$992,MATCH(NGP!$A161,P!$A$16:$A$992,0),COLUMN())) -> P | H161: 10 | I161: 5 | J161: 2 | K161: 1 | L161: 40 | M161: 36 | N161: 0 | O161: 8 | P161: 19 | Q161: 3 | R161: 43 | S161: 10 | T161: 58 | U161: 7 | V161: 24 | W161: 10 | X161: =IF(COUNTIF($B161:$D161,"=X")<3,IF(LEN(SUBSTITUTE(SUBSTITUTE($B161,X$1,,1),,1))=0,0,X160+1-AS161),"") -> 1 | Y161: 10 | Z161: 2 | AA161: 1 | AK161: 1 | AS161: 1 | AT161: 1 | AU161: 1 | AV161: 1 | AW161: =IF(A162<>"",20-SUM(AC162:AV162),"") -> 16 | AX161: 157
A162: =IF(P!$A173>0,P!$A173,"") -> 2014-03-30 | B162: =IF(ISERROR(INDEX(P!$A$16:$G$992,MATCH(NGP!$A162,P!$A$16:$A$992,0),COLUMN())),"X",INDEX(P!$A$16:$G$992,MATCH(NGP!$A162,P!$A$16:$A$992,0),COLUMN())) -> 8 | C162: =IF(ISERROR(INDEX(P!$A$16:$G$992,MATCH(NGP!$A162,P!$A$16:$A$992,0),COLUMN())),"X",INDEX(P!$A$16:$G$992,MATCH(NGP!$A162,P!$A$16:$A$992,0),COLUMN())) -> 3 | D162: =IF(ISERROR(INDEX(P!$A$16:$G$992,MATCH(NGP!$A162,P!$A$16:$A$992,0),COLUMN())),"X",INDEX(P!$A$16:$G$992,MATCH(NGP!$A162,P!$A$16:$A$992,0),COLUMN())) -> 2 | E162: =IF(ISERROR(INDEX(P!$A$16:$G$992,MATCH(NGP!$A162,P!$A$16:$A$992,0),COLUMN())),"X",INDEX(P!$A$16:$G$992,MATCH(NGP!$A162,P!$A$16:$A$992,0),COLUMN())) -> 4 | F162: =IF(ISERROR(INDEX(P!$A$16:$G$992,MATCH(NGP!$A162,P!$A$16:$A$992,0),COLUMN())),"X",INDEX(P!$A$16:$G$992,MATCH(NGP!$A162,P!$A$16:$A$992,0),COLUMN())) -> 15 | G162: =IF(ISERROR(INDEX(P!$A$16:$G$992,MATCH(NGP!$A162,P!$A$16:$A$992,0),COLUMN())),"X",INDEX(P!$A$16:$G$992,MATCH(NGP!$A162,P!$A$16:$A$992,0),COLUMN())) -> P | H162: =IF(COUNTIF($B162:$D162,"=X")<3,IF(LEN(SUBSTITUTE(SUBSTITUTE($B162,H$1,,1),,1))=0,0,H161+1-AC162),"") -> 11 | I162: 6 | J162: 3 | K162: 2 | L162: 41 | M162: 37 | N162: 1 | O162: 0 | P162: 20 | Q162: 4 | R162: 44 | S162: 11 | T162: 59 | U162: 8 | V162: 25 | W162: 11 | X162: 1 | Y162: 10 | Z162: 2 | AA162: 1 | AS162: 1 | AT162: 1 | AU162: 1 | AV162: 1 | AW162: =IF(A163<>"",20-SUM(AC163:AV163),"") -> 14 | AX162: 158
A163: =IF(P!$A174>0,P!$A174,"") -> 2014-03-31 | B163: =IF(ISERROR(INDEX(P!$A$16:$G$992,MATCH(NGP!$A163,P!$A$16:$A$992,0),COLUMN())),"X",INDEX(P!$A$16:$G$992,MATCH(NGP!$A163,P!$A$16:$A$992,0),COLUMN())) -> 6 | C163: =IF(ISERROR(INDEX(P!$A$16:$G$992,MATCH(NGP!$A163,P!$A$16:$A$992,0),COLUMN())),"X",INDEX(P!$A$16:$G$992,MATCH(NGP!$A163,P!$A$16:$A$992,0),COLUMN())) -> 5 | D163: =IF(ISERROR(INDEX(P!$A$16:$G$992,MATCH(NGP!$A163,P!$A$16:$A$992,0),COLUMN())),"X",INDEX(P!$A$16:$G$992,MATCH(NGP!$A163,P!$A$16:$A$992,0),COLUMN())) -> 11 | E163: =IF(ISERROR(INDEX(P!$A$16:$G$992,MATCH(NGP!$A163,P!$A$16:$A$992,0),COLUMN())),"X",INDEX(P!$A$16:$G$992,MATCH(NGP!$A163,P!$A$16:$A$992,0),COLUMN())) -> 14 | F163: =IF(ISERROR(INDEX(P!$A$16:$G$992,MATCH(NGP!$A163,P!$A$16:$A$992,0),COLUMN())),"X",INDEX(P!$A$16:$G$992,MATCH(NGP!$A163,P!$A$16:$A$992,0),COLUMN())) -> 3 | G163: =IF(ISERROR(INDEX(P!$A$16:$G$992,MATCH(NGP!$A163,P!$A$16:$A$992,0),COLUMN())),"X",INDEX(P!$A$16:$G$992,MATCH(NGP!$A163,P!$A$16:$A$992,0),COLUMN())) -> P | H163: 11 | I163: 7 | J163: 4 | K163: 3 | L163: 42 | M163: 0 | N163: 1 | O163: 1 | P163: 21 | Q163: 5 | R163: 45 | S163: 12 | T163: 60 | U163: 9 | V163: 26 | W163: 12 | X163: 1 | Y163: 10 | Z163: 2 | AA163: 1 | AC163: 1 | AI163: 1 | AS163: 1 | AT163: 1 | AU163: 1 | AV163: 1 | AW163: =IF(A164<>"",20-SUM(AC164:AV164),"") -> 16 | AX163: 159
A164: =IF(P!$A175>0,P!$A175,"") -> 2014-04-03 | B164: =IF(ISERROR(INDEX(P!$A$16:$G$992,MATCH(NGP!$A164,P!$A$16:$A$992,0),COLUMN())),"X",INDEX(P!$A$16:$G$992,MATCH(NGP!$A164,P!$A$16:$A$992,0),COLUMN())) -> 3 | C164: =IF(ISERROR(INDEX(P!$A$16:$G$992,MATCH(NGP!$A164,P!$A$16:$A$992,0),COLUMN())),"X",INDEX(P!$A$16:$G$992,MATCH(NGP!$A164,P!$A$16:$A$992,0),COLUMN())) -> 10 | D164: =IF(ISERROR(INDEX(P!$A$16:$G$992,MATCH(NGP!$A164,P!$A$16:$A$992,0),COLUMN())),"X",INDEX(P!$A$16:$G$992,MATCH(NGP!$A164,P!$A$16:$A$992,0),COLUMN())) -> 4 | E164: =IF(ISERROR(INDEX(P!$A$16:$G$992,MATCH(NGP!$A164,P!$A$16:$A$992,0),COLUMN())),"X",INDEX(P!$A$16:$G$992,MATCH(NGP!$A164,P!$A$16:$A$992,0),COLUMN())) -> 11 | F164: =IF(ISERROR(INDEX(P!$A$16:$G$992,MATCH(NGP!$A164,P!$A$16:$A$992,0),COLUMN())),"X",INDEX(P!$A$16:$G$992,MATCH(NGP!$A164,P!$A$16:$A$992,0),COLUMN())) -> 16 | G164: =IF(ISERROR(INDEX(P!$A$16:$G$992,MATCH(NGP!$A164,P!$A$16:$A$992,0),COLUMN())),"X",INDEX(P!$A$16:$G$992,MATCH(NGP!$A164,P!$A$16:$A$992,0),COLUMN())) -> P | H164: 12 | I164: 8 | J164: 0 | K164: 4 | L164: 43 | M164: 1 | N164: 2 | O164: 2 | P164: 22 | Q164: 6 | R164: 46 | S164: 13 | T164: 61 | U164: 10 | V164: 27 | W164: 13 | X164: 1 | Y164: 10 | Z164: 2 | AA164: 1 | AS164: 1 | AT164: 1 | AU164: 1 | AV164: 1 | AW164: =IF(A165<>"",20-SUM(AC165:AV165),"") -> 16 | AX164: 160
A165: =IF(P!$A176>0,P!$A176,"") -> 2014-04-06 | B165: =IF(ISERROR(INDEX(P!$A$16:$G$992,MATCH(NGP!$A165,P!$A$16:$A$992,0),COLUMN())),"X",INDEX(P!$A$16:$G$992,MATCH(NGP!$A165,P!$A$16:$A$992,0),COLUMN())) -> 10 | C165: =IF(ISERROR(INDEX(P!$A$16:$G$992,MATCH(NGP!$A165,P!$A$16:$A$992,0),COLUMN())),"X",INDEX(P!$A$16:$G$992,MATCH(NGP!$A165,P!$A$16:$A$992,0),COLUMN())) -> 2 | D165: =IF(ISERROR(INDEX(P!$A$16:$G$992,MATCH(NGP!$A165,P!$A$16:$A$992,0),COLUMN())),"X",INDEX(P!$A$16:$G$992,MATCH(NGP!$A165,P!$A$16:$A$992,0),COLUMN())) -> 5 | E165: =IF(ISERROR(INDEX(P!$A$16:$G$992,MATCH(NGP!$A165,P!$A$16:$A$992,0),COLUMN())),"X",INDEX(P!$A$16:$G$992,MATCH(NGP!$A165,P!$A$16:$A$992,0),COLUMN())) -> 16 | F165: =IF(ISERROR(INDEX(P!$A$16:$G$992,MATCH(NGP!$A165,P!$A$16:$A$992,0),COLUMN())),"X",INDEX(P!$A$16:$G$992,MATCH(NGP!$A165,P!$A$16:$A$992,0),COLUMN())) -> 14 | G165: =IF(ISERROR(INDEX(P!$A$16:$G$992,MATCH(NGP!$A165,P!$A$16:$A$992,0),COLUMN())),"X",INDEX(P!$A$16:$G$992,MATCH(NGP!$A165,P!$A$16:$A$992,0),COLUMN())) -> P | H165: 13 | I165: 9 | J165: 1 | K165: 5 | L165: 44 | M165: 2 | N165: 3 | O165: 3 | P165: 23 | Q165: 0 | R165: 47 | S165: 14 | T165: 62 | U165: 11 | V165: 28 | W165: 14 | X165: 1 | Y165: 10 | Z165: 2 | AA165: 1 | AS165: 1 | AT165: 1 | AU165: 1 | AV165: 1 | AW165: =IF(A166<>"",20-SUM(AC166:AV166),"") -> 18 | AX165: 161
A166: =IF(P!$A177>0,P!$A177,"") -> 2014-04-08 | B166: =IF(ISERROR(INDEX(P!$A$16:$G$992,MATCH(NGP!$A166,P!$A$16:$A$992,0),COLUMN())),"X",INDEX(P!$A$16:$G$992,MATCH(NGP!$A166,P!$A$16:$A$992,0),COLUMN())) -> 7 | C166: =IF(ISERROR(INDEX(P!$A$16:$G$992,MATCH(NGP!$A166,P!$A$16:$A$992,0),COLUMN())),"X",INDEX(P!$A$16:$G$992,MATCH(NGP!$A166,P!$A$16:$A$992,0),COLUMN())) -> 13 | D166: =IF(ISERROR(INDEX(P!$A$16:$G$992,MATCH(NGP!$A166,P!$A$16:$A$992,0),COLUMN())),"X",INDEX(P!$A$16:$G$992,MATCH(NGP!$A166,P!$A$16:$A$992,0),COLUMN())) -> 15 | E166: =IF(ISERROR(INDEX(P!$A$16:$G$992,MATCH(NGP!$A166,P!$A$16:$A$992,0),COLUMN())),"X",INDEX(P!$A$16:$G$992,MATCH(NGP!$A166,P!$A$16:$A$992,0),COLUMN())) -> 12 | F166: =IF(ISERROR(INDEX(P!$A$16:$G$992,MATCH(NGP!$A166,P!$A$16:$A$992,0),COLUMN())),"X",INDEX(P!$A$16:$G$992,MATCH(NGP!$A166,P!$A$16:$A$992,0),COLUMN())) -> 17 | G166: =IF(ISERROR(INDEX(P!$A$16:$G$992,MATCH(NGP!$A166,P!$A$16:$A$992,0),COLUMN())),"X",INDEX(P!$A$16:$G$992,MATCH(NGP!$A166,P!$A$16:$A$992,0),COLUMN())) -> P | H166: 14 | I166: 10 | J166: 2 | K166: 6 | L166: 45 | M166: 3 | N166: 0 | O166: 4 | P166: 24 | Q166: 1 | R166: 48 | S166: 15 | T166: 63 | U166: 12 | V166: 29 | W166: 15 | X166: 2 | Y166: 11 | Z166: 2 | AA166: 1 | AU166: 1 | AV166: 1 | AW166: =IF(A167<>"",20-SUM(AC167:AV167),"") -> 16 | AX166: 162
A167: =IF(P!$A178>0,P!$A178,"") -> 2014-04-10 | B167: =IF(ISERROR(INDEX(P!$A$16:$G$992,MATCH(NGP!$A167,P!$A$16:$A$992,0),COLUMN())),"X",INDEX(P!$A$16:$G$992,MATCH(NGP!$A167,P!$A$16:$A$992,0),COLUMN())) -> 1 | C167: =IF(ISERROR(INDEX(P!$A$16:$G$992,MATCH(NGP!$A167,P!$A$16:$A$992,0),COLUMN())),"X",INDEX(P!$A$16:$G$992,MATCH(NGP!$A167,P!$A$16:$A$992,0),COLUMN())) -> 8 | D167: =IF(ISERROR(INDEX(P!$A$16:$G$992,MATCH(NGP!$A167,P!$A$16:$A$992,0),COLUMN())),"X",INDEX(P!$A$16:$G$992,MATCH(NGP!$A167,P!$A$16:$A$992,0),COLUMN())) -> 11 | E167: =IF(ISERROR(INDEX(P!$A$16:$G$992,MATCH(NGP!$A167,P!$A$16:$A$992,0),COLUMN())),"X",INDEX(P!$A$16:$G$992,MATCH(NGP!$A167,P!$A$16:$A$992,0),COLUMN())) -> 9 | F167: =IF(ISERROR(INDEX(P!$A$16:$G$992,MATCH(NGP!$A167,P!$A$16:$A$992,0),COLUMN())),"X",INDEX(P!$A$16:$G$992,MATCH(NGP!$A167,P!$A$16:$A$992,0),COLUMN())) -> 16 | G167: =IF(ISERROR(INDEX(P!$A$16:$G$992,MATCH(NGP!$A167,P!$A$16:$A$992,0),COLUMN())),"X",INDEX(P!$A$16:$G$992,MATCH(NGP!$A167,P!$A$16:$A$992,0),COLUMN())) -> P | H167: 0 | I167: 11 | J167: 3 | K167: 7 | L167: 46 | M167: 4 | N167: 1 | O167: 5 | P167: 25 | Q167: 2 | R167: 49 | S167: 16 | T167: 64 | U167: 13 | V167: 30 | W167: 16 | X167: 2 | Y167: 11 | Z167: 2 | AA167: 1 | AS167: 1 | AT167: 1 | AU167: 1 | AV167: 1 | AW167: =IF(A168<>"",20-SUM(AC168:AV168),"") -> 16 | AX167: 163
A168: =IF(P!$A179>0,P!$A179,"") -> 2014-04-13 | B168: =IF(ISERROR(INDEX(P!$A$16:$G$992,MATCH(NGP!$A168,P!$A$16:$A$992,0),COLUMN())),"X",INDEX(P!$A$16:$G$992,MATCH(NGP!$A168,P!$A$16:$A$992,0),COLUMN())) -> 5 | C168: =IF(ISERROR(INDEX(P!$A$16:$G$992,MATCH(NGP!$A168,P!$A$16:$A$992,0),COLUMN())),"X",INDEX(P!$A$16:$G$992,MATCH(NGP!$A168,P!$A$16:$A$992,0),COLUMN())) -> 10 | D168: =IF(ISERROR(INDEX(P!$A$16:$G$992,MATCH(NGP!$A168,P!$A$16:$A$992,0),COLUMN())),"X",INDEX(P!$A$16:$G$992,MATCH(NGP!$A168,P!$A$16:$A$992,0),COLUMN())) -> 14 | E168: =IF(ISERROR(INDEX(P!$A$16:$G$992,MATCH(NGP!$A168,P!$A$16:$A$992,0),COLUMN())),"X",INDEX(P!$A$16:$G$992,MATCH(NGP!$A168,P!$A$16:$A$992,0),COLUMN())) -> 7 | F168: =IF(ISERROR(INDEX(P!$A$16:$G$992,MATCH(NGP!$A168,P!$A$16:$A$992,0),COLUMN())),"X",INDEX(P!$A$16:$G$992,MATCH(NGP!$A168,P!$A$16:$A$992,0),COLUMN())) -> 9 | G168: =IF(ISERROR(INDEX(P!$A$16:$G$992,MATCH(NGP!$A168,P!$A$16:$A$992,0),COLUMN())),"X",INDEX(P!$A$16:$G$992,MATCH(NGP!$A168,P!$A$16:$A$992,0),COLUMN())) -> P | H168: 1 | I168: 12 | J168: 4 | K168: 8 | L168: 0 | M168: 5 | N168: 2 | O168: 6 | P168: 26 | Q168: 3 | R168: 50 | S168: 17 | T168: 65 | U168: 14 | V168: 31 | W168: 17 | X168: 2 | Y168: 11 | Z168: 2 | AA168: 1 | AS168: 1 | AT168: 1 | AU168: 1 | AV168: 1 | AW168: =IF(A169<>"",20-SUM(AC169:AV169),"") -> 16 | AX168: 164
A169: =IF(P!$A180>0,P!$A180,"") -> 2014-04-14 | B169: =IF(ISERROR(INDEX(P!$A$16:$G$992,MATCH(NGP!$A169,P!$A$16:$A$992,0),COLUMN())),"X",INDEX(P!$A$16:$G$992,MATCH(NGP!$A169,P!$A$16:$A$992,0),COLUMN())) -> 14 | C169: =IF(ISERROR(INDEX(P!$A$16:$G$992,MATCH(NGP!$A169,P!$A$16:$A$992,0),COLUMN())),"X",INDEX(P!$A$16:$G$992,MATCH(NGP!$A169,P!$A$16:$A$992,0),COLUMN())) -> 15 | D169: =IF(ISERROR(INDEX(P!$A$16:$G$992,MATCH(NGP!$A169,P!$A$16:$A$992,0),COLUMN())),"X",INDEX(P!$A$16:$G$992,MATCH(NGP!$A169,P!$A$16:$A$992,0),COLUMN())) -> 7 | E169: =IF(ISERROR(INDEX(P!$A$16:$G$992,MATCH(NGP!$A169,P!$A$16:$A$992,0),COLUMN())),"X",INDEX(P!$A$16:$G$992,MATCH(NGP!$A169,P!$A$16:$A$992,0),COLUMN())) -> 2 | F169: =IF(ISERROR(INDEX(P!$A$16:$G$992,MATCH(NGP!$A169,P!$A$16:$A$992,0),COLUMN())),"X",INDEX(P!$A$16:$G$992,MATCH(NGP!$A169,P!$A$16:$A$992,0),COLUMN())) -> 9 | G169: =IF(ISERROR(INDEX(P!$A$16:$G$992,MATCH(NGP!$A169,P!$A$16:$A$992,0),COLUMN())),"X",INDEX(P!$A$16:$G$992,MATCH(NGP!$A169,P!$A$16:$A$992,0),COLUMN())) -> P | H169: 2 | I169: 13 | J169: 5 | K169: 9 | L169: 1 | M169: 6 | N169: 3 | O169: 7 | P169: 27 | Q169: 4 | R169: 51 | S169: 18 | T169: 66 | U169: 0 | V169: 32 | W169: 18 | X169: 2 | Y169: 11 | Z169: 2 | AA169: 1 | AS169: 1 | AT169: 1 | AU169: 1 | AV169: 1 | AW169: =IF(A170<>"",20-SUM(AC170:AV170),"") -> 16 | AX169: 165
A170: =IF(P!$A181>0,P!$A181,"") -> 2014-04-15 | B170: =IF(ISERROR(INDEX(P!$A$16:$G$992,MATCH(NGP!$A170,P!$A$16:$A$992,0),COLUMN())),"X",INDEX(P!$A$16:$G$992,MATCH(NGP!$A170,P!$A$16:$A$992,0),COLUMN())) -> 8 | C170: =IF(ISERROR(INDEX(P!$A$16:$G$992,MATCH(NGP!$A170,P!$A$16:$A$992,0),COLUMN())),"X",INDEX(P!$A$16:$G$992,MATCH(NGP!$A170,P!$A$16:$A$992,0),COLUMN())) -> 7 | D170: =IF(ISERROR(INDEX(P!$A$16:$G$992,MATCH(NGP!$A170,P!$A$16:$A$992,0),COLUMN())),"X",INDEX(P!$A$16:$G$992,MATCH(NGP!$A170,P!$A$16:$A$992,0),COLUMN())) -> 15 | E170: =IF(ISERROR(INDEX(P!$A$16:$G$992,MATCH(NGP!$A170,P!$A$16:$A$992,0),COLUMN())),"X",INDEX(P!$A$16:$G$992,MATCH(NGP!$A170,P!$A$16:$A$992,0),COLUMN())) -> 16 | F170: =IF(ISERROR(INDEX(P!$A$16:$G$992,MATCH(NGP!$A170,P!$A$16:$A$992,0),COLUMN())),"X",INDEX(P!$A$16:$G$992,MATCH(NGP!$A170,P!$A$16:$A$992,0),COLUMN())) -> 14 | G170: =IF(ISERROR(INDEX(P!$A$16:$G$992,MATCH(NGP!$A170,P!$A$16:$A$992,0),COLUMN())),"X",INDEX(P!$A$16:$G$992,MATCH(NGP!$A170,P!$A$16:$A$992,0),COLUMN())) -> P | H170: 3 | I170: 14 | J170: 6 | K170: 10 | L170: 2 | M170: 7 | N170: 4 | O170: 0 | P170: 28 | Q170: 5 | R170: 52 | S170: 19 | T170: 67 | U170: 1 | V170: 33 | W170: 19 | X170: 2 | Y170: 11 | Z170: 2 | AA170: 1 | AS170: 1 | AT170: 1 | AU170: 1 | AV170: 1 | AW170: =IF(A171<>"",20-SUM(AC171:AV171),"") -> 18 | AX170: 166
A171: =IF(P!$A182>0,P!$A182,"") -> 2014-04-17 | B171: =IF(ISERROR(INDEX(P!$A$16:$G$992,MATCH(NGP!$A171,P!$A$16:$A$992,0),COLUMN())),"X",INDEX(P!$A$16:$G$992,MATCH(NGP!$A171,P!$A$16:$A$992,0),COLUMN())) -> 13 | C171: =IF(ISERROR(INDEX(P!$A$16:$G$992,MATCH(NGP!$A171,P!$A$16:$A$992,0),COLUMN())),"X",INDEX(P!$A$16:$G$992,MATCH(NGP!$A171,P!$A$16:$A$992,0),COLUMN())) -> 9 | D171: =IF(ISERROR(INDEX(P!$A$16:$G$992,MATCH(NGP!$A171,P!$A$16:$A$992,0),COLUMN())),"X",INDEX(P!$A$16:$G$992,MATCH(NGP!$A171,P!$A$16:$A$992,0),COLUMN())) -> 7 | E171: =IF(ISERROR(INDEX(P!$A$16:$G$992,MATCH(NGP!$A171,P!$A$16:$A$992,0),COLUMN())),"X",INDEX(P!$A$16:$G$992,MATCH(NGP!$A171,P!$A$16:$A$992,0),COLUMN())) -> 10 | F171: =IF(ISERROR(INDEX(P!$A$16:$G$992,MATCH(NGP!$A171,P!$A$16:$A$992,0),COLUMN())),"X",INDEX(P!$A$16:$G$992,MATCH(NGP!$A171,P!$A$16:$A$992,0),COLUMN())) -> 17 | G171: =IF(ISERROR(INDEX(P!$A$16:$G$992,MATCH(NGP!$A171,P!$A$16:$A$992,0),COLUMN())),"X",INDEX(P!$A$16:$G$992,MATCH(NGP!$A171,P!$A$16:$A$992,0),COLUMN())) -> P | H171: 4 | I171: 15 | J171: 7 | K171: 11 | L171: 3 | M171: 8 | N171: 5 | O171: 1 | P171: 29 | Q171: 6 | R171: 53 | S171: 20 | T171: 0 | U171: 2 | V171: 34 | W171: 20 | X171: 3 | Y171: 12 | Z171: 2 | AA171: 1 | AU171: 1 | AV171: 1 | AW171: =IF(A172<>"",20-SUM(AC172:AV172),"") -> 13 | AX171: 167
A172: =IF(P!$A183>0,P!$A183,"") -> 2014-04-21 | B172: =IF(ISERROR(INDEX(P!$A$16:$G$992,MATCH(NGP!$A172,P!$A$16:$A$992,0),COLUMN())),"X",INDEX(P!$A$16:$G$992,MATCH(NGP!$A172,P!$A$16:$A$992,0),COLUMN())) -> 2 | C172: =IF(ISERROR(INDEX(P!$A$16:$G$992,MATCH(NGP!$A172,P!$A$16:$A$992,0),COLUMN())),"X",INDEX(P!$A$16:$G$992,MATCH(NGP!$A172,P!$A$16:$A$992,0),COLUMN())) -> 10 | D172: =IF(ISERROR(INDEX(P!$A$16:$G$992,MATCH(NGP!$A172,P!$A$16:$A$992,0),COLUMN())),"X",INDEX(P!$A$16:$G$992,MATCH(NGP!$A172,P!$A$16:$A$992,0),COLUMN())) -> 9 | E172: =IF(ISERROR(INDEX(P!$A$16:$G$992,MATCH(NGP!$A172,P!$A$16:$A$992,0),COLUMN())),"X",INDEX(P!$A$16:$G$992,MATCH(NGP!$A172,P!$A$16:$A$992,0),COLUMN())) -> 11 | F172: =IF(ISERROR(INDEX(P!$A$16:$G$992,MATCH(NGP!$A172,P!$A$16:$A$992,0),COLUMN())),"X",INDEX(P!$A$16:$G$992,MATCH(NGP!$A172,P!$A$16:$A$992,0),COLUMN())) -> 1 | G172: =IF(ISERROR(INDEX(P!$A$16:$G$992,MATCH(NGP!$A172,P!$A$16:$A$992,0),COLUMN())),"X",INDEX(P!$A$16:$G$992,MATCH(NGP!$A172,P!$A$16:$A$992,0),COLUMN())) -> P | H172: 5 | I172: 0 | J172: 5 | K172: 12 | L172: 4 | M172: 9 | N172: 6 | O172: 2 | P172: 30 | Q172: 7 | R172: 54 | S172: 21 | T172: 1 | U172: 3 | V172: 35 | W172: 21 | X172: 3 | Y172: 12 | Z172: 2 | AA172: 1 | AE172: 3 | AS172: 1 | AT172: 1 | AU172: 1 | AV172: 1 | AW172: =IF(A173<>"",20-SUM(AC173:AV173),"") -> 15 | AX172: 168
A173: =IF(P!$A184>0,P!$A184,"") -> 2014-04-22 | B173: =IF(ISERROR(INDEX(P!$A$16:$G$992,MATCH(NGP!$A173,P!$A$16:$A$992,0),COLUMN())),"X",INDEX(P!$A$16:$G$992,MATCH(NGP!$A173,P!$A$16:$A$992,0),COLUMN())) -> 6 | C173: =IF(ISERROR(INDEX(P!$A$16:$G$992,MATCH(NGP!$A173,P!$A$16:$A$992,0),COLUMN())),"X",INDEX(P!$A$16:$G$992,MATCH(NGP!$A173,P!$A$16:$A$992,0),COLUMN())) -> 2 | D173: =IF(ISERROR(INDEX(P!$A$16:$G$992,MATCH(NGP!$A173,P!$A$16:$A$992,0),COLUMN())),"X",INDEX(P!$A$16:$G$992,MATCH(NGP!$A173,P!$A$16:$A$992,0),COLUMN())) -> 15 | E173: =IF(ISERROR(INDEX(P!$A$16:$G$992,MATCH(NGP!$A173,P!$A$16:$A$992,0),COLUMN())),"X",INDEX(P!$A$16:$G$992,MATCH(NGP!$A173,P!$A$16:$A$992,0),COLUMN())) -> 3 | F173: =IF(ISERROR(INDEX(P!$A$16:$G$992,MATCH(NGP!$A173,P!$A$16:$A$992,0),COLUMN())),"X",INDEX(P!$A$16:$G$992,MATCH(NGP!$A173,P!$A$16:$A$992,0),COLUMN())) -> 13 | G173: =IF(ISERROR(INDEX(P!$A$16:$G$992,MATCH(NGP!$A173,P!$A$16:$A$992,0),COLUMN())),"X",INDEX(P!$A$16:$G$992,MATCH(NGP!$A173,P!$A$16:$A$992,0),COLUMN())) -> P | H173: 6 | I173: 1 | J173: 6 | K173: 13 | L173: 5 | M173: 0 | N173: 7 | O173: 3 | P173: 31 | Q173: 8 | R173: 55 | S173: 22 | T173: 2 | U173: 3 | V173: 36 | W173: 22 | X173: 3 | Y173: 12 | Z173: 2 | AA173: 1 | AP173: 1 | AS173: 1 | AT173: 1 | AU173: 1 | AV173: 1 | AW173: =IF(A174<>"",20-SUM(AC174:AV174),"") -> 16 | AX173: 169
A174: =IF(P!$A185>0,P!$A185,"") -> 2014-04-24 | B174: =IF(ISERROR(INDEX(P!$A$16:$G$992,MATCH(NGP!$A174,P!$A$16:$A$992,0),COLUMN())),"X",INDEX(P!$A$16:$G$992,MATCH(NGP!$A174,P!$A$16:$A$992,0),COLUMN())) -> 4 | C174: =IF(ISERROR(INDEX(P!$A$16:$G$992,MATCH(NGP!$A174,P!$A$16:$A$992,0),COLUMN())),"X",INDEX(P!$A$16:$G$992,MATCH(NGP!$A174,P!$A$16:$A$992,0),COLUMN())) -> 11 | D174: =IF(ISERROR(INDEX(P!$A$16:$G$992,MATCH(NGP!$A174,P!$A$16:$A$992,0),COLUMN())),"X",INDEX(P!$A$16:$G$992,MATCH(NGP!$A174,P!$A$16:$A$992,0),COLUMN())) -> 8 | E174: =IF(ISERROR(INDEX(P!$A$16:$G$992,MATCH(NGP!$A174,P!$A$16:$A$992,0),COLUMN())),"X",INDEX(P!$A$16:$G$992,MATCH(NGP!$A174,P!$A$16:$A$992,0),COLUMN())) -> 5 | F174: =IF(ISERROR(INDEX(P!$A$16:$G$992,MATCH(NGP!$A174,P!$A$16:$A$992,0),COLUMN())),"X",INDEX(P!$A$16:$G$992,MATCH(NGP!$A174,P!$A$16:$A$992,0),COLUMN())) -> 16 | G174: =IF(ISERROR(INDEX(P!$A$16:$G$992,MATCH(NGP!$A174,P!$A$16:$A$992,0),COLUMN())),"X",INDEX(P!$A$16:$G$992,MATCH(NGP!$A174,P!$A$16:$A$992,0),COLUMN())) -> P | H174: 7 | I174: 2 | J174: 7 | K174: 0 | L174: 6 | M174: 1 | N174: 8 | O174: 4 | P174: 32 | Q174: 9 | R174: 56 | S174: 23 | T174: 3 | U174: 4 | V174: 37 | W174: 23 | X174: 3 | Y174: 12 | Z174: 2 | AA174: 1 | AS174: 1 | AT174: 1 | AU174: 1 | AV174: 1 | AW174: =IF(A175<>"",20-SUM(AC175:AV175),"") -> 16 | AX174: 170
A175: =IF(P!$A186>0,P!$A186,"") -> 2014-04-27 | B175: =IF(ISERROR(INDEX(P!$A$16:$G$992,MATCH(NGP!$A175,P!$A$16:$A$992,0),COLUMN())),"X",INDEX(P!$A$16:$G$992,MATCH(NGP!$A175,P!$A$16:$A$992,0),COLUMN())) -> 7 | C175: =IF(ISERROR(INDEX(P!$A$16:$G$992,MATCH(NGP!$A175,P!$A$16:$A$992,0),COLUMN())),"X",INDEX(P!$A$16:$G$992,MATCH(NGP!$A175,P!$A$16:$A$992,0),COLUMN())) -> 12 | D175: =IF(ISERROR(INDEX(P!$A$16:$G$992,MATCH(NGP!$A175,P!$A$16:$A$992,0),COLUMN())),"X",INDEX(P!$A$16:$G$992,MATCH(NGP!$A175,P!$A$16:$A$992,0),COLUMN())) -> 2 | E175: =IF(ISERROR(INDEX(P!$A$16:$G$992,MATCH(NGP!$A175,P!$A$16:$A$992,0),COLUMN())),"X",INDEX(P!$A$16:$G$992,MATCH(NGP!$A175,P!$A$16:$A$992,0),COLUMN())) -> 5 | F175: =IF(ISERROR(INDEX(P!$A$16:$G$992,MATCH(NGP!$A175,P!$A$16:$A$992,0),COLUMN())),"X",INDEX(P!$A$16:$G$992,MATCH(NGP!$A175,P!$A$16:$A$992,0),COLUMN())) -> 11 | G175: =IF(ISERROR(INDEX(P!$A$16:$G$992,MATCH(NGP!$A175,P!$A$16:$A$992,0),COLUMN())),"X",INDEX(P!$A$16:$G$992,MATCH(NGP!$A175,P!$A$16:$A$992,0),COLUMN())) -> P | H175: 8 | I175: 3 | J175: 8 | K175: 1 | L175: 7 | M175: 2 | N175: 0 | O175: 5 | P175: 33 | Q175: 10 | R175: 57 | S175: 24 | T175: 4 | U175: 5 | V175: 38 | W175: 24 | X175: 3 | Y175: 12 | Z175: 2 | AA175: 1 | AS175: 1 | AT175: 1 | AU175: 1 | AV175: 1 | AW175: =IF(A176<>"",20-SUM(AC176:AV176),"") -> 16 | AX175: 171
A176: =IF(P!$A187>0,P!$A187,"") -> 2014-04-28 | B176: =IF(ISERROR(INDEX(P!$A$16:$G$992,MATCH(NGP!$A176,P!$A$16:$A$992,0),COLUMN())),"X",INDEX(P!$A$16:$G$992,MATCH(NGP!$A176,P!$A$16:$A$992,0),COLUMN())) -> 9 | C176: =IF(ISERROR(INDEX(P!$A$16:$G$992,MATCH(NGP!$A176,P!$A$16:$A$992,0),COLUMN())),"X",INDEX(P!$A$16:$G$992,MATCH(NGP!$A176,P!$A$16:$A$992,0),COLUMN())) -> 3 | D176: =IF(ISERROR(INDEX(P!$A$16:$G$992,MATCH(NGP!$A176,P!$A$16:$A$992,0),COLUMN())),"X",INDEX(P!$A$16:$G$992,MATCH(NGP!$A176,P!$A$16:$A$992,0),COLUMN())) -> 7 | E176: =IF(ISERROR(INDEX(P!$A$16:$G$992,MATCH(NGP!$A176,P!$A$16:$A$992,0),COLUMN())),"X",INDEX(P!$A$16:$G$992,MATCH(NGP!$A176,P!$A$16:$A$992,0),COLUMN())) -> 6 | F176: =IF(ISERROR(INDEX(P!$A$16:$G$992,MATCH(NGP!$A176,P!$A$16:$A$992,0),COLUMN())),"X",INDEX(P!$A$16:$G$992,MATCH(NGP!$A176,P!$A$16:$A$992,0),COLUMN())) -> 1 | G176: =IF(ISERROR(INDEX(P!$A$16:$G$992,MATCH(NGP!$A176,P!$A$16:$A$992,0),COLUMN())),"X",INDEX(P!$A$16:$G$992,MATCH(NGP!$A176,P!$A$16:$A$992,0),COLUMN())) -> P | H176: 9 | I176: 4 | J176: 9 | K176: 2 | L176: 8 | M176: 3 | N176: 1 | O176: 6 | P176: 0 | Q176: 11 | R176: 58 | S176: 25 | T176: 5 | U176: 6 | V176: 39 | W176: 25 | X176: 3 | Y176: 12 | Z176: 2 | AA176: 1 | AS176: 1 | AT176: 1 | AU176: 1 | AV176: 1 | AW176: =IF(A177<>"",20-SUM(AC177:AV177),"") -> 17 | AX176: 172
A177: =IF(P!$A188>0,P!$A188,"") -> 2014-04-30 | B177: =IF(ISERROR(INDEX(P!$A$16:$G$992,MATCH(NGP!$A177,P!$A$16:$A$992,0),COLUMN())),"X",INDEX(P!$A$16:$G$992,MATCH(NGP!$A177,P!$A$16:$A$992,0),COLUMN())) -> 13 | C177: =IF(ISERROR(INDEX(P!$A$16:$G$992,MATCH(NGP!$A177,P!$A$16:$A$992,0),COLUMN())),"X",INDEX(P!$A$16:$G$992,MATCH(NGP!$A177,P!$A$16:$A$992,0),COLUMN())) -> 16 | D177: =IF(ISERROR(INDEX(P!$A$16:$G$992,MATCH(NGP!$A177,P!$A$16:$A$992,0),COLUMN())),"X",INDEX(P!$A$16:$G$992,MATCH(NGP!$A177,P!$A$16:$A$992,0),COLUMN())) -> 1 | E177: =IF(ISERROR(INDEX(P!$A$16:$G$992,MATCH(NGP!$A177,P!$A$16:$A$992,0),COLUMN())),"X",INDEX(P!$A$16:$G$992,MATCH(NGP!$A177,P!$A$16:$A$992,0),COLUMN())) -> 15 | F177: =IF(ISERROR(INDEX(P!$A$16:$G$992,MATCH(NGP!$A177,P!$A$16:$A$992,0),COLUMN())),"X",INDEX(P!$A$16:$G$992,MATCH(NGP!$A177,P!$A$16:$A$992,0),COLUMN())) -> 2 | G177: =IF(ISERROR(INDEX(P!$A$16:$G$992,MATCH(NGP!$A177,P!$A$16:$A$992,0),COLUMN())),"X",INDEX(P!$A$16:$G$992,MATCH(NGP!$A177,P!$A$16:$A$992,0),COLUMN())) -> P | H177: 10 | I177: 5 | J177: 10 | K177: 3 | L177: 9 | M177: 4 | N177: 2 | O177: 7 | P177: 1 | Q177: 12 | R177: 59 | S177: 26 | T177: 0 | U177: 7 | V177: 40 | W177: =IF(COUNTIF($B177:$D177,"=X")<3,IF(LEN(SUBSTITUTE(SUBSTITUTE($B177,W$1,,1),,1))=0,0,W176+1-AR177),"") -> 26 | X177: 3 | Y177: 13 | Z177: 2 | AA177: 1 | AS177: 1 | AU177: 1 | AV177: 1 | AW177: =IF(A178<>"",20-SUM(AC178:AV178),"") -> 16 | AX177: 173
A178: =IF(P!$A189>0,P!$A189,"") -> 2014-05-01 | B178: =IF(ISERROR(INDEX(P!$A$16:$G$992,MATCH(NGP!$A178,P!$A$16:$A$992,0),COLUMN())),"X",INDEX(P!$A$16:$G$992,MATCH(NGP!$A178,P!$A$16:$A$992,0),COLUMN())) -> 9 | C178: =IF(ISERROR(INDEX(P!$A$16:$G$992,MATCH(NGP!$A178,P!$A$16:$A$992,0),COLUMN())),"X",INDEX(P!$A$16:$G$992,MATCH(NGP!$A178,P!$A$16:$A$992,0),COLUMN())) -> 4 | D178: =IF(ISERROR(INDEX(P!$A$16:$G$992,MATCH(NGP!$A178,P!$A$16:$A$992,0),COLUMN())),"X",INDEX(P!$A$16:$G$992,MATCH(NGP!$A178,P!$A$16:$A$992,0),COLUMN())) -> 3 | E178: =IF(ISERROR(INDEX(P!$A$16:$G$992,MATCH(NGP!$A178,P!$A$16:$A$992,0),COLUMN())),"X",INDEX(P!$A$16:$G$992,MATCH(NGP!$A178,P!$A$16:$A$992,0),COLUMN())) -> 5 | F178: =IF(ISERROR(INDEX(P!$A$16:$G$992,MATCH(NGP!$A178,P!$A$16:$A$992,0),COLUMN())),"X",INDEX(P!$A$16:$G$992,MATCH(NGP!$A178,P!$A$16:$A$992,0),COLUMN())) -> 15 | G178: =IF(ISERROR(INDEX(P!$A$16:$G$992,MATCH(NGP!$A178,P!$A$16:$A$992,0),COLUMN())),"X",INDEX(P!$A$16:$G$992,MATCH(NGP!$A178,P!$A$16:$A$992,0),COLUMN())) -> P | H178: =IF(COUNTIF($B178:$D178,"=X")<3,IF(LEN(SUBSTITUTE(SUBSTITUTE($B178,H$1,,1),,1))=0,0,H177+1-AC178),"") -> 11 | I178: 6 | J178: 11 | K178: 4 | L178: 10 | M178: 5 | N178: 3 | O178: 8 | P178: 0 | Q178: 13 | R178: 60 | S178: 27 | T178: 1 | U178: 8 | V178: 41 | W178: 27 | X178: 3 | Y178: 13 | Z178: 2 | AA178: 1 | AS178: 1 | AT178: 1 | AU178: 1 | AV178: 1 | AW178: =IF(A179<>"",20-SUM(AC179:AV179),"") -> 18 | AX178: 174
A179: =IF(P!$A190>0,P!$A190,"") -> 2014-05-05 | B179: =IF(ISERROR(INDEX(P!$A$16:$G$992,MATCH(NGP!$A179,P!$A$16:$A$992,0),COLUMN())),"X",INDEX(P!$A$16:$G$992,MATCH(NGP!$A179,P!$A$16:$A$992,0),COLUMN())) -> 13 | C179: =IF(ISERROR(INDEX(P!$A$16:$G$992,MATCH(NGP!$A179,P!$A$16:$A$992,0),COLUMN())),"X",INDEX(P!$A$16:$G$992,MATCH(NGP!$A179,P!$A$16:$A$992,0),COLUMN())) -> 7 | D179: =IF(ISERROR(INDEX(P!$A$16:$G$992,MATCH(NGP!$A179,P!$A$16:$A$992,0),COLUMN())),"X",INDEX(P!$A$16:$G$992,MATCH(NGP!$A179,P!$A$16:$A$992,0),COLUMN())) -> 11 | E179: =IF(ISERROR(INDEX(P!$A$16:$G$992,MATCH(NGP!$A179,P!$A$16:$A$992,0),COLUMN())),"X",INDEX(P!$A$16:$G$992,MATCH(NGP!$A179,P!$A$16:$A$992,0),COLUMN())) -> 9 | F179: =IF(ISERROR(INDEX(P!$A$16:$G$992,MATCH(NGP!$A179,P!$A$16:$A$992,0),COLUMN())),"X",INDEX(P!$A$16:$G$992,MATCH(NGP!$A179,P!$A$16:$A$992,0),COLUMN())) -> 18 | G179: =IF(ISERROR(INDEX(P!$A$16:$G$992,MATCH(NGP!$A179,P!$A$16:$A$992,0),COLUMN())),"X",INDEX(P!$A$16:$G$992,MATCH(NGP!$A179,P!$A$16:$A$992,0),COLUMN())) -> P | H179: 12 | I179: 7 | J179: 12 | K179: 5 | L179: 11 | M179: 6 | N179: 4 | O179: 9 | P179: 1 | Q179: 14 | R179: 61 | S179: 28 | T179: 0 | U179: 9 | V179: 42 | W179: 28 | X179: 4 | Y179: 14 | Z179: 2 | AA179: 1 | AU179: 1 | AV179: 1 | AW179: =IF(A180<>"",20-SUM(AC180:AV180),"") -> 16 | AX179: 175
A180: =IF(P!$A191>0,P!$A191,"") -> 2014-05-06 | B180: =IF(ISERROR(INDEX(P!$A$16:$G$992,MATCH(NGP!$A180,P!$A$16:$A$992,0),COLUMN())),"X",INDEX(P!$A$16:$G$992,MATCH(NGP!$A180,P!$A$16:$A$992,0),COLUMN())) -> 12 | C180: =IF(ISERROR(INDEX(P!$A$16:$G$992,MATCH(NGP!$A180,P!$A$16:$A$992,0),COLUMN())),"X",INDEX(P!$A$16:$G$992,MATCH(NGP!$A180,P!$A$16:$A$992,0),COLUMN())) -> 13 | D180: =IF(ISERROR(INDEX(P!$A$16:$G$992,MATCH(NGP!$A180,P!$A$16:$A$992,0),COLUMN())),"X",INDEX(P!$A$16:$G$992,MATCH(NGP!$A180,P!$A$16:$A$992,0),COLUMN())) -> 15 | E180: =IF(ISERROR(INDEX(P!$A$16:$G$992,MATCH(NGP!$A180,P!$A$16:$A$992,0),COLUMN())),"X",INDEX(P!$A$16:$G$992,MATCH(NGP!$A180,P!$A$16:$A$992,0),COLUMN())) -> 10 | F180: =IF(ISERROR(INDEX(P!$A$16:$G$992,MATCH(NGP!$A180,P!$A$16:$A$992,0),COLUMN())),"X",INDEX(P!$A$16:$G$992,MATCH(NGP!$A180,P!$A$16:$A$992,0),COLUMN())) -> 5 | G180: =IF(ISERROR(INDEX(P!$A$16:$G$992,MATCH(NGP!$A180,P!$A$16:$A$992,0),COLUMN())),"X",INDEX(P!$A$16:$G$992,MATCH(NGP!$A180,P!$A$16:$A$992,0),COLUMN())) -> P | H180: 13 | I180: 8 | J180: 13 | K180: 6 | L180: 12 | M180: 7 | N180: 5 | O180: 10 | P180: 2 | Q180: 15 | R180: 62 | S180: 0 | T180: 1 | U180: 10 | V180: 43 | W180: 29 | X180: 4 | Y180: 14 | Z180: 2 | AA180: 1 | AS180: 1 | AT180: 1 | AU180: 1 | AV180: 1 | AW180: =IF(A181<>"",20-SUM(AC181:AV181),"") -> 16 | AX180: 176
A181: =IF(P!$A192>0,P!$A192,"") -> 2014-05-07 | B181: =IF(ISERROR(INDEX(P!$A$16:$G$992,MATCH(NGP!$A181,P!$A$16:$A$992,0),COLUMN())),"X",INDEX(P!$A$16:$G$992,MATCH(NGP!$A181,P!$A$16:$A$992,0),COLUMN())) -> 5 | C181: =IF(ISERROR(INDEX(P!$A$16:$G$992,MATCH(NGP!$A181,P!$A$16:$A$992,0),COLUMN())),"X",INDEX(P!$A$16:$G$992,MATCH(NGP!$A181,P!$A$16:$A$992,0),COLUMN())) -> 3 | D181: =IF(ISERROR(INDEX(P!$A$16:$G$992,MATCH(NGP!$A181,P!$A$16:$A$992,0),COLUMN())),"X",INDEX(P!$A$16:$G$992,MATCH(NGP!$A181,P!$A$16:$A$992,0),COLUMN())) -> 15 | E181: =IF(ISERROR(INDEX(P!$A$16:$G$992,MATCH(NGP!$A181,P!$A$16:$A$992,0),COLUMN())),"X",INDEX(P!$A$16:$G$992,MATCH(NGP!$A181,P!$A$16:$A$992,0),COLUMN())) -> 9 | F181: =IF(ISERROR(INDEX(P!$A$16:$G$992,MATCH(NGP!$A181,P!$A$16:$A$992,0),COLUMN())),"X",INDEX(P!$A$16:$G$992,MATCH(NGP!$A181,P!$A$16:$A$992,0),COLUMN())) -> 14 | G181: =IF(ISERROR(INDEX(P!$A$16:$G$992,MATCH(NGP!$A181,P!$A$16:$A$992,0),COLUMN())),"X",INDEX(P!$A$16:$G$992,MATCH(NGP!$A181,P!$A$16:$A$992,0),COLUMN())) -> P | H181: 14 | I181: 9 | J181: 14 | K181: 7 | L181: 0 | M181: 8 | N181: 6 | O181: 11 | P181: 3 | Q181: 16 | R181: 63 | S181: 1 | T181: 2 | U181: 11 | V181: 44 | W181: 30 | X181: 4 | Y181: 14 | Z181: 2 | AA181: 1 | AS181: 1 | AT181: 1 | AU181: 1 | AV181: 1 | AW181: =IF(A182<>"",20-SUM(AC182:AV182),"") -> 16 | AX181: 177
A182: =IF(P!$A193>0,P!$A193,"") -> 2014-05-08 | B182: =IF(ISERROR(INDEX(P!$A$16:$G$992,MATCH(NGP!$A182,P!$A$16:$A$992,0),COLUMN())),"X",INDEX(P!$A$16:$G$992,MATCH(NGP!$A182,P!$A$16:$A$992,0),COLUMN())) -> 10 | C182: =IF(ISERROR(INDEX(P!$A$16:$G$992,MATCH(NGP!$A182,P!$A$16:$A$992,0),COLUMN())),"X",INDEX(P!$A$16:$G$992,MATCH(NGP!$A182,P!$A$16:$A$992,0),COLUMN())) -> 2 | D182: =IF(ISERROR(INDEX(P!$A$16:$G$992,MATCH(NGP!$A182,P!$A$16:$A$992,0),COLUMN())),"X",INDEX(P!$A$16:$G$992,MATCH(NGP!$A182,P!$A$16:$A$992,0),COLUMN())) -> 13 | E182: =IF(ISERROR(INDEX(P!$A$16:$G$992,MATCH(NGP!$A182,P!$A$16:$A$992,0),COLUMN())),"X",INDEX(P!$A$16:$G$992,MATCH(NGP!$A182,P!$A$16:$A$992,0),COLUMN())) -> 4 | F182: =IF(ISERROR(INDEX(P!$A$16:$G$992,MATCH(NGP!$A182,P!$A$16:$A$992,0),COLUMN())),"X",INDEX(P!$A$16:$G$992,MATCH(NGP!$A182,P!$A$16:$A$992,0),COLUMN())) -> 6 | G182: =IF(ISERROR(INDEX(P!$A$16:$G$992,MATCH(NGP!$A182,P!$A$16:$A$992,0),COLUMN())),"X",INDEX(P!$A$16:$G$992,MATCH(NGP!$A182,P!$A$16:$A$992,0),COLUMN())) -> P | H182: 15 | I182: 10 | J182: 15 | K182: 8 | L182: 1 | M182: 9 | N182: 7 | O182: 12 | P182: 4 | Q182: 0 | R182: 64 | S182: 2 | T182: 3 | U182: 12 | V182: 45 | W182: 31 | X182: 4 | Y182: 14 | Z182: 2 | AA182: 1 | AS182: 1 | AT182: 1 | AU182: 1 | AV182: 1 | AW182: =IF(A183<>"",20-SUM(AC183:AV183),"") -> 16 | AX182: 178
A183: =IF(P!$A194>0,P!$A194,"") -> 2014-05-11 | B183: =IF(ISERROR(INDEX(P!$A$16:$G$992,MATCH(NGP!$A183,P!$A$16:$A$992,0),COLUMN())),"X",INDEX(P!$A$16:$G$992,MATCH(NGP!$A183,P!$A$16:$A$992,0),COLUMN())) -> 1 | C183: =IF(ISERROR(INDEX(P!$A$16:$G$992,MATCH(NGP!$A183,P!$A$16:$A$992,0),COLUMN())),"X",INDEX(P!$A$16:$G$992,MATCH(NGP!$A183,P!$A$16:$A$992,0),COLUMN())) -> 4 | D183: =IF(ISERROR(INDEX(P!$A$16:$G$992,MATCH(NGP!$A183,P!$A$16:$A$992,0),COLUMN())),"X",INDEX(P!$A$16:$G$992,MATCH(NGP!$A183,P!$A$16:$A$992,0),COLUMN())) -> 8 | E183: =IF(ISERROR(INDEX(P!$A$16:$G$992,MATCH(NGP!$A183,P!$A$16:$A$992,0),COLUMN())),"X",INDEX(P!$A$16:$G$992,MATCH(NGP!$A183,P!$A$16:$A$992,0),COLUMN())) -> 14 | F183: =IF(ISERROR(INDEX(P!$A$16:$G$992,MATCH(NGP!$A183,P!$A$16:$A$992,0),COLUMN())),"X",INDEX(P!$A$16:$G$992,MATCH(NGP!$A183,P!$A$16:$A$992,0),COLUMN())) -> 12 | G183: =IF(ISERROR(INDEX(P!$A$16:$G$992,MATCH(NGP!$A183,P!$A$16:$A$992,0),COLUMN())),"X",INDEX(P!$A$16:$G$992,MATCH(NGP!$A183,P!$A$16:$A$992,0),COLUMN())) -> P | H183: 0 | I183: 11 | J183: 16 | K183: 9 | L183: 2 | M183: 10 | N183: 8 | O183: 13 | P183: 5 | Q183: 1 | R183: 65 | S183: 3 | T183: 4 | U183: 13 | V183: 46 | W183: 32 | X183: 4 | Y183: 14 | Z183: 2 | AA183: 1 | AS183: 1 | AT183: 1 | AU183: 1 | AV183: 1 | AW183: =IF(A184<>"",20-SUM(AC184:AV184),"") -> 16 | AX183: 179
A184: =IF(P!$A195>0,P!$A195,"") -> 2014-05-12 | B184: =IF(ISERROR(INDEX(P!$A$16:$G$992,MATCH(NGP!$A184,P!$A$16:$A$992,0),COLUMN())),"X",INDEX(P!$A$16:$G$992,MATCH(NGP!$A184,P!$A$16:$A$992,0),COLUMN())) -> 9 | C184: =IF(ISERROR(INDEX(P!$A$16:$G$992,MATCH(NGP!$A184,P!$A$16:$A$992,0),COLUMN())),"X",INDEX(P!$A$16:$G$992,MATCH(NGP!$A184,P!$A$16:$A$992,0),COLUMN())) -> 1 | D184: =IF(ISERROR(INDEX(P!$A$16:$G$992,MATCH(NGP!$A184,P!$A$16:$A$992,0),COLUMN())),"X",INDEX(P!$A$16:$G$992,MATCH(NGP!$A184,P!$A$16:$A$992,0),COLUMN())) -> 15 | E184: =IF(ISERROR(INDEX(P!$A$16:$G$992,MATCH(NGP!$A184,P!$A$16:$A$992,0),COLUMN())),"X",INDEX(P!$A$16:$G$992,MATCH(NGP!$A184,P!$A$16:$A$992,0),COLUMN())) -> 6 | F184: =IF(ISERROR(INDEX(P!$A$16:$G$992,MATCH(NGP!$A184,P!$A$16:$A$992,0),COLUMN())),"X",INDEX(P!$A$16:$G$992,MATCH(NGP!$A184,P!$A$16:$A$992,0),COLUMN())) -> 13 | G184: =IF(ISERROR(INDEX(P!$A$16:$G$992,MATCH(NGP!$A184,P!$A$16:$A$992,0),COLUMN())),"X",INDEX(P!$A$16:$G$992,MATCH(NGP!$A184,P!$A$16:$A$992,0),COLUMN())) -> P | H184: 1 | I184: 12 | J184: 17 | K184: 10 | L184: 3 | M184: 11 | N184: 9 | O184: 14 | P184: 0 | Q184: 2 | R184: 66 | S184: 4 | T184: 5 | U184: 14 | V184: 47 | W184: 33 | X184: 4 | Y184: 14 | Z184: 2 | AA184: 1 | AS184: 1 | AT184: 1 | AU184: 1 | AV184: 1 | AW184: =IF(A185<>"",20-SUM(AC185:AV185),"") -> 16 | AX184: 180
A185: =IF(P!$A196>0,P!$A196,"") -> 2014-05-13 | B185: =IF(ISERROR(INDEX(P!$A$16:$G$992,MATCH(NGP!$A185,P!$A$16:$A$992,0),COLUMN())),"X",INDEX(P!$A$16:$G$992,MATCH(NGP!$A185,P!$A$16:$A$992,0),COLUMN())) -> 6 | C185: =IF(ISERROR(INDEX(P!$A$16:$G$992,MATCH(NGP!$A185,P!$A$16:$A$992,0),COLUMN())),"X",INDEX(P!$A$16:$G$992,MATCH(NGP!$A185,P!$A$16:$A$992,0),COLUMN())) -> 4 | D185: =IF(ISERROR(INDEX(P!$A$16:$G$992,MATCH(NGP!$A185,P!$A$16:$A$992,0),COLUMN())),"X",INDEX(P!$A$16:$G$992,MATCH(NGP!$A185,P!$A$16:$A$992,0),COLUMN())) -> 8 | E185: =IF(ISERROR(INDEX(P!$A$16:$G$992,MATCH(NGP!$A185,P!$A$16:$A$992,0),COLUMN())),"X",INDEX(P!$A$16:$G$992,MATCH(NGP!$A185,P!$A$16:$A$992,0),COLUMN())) -> 14 | F185: =IF(ISERROR(INDEX(P!$A$16:$G$992,MATCH(NGP!$A185,P!$A$16:$A$992,0),COLUMN())),"X",INDEX(P!$A$16:$G$992,MATCH(NGP!$A185,P!$A$16:$A$992,0),COLUMN())) -> 13 | G185: =IF(ISERROR(INDEX(P!$A$16:$G$992,MATCH(NGP!$A185,P!$A$16:$A$992,0),COLUMN())),"X",INDEX(P!$A$16:$G$992,MATCH(NGP!$A185,P!$A$16:$A$992,0),COLUMN())) -> P | H185: 2 | I185: 13 | J185: 18 | K185: 11 | L185: 4 | M185: 0 | N185: 10 | O185: 15 | P185: 1 | Q185: 3 | R185: 67 | S185: 5 | T185: 6 | U185: 15 | V185: 48 | W185: 34 | X185: 4 | Y185: 14 | Z185: 2 | AA185: 1 | AS185: 1 | AT185: 1 | AU185: 1 | AV185: 1 | AW185: =IF(A186<>"",20-SUM(AC186:AV186),"") -> 14 | AX185: 181
A186: =IF(P!$A197>0,P!$A197,"") -> 2014-05-17 | B186: =IF(ISERROR(INDEX(P!$A$16:$G$992,MATCH(NGP!$A186,P!$A$16:$A$992,0),COLUMN())),"X",INDEX(P!$A$16:$G$992,MATCH(NGP!$A186,P!$A$16:$A$992,0),COLUMN())) -> 3 | C186: =IF(ISERROR(INDEX(P!$A$16:$G$992,MATCH(NGP!$A186,P!$A$16:$A$992,0),COLUMN())),"X",INDEX(P!$A$16:$G$992,MATCH(NGP!$A186,P!$A$16:$A$992,0),COLUMN())) -> 11 | D186: =IF(ISERROR(INDEX(P!$A$16:$G$992,MATCH(NGP!$A186,P!$A$16:$A$992,0),COLUMN())),"X",INDEX(P!$A$16:$G$992,MATCH(NGP!$A186,P!$A$16:$A$992,0),COLUMN())) -> 1 | E186: =IF(ISERROR(INDEX(P!$A$16:$G$992,MATCH(NGP!$A186,P!$A$16:$A$992,0),COLUMN())),"X",INDEX(P!$A$16:$G$992,MATCH(NGP!$A186,P!$A$16:$A$992,0),COLUMN())) -> 13 | F186: =IF(ISERROR(INDEX(P!$A$16:$G$992,MATCH(NGP!$A186,P!$A$16:$A$992,0),COLUMN())),"X",INDEX(P!$A$16:$G$992,MATCH(NGP!$A186,P!$A$16:$A$992,0),COLUMN())) -> 14 | G186: =IF(ISERROR(INDEX(P!$A$16:$G$992,MATCH(NGP!$A186,P!$A$16:$A$992,0),COLUMN())),"X",INDEX(P!$A$16:$G$992,MATCH(NGP!$A186,P!$A$16:$A$992,0),COLUMN())) -> P | H186: 3 | I186: 14 | J186: 0 | K186: 12 | L186: 5 | M186: 1 | N186: 11 | O186: 16 | P186: 2 | Q186: 4 | R186: 68 | S186: 6 | T186: 7 | U186: 16 | V186: 48 | W186: 34 | X186: 4 | Y186: 14 | Z186: 2 | AA186: 1 | AQ186: 1 | AR186: 1 | AS186: 1 | AT186: 1 | AU186: 1 | AV186: 1 | AW186: =IF(A187<>"",20-SUM(AC187:AV187),"") -> 16 | AX186: 182
A187: =IF(P!$A198>0,P!$A198,"") -> 2014-05-19 | B187: =IF(ISERROR(INDEX(P!$A$16:$G$992,MATCH(NGP!$A187,P!$A$16:$A$992,0),COLUMN())),"X",INDEX(P!$A$16:$G$992,MATCH(NGP!$A187,P!$A$16:$A$992,0),COLUMN())) -> 6 | C187: =IF(ISERROR(INDEX(P!$A$16:$G$992,MATCH(NGP!$A187,P!$A$16:$A$992,0),COLUMN())),"X",INDEX(P!$A$16:$G$992,MATCH(NGP!$A187,P!$A$16:$A$992,0),COLUMN())) -> 7 | D187: =IF(ISERROR(INDEX(P!$A$16:$G$992,MATCH(NGP!$A187,P!$A$16:$A$992,0),COLUMN())),"X",INDEX(P!$A$16:$G$992,MATCH(NGP!$A187,P!$A$16:$A$992,0),COLUMN())) -> 10 | E187: =IF(ISERROR(INDEX(P!$A$16:$G$992,MATCH(NGP!$A187,P!$A$16:$A$992,0),COLUMN())),"X",INDEX(P!$A$16:$G$992,MATCH(NGP!$A187,P!$A$16:$A$992,0),COLUMN())) -> 2 | F187: =IF(ISERROR(INDEX(P!$A$16:$G$992,MATCH(NGP!$A187,P!$A$16:$A$992,0),COLUMN())),"X",INDEX(P!$A$16:$G$992,MATCH(NGP!$A187,P!$A$16:$A$992,0),COLUMN())) -> 3 | G187: =IF(ISERROR(INDEX(P!$A$16:$G$992,MATCH(NGP!$A187,P!$A$16:$A$992,0),COLUMN())),"X",INDEX(P!$A$16:$G$992,MATCH(NGP!$A187,P!$A$16:$A$992,0),COLUMN())) -> P | H187: 4 | I187: 15 | J187: 1 | K187: 13 | L187: 6 | M187: 0 | N187: 12 | O187: 17 | P187: 3 | Q187: 5 | R187: 69 | S187: 7 | T187: 8 | U187: 17 | V187: 49 | W187: 35 | X187: 4 | Y187: 14 | Z187: 2 | AA187: 1 | AS187: 1 | AT187: 1 | AU187: 1 | AV187: 1 | AW187: =IF(A188<>"",20-SUM(AC188:AV188),"") -> 16 | AX187: 183
A188: =IF(P!$A199>0,P!$A199,"") -> 2014-05-20 | B188: =IF(ISERROR(INDEX(P!$A$16:$G$992,MATCH(NGP!$A188,P!$A$16:$A$992,0),COLUMN())),"X",INDEX(P!$A$16:$G$992,MATCH(NGP!$A188,P!$A$16:$A$992,0),COLUMN())) -> 11 | C188: =IF(ISERROR(INDEX(P!$A$16:$G$992,MATCH(NGP!$A188,P!$A$16:$A$992,0),COLUMN())),"X",INDEX(P!$A$16:$G$992,MATCH(NGP!$A188,P!$A$16:$A$992,0),COLUMN())) -> 3 | D188: =IF(ISERROR(INDEX(P!$A$16:$G$992,MATCH(NGP!$A188,P!$A$16:$A$992,0),COLUMN())),"X",INDEX(P!$A$16:$G$992,MATCH(NGP!$A188,P!$A$16:$A$992,0),COLUMN())) -> 1 | E188: =IF(ISERROR(INDEX(P!$A$16:$G$992,MATCH(NGP!$A188,P!$A$16:$A$992,0),COLUMN())),"X",INDEX(P!$A$16:$G$992,MATCH(NGP!$A188,P!$A$16:$A$992,0),COLUMN())) -> 16 | F188: =IF(ISERROR(INDEX(P!$A$16:$G$992,MATCH(NGP!$A188,P!$A$16:$A$992,0),COLUMN())),"X",INDEX(P!$A$16:$G$992,MATCH(NGP!$A188,P!$A$16:$A$992,0),COLUMN())) -> 10 | G188: =IF(ISERROR(INDEX(P!$A$16:$G$992,MATCH(NGP!$A188,P!$A$16:$A$992,0),COLUMN())),"X",INDEX(P!$A$16:$G$992,MATCH(NGP!$A188,P!$A$16:$A$992,0),COLUMN())) -> P | H188: 5 | I188: 16 | J188: 2 | K188: 14 | L188: 7 | M188: 1 | N188: 13 | O188: 18 | P188: 4 | Q188: 6 | R188: 0 | S188: 8 | T188: 9 | U188: 18 | V188: 50 | W188: 36 | X188: 4 | Y188: 14 | Z188: 2 | AA188: 1 | AS188: 1 | AT188: 1 | AU188: 1 | AV188: 1 | AW188: =IF(A189<>"",20-SUM(AC189:AV189),"") -> 17 | AX188: 184
A189: =IF(P!$A200>0,P!$A200,"") -> 2014-05-25 | B189: =IF(ISERROR(INDEX(P!$A$16:$G$992,MATCH(NGP!$A189,P!$A$16:$A$992,0),COLUMN())),"X",INDEX(P!$A$16:$G$992,MATCH(NGP!$A189,P!$A$16:$A$992,0),COLUMN())) -> 5 | C189: =IF(ISERROR(INDEX(P!$A$16:$G$992,MATCH(NGP!$A189,P!$A$16:$A$992,0),COLUMN())),"X",INDEX(P!$A$16:$G$992,MATCH(NGP!$A189,P!$A$16:$A$992,0),COLUMN())) -> 14 | D189: =IF(ISERROR(INDEX(P!$A$16:$G$992,MATCH(NGP!$A189,P!$A$16:$A$992,0),COLUMN())),"X",INDEX(P!$A$16:$G$992,MATCH(NGP!$A189,P!$A$16:$A$992,0),COLUMN())) -> 8 | E189: =IF(ISERROR(INDEX(P!$A$16:$G$992,MATCH(NGP!$A189,P!$A$16:$A$992,0),COLUMN())),"X",INDEX(P!$A$16:$G$992,MATCH(NGP!$A189,P!$A$16:$A$992,0),COLUMN())) -> 3 | F189: =IF(ISERROR(INDEX(P!$A$16:$G$992,MATCH(NGP!$A189,P!$A$16:$A$992,0),COLUMN())),"X",INDEX(P!$A$16:$G$992,MATCH(NGP!$A189,P!$A$16:$A$992,0),COLUMN())) -> 4 | G189: =IF(ISERROR(INDEX(P!$A$16:$G$992,MATCH(NGP!$A189,P!$A$16:$A$992,0),COLUMN())),"X",INDEX(P!$A$16:$G$992,MATCH(NGP!$A189,P!$A$16:$A$992,0),COLUMN())) -> P | H189: 6 | I189: 17 | J189: 3 | K189: 15 | L189: 0 | M189: 2 | N189: 14 | O189: 19 | P189: 5 | Q189: 7 | R189: 1 | S189: 9 | T189: 10 | U189: 19 | V189: 51 | W189: 37 | X189: 5 | Y189: 14 | Z189: 2 | AA189: 1 | AT189: 1 | AU189: 1 | AV189: 1 | AW189: =IF(A190<>"",20-SUM(AC190:AV190),"") -> 15 | AX189: 185
A190: =IF(P!$A201>0,P!$A201,"") -> 2014-05-26 | B190: =IF(ISERROR(INDEX(P!$A$16:$G$992,MATCH(NGP!$A190,P!$A$16:$A$992,0),COLUMN())),"X",INDEX(P!$A$16:$G$992,MATCH(NGP!$A190,P!$A$16:$A$992,0),COLUMN())) -> 3 | C190: =IF(ISERROR(INDEX(P!$A$16:$G$992,MATCH(NGP!$A190,P!$A$16:$A$992,0),COLUMN())),"X",INDEX(P!$A$16:$G$992,MATCH(NGP!$A190,P!$A$16:$A$992,0),COLUMN())) -> 6 | D190: =IF(ISERROR(INDEX(P!$A$16:$G$992,MATCH(NGP!$A190,P!$A$16:$A$992,0),COLUMN())),"X",INDEX(P!$A$16:$G$992,MATCH(NGP!$A190,P!$A$16:$A$992,0),COLUMN())) -> 10 | E190: =IF(ISERROR(INDEX(P!$A$16:$G$992,MATCH(NGP!$A190,P!$A$16:$A$992,0),COLUMN())),"X",INDEX(P!$A$16:$G$992,MATCH(NGP!$A190,P!$A$16:$A$992,0),COLUMN())) -> 7 | F190: =IF(ISERROR(INDEX(P!$A$16:$G$992,MATCH(NGP!$A190,P!$A$16:$A$992,0),COLUMN())),"X",INDEX(P!$A$16:$G$992,MATCH(NGP!$A190,P!$A$16:$A$992,0),COLUMN())) -> 5 | G190: =IF(ISERROR(INDEX(P!$A$16:$G$992,MATCH(NGP!$A190,P!$A$16:$A$992,0),COLUMN())),"X",INDEX(P!$A$16:$G$992,MATCH(NGP!$A190,P!$A$16:$A$992,0),COLUMN())) -> P | H190: 7 | I190: 18 | J190: 0 | K190: 16 | L190: 1 | M190: 3 | N190: 15 | O190: 19 | P190: 6 | Q190: 8 | R190: 2 | S190: 10 | T190: 11 | U190: 20 | V190: 52 | W190: 38 | X190: 5 | Y190: 14 | Z190: 2 | AA190: 1 | AJ190: 1 | AS190: 1 | AT190: 1 | AU190: 1 | AV190: 1 | AW190: =IF(A191<>"",20-SUM(AC191:AV191),"") -> 15 | AX190: 186
A191: =IF(P!$A202>0,P!$A202,"") -> 2014-05-27 | B191: =IF(ISERROR(INDEX(P!$A$16:$G$992,MATCH(NGP!$A191,P!$A$16:$A$992,0),COLUMN())),"X",INDEX(P!$A$16:$G$992,MATCH(NGP!$A191,P!$A$16:$A$992,0),COLUMN())) -> 1 | C191: =IF(ISERROR(INDEX(P!$A$16:$G$992,MATCH(NGP!$A191,P!$A$16:$A$992,0),COLUMN())),"X",INDEX(P!$A$16:$G$992,MATCH(NGP!$A191,P!$A$16:$A$992,0),COLUMN())) -> 2 | D191: =IF(ISERROR(INDEX(P!$A$16:$G$992,MATCH(NGP!$A191,P!$A$16:$A$992,0),COLUMN())),"X",INDEX(P!$A$16:$G$992,MATCH(NGP!$A191,P!$A$16:$A$992,0),COLUMN())) -> 8 | E191: =IF(ISERROR(INDEX(P!$A$16:$G$992,MATCH(NGP!$A191,P!$A$16:$A$992,0),COLUMN())),"X",INDEX(P!$A$16:$G$992,MATCH(NGP!$A191,P!$A$16:$A$992,0),COLUMN())) -> 6 | F191: =IF(ISERROR(INDEX(P!$A$16:$G$992,MATCH(NGP!$A191,P!$A$16:$A$992,0),COLUMN())),"X",INDEX(P!$A$16:$G$992,MATCH(NGP!$A191,P!$A$16:$A$992,0),COLUMN())) -> 14 | G191: =IF(ISERROR(INDEX(P!$A$16:$G$992,MATCH(NGP!$A191,P!$A$16:$A$992,0),COLUMN())),"X",INDEX(P!$A$16:$G$992,MATCH(NGP!$A191,P!$A$16:$A$992,0),COLUMN())) -> P | H191: 0 | I191: 19 | J191: 1 | K191: 17 | L191: 2 | M191: 4 | N191: 16 | O191: 20 | P191: 7 | Q191: 9 | R191: 3 | S191: 11 | T191: 11 | U191: 21 | V191: 53 | W191: 39 | X191: 5 | Y191: 14 | Z191: 2 | AA191: 1 | AO191: 1 | AS191: 1 | AT191: 1 | AU191: 1 | AV191: 1 | AW191: =IF(A192<>"",20-SUM(AC192:AV192),"") -> 16 | AX191: 187
A192: =IF(P!$A203>0,P!$A203,"") -> 2014-05-28 | B192: =IF(ISERROR(INDEX(P!$A$16:$G$992,MATCH(NGP!$A192,P!$A$16:$A$992,0),COLUMN())),"X",INDEX(P!$A$16:$G$992,MATCH(NGP!$A192,P!$A$16:$A$992,0),COLUMN())) -> 6 | C192: =IF(ISERROR(INDEX(P!$A$16:$G$992,MATCH(NGP!$A192,P!$A$16:$A$992,0),COLUMN())),"X",INDEX(P!$A$16:$G$992,MATCH(NGP!$A192,P!$A$16:$A$992,0),COLUMN())) -> 3 | D192: =IF(ISERROR(INDEX(P!$A$16:$G$992,MATCH(NGP!$A192,P!$A$16:$A$992,0),COLUMN())),"X",INDEX(P!$A$16:$G$992,MATCH(NGP!$A192,P!$A$16:$A$992,0),COLUMN())) -> 9 | E192: =IF(ISERROR(INDEX(P!$A$16:$G$992,MATCH(NGP!$A192,P!$A$16:$A$992,0),COLUMN())),"X",INDEX(P!$A$16:$G$992,MATCH(NGP!$A192,P!$A$16:$A$992,0),COLUMN())) -> 13 | F192: =IF(ISERROR(INDEX(P!$A$16:$G$992,MATCH(NGP!$A192,P!$A$16:$A$992,0),COLUMN())),"X",INDEX(P!$A$16:$G$992,MATCH(NGP!$A192,P!$A$16:$A$992,0),COLUMN())) -> 7 | G192: =IF(ISERROR(INDEX(P!$A$16:$G$992,MATCH(NGP!$A192,P!$A$16:$A$992,0),COLUMN())),"X",INDEX(P!$A$16:$G$992,MATCH(NGP!$A192,P!$A$16:$A$992,0),COLUMN())) -> P | H192: 1 | I192: 20 | J192: 2 | K192: 18 | L192: 3 | M192: 0 | N192: 17 | O192: 21 | P192: 8 | Q192: 10 | R192: 4 | S192: 12 | T192: 12 | U192: 22 | V192: 54 | W192: 40 | X192: 5 | Y192: 14 | Z192: 2 | AA192: 1 | AS192: 1 | AT192: 1 | AU192: 1 | AV192: 1 | AW192: =IF(A193<>"",20-SUM(AC193:AV193),"") -> 15 | AX192: 188
A193: =IF(P!$A204>0,P!$A204,"") -> 2014-05-29 | B193: =IF(ISERROR(INDEX(P!$A$16:$G$992,MATCH(NGP!$A193,P!$A$16:$A$992,0),COLUMN())),"X",INDEX(P!$A$16:$G$992,MATCH(NGP!$A193,P!$A$16:$A$992,0),COLUMN())) -> 5 | C193: =IF(ISERROR(INDEX(P!$A$16:$G$992,MATCH(NGP!$A193,P!$A$16:$A$992,0),COLUMN())),"X",INDEX(P!$A$16:$G$992,MATCH(NGP!$A193,P!$A$16:$A$992,0),COLUMN())) -> 10 | D193: =IF(ISERROR(INDEX(P!$A$16:$G$992,MATCH(NGP!$A193,P!$A$16:$A$992,0),COLUMN())),"X",INDEX(P!$A$16:$G$992,MATCH(NGP!$A193,P!$A$16:$A$992,0),COLUMN())) -> 8 | E193: =IF(ISERROR(INDEX(P!$A$16:$G$992,MATCH(NGP!$A193,P!$A$16:$A$992,0),COLUMN())),"X",INDEX(P!$A$16:$G$992,MATCH(NGP!$A193,P!$A$16:$A$992,0),COLUMN())) -> 15 | F193: =IF(ISERROR(INDEX(P!$A$16:$G$992,MATCH(NGP!$A193,P!$A$16:$A$992,0),COLUMN())),"X",INDEX(P!$A$16:$G$992,MATCH(NGP!$A193,P!$A$16:$A$992,0),COLUMN())) -> 14 | G193: =IF(ISERROR(INDEX(P!$A$16:$G$992,MATCH(NGP!$A193,P!$A$16:$A$992,0),COLUMN())),"X",INDEX(P!$A$16:$G$992,MATCH(NGP!$A193,P!$A$16:$A$992,0),COLUMN())) -> P | H193: 2 | I193: 21 | J193: 3 | K193: 19 | L193: 0 | M193: 1 | N193: 18 | O193: 22 | P193: 8 | Q193: 11 | R193: 5 | S193: 13 | T193: 13 | U193: 23 | V193: 55 | W193: 41 | X193: =IF(COUNTIF($B193:$D193,"=X")<3,IF(LEN(SUBSTITUTE(SUBSTITUTE($B193,X$1,,1),,1))=0,0,X192+1-AS193),"") -> 5 | Y193: 14 | Z193: 2 | AA193: 1 | AK193: 1 | AS193: 1 | AT193: 1 | AU193: 1 | AV193: 1 | AW193: =IF(A194<>"",20-SUM(AC194:AV194),"") -> 15 | AX193: 189
A194: =IF(P!$A205>0,P!$A205,"") -> 2014-05-31 | B194: =IF(ISERROR(INDEX(P!$A$16:$G$992,MATCH(NGP!$A194,P!$A$16:$A$992,0),COLUMN())),"X",INDEX(P!$A$16:$G$992,MATCH(NGP!$A194,P!$A$16:$A$992,0),COLUMN())) -> 16 | C194: =IF(ISERROR(INDEX(P!$A$16:$G$992,MATCH(NGP!$A194,P!$A$16:$A$992,0),COLUMN())),"X",INDEX(P!$A$16:$G$992,MATCH(NGP!$A194,P!$A$16:$A$992,0),COLUMN())) -> 4 | D194: =IF(ISERROR(INDEX(P!$A$16:$G$992,MATCH(NGP!$A194,P!$A$16:$A$992,0),COLUMN())),"X",INDEX(P!$A$16:$G$992,MATCH(NGP!$A194,P!$A$16:$A$992,0),COLUMN())) -> 1 | E194: =IF(ISERROR(INDEX(P!$A$16:$G$992,MATCH(NGP!$A194,P!$A$16:$A$992,0),COLUMN())),"X",INDEX(P!$A$16:$G$992,MATCH(NGP!$A194,P!$A$16:$A$992,0),COLUMN())) -> 2 | F194: =IF(ISERROR(INDEX(P!$A$16:$G$992,MATCH(NGP!$A194,P!$A$16:$A$992,0),COLUMN())),"X",INDEX(P!$A$16:$G$992,MATCH(NGP!$A194,P!$A$16:$A$992,0),COLUMN())) -> 11 | G194: =IF(ISERROR(INDEX(P!$A$16:$G$992,MATCH(NGP!$A194,P!$A$16:$A$992,0),COLUMN())),"X",INDEX(P!$A$16:$G$992,MATCH(NGP!$A194,P!$A$16:$A$992,0),COLUMN())) -> P | H194: =IF(COUNTIF($B194:$D194,"=X")<3,IF(LEN(SUBSTITUTE(SUBSTITUTE($B194,H$1,,1),,1))=0,0,H193+1-AC194),"") -> 3 | I194: 22 | J194: 4 | K194: 20 | L194: 0 | M194: 2 | N194: 19 | O194: 23 | P194: 9 | Q194: 12 | R194: 6 | S194: 14 | T194: 14 | U194: 24 | V194: 56 | W194: 0 | X194: 5 | Y194: 14 | Z194: 2 | AA194: 1 | AG194: 1 | AS194: 1 | AT194: 1 | AU194: 1 | AV194: 1 | AW194: =IF(A195<>"",20-SUM(AC195:AV195),"") -> 16 | AX194: 190
A195: =IF(P!$A206>0,P!$A206,"") -> 2014-06-01 | B195: =IF(ISERROR(INDEX(P!$A$16:$G$992,MATCH(NGP!$A195,P!$A$16:$A$992,0),COLUMN())),"X",INDEX(P!$A$16:$G$992,MATCH(NGP!$A195,P!$A$16:$A$992,0),COLUMN())) -> 4 | C195: =IF(ISERROR(INDEX(P!$A$16:$G$992,MATCH(NGP!$A195,P!$A$16:$A$992,0),COLUMN())),"X",INDEX(P!$A$16:$G$992,MATCH(NGP!$A195,P!$A$16:$A$992,0),COLUMN())) -> 2 | D195: =IF(ISERROR(INDEX(P!$A$16:$G$992,MATCH(NGP!$A195,P!$A$16:$A$992,0),COLUMN())),"X",INDEX(P!$A$16:$G$992,MATCH(NGP!$A195,P!$A$16:$A$992,0),COLUMN())) -> 6 | E195: =IF(ISERROR(INDEX(P!$A$16:$G$992,MATCH(NGP!$A195,P!$A$16:$A$992,0),COLUMN())),"X",INDEX(P!$A$16:$G$992,MATCH(NGP!$A195,P!$A$16:$A$992,0),COLUMN())) -> 13 | F195: =IF(ISERROR(INDEX(P!$A$16:$G$992,MATCH(NGP!$A195,P!$A$16:$A$992,0),COLUMN())),"X",INDEX(P!$A$16:$G$992,MATCH(NGP!$A195,P!$A$16:$A$992,0),COLUMN())) -> 15 | G195: =IF(ISERROR(INDEX(P!$A$16:$G$992,MATCH(NGP!$A195,P!$A$16:$A$992,0),COLUMN())),"X",INDEX(P!$A$16:$G$992,MATCH(NGP!$A195,P!$A$16:$A$992,0),COLUMN())) -> P | H195: 4 | I195: 23 | J195: 5 | K195: 0 | L195: 1 | M195: 3 | N195: 20 | O195: 24 | P195: 10 | Q195: 13 | R195: 7 | S195: 15 | T195: 15 | U195: 25 | V195: 57 | W195: 1 | X195: 5 | Y195: 14 | Z195: 2 | AA195: 1 | AS195: 1 | AT195: 1 | AU195: 1 | AV195: 1 | AW195: =IF(A196<>"",20-SUM(AC196:AV196),"") -> 16 | AX195: 191
A196: =IF(P!$A207>0,P!$A207,"") -> 2014-06-03 | B196: =IF(ISERROR(INDEX(P!$A$16:$G$992,MATCH(NGP!$A196,P!$A$16:$A$992,0),COLUMN())),"X",INDEX(P!$A$16:$G$992,MATCH(NGP!$A196,P!$A$16:$A$992,0),COLUMN())) -> 5 | C196: =IF(ISERROR(INDEX(P!$A$16:$G$992,MATCH(NGP!$A196,P!$A$16:$A$992,0),COLUMN())),"X",INDEX(P!$A$16:$G$992,MATCH(NGP!$A196,P!$A$16:$A$992,0),COLUMN())) -> 1 | D196: =IF(ISERROR(INDEX(P!$A$16:$G$992,MATCH(NGP!$A196,P!$A$16:$A$992,0),COLUMN())),"X",INDEX(P!$A$16:$G$992,MATCH(NGP!$A196,P!$A$16:$A$992,0),COLUMN())) -> 11 | E196: =IF(ISERROR(INDEX(P!$A$16:$G$992,MATCH(NGP!$A196,P!$A$16:$A$992,0),COLUMN())),"X",INDEX(P!$A$16:$G$992,MATCH(NGP!$A196,P!$A$16:$A$992,0),COLUMN())) -> 14 | F196: =IF(ISERROR(INDEX(P!$A$16:$G$992,MATCH(NGP!$A196,P!$A$16:$A$992,0),COLUMN())),"X",INDEX(P!$A$16:$G$992,MATCH(NGP!$A196,P!$A$16:$A$992,0),COLUMN())) -> 3 | G196: =IF(ISERROR(INDEX(P!$A$16:$G$992,MATCH(NGP!$A196,P!$A$16:$A$992,0),COLUMN())),"X",INDEX(P!$A$16:$G$992,MATCH(NGP!$A196,P!$A$16:$A$992,0),COLUMN())) -> P | H196: 5 | I196: 24 | J196: 6 | K196: 1 | L196: 0 | M196: 4 | N196: 21 | O196: 25 | P196: 11 | Q196: 14 | R196: 8 | S196: 16 | T196: 16 | U196: 26 | V196: 58 | W196: 2 | X196: 5 | Y196: 14 | Z196: 2 | AA196: 1 | AS196: 1 | AT196: 1 | AU196: 1 | AV196: 1 | AW196: =IF(A197<>"",20-SUM(AC197:AV197),"") -> 15 | AX196: 192
A197: =IF(P!$A208>0,P!$A208,"") -> 2014-06-09 | B197: =IF(ISERROR(INDEX(P!$A$16:$G$992,MATCH(NGP!$A197,P!$A$16:$A$992,0),COLUMN())),"X",INDEX(P!$A$16:$G$992,MATCH(NGP!$A197,P!$A$16:$A$992,0),COLUMN())) -> 16 | C197: =IF(ISERROR(INDEX(P!$A$16:$G$992,MATCH(NGP!$A197,P!$A$16:$A$992,0),COLUMN())),"X",INDEX(P!$A$16:$G$992,MATCH(NGP!$A197,P!$A$16:$A$992,0),COLUMN())) -> 18 | D197: =IF(ISERROR(INDEX(P!$A$16:$G$992,MATCH(NGP!$A197,P!$A$16:$A$992,0),COLUMN())),"X",INDEX(P!$A$16:$G$992,MATCH(NGP!$A197,P!$A$16:$A$992,0),COLUMN())) -> 5 | E197: =IF(ISERROR(INDEX(P!$A$16:$G$992,MATCH(NGP!$A197,P!$A$16:$A$992,0),COLUMN())),"X",INDEX(P!$A$16:$G$992,MATCH(NGP!$A197,P!$A$16:$A$992,0),COLUMN())) -> 4 | F197: =IF(ISERROR(INDEX(P!$A$16:$G$992,MATCH(NGP!$A197,P!$A$16:$A$992,0),COLUMN())),"X",INDEX(P!$A$16:$G$992,MATCH(NGP!$A197,P!$A$16:$A$992,0),COLUMN())) -> 14 | G197: =IF(ISERROR(INDEX(P!$A$16:$G$992,MATCH(NGP!$A197,P!$A$16:$A$992,0),COLUMN())),"X",INDEX(P!$A$16:$G$992,MATCH(NGP!$A197,P!$A$16:$A$992,0),COLUMN())) -> P | H197: 5 | I197: 25 | J197: 7 | K197: 2 | L197: 1 | M197: 5 | N197: 22 | O197: 25 | P197: 12 | Q197: 15 | R197: 9 | S197: 17 | T197: 17 | U197: 27 | V197: 58 | W197: 0 | X197: 6 | Y197: 15 | Z197: 2 | AA197: 1 | AC197: 1 | AJ197: 1 | AQ197: 1 | AU197: 1 | AV197: 1 | AW197: =IF(A198<>"",20-SUM(AC198:AV198),"") -> 14 | AX197: 193
A198: =IF(P!$A209>0,P!$A209,"") -> 2014-06-10 | B198: =IF(ISERROR(INDEX(P!$A$16:$G$992,MATCH(NGP!$A198,P!$A$16:$A$992,0),COLUMN())),"X",INDEX(P!$A$16:$G$992,MATCH(NGP!$A198,P!$A$16:$A$992,0),COLUMN())) -> 12 | C198: =IF(ISERROR(INDEX(P!$A$16:$G$992,MATCH(NGP!$A198,P!$A$16:$A$992,0),COLUMN())),"X",INDEX(P!$A$16:$G$992,MATCH(NGP!$A198,P!$A$16:$A$992,0),COLUMN())) -> 11 | D198: =IF(ISERROR(INDEX(P!$A$16:$G$992,MATCH(NGP!$A198,P!$A$16:$A$992,0),COLUMN())),"X",INDEX(P!$A$16:$G$992,MATCH(NGP!$A198,P!$A$16:$A$992,0),COLUMN())) -> 5 | E198: =IF(ISERROR(INDEX(P!$A$16:$G$992,MATCH(NGP!$A198,P!$A$16:$A$992,0),COLUMN())),"X",INDEX(P!$A$16:$G$992,MATCH(NGP!$A198,P!$A$16:$A$992,0),COLUMN())) -> 9 | F198: =IF(ISERROR(INDEX(P!$A$16:$G$992,MATCH(NGP!$A198,P!$A$16:$A$992,0),COLUMN())),"X",INDEX(P!$A$16:$G$992,MATCH(NGP!$A198,P!$A$16:$A$992,0),COLUMN())) -> 1 | G198: =IF(ISERROR(INDEX(P!$A$16:$G$992,MATCH(NGP!$A198,P!$A$16:$A$992,0),COLUMN())),"X",INDEX(P!$A$16:$G$992,MATCH(NGP!$A198,P!$A$16:$A$992,0),COLUMN())) -> P | H198: 6 | I198: 26 | J198: 8 | K198: 3 | L198: 2 | M198: 6 | N198: 23 | O198: 26 | P198: 13 | Q198: 16 | R198: 10 | S198: 0 | T198: 18 | U198: 28 | V198: 58 | W198: 0 | X198: 6 | Y198: 15 | Z198: 2 | AA198: 1 | AQ198: 1 | AR198: 1 | AS198: 1 | AT198: 1 | AU198: 1 | AV198: 1 | AW198: =IF(A199<>"",20-SUM(AC199:AV199),"") -> 16 | AX198: 194
A199: =IF(P!$A210>0,P!$A210,"") -> 2014-06-12 | B199: =IF(ISERROR(INDEX(P!$A$16:$G$992,MATCH(NGP!$A199,P!$A$16:$A$992,0),COLUMN())),"X",INDEX(P!$A$16:$G$992,MATCH(NGP!$A199,P!$A$16:$A$992,0),COLUMN())) -> 7 | C199: =IF(ISERROR(INDEX(P!$A$16:$G$992,MATCH(NGP!$A199,P!$A$16:$A$992,0),COLUMN())),"X",INDEX(P!$A$16:$G$992,MATCH(NGP!$A199,P!$A$16:$A$992,0),COLUMN())) -> 16 | D199: =IF(ISERROR(INDEX(P!$A$16:$G$992,MATCH(NGP!$A199,P!$A$16:$A$992,0),COLUMN())),"X",INDEX(P!$A$16:$G$992,MATCH(NGP!$A199,P!$A$16:$A$992,0),COLUMN())) -> 12 | E199: =IF(ISERROR(INDEX(P!$A$16:$G$992,MATCH(NGP!$A199,P!$A$16:$A$992,0),COLUMN())),"X",INDEX(P!$A$16:$G$992,MATCH(NGP!$A199,P!$A$16:$A$992,0),COLUMN())) -> 4 | F199: =IF(ISERROR(INDEX(P!$A$16:$G$992,MATCH(NGP!$A199,P!$A$16:$A$992,0),COLUMN())),"X",INDEX(P!$A$16:$G$992,MATCH(NGP!$A199,P!$A$16:$A$992,0),COLUMN())) -> 15 | G199: =IF(ISERROR(INDEX(P!$A$16:$G$992,MATCH(NGP!$A199,P!$A$16:$A$992,0),COLUMN())),"X",INDEX(P!$A$16:$G$992,MATCH(NGP!$A199,P!$A$16:$A$992,0),COLUMN())) -> P | H199: 7 | I199: 27 | J199: 9 | K199: 4 | L199: 3 | M199: 6 | N199: 0 | O199: 27 | P199: 14 | Q199: 17 | R199: 10 | S199: 1 | T199: 19 | U199: 29 | V199: 59 | W199: 1 | X199: 7 | Y199: 16 | Z199: 2 | AA199: 1 | AH199: 1 | AM199: 1 | AU199: 1 | AV199: 1 | AW199: =IF(A200<>"",20-SUM(AC200:AV200),"") -> 20 | AX199: =SUM(AX198+1) -> 195
A200: =IF(P!$A211>0,P!$A211,"") -> 2014-06-15 | B200: =IF(ISERROR(INDEX(P!$A$16:$G$992,MATCH(NGP!$A200,P!$A$16:$A$992,0),COLUMN())),"X",INDEX(P!$A$16:$G$992,MATCH(NGP!$A200,P!$A$16:$A$992,0),COLUMN())) -> 4 | C200: =IF(ISERROR(INDEX(P!$A$16:$G$992,MATCH(NGP!$A200,P!$A$16:$A$992,0),COLUMN())),"X",INDEX(P!$A$16:$G$992,MATCH(NGP!$A200,P!$A$16:$A$992,0),COLUMN())) -> 13 | D200: =IF(ISERROR(INDEX(P!$A$16:$G$992,MATCH(NGP!$A200,P!$A$16:$A$992,0),COLUMN())),"X",INDEX(P!$A$16:$G$992,MATCH(NGP!$A200,P!$A$16:$A$992,0),COLUMN())) -> 18 | E200: =IF(ISERROR(INDEX(P!$A$16:$G$992,MATCH(NGP!$A200,P!$A$16:$A$992,0),COLUMN())),"X",INDEX(P!$A$16:$G$992,MATCH(NGP!$A200,P!$A$16:$A$992,0),COLUMN())) -> 3 | F200: =IF(ISERROR(INDEX(P!$A$16:$G$992,MATCH(NGP!$A200,P!$A$16:$A$992,0),COLUMN())),"X",INDEX(P!$A$16:$G$992,MATCH(NGP!$A200,P!$A$16:$A$992,0),COLUMN())) -> 8 | G200: =IF(ISERROR(INDEX(P!$A$16:$G$992,MATCH(NGP!$A200,P!$A$16:$A$992,0),COLUMN())),"X",INDEX(P!$A$16:$G$992,MATCH(NGP!$A200,P!$A$16:$A$992,0),COLUMN())) -> P | H200: 8 | I200: 28 | J200: 10 | K200: 0 | L200: 4 | M200: 7 | N200: 1 | O200: 28 | P200: 15 | Q200: 18 | R200: 11 | S200: 2 | T200: 20 | U200: 30 | V200: 60 | W200: 2 | X200: 8 | Y200: 17 | Z200: 3 | AA200: 2 | AW200: =IF(A201<>"",20-SUM(AC201:AV201),"") -> 16 | AX200: 196
... 362 more rows

Sheet NG2
H1: 1 | I1: 2 | J1: 3 | K1: 4 | L1: 5 | M1: 6 | N1: 7 | O1: 8 | P1: 9 | Q1: 10 | R1: 11 | S1: 12 | T1: 13 | U1: 14 | V1: 15 | W1: 16 | X1: 17 | Y1: 18 | Z1: 19 | AA1: 20 | AC1: 1 | AD1: 2 | AE1: 3 | AF1: 4 | AG1: 5 | AH1: 6 | AI1: 7 | AJ1: 8 | AK1: 9 | AL1: 10 | AM1: 11 | AN1: 12 | AO1: 13 | AP1: 14 | AQ1: 15 | AR1: 16 | AS1: 17 | AT1: 18 | AU1: 19 | AV1: 20 | AW1: 9 | AX1: 10 | AY1: 11 | AZ1: 12
